Workbook

Sheet CWP Prob & Severity Param
A1: Close With Pay Probability
A2: 0.9
A4: Lognormal Severity Parameters
A5: mu | B5: sigma
A6: 10 | B6: 2

Sheet Report Lag Fit
D1: From Claim Data | H1: Calculated Fields
A2: Sum of log-likelihood | D2: Claim Index | E2: Occurrence Date | F2: Report Date | G2: Evaluation Date | H2: Report Lag | I2: Truncation Point | J2: log-likelihood
A3: =SUM(J3:J1217) -> -8555.658734 | D3: 1 | E3: 2012-01-15 | F3: 2016-04-02 | G3: 2019-12-31 | H3: =F3-E3 -> 1539 | I3: =G3-E3 -> 2907 | J3: =LN(_xlfn.GAMMA.DIST(H3, $A$7, $B$7, FALSE)/_xlfn.GAMMA.DIST(I3, $A$7, $B$7, TRUE)) -> -8.739735833
D4: 2 | E4: 2016-01-06 | F4: 2016-11-10 | G4: 2019-12-31 | H4: =F4-E4 -> 309 | I4: =G4-E4 -> 1455 | J4: -6.992674508
A5: Fitted Gamma Parameters | D5: 3 | E5: 2017-06-24 | F5: 2018-05-03 | G5: 2019-12-31 | H5: 313 | I5: 920 | J5: -6.838900101
A6: Alpha | B6: Theta | D6: 7 | E6: 2017-08-29 | F6: 2017-10-16 | G6: 2019-12-31 | H6: 48 | I6: 854 | J6: -5.977634577
A7: 0.6835667812 | B7: 1117.966488 | D7: 8 | E7: 2010-08-02 | F7: 2011-09-18 | G7: 2019-12-31 | H7: 412 | I7: 3438 | J7: -7.33038902
D8: 9 | E8: 2017-08-21 | F8: 2017-08-25 | G8: 2019-12-31 | H8: 4 | I8: 862 | J8: -5.155908358
D9: 10 | E9: 2010-09-21 | F9: 2012-11-23 | G9: 2019-12-31 | H9: 794 | I9: 3388 | J9: -7.878533581
D10: 11 | E10: 2018-09-17 | F10: 2018-10-31 | G10: 2019-12-31 | H10: 44 | I10: 470 | J10: -5.660157214
D11: 12 | E11: 2018-07-17 | F11: 2019-08-18 | G11: 2019-12-31 | H11: 397 | I11: 532 | J11: -6.736341222
D12: 13 | E12: 2016-12-24 | F12: 2018-01-05 | G12: 2019-12-31 | H12: 377 | I12: 1102 | J12: -7.024763106
D13: 14 | E13: 2013-12-03 | F13: 2015-07-21 | G13: 2019-12-31 | H13: 595 | I13: 2219 | J13: -7.555563685
D14: 18 | E14: 2010-09-13 | F14: 2012-03-26 | G14: 2019-12-31 | H14: 560 | I14: 3396 | J14: -7.558930724
D15: 19 | E15: 2018-11-09 | F15: 2019-02-06 | G15: 2019-12-31 | H15: 89 | I15: 417 | J15: -5.859129849
D16: 20 | E16: 2012-09-11 | F16: 2013-10-14 | G16: 2019-12-31 | H16: 398 | I16: 2667 | J16: -7.280668168
D17: 21 | E17: 2010-05-27 | F17: 2013-06-25 | G17: 2019-12-31 | H17: 1125 | I17: 3505 | J17: -8.287464382
D18: 22 | E18: 2019-01-11 | F18: 2019-01-18 | G18: 2019-12-31 | H18: 7 | I18: 354 | J18: -4.890386677
D19: 23 | E19: 2014-03-06 | F19: 2014-05-13 | G19: 2019-12-31 | H19: 68 | I19: 2126 | J19: -6.389900008
D20: 24 | E20: 2012-07-11 | F20: 2013-04-03 | G20: 2019-12-31 | H20: 266 | I20: 2729 | J20: -7.038062368
D21: 25 | E21: 2019-09-19 | F21: 2019-10-29 | G21: 2019-12-31 | H21: 40 | I21: 103 | J21: -4.714613605
D22: 26 | E22: 2018-10-24 | F22: 2019-02-17 | G22: 2019-12-31 | H22: 116 | I22: 433 | J22: -5.987525781
D23: 27 | E23: 2016-05-05 | F23: 2016-05-26 | G23: 2019-12-31 | H23: 21 | I23: 1335 | J23: -5.857969398
D24: 28 | E24: 2016-03-31 | F24: 2016-06-16 | G24: 2019-12-31 | H24: 77 | I24: 1370 | J24: -6.327298946
D25: 29 | E25: 2018-10-30 | F25: 2019-05-26 | G25: 2019-12-31 | H25: 208 | I25: 427 | J25: -6.24705792
D26: 30 | E26: 2015-04-11 | F26: 2016-11-12 | G26: 2019-12-31 | H26: 581 | I26: 1725 | J26: -7.481843946
D27: 31 | E27: 2010-04-12 | F27: 2011-07-06 | G27: 2019-12-31 | H27: 450 | I27: 3550 | J27: -7.394664148
D28: 32 | E28: 2011-01-08 | F28: 2011-09-29 | G28: 2019-12-31 | H28: 264 | I28: 3279 | J28: -7.053313182
D29: 34 | E29: 2013-07-26 | F29: 2015-06-03 | G29: 2019-12-31 | H29: 677 | I29: 2349 | J29: -7.679534769
D30: 35 | E30: 2011-12-15 | F30: 2012-02-19 | G30: 2019-12-31 | H30: 66 | I30: 2938 | J30: -6.426817678
D31: 36 | E31: 2012-08-30 | F31: 2015-02-20 | G31: 2019-12-31 | H31: 904 | I31: 2679 | J31: -7.99346133
D32: 37 | E32: 2012-12-27 | F32: 2014-10-10 | G32: 2019-12-31 | H32: 652 | I32: 2560 | J32: -7.658437397
D33: 38 | E33: 2016-11-26 | F33: 2017-10-25 | G33: 2019-12-31 | H33: 333 | I33: 1130 | J33: -6.955217511
D34: 39 | E34: 2017-03-24 | F34: 2017-04-27 | G34: 2019-12-31 | H34: 34 | I34: 1012 | J34: -5.924682582
D35: 40 | E35: 2011-05-16 | F35: 2012-04-07 | G35: 2019-12-31 | H35: 327 | I35: 3151 | J35: -7.173794891
D36: 42 | E36: 2018-12-01 | F36: 2019-05-01 | G36: 2019-12-31 | H36: 151 | I36: 395 | J36: -6.052179406
D37: 43 | E37: 2011-10-01 | F37: 2012-03-29 | G37: 2019-12-31 | H37: 180 | I37: 3013 | J37: -6.848957051
D38: 44 | E38: 2017-01-24 | F38: 2017-08-26 | G38: 2019-12-31 | H38: 214 | I38: 1071 | J38: -6.689262071
D39: 45 | E39: 2013-04-25 | F39: 2014-02-01 | G39: 2019-12-31 | H39: 282 | I39: 2441 | J39: -7.055209268
D40: 46 | E40: 2011-06-17 | F40: 2012-07-13 | G40: 2019-12-31 | H40: 392 | I40: 3119 | J40: -7.288332434
D41: 47 | E41: 2012-10-19 | F41: 2012-12-17 | G41: 2019-12-31 | H41: 59 | I41: 2629 | J41: -6.371472921
D42: 50 | E42: 2014-09-17 | F42: 2014-09-20 | G42: 2019-12-31 | H42: 3 | I42: 1931 | J42: -5.324625786
D43: 51 | E43: 2014-08-05 | F43: 2014-12-18 | G43: 2019-12-31 | H43: 135 | I43: 1974 | J43: -6.65195544
D44: 52 | E44: 2012-10-08 | F44: 2015-05-08 | G44: 2019-12-31 | H44: 942 | I44: 2640 | J44: -8.0385323
D45: 53 | E45: 2016-02-21 | F45: 2019-08-11 | G45: 2019-12-31 | H45: 1267 | I45: 1409 | J45: -8.286523261
D46: 54 | E46: 2019-06-13 | F46: 2019-06-25 | G46: 2019-12-31 | H46: 12 | I46: 201 | J46: -4.73107882
D47: 56 | E47: 2011-04-14 | F47: 2015-05-02 | G47: 2019-12-31 | H47: 1479 | I47: 3183 | J47: -8.682728186
D48: 58 | E48: 2010-11-23 | F48: 2012-04-08 | G48: 2019-12-31 | H48: 502 | I48: 3325 | J48: -7.470736094
D49: 59 | E49: 2011-10-29 | F49: 2011-11-18 | G49: 2019-12-31 | H49: 20 | I49: 2985 | J49: -6.009585179
D50: 60 | E50: 2015-05-21 | F50: 2018-02-10 | G50: 2019-12-31 | H50: 996 | I50: 1685 | J50: -8.01772887
D51: 61 | E51: 2018-08-26 | F51: 2019-03-18 | G51: 2019-12-31 | H51: 204 | I51: 492 | J51: -6.312683131
D52: 62 | E52: 2011-05-28 | F52: 2013-05-18 | G52: 2019-12-31 | H52: 721 | I52: 3139 | J52: -7.77605621
D53: 64 | E53: 2016-12-29 | F53: 2017-01-18 | G53: 2019-12-31 | H53: 20 | I53: 1097 | J53: -5.774560622
D54: 66 | E54: 2016-10-17 | F54: 2017-09-12 | G54: 2019-12-31 | H54: 330 | I54: 1170 | J54: -6.962004655
D55: 68 | E55: 2011-10-19 | F55: 2012-04-26 | G55: 2019-12-31 | H55: 190 | I55: 2995 | J55: -6.87438377
D56: 69 | E56: 2010-06-06 | F56: 2011-03-09 | G56: 2019-12-31 | H56: 276 | I56: 3495 | J56: -7.083207662
D57: 70 | E57: 2014-10-06 | F57: 2015-03-30 | G57: 2019-12-31 | H57: 175 | I57: 1912 | J57: -6.762994106
D58: 71 | E58: 2011-06-22 | F58: 2013-03-10 | G58: 2019-12-31 | H58: 627 | I58: 3114 | J58: -7.647004322
D59: 72 | E59: 2010-11-19 | F59: 2012-01-25 | G59: 2019-12-31 | H59: 432 | I59: 3329 | J59: -7.360702249
D60: 73 | E60: 2010-09-07 | F60: 2011-04-12 | G60: 2019-12-31 | H60: 217 | I60: 3402 | J60: -6.952272026
D61: 75 | E61: 2016-08-30 | F61: 2018-06-25 | G61: 2019-12-31 | H61: 664 | I61: 1218 | J61: -7.495887456
D62: 77 | E62: 2015-04-20 | F62: 2017-02-12 | G62: 2019-12-31 | H62: 664 | I62: 1716 | J62: -7.597041424
D63: 78 | E63: 2019-01-03 | F63: 2019-10-15 | G63: 2019-12-31 | H63: 285 | I63: 362 | J63: -6.324509834
D64: 79 | E64: 2017-07-15 | F64: 2018-03-04 | G64: 2019-12-31 | H64: 232 | I64: 899 | J64: -6.662226456
D65: 80 | E65: 2016-04-23 | F65: 2016-05-05 | G65: 2019-12-31 | H65: 12 | I65: 1347 | J65: -5.675659556
D66: 81 | E66: 2011-07-17 | F66: 2014-11-25 | G66: 2019-12-31 | H66: 1227 | I66: 3089 | J66: -8.395353023
D67: 82 | E67: 2011-02-25 | F67: 2011-04-27 | G67: 2019-12-31 | H67: 61 | I67: 3231 | J67: =LN(_xlfn.GAMMA.DIST(H67, $A$7, $B$7, FALSE)/_xlfn.GAMMA.DIST(I67, $A$7, $B$7, TRUE)) -> -6.406843127
D68: 83 | E68: 2011-12-17 | F68: 2012-05-07 | G68: 2019-12-31 | H68: =F68-E68 -> 142 | I68: =G68-E68 -> 2936 | J68: -6.737165971
D69: 84 | E69: 2012-03-27 | F69: 2014-08-06 | G69: 2019-12-31 | H69: 862 | I69: 2835 | J69: -7.947877527
D70: 86 | E70: 2014-11-27 | F70: 2015-04-21 | G70: 2019-12-31 | H70: 145 | I70: 1860 | J70: -6.670503642
D71: 87 | E71: 2012-12-14 | F71: 2013-02-23 | G71: 2019-12-31 | H71: 71 | I71: 2573 | J71: -6.437813349
D72: 88 | E72: 2011-07-31 | F72: 2012-06-12 | G72: 2019-12-31 | H72: 317 | I72: 3075 | J72: -7.152656519
D73: 89 | E73: 2012-06-12 | F73: 2015-02-21 | G73: 2019-12-31 | H73: 984 | I73: 2758 | J73: -8.095561156
D74: 90 | E74: 2016-04-22 | F74: 2016-09-28 | G74: 2019-12-31 | H74: 159 | I74: 1348 | J74: -6.625044001
D75: 91 | E75: 2017-12-04 | F75: 2018-06-17 | G75: 2019-12-31 | H75: 195 | I75: 757 | J75: -6.500144957
D76: 92 | E76: 2013-11-21 | F76: 2014-11-10 | G76: 2019-12-31 | H76: 354 | I76: 2231 | J76: -7.176643183
D77: 93 | E77: 2015-07-02 | F77: 2015-07-23 | G77: 2019-12-31 | H77: 21 | I77: 1643 | J77: -5.917927208
D78: 94 | E78: 2010-04-14 | F78: 2012-07-30 | G78: 2019-12-31 | H78: 838 | I78: 3548 | J78: -7.938431712
D79: 96 | E79: 2015-04-10 | F79: 2015-10-18 | G79: 2019-12-31 | H79: 191 | I79: 1726 | J79: -6.781114867
D80: 97 | E80: 2010-07-28 | F80: 2010-10-17 | G80: 2019-12-31 | H80: 81 | I80: 3443 | J80: -6.519725132
D81: 98 | E81: 2014-05-29 | F81: 2018-03-29 | G81: 2019-12-31 | H81: 1400 | I81: 2042 | J81: -8.5305722
D82: 99 | E82: 2017-05-01 | F82: 2017-09-08 | G82: 2019-12-31 | H82: 130 | I82: 974 | J82: -6.420025592
D83: 100 | E83: 2013-11-06 | F83: 2017-09-23 | G83: 2019-12-31 | H83: 1417 | I83: 2246 | J83: -8.567554199
D84: 101 | E84: 2013-02-14 | F84: 2014-11-09 | G84: 2019-12-31 | H84: 633 | I84: 2511 | J84: -7.629288151
D85: 102 | E85: 2013-05-09 | F85: 2014-11-21 | G85: 2019-12-31 | H85: 561 | I85: 2427 | J85: -7.521525212
D86: 103 | E86: 2016-01-24 | F86: 2018-12-01 | G86: 2019-12-31 | H86: 1042 | I86: 1437 | J86: -8.029295011
D87: 104 | E87: 2010-09-17 | F87: 2011-09-19 | G87: 2019-12-31 | H87: 367 | I87: 3392 | J87: -7.252485621
D88: 105 | E88: 2013-04-22 | F88: 2017-11-13 | G88: 2019-12-31 | H88: 1666 | I88: 2444 | J88: -8.855432528
D89: 106 | E89: 2013-05-02 | F89: 2015-04-04 | G89: 2019-12-31 | H89: 702 | I89: 2434 | J89: -7.719042768
D90: 107 | E90: 2014-07-21 | F90: 2014-08-04 | G90: 2019-12-31 | H90: 14 | I90: 1989 | J90: -5.828202968
D91: 108 | E91: 2016-08-01 | F91: 2017-05-11 | G91: 2019-12-31 | H91: 283 | I91: 1247 | J91: -6.893157597
D92: 109 | E92: 2012-04-20 | F92: 2015-05-30 | G92: 2019-12-31 | H92: 1135 | I92: 2811 | J92: -8.278122967
D93: 111 | E93: 2011-05-07 | F93: 2017-12-15 | G93: 2019-12-31 | H93: 2414 | I93: 3160 | J93: -9.673420656
D94: 112 | E94: 2016-08-31 | F94: 2016-10-12 | G94: 2019-12-31 | H94: 42 | I94: 1217 | J94: -6.065691194
D95: 113 | E95: 2014-09-14 | F95: 2015-06-12 | G95: 2019-12-31 | H95: 271 | I95: 1934 | J95: -6.989741693
D96: 114 | E96: 2011-04-08 | F96: 2011-04-18 | G96: 2019-12-31 | H96: 10 | I96: 3189 | J96: -5.787838476
D97: 115 | E97: 2013-12-09 | F97: 2014-01-28 | G97: 2019-12-31 | H97: 50 | I97: 2213 | J97: -6.283926557
D98: 116 | E98: 2014-03-24 | F98: 2014-10-02 | G98: 2019-12-31 | H98: 192 | I98: 2108 | J98: -6.827639928
D99: 117 | E99: 2015-08-03 | F99: 2016-07-10 | G99: 2019-12-31 | H99: 342 | I99: 1611 | J99: -7.082813546
D100: 119 | E100: 2015-12-29 | F100: 2017-02-18 | G100: 2019-12-31 | H100: 417 | I100: 1463 | J100: -7.185734002
D101: 120 | E101: 2014-12-26 | F101: 2015-06-22 | G101: 2019-12-31 | H101: 178 | I101: 1831 | J101: -6.76130805
D102: 121 | E102: 2010-05-07 | F102: 2010-05-18 | G102: 2019-12-31 | H102: 11 | I102: 3525 | J102: -5.827086105
D103: 122 | E103: 2012-03-28 | F103: 2013-11-05 | G103: 2019-12-31 | H103: 587 | I103: 2834 | J103: -7.580270382
D104: 124 | E104: 2010-04-17 | F104: 2011-08-19 | G104: 2019-12-31 | H104: 489 | I104: 3545 | J104: -7.455749117
D105: 125 | E105: 2018-06-01 | F105: 2018-09-17 | G105: 2019-12-31 | H105: 108 | I105: 578 | J105: -6.107665901
D106: 128 | E106: 2014-07-03 | F106: 2014-11-29 | G106: 2019-12-31 | H106: 149 | I106: 2007 | J106: -6.699154821
D107: 129 | E107: 2012-08-31 | F107: 2013-11-15 | G107: 2019-12-31 | H107: 441 | I107: 2678 | J107: -7.352136716
D108: 130 | E108: 2016-06-09 | F108: 2018-09-05 | G108: 2019-12-31 | H108: 818 | I108: 1300 | J108: -7.721257018
D109: 132 | E109: 2011-01-16 | F109: 2012-04-03 | G109: 2019-12-31 | H109: 443 | I109: 3271 | J109: -7.377006735
D110: 133 | E110: 2013-06-17 | F110: 2016-02-12 | G110: 2019-12-31 | H110: 970 | I110: 2388 | J110: -8.058082705
D111: 134 | E111: 2015-04-11 | F111: 2015-04-26 | G111: 2019-12-31 | H111: 15 | I111: 1725 | J111: -5.818466063
D112: 135 | E112: 2013-09-18 | F112: 2017-11-21 | G112: 2019-12-31 | H112: 1525 | I112: 2295 | J112: -8.691135567
D113: 136 | E113: 2019-08-14 | F113: 2019-08-15 | G113: 2019-12-31 | H113: 1 | I113: 139 | J113: -3.704577456
D114: 137 | E114: 2015-06-28 | F114: 2015-08-07 | G114: 2019-12-31 | H114: 40 | I114: 1647 | J114: -6.13945163
D115: 138 | E115: 2011-05-03 | F115: 2011-05-22 | G115: 2019-12-31 | H115: 19 | I115: 3164 | J115: -5.998263746
D116: 140 | E116: 2017-10-08 | F116: 2019-06-17 | G116: 2019-12-31 | H116: 617 | I116: 814 | J116: -7.274108814
D117: 141 | E117: 2010-10-26 | F117: 2013-03-25 | G117: 2019-12-31 | H117: 881 | I117: 3353 | J117: -7.988416602
D118: 142 | E118: 2017-09-06 | F118: 2018-01-08 | G118: 2019-12-31 | H118: 124 | I118: 846 | J118: -6.341941936
D119: 144 | E119: 2014-01-27 | F119: 2016-03-08 | G119: 2019-12-31 | H119: 771 | I119: 2164 | J119: -7.790410313
D120: 145 | E120: 2016-07-13 | F120: 2018-01-06 | G120: 2019-12-31 | H120: 542 | I120: 1266 | J120: -7.335475851
D121: 146 | E121: 2011-04-18 | F121: 2011-10-29 | G121: 2019-12-31 | H121: 194 | I121: 3179 | J121: -6.890444572
D122: 147 | E122: 2017-06-17 | F122: 2017-07-09 | G122: 2019-12-31 | H122: 22 | I122: 927 | J122: -5.741504547
D123: 148 | E123: 2018-05-09 | F123: 2019-01-01 | G123: 2019-12-31 | H123: 237 | I123: 601 | J123: -6.491012716
D124: 149 | E124: 2013-01-21 | F124: 2014-12-18 | G124: 2019-12-31 | H124: 696 | I124: 2535 | J124: -7.717051238
D125: 150 | E125: 2018-08-24 | F125: 2018-11-11 | G125: 2019-12-31 | H125: 79 | I125: 494 | J125: -5.902797416
D126: 151 | E126: 2015-08-25 | F126: 2017-08-26 | G126: 2019-12-31 | H126: 732 | I126: 1589 | J126: -7.668772015
D127: 152 | E127: 2013-05-13 | F127: 2013-10-27 | G127: 2019-12-31 | H127: 167 | I127: 2423 | J127: -6.78541171
D128: 153 | E128: 2011-10-08 | F128: 2013-09-22 | G128: 2019-12-31 | H128: 715 | I128: 3006 | J128: -7.763726606
D129: 154 | E129: 2010-12-26 | F129: 2011-08-26 | G129: 2019-12-31 | H129: 243 | I129: 3292 | J129: -7.00863983
D130: 155 | E130: 2019-10-08 | F130: 2019-11-30 | G130: 2019-12-31 | H130: 53 | I130: 84 | J130: -4.682675756
D131: 156 | E131: 2018-07-30 | F131: 2019-09-22 | G131: 2019-12-31 | H131: 419 | I131: 519 | J131: =LN(_xlfn.GAMMA.DIST(H131, $A$7, $B$7, FALSE)/_xlfn.GAMMA.DIST(I131, $A$7, $B$7, TRUE)) -> -6.760419
D132: 157 | E132: 2012-03-06 | F132: 2014-10-30 | G132: 2019-12-31 | H132: =F132-E132 -> 968 | I132: =G132-E132 -> 2856 | J132: -8.080253786
D133: 158 | E133: 2015-09-07 | F133: 2017-03-09 | G133: 2019-12-31 | H133: 549 | I133: 1576 | J133: -7.411823506
D134: 159 | E134: 2014-06-25 | F134: 2014-08-31 | G134: 2019-12-31 | H134: 67 | I134: 2015 | J134: -6.373714543
D135: 160 | E135: 2017-07-20 | F135: 2018-07-04 | G135: 2019-12-31 | H135: 349 | I135: 894 | J135: -6.893788873
D136: 161 | E136: 2013-01-16 | F136: 2014-01-26 | G136: 2019-12-31 | H136: 375 | I136: 2540 | J136: -7.234517636
D137: 163 | E137: 2010-10-26 | F137: 2012-03-06 | G137: 2019-12-31 | H137: 497 | I137: 3353 | J137: -7.463788058
D138: 165 | E138: 2010-04-04 | F138: 2010-10-30 | G138: 2019-12-31 | H138: 209 | I138: 3558 | J138: -6.93657647
D139: 167 | E139: 2013-02-07 | F139: 2018-05-27 | G139: 2019-12-31 | H139: 1935 | I139: 2518 | J139: -9.14789117
D140: 169 | E140: 2013-10-14 | F140: 2017-05-22 | G140: 2019-12-31 | H140: 1316 | I140: 2269 | J140: -8.455591192
D141: 170 | E141: 2013-07-12 | F141: 2014-11-27 | G141: 2019-12-31 | H141: 503 | I141: 2363 | J141: -7.430859507
D142: 171 | E142: 2014-11-05 | F142: 2017-07-16 | G142: 2019-12-31 | H142: 984 | I142: 1882 | J142: -8.029556956
D143: 172 | E143: 2013-01-10 | F143: 2018-04-17 | G143: 2019-12-31 | H143: 1923 | I143: 2546 | J143: -9.136792439
D144: 173 | E144: 2015-08-07 | F144: 2015-10-08 | G144: 2019-12-31 | H144: 62 | I144: 1607 | J144: -6.291330799
D145: 175 | E145: 2012-08-25 | F145: 2013-11-11 | G145: 2019-12-31 | H145: 443 | I145: 2684 | J145: -7.35565052
D146: 176 | E146: 2014-03-14 | F146: 2015-07-03 | G146: 2019-12-31 | H146: 476 | I146: 2118 | J146: -7.36987882
D147: 177 | E147: 2017-08-12 | F147: 2018-06-22 | G147: 2019-12-31 | H147: 314 | I147: 871 | J147: -6.818191678
D148: 178 | E148: 2014-01-20 | F148: 2019-04-24 | G148: 2019-12-31 | H148: 1920 | I148: 2171 | J148: -9.107478912
D149: 179 | E149: 2013-06-02 | F149: 2013-06-30 | G149: 2019-12-31 | H149: 28 | I149: 2403 | J149: -6.094692774
D150: 180 | E150: 2015-03-22 | F150: 2017-01-15 | G150: 2019-12-31 | H150: 665 | I150: 1745 | J150: -7.602544744
D151: 181 | E151: 2012-04-07 | F151: 2019-03-15 | G151: 2019-12-31 | H151: 2533 | I151: 2824 | J151: -9.78318103
D152: 182 | E152: 2016-09-01 | F152: 2017-02-05 | G152: 2019-12-31 | H152: 157 | I152: 1216 | J152: -6.585517987
D153: 183 | E153: 2014-07-24 | F153: 2017-02-21 | G153: 2019-12-31 | H153: 943 | I153: 1986 | J153: -7.991047639
D154: 184 | E154: 2017-06-30 | F154: 2019-03-14 | G154: 2019-12-31 | H154: 622 | I154: 914 | J154: -7.329932571
D155: 187 | E155: 2012-12-15 | F155: 2013-09-01 | G155: 2019-12-31 | H155: 260 | I155: 2572 | J155: -7.01754634
D156: 188 | E156: 2017-06-13 | F156: 2017-06-28 | G156: 2019-12-31 | H156: 15 | I156: 931 | J156: -5.615795304
D157: 190 | E157: 2016-12-29 | F157: 2017-06-10 | G157: 2019-12-31 | H157: 163 | I157: 1097 | J157: -6.566353998
D158: 192 | E158: 2013-12-07 | F158: 2016-02-06 | G158: 2019-12-31 | H158: 791 | I158: 2215 | J158: -7.820658562
D159: 193 | E159: 2012-02-17 | F159: 2015-08-27 | G159: 2019-12-31 | H159: 1287 | I159: 2874 | J159: -8.45644943
D160: 194 | E160: 2012-02-05 | F160: 2013-10-06 | G160: 2019-12-31 | H160: 609 | I160: 2886 | J160: -7.613695028
D161: 195 | E161: 2016-12-02 | F161: 2017-09-16 | G161: 2019-12-31 | H161: 288 | I161: 1124 | J161: -6.867111338
D162: 196 | E162: 2013-03-12 | F162: 2013-04-27 | G162: 2019-12-31 | H162: 46 | I162: 2485 | J162: -6.273049288
D163: 197 | E163: 2016-07-27 | F163: 2016-09-29 | G163: 2019-12-31 | H163: 64 | I163: 1252 | J163: -6.228203046
D164: 198 | E164: 2013-06-27 | F164: 2014-09-01 | G164: 2019-12-31 | H164: 431 | I164: 2378 | J164: -7.318597321
D165: 200 | E165: 2010-03-23 | F165: 2010-12-25 | G165: 2019-12-31 | H165: 277 | I165: 3570 | J165: -7.086771463
D166: 201 | E166: 2012-09-15 | F166: 2016-03-11 | G166: 2019-12-31 | H166: 1273 | I166: 2663 | J166: -8.431050969
D167: 204 | E167: 2010-01-07 | F167: 2011-04-17 | G167: 2019-12-31 | H167: 465 | I167: 3645 | J167: -7.420267054
D168: 205 | E168: 2017-10-16 | F168: 2018-01-26 | G168: 2019-12-31 | H168: 102 | I168: 806 | J168: -6.239613212
D169: 206 | E169: 2018-11-23 | F169: 2019-09-06 | G169: 2019-12-31 | H169: 287 | I169: 403 | J169: -6.388068493
D170: 209 | E170: 2011-09-03 | F170: 2017-01-07 | G170: 2019-12-31 | H170: 1953 | I170: 3041 | J170: -9.190253307
D171: 210 | E171: 2014-01-15 | F171: 2014-01-16 | G171: 2019-12-31 | H171: 1 | I171: 2176 | J171: -4.999133553
D172: 211 | E172: 2011-06-18 | F172: 2011-07-25 | G172: 2019-12-31 | H172: 37 | I172: 3118 | J172: -6.223869441
D173: 212 | E173: 2017-01-23 | F173: 2017-04-15 | G173: 2019-12-31 | H173: 82 | I173: 1072 | J173: -6.26799685
D174: 213 | E174: 2016-12-21 | F174: 2016-12-26 | G174: 2019-12-31 | H174: 5 | I174: 1105 | J174: -5.325127738
D175: 214 | E175: 2015-03-28 | F175: 2016-07-04 | G175: 2019-12-31 | H175: 464 | I175: 1739 | J175: -7.308025837
D176: 215 | E176: 2017-10-29 | F176: 2017-11-26 | G176: 2019-12-31 | H176: 28 | I176: 793 | J176: -5.757238792
D177: 216 | E177: 2016-07-07 | F177: 2018-01-04 | G177: 2019-12-31 | H177: 546 | I177: 1272 | J177: -7.342939086
D178: 217 | E178: 2016-03-20 | F178: 2016-09-04 | G178: 2019-12-31 | H178: 168 | I178: 1381 | J178: -6.65803289
D179: 218 | E179: 2010-04-18 | F179: 2011-01-02 | G179: 2019-12-31 | H179: 259 | I179: 3544 | J179: -7.048894154
D180: 219 | E180: 2010-01-08 | F180: 2010-05-02 | G180: 2019-12-31 | H180: 114 | I180: 3644 | J180: -6.661431839
D181: 220 | E181: 2010-06-03 | F181: 2012-03-23 | G181: 2019-12-31 | H181: 659 | I181: 3498 | J181: -7.701256191
D182: 222 | E182: 2017-03-11 | F182: 2018-08-20 | G182: 2019-12-31 | H182: 527 | I182: 1025 | J182: -7.237854375
D183: 223 | E183: 2016-02-21 | F183: 2017-04-21 | G183: 2019-12-31 | H183: 425 | I183: 1409 | J183: -7.187724391
D184: 224 | E184: 2010-01-06 | F184: 2016-11-18 | G184: 2019-12-31 | H184: 2508 | I184: 3646 | J184: -9.780964653
D185: 225 | E185: 2016-09-11 | F185: 2016-11-01 | G185: 2019-12-31 | H185: 51 | I185: 1206 | J185: -6.132078354
D186: 226 | E186: 2014-03-06 | F186: 2015-06-08 | G186: 2019-12-31 | H186: 459 | I186: 2126 | J186: -7.343884836
D187: 227 | E187: 2014-12-18 | F187: 2017-08-26 | G187: 2019-12-31 | H187: 982 | I187: 1839 | J187: -8.021883039
D188: 228 | E188: 2014-10-22 | F188: 2017-03-10 | G188: 2019-12-31 | H188: 870 | I188: 1896 | J188: -7.89027248
D189: 229 | E189: 2014-09-27 | F189: 2016-08-11 | G189: 2019-12-31 | H189: 684 | I189: 1921 | J189: -7.650664635
D190: 230 | E190: 2019-06-28 | F190: 2019-11-28 | G190: 2019-12-31 | H190: 153 | I190: 186 | J190: -5.614916037
D191: 231 | E191: 2018-02-10 | F191: 2018-08-20 | G191: 2019-12-31 | H191: 191 | I191: 689 | J191: -6.446970952
D192: 232 | E192: 2010-09-28 | F192: 2013-03-15 | G192: 2019-12-31 | H192: 899 | I192: 3381 | J192: -8.011589798
D193: 233 | E193: 2016-02-20 | F193: 2019-01-01 | G193: 2019-12-31 | H193: 1046 | I193: 1410 | J193: -8.028403828
D194: 234 | E194: 2016-03-09 | F194: 2017-02-05 | G194: 2019-12-31 | H194: 333 | I194: 1392 | J194: -7.024550886
D195: 235 | E195: 2015-10-30 | F195: 2016-11-06 | G195: 2019-12-31 | H195: 373 | I195: 1523 | J195: =LN(_xlfn.GAMMA.DIST(H195, $A$7, $B$7, FALSE)/_xlfn.GAMMA.DIST(I195, $A$7, $B$7, TRUE)) -> -7.122619641
D196: 237 | E196: 2015-03-29 | F196: 2015-05-21 | G196: 2019-12-31 | H196: =F196-E196 -> 53 | I196: =G196-E196 -> 1738 | J196: -6.25372177
D197: 238 | E197: 2013-04-04 | F197: 2018-05-08 | G197: 2019-12-31 | H197: 1860 | I197: 2462 | J197: -9.064940033
D198: 239 | E198: 2015-10-11 | F198: 2018-09-10 | G198: 2019-12-31 | H198: 1065 | I198: 1542 | J198: -8.077055019
D199: 240 | E199: 2018-06-10 | F199: 2018-06-23 | G199: 2019-12-31 | H199: 13 | I199: 569 | J199: -5.344924763
D200: 242 | E200: 2014-03-02 | F200: 2014-07-08 | G200: 2019-12-31 | H200: 128 | I200: 2130 | J200: -6.644077652
... 1017 more rows

Sheet Freq Fit (Poisson)
D1: From Policy Data | I1: Calculated Fields | N1: Unreported Frequency Parameters
A2: Sum of log-likelihood | D2: Policy Index | E2: Policy Effective Date | F2: Policy Expiration Date | G2: Evaluation Date | H2: Reported Claim Counts | I2: Policy Period Length | J2: Frequency Exposure | K2: Claim Report Probability | L2: Lambda Parameter for Reported Claims | M2: log-likelihood | N2: lambda Parameter for Unreported Claims
A3: =SUM(M:M) -> -3039.699841 | D3: 1 | E3: 2017-03-29 | F3: 2018-03-29 | G3: 2019-12-31 | H3: 0 | I3: =MIN(F3-E3, G3-E3) -> 365 | J3: =I3/365 -> 1 | K3: =_xlfn.GAMMA.DIST(G3-E3-I3/2, 'Report Lag Fit'!$A$7, 'Report Lag Fit'!$B$7, TRUE) -> 0.6806335338 | L3: =$A$7*J3*K3 -> 0.3668077196 | M3: =LN(_xlfn.POISSON.DIST(H3, L3, FALSE)) -> -0.3668077196 | N3: =$A$7*J3*(1-K3) -> 0.1721133024
D4: 2 | E4: 2018-06-15 | F4: 2020-06-14 | G4: 2019-12-31 | H4: 0 | I4: =MIN(F4-E4, G4-E4) -> 564 | J4: =I4/365 -> 1.545205479 | K4: =_xlfn.GAMMA.DIST(G4-E4-I4/2, 'Report Lag Fit'!$A$7, 'Report Lag Fit'!$B$7, TRUE) -> 0.3898575844 | L4: 0.3246514536 | M4: =LN(_xlfn.POISSON.DIST(H4, L4, FALSE)) -> -0.3246514536 | N4: 0.5080922625
A5: Fitted Poisson Parameter | D5: 3 | E5: 2015-12-19 | F5: 2016-12-18 | G5: 2019-12-31 | H5: 0 | I5: 365 | J5: 1 | K5: =_xlfn.GAMMA.DIST(G5-E5-I5/2, 'Report Lag Fit'!$A$7, 'Report Lag Fit'!$B$7, TRUE) -> 0.8069264203 | L5: 0.4348696111 | M5: -0.4348696111 | N5: 0.1040514109
A6: lambda | D6: 4 | E6: 2016-04-18 | F6: 2016-10-17 | G6: 2019-12-31 | H6: 1 | I6: 182 | J6: 0.498630137 | K6: =_xlfn.GAMMA.DIST(G6-E6-I6/2, 'Report Lag Fit'!$A$7, 'Report Lag Fit'!$B$7, TRUE) -> 0.8008237966 | L6: 0.2151991829 | M6: -1.751390431 | N6: 0.0535230801
A7: 0.538921022 | D7: 5 | E7: 2016-03-15 | F7: 2017-03-15 | G7: 2019-12-31 | H7: 1 | I7: 365 | J7: 1 | K7: =_xlfn.GAMMA.DIST(G7-E7-I7/2, 'Report Lag Fit'!$A$7, 'Report Lag Fit'!$B$7, TRUE) -> 0.7883184263 | L7: 0.4248413719 | M7: -1.280880794 | N7: 0.11407965
D8: 6 | E8: 2019-05-07 | F8: 2020-05-06 | G8: 2019-12-31 | H8: 0 | I8: 238 | J8: 0.6520547945 | K8: =_xlfn.GAMMA.DIST(G8-E8-I8/2, 'Report Lag Fit'!$A$7, 'Report Lag Fit'!$B$7, TRUE) -> 0.2288081497 | L8: 0.08040456493 | M8: -0.08040456493 | N8: 0.2710014713
D9: 7 | E9: 2018-02-11 | F9: 2018-08-12 | G9: 2019-12-31 | H9: 0 | I9: 182 | J9: 0.498630137 | K9: =_xlfn.GAMMA.DIST(G9-E9-I9/2, 'Report Lag Fit'!$A$7, 'Report Lag Fit'!$B$7, TRUE) -> 0.5862697925 | L9: 0.1575437454 | M9: -0.1575437454 | N9: 0.1111785176
D10: 8 | E10: 2018-03-19 | F10: 2019-03-19 | G10: 2019-12-31 | H10: 1 | I10: 365 | J10: 1 | K10: =_xlfn.GAMMA.DIST(G10-E10-I10/2, 'Report Lag Fit'!$A$7, 'Report Lag Fit'!$B$7, TRUE) -> 0.518587278 | L10: 0.2794775858 | M10: -1.554310769 | N10: 0.2594434361
D11: 9 | E11: 2019-03-25 | F11: 2019-09-23 | G11: 2019-12-31 | H11: 0 | I11: 182 | J11: 0.498630137 | K11: =_xlfn.GAMMA.DIST(G11-E11-I11/2, 'Report Lag Fit'!$A$7, 'Report Lag Fit'!$B$7, TRUE) -> 0.3072685794 | L11: 0.08256990801 | M11: -0.08256990801 | N11: 0.186152355
D12: 10 | E12: 2019-12-01 | F12: 2020-11-30 | G12: 2019-12-31 | H12: 0 | I12: 30 | J12: 0.08219178082 | K12: =_xlfn.GAMMA.DIST(G12-E12-I12/2, 'Report Lag Fit'!$A$7, 'Report Lag Fit'!$B$7, TRUE) -> 0.05765278472 | L12: 0.002553723095 | M12: -0.002553723095 | N12: 0.04174115542
D13: 11 | E13: 2018-07-11 | F13: 2019-01-09 | G13: 2019-12-31 | H13: 1 | I13: 182 | J13: 0.498630137 | K13: =_xlfn.GAMMA.DIST(G13-E13-I13/2, 'Report Lag Fit'!$A$7, 'Report Lag Fit'!$B$7, TRUE) -> 0.5052161125 | L13: 0.1357628171 | M13: -2.132608725 | N13: 0.1329594459
D14: 12 | E14: 2018-05-28 | F14: 2018-11-26 | G14: 2019-12-31 | H14: 0 | I14: 182 | J14: 0.498630137 | K14: =_xlfn.GAMMA.DIST(G14-E14-I14/2, 'Report Lag Fit'!$A$7, 'Report Lag Fit'!$B$7, TRUE) -> 0.5309305304 | L14: 0.1426728536 | M14: -0.1426728536 | N14: 0.1260494094
D15: 13 | E15: 2017-10-04 | F15: 2018-10-04 | G15: 2019-12-31 | H15: 0 | I15: 365 | J15: 1 | K15: =_xlfn.GAMMA.DIST(G15-E15-I15/2, 'Report Lag Fit'!$A$7, 'Report Lag Fit'!$B$7, TRUE) -> 0.6043580886 | L15: 0.3257012787 | M15: -0.3257012787 | N15: 0.2132197432
D16: 14 | E16: 2017-03-25 | F16: 2018-03-25 | G16: 2019-12-31 | H16: 0 | I16: 365 | J16: 1 | K16: =_xlfn.GAMMA.DIST(G16-E16-I16/2, 'Report Lag Fit'!$A$7, 'Report Lag Fit'!$B$7, TRUE) -> 0.6820522834 | L16: 0.3675723136 | M16: -0.3675723136 | N16: 0.1713487084
D17: 15 | E17: 2018-10-22 | F17: 2019-10-22 | G17: 2019-12-31 | H17: 0 | I17: 365 | J17: 1 | K17: =_xlfn.GAMMA.DIST(G17-E17-I17/2, 'Report Lag Fit'!$A$7, 'Report Lag Fit'!$B$7, TRUE) -> 0.3651851994 | L17: 0.1968059809 | M17: -0.1968059809 | N17: 0.3421150411
D18: 16 | E18: 2015-08-28 | F18: 2016-02-26 | G18: 2019-12-31 | H18: 0 | I18: 182 | J18: 0.498630137 | K18: =_xlfn.GAMMA.DIST(G18-E18-I18/2, 'Report Lag Fit'!$A$7, 'Report Lag Fit'!$B$7, TRUE) -> 0.8440740398 | L18: 0.2268214861 | M18: -0.2268214861 | N18: 0.04190077688
D19: 17 | E19: 2015-01-21 | F19: 2015-07-22 | G19: 2019-12-31 | H19: 0 | I19: 182 | J19: 0.498630137 | K19: =_xlfn.GAMMA.DIST(G19-E19-I19/2, 'Report Lag Fit'!$A$7, 'Report Lag Fit'!$B$7, TRUE) -> 0.8755543356 | L19: 0.2352809424 | M19: -0.2352809424 | N19: 0.03344132055
D20: 18 | E20: 2018-06-02 | F20: 2020-06-01 | G20: 2019-12-31 | H20: 2 | I20: 577 | J20: 1.580821918 | K20: =_xlfn.GAMMA.DIST(G20-E20-I20/2, 'Report Lag Fit'!$A$7, 'Report Lag Fit'!$B$7, TRUE) -> 0.395096249 | L20: 0.3365975728 | M20: -3.20747917 | N20: 0.5153405907
D21: 19 | E21: 2016-05-26 | F21: 2017-05-26 | G21: 2019-12-31 | H21: 0 | I21: 365 | J21: 1 | K21: =_xlfn.GAMMA.DIST(G21-E21-I21/2, 'Report Lag Fit'!$A$7, 'Report Lag Fit'!$B$7, TRUE) -> 0.7714377521 | L21: 0.4157440217 | M21: -0.4157440217 | N21: 0.1231770002
D22: 20 | E22: 2015-04-24 | F22: 2016-04-23 | G22: 2019-12-31 | H22: 2 | I22: 365 | J22: 1 | K22: =_xlfn.GAMMA.DIST(G22-E22-I22/2, 'Report Lag Fit'!$A$7, 'Report Lag Fit'!$B$7, TRUE) -> 0.8495476693 | L22: 0.4578390981 | M22: -2.71346122 | N22: 0.08108192381
D23: 21 | E23: 2019-08-12 | F23: 2020-02-10 | G23: 2019-12-31 | H23: 0 | I23: 141 | J23: 0.3863013699 | K23: =_xlfn.GAMMA.DIST(G23-E23-I23/2, 'Report Lag Fit'!$A$7, 'Report Lag Fit'!$B$7, TRUE) -> 0.1627661652 | L23: 0.03388562533 | M23: -0.03388562533 | N23: 0.1743003037
D24: 22 | E24: 2015-12-19 | F24: 2016-06-18 | G24: 2019-12-31 | H24: 0 | I24: 182 | J24: 0.498630137 | K24: =_xlfn.GAMMA.DIST(G24-E24-I24/2, 'Report Lag Fit'!$A$7, 'Report Lag Fit'!$B$7, TRUE) -> 0.8246048288 | L24: 0.2215896757 | M24: -0.2215896757 | N24: 0.04713258733
D25: 23 | E25: 2017-09-10 | F25: 2018-03-11 | G25: 2019-12-31 | H25: 0 | I25: 182 | J25: 0.498630137 | K25: =_xlfn.GAMMA.DIST(G25-E25-I25/2, 'Report Lag Fit'!$A$7, 'Report Lag Fit'!$B$7, TRUE) -> 0.6532178644 | L25: 0.1755341827 | M25: -0.1755341827 | N25: 0.09318808025
D26: 24 | E26: 2019-04-09 | F26: 2020-04-08 | G26: 2019-12-31 | H26: 0 | I26: 266 | J26: 0.7287671233 | K26: =_xlfn.GAMMA.DIST(G26-E26-I26/2, 'Report Lag Fit'!$A$7, 'Report Lag Fit'!$B$7, TRUE) -> 0.2456617498 | L26: 0.09648314197 | M26: -0.09648314197 | N26: 0.2962647809
D27: 25 | E27: 2019-11-17 | F27: 2020-05-17 | G27: 2019-12-31 | H27: 0 | I27: 44 | J27: 0.1205479452 | K27: =_xlfn.GAMMA.DIST(G27-E27-I27/2, 'Report Lag Fit'!$A$7, 'Report Lag Fit'!$B$7, TRUE) -> 0.07471690522 | L27: 0.004854045152 | M27: -0.004854045152 | N27: 0.06011177667
D28: 26 | E28: 2015-11-17 | F28: 2016-11-16 | G28: 2019-12-31 | H28: 2 | I28: 365 | J28: 1 | K28: =_xlfn.GAMMA.DIST(G28-E28-I28/2, 'Report Lag Fit'!$A$7, 'Report Lag Fit'!$B$7, TRUE) -> 0.8133183174 | L28: 0.4383143388 | M28: -2.781099434 | N28: 0.1006066832
D29: 27 | E29: 2015-03-24 | F29: 2016-03-23 | G29: 2019-12-31 | H29: 0 | I29: 365 | J29: 1 | K29: =_xlfn.GAMMA.DIST(G29-E29-I29/2, 'Report Lag Fit'!$A$7, 'Report Lag Fit'!$B$7, TRUE) -> 0.854291677 | L29: 0.4603957436 | M29: -0.4603957436 | N29: 0.07852527834
D30: 28 | E30: 2018-10-27 | F30: 2019-04-27 | G30: 2019-12-31 | H30: 1 | I30: 182 | J30: 0.498630137 | K30: =_xlfn.GAMMA.DIST(G30-E30-I30/2, 'Report Lag Fit'!$A$7, 'Report Lag Fit'!$B$7, TRUE) -> 0.433621919 | L30: 0.1165238634 | M30: -2.266183055 | N30: 0.1521983997
D31: 29 | E31: 2015-03-17 | F31: 2015-09-15 | G31: 2019-12-31 | H31: 0 | I31: 182 | J31: 0.498630137 | K31: =_xlfn.GAMMA.DIST(G31-E31-I31/2, 'Report Lag Fit'!$A$7, 'Report Lag Fit'!$B$7, TRUE) -> 0.8683402346 | L31: 0.2333423529 | M31: -0.2333423529 | N31: 0.0353799101
D32: 30 | E32: 2018-11-09 | F32: 2019-05-10 | G32: 2019-12-31 | H32: 0 | I32: 182 | J32: 0.498630137 | K32: =_xlfn.GAMMA.DIST(G32-E32-I32/2, 'Report Lag Fit'!$A$7, 'Report Lag Fit'!$B$7, TRUE) -> 0.4240533959 | L32: 0.1139525882 | M32: -0.1139525882 | N32: 0.1547696748
D33: 31 | E33: 2016-03-10 | F33: 2017-03-10 | G33: 2019-12-31 | H33: 0 | I33: 365 | J33: 1 | K33: =_xlfn.GAMMA.DIST(G33-E33-I33/2, 'Report Lag Fit'!$A$7, 'Report Lag Fit'!$B$7, TRUE) -> 0.789439061 | L33: 0.4254453055 | M33: -0.4254453055 | N33: 0.1134757164
D34: 32 | E34: 2016-10-31 | F34: 2017-10-31 | G34: 2019-12-31 | H34: 0 | I34: 365 | J34: 1 | K34: =_xlfn.GAMMA.DIST(G34-E34-I34/2, 'Report Lag Fit'!$A$7, 'Report Lag Fit'!$B$7, TRUE) -> 0.7289499425 | L34: 0.392846448 | M34: -0.392846448 | N34: 0.146074574
D35: 33 | E35: 2018-08-01 | F35: 2019-08-01 | G35: 2019-12-31 | H35: 0 | I35: 365 | J35: 1 | K35: =_xlfn.GAMMA.DIST(G35-E35-I35/2, 'Report Lag Fit'!$A$7, 'Report Lag Fit'!$B$7, TRUE) -> 0.430335668 | L35: 0.231916938 | M35: -0.231916938 | N35: 0.307004084
D36: 34 | E36: 2019-07-12 | F36: 2020-07-11 | G36: 2019-12-31 | H36: 0 | I36: 172 | J36: 0.4712328767 | K36: =_xlfn.GAMMA.DIST(G36-E36-I36/2, 'Report Lag Fit'!$A$7, 'Report Lag Fit'!$B$7, TRUE) -> 0.1854194517 | L36: 0.04708862396 | M36: -0.04708862396 | N36: 0.2068686795
D37: 35 | E37: 2017-08-22 | F37: 2018-02-20 | G37: 2019-12-31 | H37: 0 | I37: 182 | J37: 0.498630137 | K37: =_xlfn.GAMMA.DIST(G37-E37-I37/2, 'Report Lag Fit'!$A$7, 'Report Lag Fit'!$B$7, TRUE) -> 0.6605577537 | L37: 0.1775065744 | M37: -0.1775065744 | N37: 0.09121568859
D38: 36 | E38: 2018-10-24 | F38: 2019-10-24 | G38: 2019-12-31 | H38: 0 | I38: 365 | J38: 1 | K38: =_xlfn.GAMMA.DIST(G38-E38-I38/2, 'Report Lag Fit'!$A$7, 'Report Lag Fit'!$B$7, TRUE) -> 0.3634563877 | L38: 0.1958742879 | M38: -0.1958742879 | N38: 0.343046734
D39: 37 | E39: 2016-09-21 | F39: 2017-09-21 | G39: 2019-12-31 | H39: 1 | I39: 365 | J39: 1 | K39: =_xlfn.GAMMA.DIST(G39-E39-I39/2, 'Report Lag Fit'!$A$7, 'Report Lag Fit'!$B$7, TRUE) -> 0.7404789497 | L39: 0.3990596723 | M39: -1.317703991 | N39: 0.1398613496
D40: 38 | E40: 2015-06-29 | F40: 2016-06-28 | G40: 2019-12-31 | H40: 0 | I40: 365 | J40: 1 | K40: =_xlfn.GAMMA.DIST(G40-E40-I40/2, 'Report Lag Fit'!$A$7, 'Report Lag Fit'!$B$7, TRUE) -> 0.8388906507 | L40: 0.4520958068 | M40: -0.4520958068 | N40: 0.08682521515
D41: 39 | E41: 2018-06-16 | F41: 2019-06-16 | G41: 2019-12-31 | H41: 0 | I41: 365 | J41: 1 | K41: =_xlfn.GAMMA.DIST(G41-E41-I41/2, 'Report Lag Fit'!$A$7, 'Report Lag Fit'!$B$7, TRUE) -> 0.4627086049 | L41: 0.2493633942 | M41: -0.2493633942 | N41: 0.2895576277
D42: 40 | E42: 2016-07-01 | F42: 2016-12-30 | G42: 2019-12-31 | H42: 0 | I42: 182 | J42: 0.498630137 | K42: =_xlfn.GAMMA.DIST(G42-E42-I42/2, 'Report Lag Fit'!$A$7, 'Report Lag Fit'!$B$7, TRUE) -> 0.7845739463 | L42: 0.2108324863 | M42: -0.2108324863 | N42: 0.05788977667
D43: 41 | E43: 2016-10-27 | F43: 2017-04-27 | G43: 2019-12-31 | H43: 1 | I43: 182 | J43: 0.498630137 | K43: =_xlfn.GAMMA.DIST(G43-E43-I43/2, 'Report Lag Fit'!$A$7, 'Report Lag Fit'!$B$7, TRUE) -> 0.7555821442 | L43: 0.2030417437 | M43: -1.797385431 | N43: 0.06568051933
D44: 42 | E44: 2019-10-20 | F44: 2020-10-19 | G44: 2019-12-31 | H44: 0 | I44: 72 | J44: 0.197260274 | K44: =_xlfn.GAMMA.DIST(G44-E44-I44/2, 'Report Lag Fit'!$A$7, 'Report Lag Fit'!$B$7, TRUE) -> 0.1040937125 | L44: 0.01106596404 | M44: -0.01106596404 | N44: 0.09524174441
D45: 43 | E45: 2018-01-30 | F45: 2019-01-30 | G45: 2019-12-31 | H45: 0 | I45: 365 | J45: 1 | K45: =_xlfn.GAMMA.DIST(G45-E45-I45/2, 'Report Lag Fit'!$A$7, 'Report Lag Fit'!$B$7, TRUE) -> 0.5455936303 | L45: 0.2940318768 | M45: -0.2940318768 | N45: 0.2448891451
D46: 44 | E46: 2019-05-01 | F46: 2020-04-30 | G46: 2019-12-31 | H46: 0 | I46: 244 | J46: 0.6684931507 | K46: =_xlfn.GAMMA.DIST(G46-E46-I46/2, 'Report Lag Fit'!$A$7, 'Report Lag Fit'!$B$7, TRUE) -> 0.2324881655 | L46: 0.08375735172 | M46: -0.08375735172 | N46: 0.2765076602
D47: 45 | E47: 2018-06-01 | F47: 2018-11-30 | G47: 2019-12-31 | H47: 1 | I47: 182 | J47: 0.498630137 | K47: =_xlfn.GAMMA.DIST(G47-E47-I47/2, 'Report Lag Fit'!$A$7, 'Report Lag Fit'!$B$7, TRUE) -> 0.5286651552 | L47: 0.1420640969 | M47: -2.093541034 | N47: 0.1266581661
D48: 46 | E48: 2015-02-04 | F48: 2016-02-04 | G48: 2019-12-31 | H48: 0 | I48: 365 | J48: 1 | K48: =_xlfn.GAMMA.DIST(G48-E48-I48/2, 'Report Lag Fit'!$A$7, 'Report Lag Fit'!$B$7, TRUE) -> 0.8613263349 | L48: 0.4641868687 | M48: -0.4641868687 | N48: 0.0747341533
D49: 47 | E49: 2018-10-21 | F49: 2019-04-21 | G49: 2019-12-31 | H49: 0 | I49: 182 | J49: 0.498630137 | K49: =_xlfn.GAMMA.DIST(G49-E49-I49/2, 'Report Lag Fit'!$A$7, 'Report Lag Fit'!$B$7, TRUE) -> 0.4379617788 | L49: 0.1176900803 | M49: -0.1176900803 | N49: 0.1510321827
D50: 48 | E50: 2016-01-18 | F50: 2016-07-18 | G50: 2019-12-31 | H50: 1 | I50: 182 | J50: 0.498630137 | K50: =_xlfn.GAMMA.DIST(G50-E50-I50/2, 'Report Lag Fit'!$A$7, 'Report Lag Fit'!$B$7, TRUE) -> 0.8190088771 | L50: 0.2200859189 | M50: -1.733823187 | N50: 0.04863634413
D51: 49 | E51: 2015-03-22 | F51: 2017-03-21 | G51: 2019-12-31 | H51: 2 | I51: 730 | J51: 2 | K51: =_xlfn.GAMMA.DIST(G51-E51-I51/2, 'Report Lag Fit'!$A$7, 'Report Lag Fit'!$B$7, TRUE) -> 0.8242376137 | L51: 0.8883979542 | M51: -1.818216114 | N51: 0.1894440897
D52: 50 | E52: 2017-08-01 | F52: 2018-01-30 | G52: 2019-12-31 | H52: 0 | I52: 182 | J52: 0.498630137 | K52: =_xlfn.GAMMA.DIST(G52-E52-I52/2, 'Report Lag Fit'!$A$7, 'Report Lag Fit'!$B$7, TRUE) -> 0.6684612873 | L52: 0.1796304299 | M52: -0.1796304299 | N52: 0.08909183315
D53: 51 | E53: 2016-01-05 | F53: 2016-07-05 | G53: 2019-12-31 | H53: 1 | I53: 182 | J53: 0.498630137 | K53: =_xlfn.GAMMA.DIST(G53-E53-I53/2, 'Report Lag Fit'!$A$7, 'Report Lag Fit'!$B$7, TRUE) -> 0.8214570169 | L53: 0.2207437885 | M53: -1.731496366 | N53: 0.04797847446
D54: 52 | E54: 2018-04-12 | F54: 2018-10-11 | G54: 2019-12-31 | H54: 0 | I54: 182 | J54: 0.498630137 | K54: =_xlfn.GAMMA.DIST(G54-E54-I54/2, 'Report Lag Fit'!$A$7, 'Report Lag Fit'!$B$7, TRUE) -> 0.556015081 | L54: 0.1494136308 | M54: -0.1494136308 | N54: 0.1193086322
D55: 53 | E55: 2019-12-05 | F55: 2020-06-04 | G55: 2019-12-31 | H55: 0 | I55: 26 | J55: 0.07123287671 | K55: =_xlfn.GAMMA.DIST(G55-E55-I55/2, 'Report Lag Fit'!$A$7, 'Report Lag Fit'!$B$7, TRUE) -> 0.05231817966 | L55: 0.002008437091 | M55: -0.002008437091 | N55: 0.03638045762
D56: 54 | E56: 2019-12-02 | F56: 2020-12-01 | G56: 2019-12-31 | H56: 0 | I56: 29 | J56: 0.07945205479 | K56: =_xlfn.GAMMA.DIST(G56-E56-I56/2, 'Report Lag Fit'!$A$7, 'Report Lag Fit'!$B$7, TRUE) -> 0.0563423028 | L56: 0.002412486276 | M56: -0.002412486276 | N56: 0.04040589629
D57: 55 | E57: 2017-11-18 | F57: 2019-11-18 | G57: 2019-12-31 | H57: 1 | I57: 730 | J57: 2 | K57: =_xlfn.GAMMA.DIST(G57-E57-I57/2, 'Report Lag Fit'!$A$7, 'Report Lag Fit'!$B$7, TRUE) -> 0.4808589424 | L57: 0.5182899853 | M57: -1.175510361 | N57: 0.5595520586
D58: 56 | E58: 2019-06-13 | F58: 2020-06-12 | G58: 2019-12-31 | H58: 0 | I58: 201 | J58: 0.5506849315 | K58: =_xlfn.GAMMA.DIST(G58-E58-I58/2, 'Report Lag Fit'!$A$7, 'Report Lag Fit'!$B$7, TRUE) -> 0.2051944544 | L58: 0.06089672499 | M58: -0.06089672499 | N58: 0.2358789611
D59: 57 | E59: 2019-03-16 | F59: 2019-09-14 | G59: 2019-12-31 | H59: 0 | I59: 182 | J59: 0.498630137 | K59: =_xlfn.GAMMA.DIST(G59-E59-I59/2, 'Report Lag Fit'!$A$7, 'Report Lag Fit'!$B$7, TRUE) -> 0.3161492045 | L59: 0.08495632968 | M59: -0.08495632968 | N59: 0.1837659333
D60: 58 | E60: 2018-02-27 | F60: 2019-02-27 | G60: 2019-12-31 | H60: 0 | I60: 365 | J60: 1 | K60: =_xlfn.GAMMA.DIST(G60-E60-I60/2, 'Report Lag Fit'!$A$7, 'Report Lag Fit'!$B$7, TRUE) -> 0.5300826511 | L60: 0.285672684 | M60: -0.285672684 | N60: 0.2532483379
D61: 59 | E61: 2018-01-22 | F61: 2019-01-22 | G61: 2019-12-31 | H61: 0 | I61: 365 | J61: 1 | K61: =_xlfn.GAMMA.DIST(G61-E61-I61/2, 'Report Lag Fit'!$A$7, 'Report Lag Fit'!$B$7, TRUE) -> 0.5499058904 | L61: 0.2963558444 | M61: -0.2963558444 | N61: 0.2425651775
D62: 60 | E62: 2016-09-29 | F62: 2017-09-29 | G62: 2019-12-31 | H62: 0 | I62: 365 | J62: 1 | K62: =_xlfn.GAMMA.DIST(G62-E62-I62/2, 'Report Lag Fit'!$A$7, 'Report Lag Fit'!$B$7, TRUE) -> 0.7382176349 | L62: 0.3978410022 | M62: -0.3978410022 | N62: 0.1410800197
D63: 61 | E63: 2016-06-02 | F63: 2017-06-02 | G63: 2019-12-31 | H63: 0 | I63: 365 | J63: 1 | K63: =_xlfn.GAMMA.DIST(G63-E63-I63/2, 'Report Lag Fit'!$A$7, 'Report Lag Fit'!$B$7, TRUE) -> 0.7697195192 | L63: 0.4148180299 | M63: -0.4148180299 | N63: 0.124102992
D64: 62 | E64: 2016-09-15 | F64: 2017-09-15 | G64: 2019-12-31 | H64: 0 | I64: 365 | J64: 1 | K64: =_xlfn.GAMMA.DIST(G64-E64-I64/2, 'Report Lag Fit'!$A$7, 'Report Lag Fit'!$B$7, TRUE) -> 0.742160665 | L64: 0.399965984 | M64: -0.399965984 | N64: 0.1389550379
D65: 63 | E65: 2017-12-05 | F65: 2018-12-05 | G65: 2019-12-31 | H65: 0 | I65: 365 | J65: 1 | K65: =_xlfn.GAMMA.DIST(G65-E65-I65/2, 'Report Lag Fit'!$A$7, 'Report Lag Fit'!$B$7, TRUE) -> 0.5747327471 | L65: 0.3097355594 | M65: -0.3097355594 | N65: 0.2291854626
D66: 64 | E66: 2016-09-25 | F66: 2017-09-25 | G66: 2019-12-31 | H66: 0 | I66: 365 | J66: 1 | K66: =_xlfn.GAMMA.DIST(G66-E66-I66/2, 'Report Lag Fit'!$A$7, 'Report Lag Fit'!$B$7, TRUE) -> 0.7393510238 | L66: 0.3984518093 | M66: -0.3984518093 | N66: 0.1404692126
D67: 65 | E67: 2017-01-18 | F67: 2017-07-19 | G67: 2019-12-31 | H67: 0 | I67: 182 | J67: 0.498630137 | K67: =_xlfn.GAMMA.DIST(G67-E67-I67/2, 'Report Lag Fit'!$A$7, 'Report Lag Fit'!$B$7, TRUE) -> 0.7326130684 | L67: =$A$7*J67*K67 -> 0.1968694417 | M67: -0.1968694417 | N67: =$A$7*J67*(1-K67) -> 0.07185282135
D68: 66 | E68: 2017-05-14 | F68: 2018-05-14 | G68: 2019-12-31 | H68: 1 | I68: =MIN(F68-E68, G68-E68) -> 365 | J68: =I68/365 -> 1 | K68: =_xlfn.GAMMA.DIST(G68-E68-I68/2, 'Report Lag Fit'!$A$7, 'Report Lag Fit'!$B$7, TRUE) -> 0.6637828228 | L68: 0.3577265172 | M68: =LN(_xlfn.POISSON.DIST(H68, L68, FALSE)) -> -1.38571302 | N68: 0.1811945047
D69: 67 | E69: 2015-06-14 | F69: 2016-06-13 | G69: 2019-12-31 | H69: 0 | I69: 365 | J69: 1 | K69: =_xlfn.GAMMA.DIST(G69-E69-I69/2, 'Report Lag Fit'!$A$7, 'Report Lag Fit'!$B$7, TRUE) -> 0.8413815084 | L69: 0.4534381824 | M69: -0.4534381824 | N69: 0.08548283957
D70: 68 | E70: 2018-07-19 | F70: 2019-07-19 | G70: 2019-12-31 | H70: 0 | I70: 365 | J70: 1 | K70: =_xlfn.GAMMA.DIST(G70-E70-I70/2, 'Report Lag Fit'!$A$7, 'Report Lag Fit'!$B$7, TRUE) -> 0.4397561529 | L70: 0.2369938353 | M70: -0.2369938353 | N70: 0.3019271866
D71: 69 | E71: 2016-12-24 | F71: 2017-06-24 | G71: 2019-12-31 | H71: 0 | I71: 182 | J71: 0.498630137 | K71: =_xlfn.GAMMA.DIST(G71-E71-I71/2, 'Report Lag Fit'!$A$7, 'Report Lag Fit'!$B$7, TRUE) -> 0.7397746345 | L71: 0.1987939139 | M71: -0.1987939139 | N71: 0.0699283491
D72: 70 | E72: 2018-10-08 | F72: 2019-10-08 | G72: 2019-12-31 | H72: 0 | I72: 365 | J72: 1 | K72: =_xlfn.GAMMA.DIST(G72-E72-I72/2, 'Report Lag Fit'!$A$7, 'Report Lag Fit'!$B$7, TRUE) -> 0.3770829951 | L72: 0.2032179531 | M72: -0.2032179531 | N72: 0.3357030689
D73: 71 | E73: 2017-07-12 | F73: 2018-01-10 | G73: 2019-12-31 | H73: 0 | I73: 182 | J73: 0.498630137 | K73: =_xlfn.GAMMA.DIST(G73-E73-I73/2, 'Report Lag Fit'!$A$7, 'Report Lag Fit'!$B$7, TRUE) -> 0.6757912788 | L73: 0.1816001618 | M73: -0.1816001618 | N73: 0.08712210125
D74: 72 | E74: 2016-03-06 | F74: 2016-09-04 | G74: 2019-12-31 | H74: 0 | I74: 182 | J74: 0.498630137 | K74: =_xlfn.GAMMA.DIST(G74-E74-I74/2, 'Report Lag Fit'!$A$7, 'Report Lag Fit'!$B$7, TRUE) -> 0.8096513847 | L74: 0.2175713523 | M74: -0.2175713523 | N74: 0.05115091066
D75: 73 | E75: 2018-09-07 | F75: 2019-03-08 | G75: 2019-12-31 | H75: 0 | I75: 182 | J75: 0.498630137 | K75: =_xlfn.GAMMA.DIST(G75-E75-I75/2, 'Report Lag Fit'!$A$7, 'Report Lag Fit'!$B$7, TRUE) -> 0.4684096272 | L75: 0.125872095 | M75: -0.125872095 | N75: 0.142850168
D76: 74 | E76: 2017-04-17 | F76: 2018-04-17 | G76: 2019-12-31 | H76: 0 | I76: 365 | J76: 1 | K76: =_xlfn.GAMMA.DIST(G76-E76-I76/2, 'Report Lag Fit'!$A$7, 'Report Lag Fit'!$B$7, TRUE) -> 0.6737943294 | L76: 0.3631219286 | M76: -0.3631219286 | N76: 0.1757990934
D77: 75 | E77: 2019-01-07 | F77: 2020-01-07 | G77: 2019-12-31 | H77: 0 | I77: 358 | J77: 0.9808219178 | K77: =_xlfn.GAMMA.DIST(G77-E77-I77/2, 'Report Lag Fit'!$A$7, 'Report Lag Fit'!$B$7, TRUE) -> 0.2961321554 | L77: 0.1565311783 | M77: -0.1565311783 | N77: 0.372054372
D78: 76 | E78: 2019-11-26 | F78: 2020-05-26 | G78: 2019-12-31 | H78: 0 | I78: 35 | J78: 0.09589041096 | K78: =_xlfn.GAMMA.DIST(G78-E78-I78/2, 'Report Lag Fit'!$A$7, 'Report Lag Fit'!$B$7, TRUE) -> 0.06400145405 | L78: 0.003307426071 | M78: -0.003307426071 | N78: 0.0483699322
D79: 77 | E79: 2015-08-28 | F79: 2016-08-27 | G79: 2019-12-31 | H79: 0 | I79: 365 | J79: 1 | K79: =_xlfn.GAMMA.DIST(G79-E79-I79/2, 'Report Lag Fit'!$A$7, 'Report Lag Fit'!$B$7, TRUE) -> 0.8285007665 | L79: 0.4464964798 | M79: -0.4464964798 | N79: 0.09242454216
D80: 78 | E80: 2015-04-08 | F80: 2015-10-07 | G80: 2019-12-31 | H80: 0 | I80: 182 | J80: 0.498630137 | K80: =_xlfn.GAMMA.DIST(G80-E80-I80/2, 'Report Lag Fit'!$A$7, 'Report Lag Fit'!$B$7, TRUE) -> 0.8653319913 | L80: 0.2325339709 | M80: -0.2325339709 | N80: 0.03618829205
D81: 79 | E81: 2015-09-08 | F81: 2016-09-07 | G81: 2019-12-31 | H81: 0 | I81: 365 | J81: 1 | K81: =_xlfn.GAMMA.DIST(G81-E81-I81/2, 'Report Lag Fit'!$A$7, 'Report Lag Fit'!$B$7, TRUE) -> 0.8265192352 | L81: 0.4454285909 | M81: -0.4454285909 | N81: 0.09349243104
D82: 80 | E82: 2019-10-25 | F82: 2020-10-24 | G82: 2019-12-31 | H82: 0 | I82: 67 | J82: 0.1835616438 | K82: =_xlfn.GAMMA.DIST(G82-E82-I82/2, 'Report Lag Fit'!$A$7, 'Report Lag Fit'!$B$7, TRUE) -> 0.09918577378 | L82: 0.009811975354 | M82: -0.009811975354 | N82: 0.08911325333
D83: 81 | E83: 2016-02-19 | F83: 2018-02-18 | G83: 2019-12-31 | H83: 1 | I83: 730 | J83: 2 | K83: =_xlfn.GAMMA.DIST(G83-E83-I83/2, 'Report Lag Fit'!$A$7, 'Report Lag Fit'!$B$7, TRUE) -> 0.749444765 | L83: 0.8077830773 | M83: -1.021244802 | N83: 0.2700589666
D84: 82 | E84: 2016-12-20 | F84: 2018-12-20 | G84: 2019-12-31 | H84: 2 | I84: 730 | J84: 2 | K84: =_xlfn.GAMMA.DIST(G84-E84-I84/2, 'Report Lag Fit'!$A$7, 'Report Lag Fit'!$B$7, TRUE) -> 0.6492805183 | L84: 0.6998218409 | M84: -2.106828 | N84: 0.378020203
D85: 83 | E85: 2015-11-15 | F85: 2016-05-15 | G85: 2019-12-31 | H85: 0 | I85: 182 | J85: 0.498630137 | K85: =_xlfn.GAMMA.DIST(G85-E85-I85/2, 'Report Lag Fit'!$A$7, 'Report Lag Fit'!$B$7, TRUE) -> 0.8307230755 | L85: 0.2232337848 | M85: -0.2232337848 | N85: 0.04548847823
D86: 84 | E86: 2019-07-22 | F86: 2020-07-21 | G86: 2019-12-31 | H86: 0 | I86: 162 | J86: 0.4438356164 | K86: =_xlfn.GAMMA.DIST(G86-E86-I86/2, 'Report Lag Fit'!$A$7, 'Report Lag Fit'!$B$7, TRUE) -> 0.1782990474 | L86: 0.04264776708 | M86: -0.04264776708 | N86: 0.1965445769
D87: 85 | E87: 2017-07-11 | F87: 2018-07-11 | G87: 2019-12-31 | H87: 0 | I87: 365 | J87: 1 | K87: =_xlfn.GAMMA.DIST(G87-E87-I87/2, 'Report Lag Fit'!$A$7, 'Report Lag Fit'!$B$7, TRUE) -> 0.6410441885 | L87: 0.3454721892 | M87: -0.3454721892 | N87: 0.1934488327
D88: 86 | E88: 2018-10-12 | F88: 2019-04-12 | G88: 2019-12-31 | H88: 1 | I88: 182 | J88: 0.498630137 | K88: =_xlfn.GAMMA.DIST(G88-E88-I88/2, 'Report Lag Fit'!$A$7, 'Report Lag Fit'!$B$7, TRUE) -> 0.444383877 | L88: 0.1194158411 | M88: -2.244559256 | N88: 0.1493064219
D89: 87 | E89: 2016-08-18 | F89: 2017-08-18 | G89: 2019-12-31 | H89: 0 | I89: 365 | J89: 1 | K89: =_xlfn.GAMMA.DIST(G89-E89-I89/2, 'Report Lag Fit'!$A$7, 'Report Lag Fit'!$B$7, TRUE) -> 0.7498501898 | L89: 0.4041100306 | M89: -0.4041100306 | N89: 0.1348109914
D90: 88 | E90: 2016-02-16 | F90: 2017-02-15 | G90: 2019-12-31 | H90: 4 | I90: 365 | J90: 1 | K90: =_xlfn.GAMMA.DIST(G90-E90-I90/2, 'Report Lag Fit'!$A$7, 'Report Lag Fit'!$B$7, TRUE) -> 0.7945114353 | L90: 0.4281789147 | M90: -6.999089328 | N90: 0.1107421073
D91: 89 | E91: 2017-06-24 | F91: 2017-12-23 | G91: 2019-12-31 | H91: 1 | I91: 182 | J91: 0.498630137 | K91: =_xlfn.GAMMA.DIST(G91-E91-I91/2, 'Report Lag Fit'!$A$7, 'Report Lag Fit'!$B$7, TRUE) -> 0.6822291181 | L91: 0.1833301525 | M91: -1.879796792 | N91: 0.0853921105
D92: 90 | E92: 2017-12-21 | F92: 2018-06-21 | G92: 2019-12-31 | H92: 0 | I92: 182 | J92: 0.498630137 | K92: =_xlfn.GAMMA.DIST(G92-E92-I92/2, 'Report Lag Fit'!$A$7, 'Report Lag Fit'!$B$7, TRUE) -> 0.6104734873 | L92: 0.164047817 | M92: -0.164047817 | N92: 0.104674446
D93: 91 | E93: 2015-05-07 | F93: 2015-11-05 | G93: 2019-12-31 | H93: 1 | I93: 182 | J93: 0.498630137 | K93: =_xlfn.GAMMA.DIST(G93-E93-I93/2, 'Report Lag Fit'!$A$7, 'Report Lag Fit'!$B$7, TRUE) -> 0.8612549435 | L93: 0.2314383774 | M93: -1.694880006 | N93: 0.03728388555
D94: 92 | E94: 2015-02-24 | F94: 2016-02-24 | G94: 2019-12-31 | H94: 1 | I94: 365 | J94: 1 | K94: =_xlfn.GAMMA.DIST(G94-E94-I94/2, 'Report Lag Fit'!$A$7, 'Report Lag Fit'!$B$7, TRUE) -> 0.8584400537 | L94: 0.462631391 | M94: -1.233456065 | N94: 0.07628963095
D95: 93 | E95: 2016-11-14 | F95: 2017-05-15 | G95: 2019-12-31 | H95: 0 | I95: 182 | J95: 0.498630137 | K95: =_xlfn.GAMMA.DIST(G95-E95-I95/2, 'Report Lag Fit'!$A$7, 'Report Lag Fit'!$B$7, TRUE) -> 0.7507933563 | L95: 0.2017548898 | M95: -0.2017548898 | N95: 0.06696737325
D96: 94 | E96: 2018-03-31 | F96: 2018-09-29 | G96: 2019-12-31 | H96: 0 | I96: 182 | J96: 0.498630137 | K96: =_xlfn.GAMMA.DIST(G96-E96-I96/2, 'Report Lag Fit'!$A$7, 'Report Lag Fit'!$B$7, TRUE) -> 0.5622797291 | L96: 0.1510970812 | M96: -0.1510970812 | N96: 0.1176251818
D97: 95 | E97: 2016-07-01 | F97: 2017-07-01 | G97: 2019-12-31 | H97: 0 | I97: 365 | J97: 1 | K97: =_xlfn.GAMMA.DIST(G97-E97-I97/2, 'Report Lag Fit'!$A$7, 'Report Lag Fit'!$B$7, TRUE) -> 0.7624482757 | L97: 0.4108994039 | M97: -0.4108994039 | N97: 0.128021618
D98: 96 | E98: 2015-02-20 | F98: 2016-02-20 | G98: 2019-12-31 | H98: 0 | I98: 365 | J98: 1 | K98: =_xlfn.GAMMA.DIST(G98-E98-I98/2, 'Report Lag Fit'!$A$7, 'Report Lag Fit'!$B$7, TRUE) -> 0.859022367 | L98: 0.4629452119 | M98: -0.4629452119 | N98: 0.07597581005
D99: 97 | E99: 2018-09-13 | F99: 2019-09-13 | G99: 2019-12-31 | H99: 0 | I99: 365 | J99: 1 | K99: =_xlfn.GAMMA.DIST(G99-E99-I99/2, 'Report Lag Fit'!$A$7, 'Report Lag Fit'!$B$7, TRUE) -> 0.3974912677 | L99: 0.2142164002 | M99: -0.2142164002 | N99: 0.3247046217
D100: 98 | E100: 2018-06-10 | F100: 2019-06-10 | G100: 2019-12-31 | H100: 1 | I100: 365 | J100: 1 | K100: =_xlfn.GAMMA.DIST(G100-E100-I100/2, 'Report Lag Fit'!$A$7, 'Report Lag Fit'!$B$7, TRUE) -> 0.4667414778 | L100: 0.2515367942 | M100: -1.631702795 | N100: 0.2873842278
D101: 99 | E101: 2018-11-06 | F101: 2019-11-06 | G101: 2019-12-31 | H101: 0 | I101: 365 | J101: 1 | K101: =_xlfn.GAMMA.DIST(G101-E101-I101/2, 'Report Lag Fit'!$A$7, 'Report Lag Fit'!$B$7, TRUE) -> 0.3520337786 | L101: 0.1897184037 | M101: -0.1897184037 | N101: 0.3492026182
D102: 100 | E102: 2016-12-24 | F102: 2017-12-24 | G102: 2019-12-31 | H102: 0 | I102: 365 | J102: 1 | K102: =_xlfn.GAMMA.DIST(G102-E102-I102/2, 'Report Lag Fit'!$A$7, 'Report Lag Fit'!$B$7, TRUE) -> 0.7124648959 | L102: 0.3839623098 | M102: -0.3839623098 | N102: 0.1549587122
D103: 101 | E103: 2015-08-06 | F103: 2016-08-05 | G103: 2019-12-31 | H103: 0 | I103: 365 | J103: 1 | K103: =_xlfn.GAMMA.DIST(G103-E103-I103/2, 'Report Lag Fit'!$A$7, 'Report Lag Fit'!$B$7, TRUE) -> 0.8323913789 | L103: 0.4485932126 | M103: -0.4485932126 | N103: 0.09032780936
D104: 102 | E104: 2018-11-21 | F104: 2019-05-22 | G104: 2019-12-31 | H104: 0 | I104: 182 | J104: 0.498630137 | K104: =_xlfn.GAMMA.DIST(G104-E104-I104/2, 'Report Lag Fit'!$A$7, 'Report Lag Fit'!$B$7, TRUE) -> 0.4150126816 | L104: 0.111523147 | M104: -0.111523147 | N104: 0.157199116
D105: 103 | E105: 2015-04-08 | F105: 2016-04-07 | G105: 2019-12-31 | H105: 0 | I105: 365 | J105: 1 | K105: =_xlfn.GAMMA.DIST(G105-E105-I105/2, 'Report Lag Fit'!$A$7, 'Report Lag Fit'!$B$7, TRUE) -> 0.8520163722 | L105: 0.459169534 | M105: -0.459169534 | N105: 0.07975148792
D106: 104 | E106: 2015-08-04 | F106: 2016-02-02 | G106: 2019-12-31 | H106: 0 | I106: 182 | J106: 0.498630137 | K106: =_xlfn.GAMMA.DIST(G106-E106-I106/2, 'Report Lag Fit'!$A$7, 'Report Lag Fit'!$B$7, TRUE) -> 0.8479037849 | L106: 0.2278506239 | M106: -0.2278506239 | N106: 0.0408716391
D107: 105 | E107: 2015-11-01 | F107: 2016-10-31 | G107: 2019-12-31 | H107: 0 | I107: 365 | J107: 1 | K107: =_xlfn.GAMMA.DIST(G107-E107-I107/2, 'Report Lag Fit'!$A$7, 'Report Lag Fit'!$B$7, TRUE) -> 0.8164282743 | L107: 0.43999036 | M107: -0.43999036 | N107: 0.098930662
D108: 106 | E108: 2016-11-23 | F108: 2017-11-23 | G108: 2019-12-31 | H108: 0 | I108: 365 | J108: 1 | K108: =_xlfn.GAMMA.DIST(G108-E108-I108/2, 'Report Lag Fit'!$A$7, 'Report Lag Fit'!$B$7, TRUE) -> 0.7220619921 | L108: 0.3891343867 | M108: -0.3891343867 | N108: 0.1497866353
D109: 107 | E109: 2016-05-02 | F109: 2017-05-02 | G109: 2019-12-31 | H109: 0 | I109: 365 | J109: 1 | K109: =_xlfn.GAMMA.DIST(G109-E109-I109/2, 'Report Lag Fit'!$A$7, 'Report Lag Fit'!$B$7, TRUE) -> 0.7772228914 | L109: 0.4188617549 | M109: -0.4188617549 | N109: 0.120059267
D110: 108 | E110: 2018-02-16 | F110: 2019-02-16 | G110: 2019-12-31 | H110: 0 | I110: 365 | J110: 1 | K110: =_xlfn.GAMMA.DIST(G110-E110-I110/2, 'Report Lag Fit'!$A$7, 'Report Lag Fit'!$B$7, TRUE) -> 0.5362553203 | L110: 0.2889992652 | M110: -0.2889992652 | N110: 0.2499217567
D111: 109 | E111: 2018-03-08 | F111: 2019-03-08 | G111: 2019-12-31 | H111: 0 | I111: 365 | J111: 1 | K111: =_xlfn.GAMMA.DIST(G111-E111-I111/2, 'Report Lag Fit'!$A$7, 'Report Lag Fit'!$B$7, TRUE) -> 0.5249539227 | L111: 0.2829087045 | M111: -0.2829087045 | N111: 0.2560123175
D112: 110 | E112: 2017-03-10 | F112: 2017-09-08 | G112: 2019-12-31 | H112: 0 | I112: 182 | J112: 0.498630137 | K112: =_xlfn.GAMMA.DIST(G112-E112-I112/2, 'Report Lag Fit'!$A$7, 'Report Lag Fit'!$B$7, TRUE) -> 0.717309294 | L112: 0.1927569767 | M112: -0.1927569767 | N112: 0.07596528625
D113: 111 | E113: 2019-12-03 | F113: 2020-06-02 | G113: 2019-12-31 | H113: 0 | I113: 28 | J113: 0.07671232877 | K113: =_xlfn.GAMMA.DIST(G113-E113-I113/2, 'Report Lag Fit'!$A$7, 'Report Lag Fit'!$B$7, TRUE) -> 0.05501684727 | L113: 0.002274500262 | M113: -0.002274500262 | N113: 0.03906738635
D114: 112 | E114: 2015-12-12 | F114: 2016-06-11 | G114: 2019-12-31 | H114: 0 | I114: 182 | J114: 0.498630137 | K114: =_xlfn.GAMMA.DIST(G114-E114-I114/2, 'Report Lag Fit'!$A$7, 'Report Lag Fit'!$B$7, TRUE) -> 0.8258836052 | L114: 0.2219333114 | M114: -0.2219333114 | N114: 0.04678895165
D115: 113 | E115: 2019-11-09 | F115: 2020-05-09 | G115: 2019-12-31 | H115: 0 | I115: 52 | J115: 0.1424657534 | K115: =_xlfn.GAMMA.DIST(G115-E115-I115/2, 'Report Lag Fit'!$A$7, 'Report Lag Fit'!$B$7, TRUE) -> 0.08363425401 | L115: 0.006421253143 | M115: -0.006421253143 | N115: 0.07035653629
D116: 114 | E116: 2019-01-12 | F116: 2020-01-12 | G116: 2019-12-31 | H116: 0 | I116: 353 | J116: 0.9671232877 | K116: =_xlfn.GAMMA.DIST(G116-E116-I116/2, 'Report Lag Fit'!$A$7, 'Report Lag Fit'!$B$7, TRUE) -> 0.2935558109 | L116: 0.15300219 | M116: -0.15300219 | N116: 0.3682008805
D117: 115 | E117: 2018-10-12 | F117: 2019-10-12 | G117: 2019-12-31 | H117: 1 | I117: 365 | J117: 1 | K117: =_xlfn.GAMMA.DIST(G117-E117-I117/2, 'Report Lag Fit'!$A$7, 'Report Lag Fit'!$B$7, TRUE) -> 0.3737194018 | L117: 0.2014052419 | M117: -1.803841513 | N117: 0.33751578
D118: 116 | E118: 2019-03-03 | F118: 2019-09-01 | G118: 2019-12-31 | H118: 1 | I118: 182 | J118: 0.498630137 | K118: =_xlfn.GAMMA.DIST(G118-E118-I118/2, 'Report Lag Fit'!$A$7, 'Report Lag Fit'!$B$7, TRUE) -> 0.3286325331 | L118: 0.088310878 | M118: -2.515202863 | N118: 0.180411385
D119: 117 | E119: 2018-02-20 | F119: 2020-02-20 | G119: 2019-12-31 | H119: 1 | I119: 679 | J119: 1.860273973 | K119: =_xlfn.GAMMA.DIST(G119-E119-I119/2, 'Report Lag Fit'!$A$7, 'Report Lag Fit'!$B$7, TRUE) -> 0.4339853888 | L119: 0.4350880373 | M119: -1.267294921 | N119: 0.5674527131
D120: 118 | E120: 2015-05-15 | F120: 2016-05-14 | G120: 2019-12-31 | H120: 2 | I120: 365 | J120: 1 | K120: =_xlfn.GAMMA.DIST(G120-E120-I120/2, 'Report Lag Fit'!$A$7, 'Report Lag Fit'!$B$7, TRUE) -> 0.8462407547 | L120: 0.4560569324 | M120: -2.719479364 | N120: 0.0828640896
D121: 119 | E121: 2016-10-01 | F121: 2017-04-01 | G121: 2019-12-31 | H121: 0 | I121: 182 | J121: 0.498630137 | K121: =_xlfn.GAMMA.DIST(G121-E121-I121/2, 'Report Lag Fit'!$A$7, 'Report Lag Fit'!$B$7, TRUE) -> 0.7623207129 | L121: 0.2048525471 | M121: -0.2048525471 | N121: 0.06386971589
D122: 120 | E122: 2018-10-22 | F122: 2019-04-22 | G122: 2019-12-31 | H122: 0 | I122: 182 | J122: 0.498630137 | K122: =_xlfn.GAMMA.DIST(G122-E122-I122/2, 'Report Lag Fit'!$A$7, 'Report Lag Fit'!$B$7, TRUE) -> 0.4372417522 | L122: 0.1174965931 | M122: -0.1174965931 | N122: 0.1512256699
D123: 121 | E123: 2015-11-25 | F123: 2016-05-25 | G123: 2019-12-31 | H123: 0 | I123: 182 | J123: 0.498630137 | K123: =_xlfn.GAMMA.DIST(G123-E123-I123/2, 'Report Lag Fit'!$A$7, 'Report Lag Fit'!$B$7, TRUE) -> 0.8289477189 | L123: 0.2227567069 | M123: -0.2227567069 | N123: 0.04596555607
D124: 122 | E124: 2015-10-23 | F124: 2016-10-22 | G124: 2019-12-31 | H124: 0 | I124: 365 | J124: 1 | K124: =_xlfn.GAMMA.DIST(G124-E124-I124/2, 'Report Lag Fit'!$A$7, 'Report Lag Fit'!$B$7, TRUE) -> 0.8181530449 | L124: 0.4409198751 | M124: -0.4409198751 | N124: 0.09800114687
D125: 123 | E125: 2017-02-21 | F125: 2017-08-22 | G125: 2019-12-31 | H125: 0 | I125: 182 | J125: 0.498630137 | K125: =_xlfn.GAMMA.DIST(G125-E125-I125/2, 'Report Lag Fit'!$A$7, 'Report Lag Fit'!$B$7, TRUE) -> 0.7225171439 | L125: 0.194156442 | M125: -0.194156442 | N125: 0.07456582104
D126: 124 | E126: 2017-08-12 | F126: 2018-08-12 | G126: 2019-12-31 | H126: 0 | I126: 365 | J126: 1 | K126: =_xlfn.GAMMA.DIST(G126-E126-I126/2, 'Report Lag Fit'!$A$7, 'Report Lag Fit'!$B$7, TRUE) -> 0.6277279387 | L126: 0.3382957822 | M126: -0.3382957822 | N126: 0.2006252397
D127: 125 | E127: 2016-08-12 | F127: 2017-08-12 | G127: 2019-12-31 | H127: 2 | I127: 365 | J127: 1 | K127: =_xlfn.GAMMA.DIST(G127-E127-I127/2, 'Report Lag Fit'!$A$7, 'Report Lag Fit'!$B$7, TRUE) -> 0.7514646343 | L127: 0.4049800887 | M127: -2.905962023 | N127: 0.1339409333
D128: 126 | E128: 2019-07-09 | F128: 2020-01-07 | G128: 2019-12-31 | H128: 0 | I128: 175 | J128: 0.4794520548 | K128: =_xlfn.GAMMA.DIST(G128-E128-I128/2, 'Report Lag Fit'!$A$7, 'Report Lag Fit'!$B$7, TRUE) -> 0.1875236567 | L128: 0.04845363596 | M128: -0.04845363596 | N128: 0.2099331554
D129: 127 | E129: 2019-08-17 | F129: 2020-02-15 | G129: 2019-12-31 | H129: 0 | I129: 136 | J129: 0.3726027397 | K129: =_xlfn.GAMMA.DIST(G129-E129-I129/2, 'Report Lag Fit'!$A$7, 'Report Lag Fit'!$B$7, TRUE) -> 0.1589405069 | L129: 0.03191580201 | M129: -0.03191580201 | N129: 0.1688876473
D130: 128 | E130: 2016-08-10 | F130: 2017-08-10 | G130: 2019-12-31 | H130: 0 | I130: 365 | J130: 1 | K130: =_xlfn.GAMMA.DIST(G130-E130-I130/2, 'Report Lag Fit'!$A$7, 'Report Lag Fit'!$B$7, TRUE) -> 0.7520002147 | L130: 0.4052687242 | M130: -0.4052687242 | N130: 0.1336522977
D131: 129 | E131: 2018-10-14 | F131: 2019-10-14 | G131: 2019-12-31 | H131: 0 | I131: 365 | J131: 1 | K131: =_xlfn.GAMMA.DIST(G131-E131-I131/2, 'Report Lag Fit'!$A$7, 'Report Lag Fit'!$B$7, TRUE) -> 0.3720269957 | L131: =$A$7*J131*K131 -> 0.2004931687 | M131: -0.2004931687 | N131: =$A$7*J131*(1-K131) -> 0.3384278532
D132: 130 | E132: 2016-06-25 | F132: 2016-12-24 | G132: 2019-12-31 | H132: 0 | I132: =MIN(F132-E132, G132-E132) -> 182 | J132: =I132/365 -> 0.498630137 | K132: =_xlfn.GAMMA.DIST(G132-E132-I132/2, 'Report Lag Fit'!$A$7, 'Report Lag Fit'!$B$7, TRUE) -> 0.7859438705 | L132: 0.2112006155 | M132: =LN(_xlfn.POISSON.DIST(H132, L132, FALSE)) -> -0.2112006155 | N132: 0.05752164753
D133: 131 | E133: 2019-10-04 | F133: 2020-04-03 | G133: 2019-12-31 | H133: 0 | I133: 88 | J133: 0.2410958904 | K133: =_xlfn.GAMMA.DIST(G133-E133-I133/2, 'Report Lag Fit'!$A$7, 'Report Lag Fit'!$B$7, TRUE) -> 0.1190544467 | L133: 0.01546893994 | M133: -0.01546893994 | N133: 0.1144627037
D134: 132 | E134: 2017-03-24 | F134: 2018-03-24 | G134: 2019-12-31 | H134: 0 | I134: 365 | J134: 1 | K134: =_xlfn.GAMMA.DIST(G134-E134-I134/2, 'Report Lag Fit'!$A$7, 'Report Lag Fit'!$B$7, TRUE) -> 0.68240584 | L134: 0.3677628527 | M134: -0.3677628527 | N134: 0.1711581693
D135: 133 | E135: 2015-09-01 | F135: 2016-03-01 | G135: 2019-12-31 | H135: 0 | I135: 182 | J135: 0.498630137 | K135: =_xlfn.GAMMA.DIST(G135-E135-I135/2, 'Report Lag Fit'!$A$7, 'Report Lag Fit'!$B$7, TRUE) -> 0.8434258144 | L135: 0.2266472935 | M135: -0.2266472935 | N135: 0.04207496948
D136: 134 | E136: 2017-12-01 | F136: 2018-06-01 | G136: 2019-12-31 | H136: 0 | I136: 182 | J136: 0.498630137 | K136: =_xlfn.GAMMA.DIST(G136-E136-I136/2, 'Report Lag Fit'!$A$7, 'Report Lag Fit'!$B$7, TRUE) -> 0.6193263985 | L136: 0.1664267913 | M136: -0.1664267913 | N136: 0.1022954717
D137: 135 | E137: 2016-08-28 | F137: 2017-08-28 | G137: 2019-12-31 | H137: 1 | I137: 365 | J137: 1 | K137: =_xlfn.GAMMA.DIST(G137-E137-I137/2, 'Report Lag Fit'!$A$7, 'Report Lag Fit'!$B$7, TRUE) -> 0.7471335493 | L137: 0.4026459759 | M137: -1.312343551 | N137: 0.136275046
D138: 136 | E138: 2018-11-17 | F138: 2019-11-17 | G138: 2019-12-31 | H138: 0 | I138: 365 | J138: 1 | K138: =_xlfn.GAMMA.DIST(G138-E138-I138/2, 'Report Lag Fit'!$A$7, 'Report Lag Fit'!$B$7, TRUE) -> 0.3421071943 | L138: 0.1843687588 | M138: -0.1843687588 | N138: 0.3545522632
D139: 137 | E139: 2016-05-04 | F139: 2017-05-04 | G139: 2019-12-31 | H139: 0 | I139: 365 | J139: 1 | K139: =_xlfn.GAMMA.DIST(G139-E139-I139/2, 'Report Lag Fit'!$A$7, 'Report Lag Fit'!$B$7, TRUE) -> 0.776746979 | L139: 0.4186052757 | M139: -0.4186052757 | N139: 0.1203157462
D140: 138 | E140: 2015-05-16 | F140: 2016-05-15 | G140: 2019-12-31 | H140: 0 | I140: 365 | J140: 1 | K140: =_xlfn.GAMMA.DIST(G140-E140-I140/2, 'Report Lag Fit'!$A$7, 'Report Lag Fit'!$B$7, TRUE) -> 0.8460813633 | L140: 0.455971033 | M140: -0.455971033 | N140: 0.08294998897
D141: 139 | E141: 2015-12-09 | F141: 2016-06-08 | G141: 2019-12-31 | H141: 0 | I141: 182 | J141: 0.498630137 | K141: =_xlfn.GAMMA.DIST(G141-E141-I141/2, 'Report Lag Fit'!$A$7, 'Report Lag Fit'!$B$7, TRUE) -> 0.8264285837 | L141: 0.2220797592 | M141: -0.2220797592 | N141: 0.04664250379
D142: 140 | E142: 2015-12-09 | F142: 2016-12-08 | G142: 2019-12-31 | H142: 0 | I142: 365 | J142: 1 | K142: =_xlfn.GAMMA.DIST(G142-E142-I142/2, 'Report Lag Fit'!$A$7, 'Report Lag Fit'!$B$7, TRUE) -> 0.808948928 | L142: 0.435959583 | M142: -0.435959583 | N142: 0.1029614389
D143: 141 | E143: 2018-03-08 | F143: 2018-09-06 | G143: 2019-12-31 | H143: 1 | I143: 182 | J143: 0.498630137 | K143: =_xlfn.GAMMA.DIST(G143-E143-I143/2, 'Report Lag Fit'!$A$7, 'Report Lag Fit'!$B$7, TRUE) -> 0.5739830063 | L143: 0.1542420124 | M143: -2.023474414 | N143: 0.1144802506
D144: 142 | E144: 2018-09-29 | F144: 2019-09-29 | G144: 2019-12-31 | H144: 0 | I144: 365 | J144: 1 | K144: =_xlfn.GAMMA.DIST(G144-E144-I144/2, 'Report Lag Fit'!$A$7, 'Report Lag Fit'!$B$7, TRUE) -> 0.3845497961 | L144: 0.2072419691 | M144: -0.2072419691 | N144: 0.3316790529
D145: 143 | E145: 2015-08-05 | F145: 2016-08-04 | G145: 2019-12-31 | H145: 0 | I145: 365 | J145: 1 | K145: =_xlfn.GAMMA.DIST(G145-E145-I145/2, 'Report Lag Fit'!$A$7, 'Report Lag Fit'!$B$7, TRUE) -> 0.8325659623 | L145: 0.4486872992 | M145: -0.4486872992 | N145: 0.09023372272
D146: 144 | E146: 2019-09-13 | F146: 2020-09-12 | G146: 2019-12-31 | H146: 0 | I146: 109 | J146: 0.298630137 | K146: =_xlfn.GAMMA.DIST(G146-E146-I146/2, 'Report Lag Fit'!$A$7, 'Report Lag Fit'!$B$7, TRUE) -> 0.1372900017 | L146: 0.02209518634 | M146: -0.02209518634 | N146: 0.1388428723
D147: 145 | E147: 2019-04-27 | F147: 2019-10-26 | G147: 2019-12-31 | H147: 0 | I147: 182 | J147: 0.498630137 | K147: =_xlfn.GAMMA.DIST(G147-E147-I147/2, 'Report Lag Fit'!$A$7, 'Report Lag Fit'!$B$7, TRUE) -> 0.2728410038 | L147: 0.07331845199 | M147: -0.07331845199 | N147: 0.195403811
D148: 146 | E148: 2018-11-19 | F148: 2019-05-20 | G148: 2019-12-31 | H148: 0 | I148: 182 | J148: 0.498630137 | K148: =_xlfn.GAMMA.DIST(G148-E148-I148/2, 'Report Lag Fit'!$A$7, 'Report Lag Fit'!$B$7, TRUE) -> 0.4165337237 | L148: 0.1119318849 | M148: -0.1119318849 | N148: 0.1567903781
D149: 147 | E149: 2017-10-26 | F149: 2018-10-26 | G149: 2019-12-31 | H149: 0 | I149: 365 | J149: 1 | K149: =_xlfn.GAMMA.DIST(G149-E149-I149/2, 'Report Lag Fit'!$A$7, 'Report Lag Fit'!$B$7, TRUE) -> 0.5941422046 | L149: 0.3201957241 | M149: -0.3201957241 | N149: 0.2187252979
D150: 148 | E150: 2017-03-12 | F150: 2017-09-10 | G150: 2019-12-31 | H150: 0 | I150: 182 | J150: 0.498630137 | K150: =_xlfn.GAMMA.DIST(G150-E150-I150/2, 'Report Lag Fit'!$A$7, 'Report Lag Fit'!$B$7, TRUE) -> 0.716689409 | L150: 0.1925903999 | M150: -0.1925903999 | N150: 0.07613186314
D151: 149 | E151: 2016-02-22 | F151: 2017-02-21 | G151: 2019-12-31 | H151: 0 | I151: 365 | J151: 1 | K151: =_xlfn.GAMMA.DIST(G151-E151-I151/2, 'Report Lag Fit'!$A$7, 'Report Lag Fit'!$B$7, TRUE) -> 0.7932011533 | L151: 0.4274727761 | M151: -0.4274727761 | N151: 0.1114482458
D152: 150 | E152: 2017-12-30 | F152: 2018-12-30 | G152: 2019-12-31 | H152: 0 | I152: 365 | J152: 1 | K152: =_xlfn.GAMMA.DIST(G152-E152-I152/2, 'Report Lag Fit'!$A$7, 'Report Lag Fit'!$B$7, TRUE) -> 0.5620209103 | L152: 0.3028848834 | M152: -0.3028848834 | N152: 0.2360361386
D153: 151 | E153: 2017-12-18 | F153: 2018-06-18 | G153: 2019-12-31 | H153: 1 | I153: 182 | J153: 0.498630137 | K153: =_xlfn.GAMMA.DIST(G153-E153-I153/2, 'Report Lag Fit'!$A$7, 'Report Lag Fit'!$B$7, TRUE) -> 0.6118170097 | L153: 0.1644088514 | M153: -1.969807809 | N153: 0.1043134116
D154: 152 | E154: 2018-02-21 | F154: 2019-02-21 | G154: 2019-12-31 | H154: 0 | I154: 365 | J154: 1 | K154: =_xlfn.GAMMA.DIST(G154-E154-I154/2, 'Report Lag Fit'!$A$7, 'Report Lag Fit'!$B$7, TRUE) -> 0.5334624664 | L154: 0.2874941376 | M154: -0.2874941376 | N154: 0.2514268844
D155: 153 | E155: 2019-11-09 | F155: 2021-11-08 | G155: 2019-12-31 | H155: 0 | I155: 52 | J155: 0.1424657534 | K155: =_xlfn.GAMMA.DIST(G155-E155-I155/2, 'Report Lag Fit'!$A$7, 'Report Lag Fit'!$B$7, TRUE) -> 0.08363425401 | L155: 0.006421253143 | M155: -0.006421253143 | N155: 0.07035653629
D156: 154 | E156: 2019-06-22 | F156: 2020-06-21 | G156: 2019-12-31 | H156: 0 | I156: 192 | J156: 0.5260273973 | K156: =_xlfn.GAMMA.DIST(G156-E156-I156/2, 'Report Lag Fit'!$A$7, 'Report Lag Fit'!$B$7, TRUE) -> 0.1991875566 | L156: 0.05646712719 | M156: -0.05646712719 | N156: 0.2270200953
D157: 155 | E157: 2015-06-17 | F157: 2016-06-16 | G157: 2019-12-31 | H157: 1 | I157: 365 | J157: 1 | K157: =_xlfn.GAMMA.DIST(G157-E157-I157/2, 'Report Lag Fit'!$A$7, 'Report Lag Fit'!$B$7, TRUE) -> 0.8408866473 | L157: 0.4531714913 | M157: -1.244656148 | N157: 0.08574953063
D158: 156 | E158: 2019-10-08 | F158: 2020-10-07 | G158: 2019-12-31 | H158: 0 | I158: 84 | J158: 0.2301369863 | K158: =_xlfn.GAMMA.DIST(G158-E158-I158/2, 'Report Lag Fit'!$A$7, 'Report Lag Fit'!$B$7, TRUE) -> 0.1154112198 | L158: 0.01431395269 | M158: -0.01431395269 | N158: 0.1097117072
D159: 157 | E159: 2019-11-27 | F159: 2020-11-26 | G159: 2019-12-31 | H159: 0 | I159: 34 | J159: 0.09315068493 | K159: =_xlfn.GAMMA.DIST(G159-E159-I159/2, 'Report Lag Fit'!$A$7, 'Report Lag Fit'!$B$7, TRUE) -> 0.06275710857 | L159: 0.003150460967 | M159: -0.003150460967 | N159: 0.04705040135
D160: 158 | E160: 2019-07-06 | F160: 2020-01-04 | G160: 2019-12-31 | H160: 0 | I160: 178 | J160: 0.4876712329 | K160: =_xlfn.GAMMA.DIST(G160-E160-I160/2, 'Report Lag Fit'!$A$7, 'Report Lag Fit'!$B$7, TRUE) -> 0.1896136715 | L160: 0.04983355962 | M160: -0.04983355962 | N160: 0.2129827196
D161: 159 | E161: 2015-02-02 | F161: 2015-08-03 | G161: 2019-12-31 | H161: 1 | I161: 182 | J161: 0.498630137 | K161: =_xlfn.GAMMA.DIST(G161-E161-I161/2, 'Report Lag Fit'!$A$7, 'Report Lag Fit'!$B$7, TRUE) -> 0.8740167441 | L161: 0.2348677574 | M161: -1.683600415 | N161: 0.03385450563
D162: 160 | E162: 2019-01-13 | F162: 2019-07-14 | G162: 2019-12-31 | H162: 0 | I162: 182 | J162: 0.498630137 | K162: =_xlfn.GAMMA.DIST(G162-E162-I162/2, 'Report Lag Fit'!$A$7, 'Report Lag Fit'!$B$7, TRUE) -> 0.3724507656 | L162: 0.1000858126 | M162: -0.1000858126 | N162: 0.1686364504
D163: 161 | E163: 2019-04-24 | F163: 2020-04-23 | G163: 2019-12-31 | H163: 0 | I163: 251 | J163: 0.6876712329 | K163: =_xlfn.GAMMA.DIST(G163-E163-I163/2, 'Report Lag Fit'!$A$7, 'Report Lag Fit'!$B$7, TRUE) -> 0.2367331706 | L163: 0.08773342752 | M163: -0.08773342752 | N163: 0.2828670561
D164: 162 | E164: 2018-12-10 | F164: 2019-12-10 | G164: 2019-12-31 | H164: 0 | I164: 365 | J164: 1 | K164: =_xlfn.GAMMA.DIST(G164-E164-I164/2, 'Report Lag Fit'!$A$7, 'Report Lag Fit'!$B$7, TRUE) -> 0.3205152326 | L164: 0.1727323967 | M164: -0.1727323967 | N164: 0.3661886252
D165: 163 | E165: 2018-02-28 | F165: 2019-02-28 | G165: 2019-12-31 | H165: 1 | I165: 365 | J165: 1 | K165: =_xlfn.GAMMA.DIST(G165-E165-I165/2, 'Report Lag Fit'!$A$7, 'Report Lag Fit'!$B$7, TRUE) -> 0.5295163086 | L165: 0.2853674702 | M165: -1.53934503 | N165: 0.2535535518
D166: 164 | E166: 2016-10-11 | F166: 2017-04-11 | G166: 2019-12-31 | H166: 0 | I166: 182 | J166: 0.498630137 | K166: =_xlfn.GAMMA.DIST(G166-E166-I166/2, 'Report Lag Fit'!$A$7, 'Report Lag Fit'!$B$7, TRUE) -> 0.7597535307 | L166: 0.2041626881 | M166: -0.2041626881 | N166: 0.06455957492
D167: 165 | E167: 2016-12-31 | F167: 2017-07-01 | G167: 2019-12-31 | H167: 0 | I167: 182 | J167: 0.498630137 | K167: =_xlfn.GAMMA.DIST(G167-E167-I167/2, 'Report Lag Fit'!$A$7, 'Report Lag Fit'!$B$7, TRUE) -> 0.7377911991 | L167: 0.1982609206 | M167: -0.1982609206 | N167: 0.07046134236
D168: 166 | E168: 2015-07-13 | F168: 2016-01-11 | G168: 2019-12-31 | H168: 0 | I168: 182 | J168: 0.498630137 | K168: =_xlfn.GAMMA.DIST(G168-E168-I168/2, 'Report Lag Fit'!$A$7, 'Report Lag Fit'!$B$7, TRUE) -> 0.851326436 | L168: 0.2287703664 | M168: -0.2287703664 | N168: 0.03995189657
D169: 167 | E169: 2019-11-12 | F169: 2020-11-11 | G169: 2019-12-31 | H169: 0 | I169: 49 | J169: 0.1342465753 | K169: =_xlfn.GAMMA.DIST(G169-E169-I169/2, 'Report Lag Fit'!$A$7, 'Report Lag Fit'!$B$7, TRUE) -> 0.0803486545 | L169: 0.005813088687 | M169: -0.005813088687 | N169: 0.06653521289
D170: 168 | E170: 2015-02-02 | F170: 2016-02-02 | G170: 2019-12-31 | H170: 1 | I170: 365 | J170: 1 | K170: =_xlfn.GAMMA.DIST(G170-E170-I170/2, 'Report Lag Fit'!$A$7, 'Report Lag Fit'!$B$7, TRUE) -> 0.8616115114 | L170: 0.4643405562 | M170: -1.231477595 | N170: 0.07458046573
D171: 169 | E171: 2018-09-28 | F171: 2019-09-28 | G171: 2019-12-31 | H171: 0 | I171: 365 | J171: 1 | K171: =_xlfn.GAMMA.DIST(G171-E171-I171/2, 'Report Lag Fit'!$A$7, 'Report Lag Fit'!$B$7, TRUE) -> 0.3853709506 | L171: 0.2076845066 | M171: -0.2076845066 | N171: 0.3312365154
D172: 170 | E172: 2015-08-06 | F172: 2016-02-04 | G172: 2019-12-31 | H172: 0 | I172: 182 | J172: 0.498630137 | K172: =_xlfn.GAMMA.DIST(G172-E172-I172/2, 'Report Lag Fit'!$A$7, 'Report Lag Fit'!$B$7, TRUE) -> 0.8475885009 | L172: 0.2277659001 | M172: -0.2277659001 | N172: 0.04095636294
D173: 171 | E173: 2016-02-04 | F173: 2017-02-03 | G173: 2019-12-31 | H173: 0 | I173: 365 | J173: 1 | K173: =_xlfn.GAMMA.DIST(G173-E173-I173/2, 'Report Lag Fit'!$A$7, 'Report Lag Fit'!$B$7, TRUE) -> 0.7971050082 | L173: 0.4295766456 | M173: -0.4295766456 | N173: 0.1093443763
D174: 172 | E174: 2017-05-03 | F174: 2017-11-01 | G174: 2019-12-31 | H174: 0 | I174: 182 | J174: 0.498630137 | K174: =_xlfn.GAMMA.DIST(G174-E174-I174/2, 'Report Lag Fit'!$A$7, 'Report Lag Fit'!$B$7, TRUE) -> 0.7000208275 | L174: 0.1881111809 | M174: -0.1881111809 | N174: 0.08061108208
D175: 173 | E175: 2019-02-22 | F175: 2020-02-22 | G175: 2019-12-31 | H175: 0 | I175: 312 | J175: 0.8547945205 | K175: =_xlfn.GAMMA.DIST(G175-E175-I175/2, 'Report Lag Fit'!$A$7, 'Report Lag Fit'!$B$7, TRUE) -> 0.2717475144 | L175: 0.1251850406 | M175: -0.1251850406 | N175: 0.3354816959
D176: 174 | E176: 2015-09-14 | F176: 2016-09-13 | G176: 2019-12-31 | H176: 3 | I176: 365 | J176: 1 | K176: =_xlfn.GAMMA.DIST(G176-E176-I176/2, 'Report Lag Fit'!$A$7, 'Report Lag Fit'!$B$7, TRUE) -> 0.8254280527 | L176: 0.4448405297 | M176: -4.666718263 | N176: 0.09408049226
D177: 175 | E177: 2015-03-09 | F177: 2016-03-08 | G177: 2019-12-31 | H177: 0 | I177: 365 | J177: 1 | K177: =_xlfn.GAMMA.DIST(G177-E177-I177/2, 'Report Lag Fit'!$A$7, 'Report Lag Fit'!$B$7, TRUE) -> 0.8565298391 | L177: 0.4616019362 | M177: -0.4616019362 | N177: 0.07731908572
D178: 176 | E178: 2016-08-19 | F178: 2017-02-17 | G178: 2019-12-31 | H178: 0 | I178: 182 | J178: 0.498630137 | K178: =_xlfn.GAMMA.DIST(G178-E178-I178/2, 'Report Lag Fit'!$A$7, 'Report Lag Fit'!$B$7, TRUE) -> 0.7730206579 | L178: 0.2077278605 | M178: -0.2077278605 | N178: 0.06099440246
D179: 177 | E179: 2015-11-23 | F179: 2016-05-23 | G179: 2019-12-31 | H179: 0 | I179: 182 | J179: 0.498630137 | K179: =_xlfn.GAMMA.DIST(G179-E179-I179/2, 'Report Lag Fit'!$A$7, 'Report Lag Fit'!$B$7, TRUE) -> 0.8293043811 | L179: 0.22285255 | M179: -0.22285255 | N179: 0.04586971298
D180: 178 | E180: 2015-10-20 | F180: 2016-10-19 | G180: 2019-12-31 | H180: 1 | I180: 365 | J180: 1 | K180: =_xlfn.GAMMA.DIST(G180-E180-I180/2, 'Report Lag Fit'!$A$7, 'Report Lag Fit'!$B$7, TRUE) -> 0.8187240826 | L180: 0.4412276193 | M180: -1.259422012 | N180: 0.09769340265
D181: 179 | E181: 2016-10-05 | F181: 2017-10-05 | G181: 2019-12-31 | H181: 0 | I181: 365 | J181: 1 | K181: =_xlfn.GAMMA.DIST(G181-E181-I181/2, 'Report Lag Fit'!$A$7, 'Report Lag Fit'!$B$7, TRUE) -> 0.7365072379 | L181: 0.3969192334 | M181: -0.3969192334 | N181: 0.1420017886
D182: 180 | E182: 2015-01-02 | F182: 2015-07-03 | G182: 2019-12-31 | H182: 0 | I182: 182 | J182: 0.498630137 | K182: =_xlfn.GAMMA.DIST(G182-E182-I182/2, 'Report Lag Fit'!$A$7, 'Report Lag Fit'!$B$7, TRUE) -> 0.8779485087 | L182: 0.2359243101 | M182: -0.2359243101 | N182: 0.03279795295
D183: 181 | E183: 2018-05-21 | F183: 2019-05-21 | G183: 2019-12-31 | H183: 0 | I183: 365 | J183: 1 | K183: =_xlfn.GAMMA.DIST(G183-E183-I183/2, 'Report Lag Fit'!$A$7, 'Report Lag Fit'!$B$7, TRUE) -> 0.4798905135 | L183: 0.258623086 | M183: -0.258623086 | N183: 0.280297936
D184: 182 | E184: 2016-12-03 | F184: 2018-12-03 | G184: 2019-12-31 | H184: 3 | I184: 730 | J184: 2 | K184: =_xlfn.GAMMA.DIST(G184-E184-I184/2, 'Report Lag Fit'!$A$7, 'Report Lag Fit'!$B$7, TRUE) -> 0.6559433288 | L184: 0.7070032982 | M184: -3.538922612 | N184: 0.3708387458
D185: 183 | E185: 2019-09-14 | F185: 2020-03-14 | G185: 2019-12-31 | H185: 0 | I185: 108 | J185: 0.295890411 | K185: =_xlfn.GAMMA.DIST(G185-E185-I185/2, 'Report Lag Fit'!$A$7, 'Report Lag Fit'!$B$7, TRUE) -> 0.136452277 | L185: 0.02175889332 | M185: -0.02175889332 | N185: 0.1377026693
D186: 184 | E186: 2017-07-23 | F186: 2018-07-23 | G186: 2019-12-31 | H186: 0 | I186: 365 | J186: 1 | K186: =_xlfn.GAMMA.DIST(G186-E186-I186/2, 'Report Lag Fit'!$A$7, 'Report Lag Fit'!$B$7, TRUE) -> 0.6361175289 | L186: 0.3428171087 | M186: -0.3428171087 | N186: 0.1961039132
D187: 185 | E187: 2017-02-18 | F187: 2018-02-18 | G187: 2019-12-31 | H187: 0 | I187: 365 | J187: 1 | K187: =_xlfn.GAMMA.DIST(G187-E187-I187/2, 'Report Lag Fit'!$A$7, 'Report Lag Fit'!$B$7, TRUE) -> 0.6941632518 | L187: 0.3740991691 | M187: -0.3740991691 | N187: 0.1648218529
D188: 186 | E188: 2019-06-07 | F188: 2020-06-06 | G188: 2019-12-31 | H188: 0 | I188: 207 | J188: 0.5671232877 | K188: =_xlfn.GAMMA.DIST(G188-E188-I188/2, 'Report Lag Fit'!$A$7, 'Report Lag Fit'!$B$7, TRUE) -> 0.2091385184 | L188: 0.06391998032 | M188: -0.06391998032 | N188: 0.2417146814
D189: 187 | E189: 2019-03-11 | F189: 2019-09-09 | G189: 2019-12-31 | H189: 0 | I189: 182 | J189: 0.498630137 | K189: =_xlfn.GAMMA.DIST(G189-E189-I189/2, 'Report Lag Fit'!$A$7, 'Report Lag Fit'!$B$7, TRUE) -> 0.3209973704 | L189: 0.08625913979 | M189: -0.08625913979 | N189: 0.1824631232
D190: 188 | E190: 2017-07-05 | F190: 2018-07-05 | G190: 2019-12-31 | H190: 0 | I190: 365 | J190: 1 | K190: =_xlfn.GAMMA.DIST(G190-E190-I190/2, 'Report Lag Fit'!$A$7, 'Report Lag Fit'!$B$7, TRUE) -> 0.6434780811 | L190: 0.3467838651 | M190: -0.3467838651 | N190: 0.1921371569
D191: 189 | E191: 2017-10-04 | F191: 2018-10-04 | G191: 2019-12-31 | H191: 0 | I191: 365 | J191: 1 | K191: =_xlfn.GAMMA.DIST(G191-E191-I191/2, 'Report Lag Fit'!$A$7, 'Report Lag Fit'!$B$7, TRUE) -> 0.6043580886 | L191: 0.3257012787 | M191: -0.3257012787 | N191: 0.2132197432
D192: 190 | E192: 2018-10-12 | F192: 2019-10-12 | G192: 2019-12-31 | H192: 0 | I192: 365 | J192: 1 | K192: =_xlfn.GAMMA.DIST(G192-E192-I192/2, 'Report Lag Fit'!$A$7, 'Report Lag Fit'!$B$7, TRUE) -> 0.3737194018 | L192: 0.2014052419 | M192: -0.2014052419 | N192: 0.33751578
D193: 191 | E193: 2018-03-08 | F193: 2018-09-06 | G193: 2019-12-31 | H193: 1 | I193: 182 | J193: 0.498630137 | K193: =_xlfn.GAMMA.DIST(G193-E193-I193/2, 'Report Lag Fit'!$A$7, 'Report Lag Fit'!$B$7, TRUE) -> 0.5739830063 | L193: 0.1542420124 | M193: -2.023474414 | N193: 0.1144802506
D194: 192 | E194: 2017-05-25 | F194: 2018-05-25 | G194: 2019-12-31 | H194: 0 | I194: 365 | J194: 1 | K194: =_xlfn.GAMMA.DIST(G194-E194-I194/2, 'Report Lag Fit'!$A$7, 'Report Lag Fit'!$B$7, TRUE) -> 0.659602379 | L194: 0.3554735882 | M194: -0.3554735882 | N194: 0.1834474338
D195: 193 | E195: 2016-09-24 | F195: 2017-03-25 | G195: 2019-12-31 | H195: 0 | I195: 182 | J195: 0.498630137 | K195: =_xlfn.GAMMA.DIST(G195-E195-I195/2, 'Report Lag Fit'!$A$7, 'Report Lag Fit'!$B$7, TRUE) -> 0.7640997447 | L195: =$A$7*J195*K195 -> 0.2053306126 | M195: -0.2053306126 | N195: =$A$7*J195*(1-K195) -> 0.06339165044
D196: 194 | E196: 2017-06-15 | F196: 2018-06-15 | G196: 2019-12-31 | H196: 0 | I196: =MIN(F196-E196, G196-E196) -> 365 | J196: =I196/365 -> 1 | K196: =_xlfn.GAMMA.DIST(G196-E196-I196/2, 'Report Lag Fit'!$A$7, 'Report Lag Fit'!$B$7, TRUE) -> 0.6514524819 | L196: 0.3510814373 | M196: =LN(_xlfn.POISSON.DIST(H196, L196, FALSE)) -> -0.3510814373 | N196: 0.1878395847
D197: 195 | E197: 2016-08-03 | F197: 2017-08-03 | G197: 2019-12-31 | H197: 0 | I197: 365 | J197: 1 | K197: =_xlfn.GAMMA.DIST(G197-E197-I197/2, 'Report Lag Fit'!$A$7, 'Report Lag Fit'!$B$7, TRUE) -> 0.753864708 | L197: 0.4062735389 | M197: -0.4062735389 | N197: 0.1326474831
D198: 196 | E198: 2016-11-27 | F198: 2017-11-27 | G198: 2019-12-31 | H198: 0 | I198: 365 | J198: 1 | K198: =_xlfn.GAMMA.DIST(G198-E198-I198/2, 'Report Lag Fit'!$A$7, 'Report Lag Fit'!$B$7, TRUE) -> 0.7208441482 | L198: 0.388478065 | M198: -0.388478065 | N198: 0.1504429569
D199: 197 | E199: 2015-12-17 | F199: 2016-12-16 | G199: 2019-12-31 | H199: 0 | I199: 365 | J199: 1 | K199: =_xlfn.GAMMA.DIST(G199-E199-I199/2, 'Report Lag Fit'!$A$7, 'Report Lag Fit'!$B$7, TRUE) -> 0.8073327667 | L199: 0.4350885997 | M199: -0.4350885997 | N199: 0.1038324223
D200: 198 | E200: 2019-08-03 | F200: 2021-08-02 | G200: 2019-12-31 | H200: 0 | I200: 150 | J200: 0.4109589041 | K200: =_xlfn.GAMMA.DIST(G200-E200-I200/2, 'Report Lag Fit'!$A$7, 'Report Lag Fit'!$B$7, TRUE) -> 0.1695248837 | L200: 0.03754542064 | M200: -0.03754542064 | N200: 0.1839289719
... 4802 more rows

Sheet Simulation (Poisson)
D1: From Freq Fit | F1: Frequency Simulation | H1: CWP Simulation | J1: Severity Simulation | AD1: Lookups for Frequency Simulation
A2: Simulated Pure IBNR | D2: Policy Index | E2: lambda Parameter for Unreported Claims | F2: Freq Rand Num | G2: Unrep Claim Count Simulation | H2: CWP Rand Num | I2: CWP Count Sim | J2: Rand 1 | K2: Rand 2 | L2: Rand 3 | M2: Rand 4 | N2: Rand 5 | O2: Rand 6 | P2: Rand 7 | Q2: Rand 8 | R2: Rand 9 | S2: Rand 10 | T2: Severity 01 | U2: Severity 02 | V2: Severity 03 | W2: Severity 04 | X2: Severity 05 | Y2: Severity 06 | Z2: Severity 07 | AA2: Severity 08 | AB2: Severity 09 | AC2: Severity 10 | AD2: 0 | AE2: 1 | AF2: 2 | AG2: 3 | AH2: 4 | AI2: 5 | AJ2: 6 | AK2: 7 | AL2: 8 | AM2: 9 | AN2: 10
A3: Counts | B3: Dollars | D3: 1 | E3: ='Freq Fit (Poisson)'!N3 -> 0.1721133024 | F3: =RAND() -> 0.2778649283 | G3: =INDEX('Simulation (Poisson)'!$AD$2:$AN$2, MATCH(F3, 'Simulation (Poisson)'!$AD3:$AN3, 1)) -> 0 | H3: =RAND() -> 0.2597819113 | I3: =_xlfn.BINOM.INV(G3,'CWP Prob & Severity Param'!$A$2,H3) -> 0 | J3: =RAND() -> 0.7057606813 | K3: =RAND() -> 0.5531165097 | L3: 0.8647527907 | M3: 0.07375087106 | N3: 0.1098701233 | O3: 0.3018311366 | P3: 0.001670570148 | Q3: 0.8209890442 | R3: 0.088416491 | S3: 0.1355976466 | T3: =IF($I3>=_xlfn.NUMBERVALUE(RIGHT(T$2, 2)), _xlfn.LOGNORM.INV(J3, 'CWP Prob & Severity Param'!$A$6, 'CWP Prob & Severity Param'!$B$6), "") ->  | U3: =IF($I3>=_xlfn.NUMBERVALUE(RIGHT(U$2, 2)), _xlfn.LOGNORM.INV(K3, 'CWP Prob & Severity Param'!$A$6, 'CWP Prob & Severity Param'!$B$6), "") ->  | V3: =IF($I3>=_xlfn.NUMBERVALUE(RIGHT(V$2, 2)), _xlfn.LOGNORM.INV(L3, 'CWP Prob & Severity Param'!$A$6, 'CWP Prob & Severity Param'!$B$6), "") ->  | W3: =IF($I3>=_xlfn.NUMBERVALUE(RIGHT(W$2, 2)), _xlfn.LOGNORM.INV(M3, 'CWP Prob & Severity Param'!$A$6, 'CWP Prob & Severity Param'!$B$6), "") ->  | X3: =IF($I3>=_xlfn.NUMBERVALUE(RIGHT(X$2, 2)), _xlfn.LOGNORM.INV(N3, 'CWP Prob & Severity Param'!$A$6, 'CWP Prob & Severity Param'!$B$6), "") ->  | Y3: =IF($I3>=_xlfn.NUMBERVALUE(RIGHT(Y$2, 2)), _xlfn.LOGNORM.INV(O3, 'CWP Prob & Severity Param'!$A$6, 'CWP Prob & Severity Param'!$B$6), "") ->  | Z3: =IF($I3>=_xlfn.NUMBERVALUE(RIGHT(Z$2, 2)), _xlfn.LOGNORM.INV(P3, 'CWP Prob & Severity Param'!$A$6, 'CWP Prob & Severity Param'!$B$6), "") ->  | AA3: =IF($I3>=_xlfn.NUMBERVALUE(RIGHT(AA$2, 2)), _xlfn.LOGNORM.INV(Q3, 'CWP Prob & Severity Param'!$A$6, 'CWP Prob & Severity Param'!$B$6), "") ->  | AB3: =IF($I3>=_xlfn.NUMBERVALUE(RIGHT(AB$2, 2)), _xlfn.LOGNORM.INV(R3, 'CWP Prob & Severity Param'!$A$6, 'CWP Prob & Severity Param'!$B$6), "") ->  | AC3: =IF($I3>=_xlfn.NUMBERVALUE(RIGHT(AC$2, 2)), _xlfn.LOGNORM.INV(S3, 'CWP Prob & Severity Param'!$A$6, 'CWP Prob & Severity Param'!$B$6), "") ->  | AD3: 0 | AE3: =_xlfn.POISSON.DIST(AD$2, $E3, TRUE) -> 0.8418837804 | AF3: =_xlfn.POISSON.DIST(AE$2, $E3, TRUE) -> 0.986783178 | AG3: 0.9992527349 | AH3: 0.9999681271 | AI3: 0.9999989092 | AJ3: 0.9999999688 | AK3: 0.9999999992 | AL3: 1 | AM3: 1 | AN3: 1
A4: =SUM(G3:G5002) -> 822 | B4: =SUM(T3:AC5002) -> 118970568.6 | D4: 2 | E4: ='Freq Fit (Poisson)'!N4 -> 0.5080922625 | F4: =RAND() -> 0.1495085449 | G4: =INDEX('Simulation (Poisson)'!$AD$2:$AN$2, MATCH(F4, 'Simulation (Poisson)'!$AD4:$AN4, 1)) -> 0 | H4: =RAND() -> 0.3406382193 | I4: =_xlfn.BINOM.INV(G4,'CWP Prob & Severity Param'!$A$2,H4) -> 0 | J4: =RAND() -> 0.7242736216 | K4: 0.7905540928 | L4: 0.2524821344 | M4: 0.03550568545 | N4: 0.3526447021 | O4: 0.6759688128 | P4: 0.2218969756 | Q4: 0.09480504256 | R4: 0.9596112433 | S4: 0.03973714864 | T4: =IF($I4>=_xlfn.NUMBERVALUE(RIGHT(T$2, 2)), _xlfn.LOGNORM.INV(J4, 'CWP Prob & Severity Param'!$A$6, 'CWP Prob & Severity Param'!$B$6), "") ->  | U4: =IF($I4>=_xlfn.NUMBERVALUE(RIGHT(U$2, 2)), _xlfn.LOGNORM.INV(K4, 'CWP Prob & Severity Param'!$A$6, 'CWP Prob & Severity Param'!$B$6), "") ->  | V4: =IF($I4>=_xlfn.NUMBERVALUE(RIGHT(V$2, 2)), _xlfn.LOGNORM.INV(L4, 'CWP Prob & Severity Param'!$A$6, 'CWP Prob & Severity Param'!$B$6), "") ->  | W4: =IF($I4>=_xlfn.NUMBERVALUE(RIGHT(W$2, 2)), _xlfn.LOGNORM.INV(M4, 'CWP Prob & Severity Param'!$A$6, 'CWP Prob & Severity Param'!$B$6), "") ->  | X4: =IF($I4>=_xlfn.NUMBERVALUE(RIGHT(X$2, 2)), _xlfn.LOGNORM.INV(N4, 'CWP Prob & Severity Param'!$A$6, 'CWP Prob & Severity Param'!$B$6), "") ->  | Y4: =IF($I4>=_xlfn.NUMBERVALUE(RIGHT(Y$2, 2)), _xlfn.LOGNORM.INV(O4, 'CWP Prob & Severity Param'!$A$6, 'CWP Prob & Severity Param'!$B$6), "") ->  | Z4: =IF($I4>=_xlfn.NUMBERVALUE(RIGHT(Z$2, 2)), _xlfn.LOGNORM.INV(P4, 'CWP Prob & Severity Param'!$A$6, 'CWP Prob & Severity Param'!$B$6), "") ->  | AA4: =IF($I4>=_xlfn.NUMBERVALUE(RIGHT(AA$2, 2)), _xlfn.LOGNORM.INV(Q4, 'CWP Prob & Severity Param'!$A$6, 'CWP Prob & Severity Param'!$B$6), "") ->  | AB4: =IF($I4>=_xlfn.NUMBERVALUE(RIGHT(AB$2, 2)), _xlfn.LOGNORM.INV(R4, 'CWP Prob & Severity Param'!$A$6, 'CWP Prob & Severity Param'!$B$6), "") ->  | AC4: =IF($I4>=_xlfn.NUMBERVALUE(RIGHT(AC$2, 2)), _xlfn.LOGNORM.INV(S4, 'CWP Prob & Severity Param'!$A$6, 'CWP Prob & Severity Param'!$B$6), "") ->  | AD4: 0 | AE4: =_xlfn.POISSON.DIST(AD$2, $E4, TRUE) -> 0.6016422602 | AF4: 0.9073320374 | AG4: 0.9849913426 | AH4: 0.99814404 | AI4: 0.9998147359 | AJ4: 0.9999845095 | AK4: 0.9999988863 | AL4: 0.9999999298 | AM4: 0.9999999961 | AN4: 0.9999999998
D5: 3 | E5: ='Freq Fit (Poisson)'!N5 -> 0.1040514109 | F5: 0.3822705757 | G5: =INDEX('Simulation (Poisson)'!$AD$2:$AN$2, MATCH(F5, 'Simulation (Poisson)'!$AD5:$AN5, 1)) -> 0 | H5: 0.1682277502 | I5: =_xlfn.BINOM.INV(G5,'CWP Prob & Severity Param'!$A$2,H5) -> 0 | J5: 0.689931975 | K5: 0.9618564654 | L5: 0.7641702744 | M5: 0.154044486 | N5: 0.2592455522 | O5: 0.8546545376 | P5: 0.8600192644 | Q5: 0.7201583071 | R5: 0.8446750774 | S5: 0.3613481637 | T5: =IF($I5>=_xlfn.NUMBERVALUE(RIGHT(T$2, 2)), _xlfn.LOGNORM.INV(J5, 'CWP Prob & Severity Param'!$A$6, 'CWP Prob & Severity Param'!$B$6), "") ->  | U5: =IF($I5>=_xlfn.NUMBERVALUE(RIGHT(U$2, 2)), _xlfn.LOGNORM.INV(K5, 'CWP Prob & Severity Param'!$A$6, 'CWP Prob & Severity Param'!$B$6), "") ->  | V5: =IF($I5>=_xlfn.NUMBERVALUE(RIGHT(V$2, 2)), _xlfn.LOGNORM.INV(L5, 'CWP Prob & Severity Param'!$A$6, 'CWP Prob & Severity Param'!$B$6), "") ->  | W5: =IF($I5>=_xlfn.NUMBERVALUE(RIGHT(W$2, 2)), _xlfn.LOGNORM.INV(M5, 'CWP Prob & Severity Param'!$A$6, 'CWP Prob & Severity Param'!$B$6), "") ->  | X5: =IF($I5>=_xlfn.NUMBERVALUE(RIGHT(X$2, 2)), _xlfn.LOGNORM.INV(N5, 'CWP Prob & Severity Param'!$A$6, 'CWP Prob & Severity Param'!$B$6), "") ->  | Y5: =IF($I5>=_xlfn.NUMBERVALUE(RIGHT(Y$2, 2)), _xlfn.LOGNORM.INV(O5, 'CWP Prob & Severity Param'!$A$6, 'CWP Prob & Severity Param'!$B$6), "") ->  | Z5: =IF($I5>=_xlfn.NUMBERVALUE(RIGHT(Z$2, 2)), _xlfn.LOGNORM.INV(P5, 'CWP Prob & Severity Param'!$A$6, 'CWP Prob & Severity Param'!$B$6), "") ->  | AA5: =IF($I5>=_xlfn.NUMBERVALUE(RIGHT(AA$2, 2)), _xlfn.LOGNORM.INV(Q5, 'CWP Prob & Severity Param'!$A$6, 'CWP Prob & Severity Param'!$B$6), "") ->  | AB5: =IF($I5>=_xlfn.NUMBERVALUE(RIGHT(AB$2, 2)), _xlfn.LOGNORM.INV(R5, 'CWP Prob & Severity Param'!$A$6, 'CWP Prob & Severity Param'!$B$6), "") ->  | AC5: =IF($I5>=_xlfn.NUMBERVALUE(RIGHT(AC$2, 2)), _xlfn.LOGNORM.INV(S5, 'CWP Prob & Severity Param'!$A$6, 'CWP Prob & Severity Param'!$B$6), "") ->  | AD5: 0 | AE5: 0.9011789658 | AF5: 0.9949479087 | AG5: 0.9998263041 | AH5: 0.9999955054 | AI5: 0.9999999068 | AJ5: 0.9999999984 | AK5: 1 | AL5: 1 | AM5: 1 | AN5: 1
D6: 4 | E6: ='Freq Fit (Poisson)'!N6 -> 0.0535230801 | F6: 0.7080605228 | G6: =INDEX('Simulation (Poisson)'!$AD$2:$AN$2, MATCH(F6, 'Simulation (Poisson)'!$AD6:$AN6, 1)) -> 0 | H6: 0.1915007122 | I6: =_xlfn.BINOM.INV(G6,'CWP Prob & Severity Param'!$A$2,H6) -> 0 | J6: 0.1460703285 | K6: 0.06524445278 | L6: 0.1598975544 | M6: 0.4188321953 | N6: 0.7310117439 | O6: 0.295743991 | P6: 0.9634708465 | Q6: 0.1751565972 | R6: 0.9140782312 | S6: 0.496778346 | T6: =IF($I6>=_xlfn.NUMBERVALUE(RIGHT(T$2, 2)), _xlfn.LOGNORM.INV(J6, 'CWP Prob & Severity Param'!$A$6, 'CWP Prob & Severity Param'!$B$6), "") ->  | U6: =IF($I6>=_xlfn.NUMBERVALUE(RIGHT(U$2, 2)), _xlfn.LOGNORM.INV(K6, 'CWP Prob & Severity Param'!$A$6, 'CWP Prob & Severity Param'!$B$6), "") ->  | V6: =IF($I6>=_xlfn.NUMBERVALUE(RIGHT(V$2, 2)), _xlfn.LOGNORM.INV(L6, 'CWP Prob & Severity Param'!$A$6, 'CWP Prob & Severity Param'!$B$6), "") ->  | W6: =IF($I6>=_xlfn.NUMBERVALUE(RIGHT(W$2, 2)), _xlfn.LOGNORM.INV(M6, 'CWP Prob & Severity Param'!$A$6, 'CWP Prob & Severity Param'!$B$6), "") ->  | X6: =IF($I6>=_xlfn.NUMBERVALUE(RIGHT(X$2, 2)), _xlfn.LOGNORM.INV(N6, 'CWP Prob & Severity Param'!$A$6, 'CWP Prob & Severity Param'!$B$6), "") ->  | Y6: =IF($I6>=_xlfn.NUMBERVALUE(RIGHT(Y$2, 2)), _xlfn.LOGNORM.INV(O6, 'CWP Prob & Severity Param'!$A$6, 'CWP Prob & Severity Param'!$B$6), "") ->  | Z6: =IF($I6>=_xlfn.NUMBERVALUE(RIGHT(Z$2, 2)), _xlfn.LOGNORM.INV(P6, 'CWP Prob & Severity Param'!$A$6, 'CWP Prob & Severity Param'!$B$6), "") ->  | AA6: =IF($I6>=_xlfn.NUMBERVALUE(RIGHT(AA$2, 2)), _xlfn.LOGNORM.INV(Q6, 'CWP Prob & Severity Param'!$A$6, 'CWP Prob & Severity Param'!$B$6), "") ->  | AB6: =IF($I6>=_xlfn.NUMBERVALUE(RIGHT(AB$2, 2)), _xlfn.LOGNORM.INV(R6, 'CWP Prob & Severity Param'!$A$6, 'CWP Prob & Severity Param'!$B$6), "") ->  | AC6: =IF($I6>=_xlfn.NUMBERVALUE(RIGHT(AC$2, 2)), _xlfn.LOGNORM.INV(S6, 'CWP Prob & Severity Param'!$A$6, 'CWP Prob & Severity Param'!$B$6), "") ->  | AD6: 0 | AE6: 0.9478840635 | AF6: 0.9986177381 | AG6: 0.9999754494 | AH6: 0.9999996724 | AI6: 0.9999999965 | AJ6: 1 | AK6: 1 | AL6: 1 | AM6: 1 | AN6: 1
D7: 5 | E7: ='Freq Fit (Poisson)'!N7 -> 0.11407965 | F7: 0.6068203422 | G7: =INDEX('Simulation (Poisson)'!$AD$2:$AN$2, MATCH(F7, 'Simulation (Poisson)'!$AD7:$AN7, 1)) -> 0 | H7: 0.3026700991 | I7: =_xlfn.BINOM.INV(G7,'CWP Prob & Severity Param'!$A$2,H7) -> 0 | J7: 0.6290019842 | K7: 0.3487631702 | L7: 0.37988123 | M7: 0.6686650936 | N7: 0.001310099625 | O7: 0.3106277033 | P7: 0.4361430421 | Q7: 0.7508498794 | R7: 0.9496454237 | S7: 0.9999264549 | T7: =IF($I7>=_xlfn.NUMBERVALUE(RIGHT(T$2, 2)), _xlfn.LOGNORM.INV(J7, 'CWP Prob & Severity Param'!$A$6, 'CWP Prob & Severity Param'!$B$6), "") ->  | U7: =IF($I7>=_xlfn.NUMBERVALUE(RIGHT(U$2, 2)), _xlfn.LOGNORM.INV(K7, 'CWP Prob & Severity Param'!$A$6, 'CWP Prob & Severity Param'!$B$6), "") ->  | V7: =IF($I7>=_xlfn.NUMBERVALUE(RIGHT(V$2, 2)), _xlfn.LOGNORM.INV(L7, 'CWP Prob & Severity Param'!$A$6, 'CWP Prob & Severity Param'!$B$6), "") ->  | W7: =IF($I7>=_xlfn.NUMBERVALUE(RIGHT(W$2, 2)), _xlfn.LOGNORM.INV(M7, 'CWP Prob & Severity Param'!$A$6, 'CWP Prob & Severity Param'!$B$6), "") ->  | X7: =IF($I7>=_xlfn.NUMBERVALUE(RIGHT(X$2, 2)), _xlfn.LOGNORM.INV(N7, 'CWP Prob & Severity Param'!$A$6, 'CWP Prob & Severity Param'!$B$6), "") ->  | Y7: =IF($I7>=_xlfn.NUMBERVALUE(RIGHT(Y$2, 2)), _xlfn.LOGNORM.INV(O7, 'CWP Prob & Severity Param'!$A$6, 'CWP Prob & Severity Param'!$B$6), "") ->  | Z7: =IF($I7>=_xlfn.NUMBERVALUE(RIGHT(Z$2, 2)), _xlfn.LOGNORM.INV(P7, 'CWP Prob & Severity Param'!$A$6, 'CWP Prob & Severity Param'!$B$6), "") ->  | AA7: =IF($I7>=_xlfn.NUMBERVALUE(RIGHT(AA$2, 2)), _xlfn.LOGNORM.INV(Q7, 'CWP Prob & Severity Param'!$A$6, 'CWP Prob & Severity Param'!$B$6), "") ->  | AB7: =IF($I7>=_xlfn.NUMBERVALUE(RIGHT(AB$2, 2)), _xlfn.LOGNORM.INV(R7, 'CWP Prob & Severity Param'!$A$6, 'CWP Prob & Severity Param'!$B$6), "") ->  | AC7: =IF($I7>=_xlfn.NUMBERVALUE(RIGHT(AC$2, 2)), _xlfn.LOGNORM.INV(S7, 'CWP Prob & Severity Param'!$A$6, 'CWP Prob & Severity Param'!$B$6), "") ->  | AD7: 0 | AE7: 0.8921868903 | AF7: 0.9939672586 | AG7: 0.9997727929 | AH7: 0.9999935574 | AI7: 0.9999998536 | AJ7: 0.9999999972 | AK7: 1 | AL7: 1 | AM7: 1 | AN7: 1
D8: 6 | E8: ='Freq Fit (Poisson)'!N8 -> 0.2710014713 | F8: 0.05092632828 | G8: =INDEX('Simulation (Poisson)'!$AD$2:$AN$2, MATCH(F8, 'Simulation (Poisson)'!$AD8:$AN8, 1)) -> 0 | H8: 0.3925557608 | I8: =_xlfn.BINOM.INV(G8,'CWP Prob & Severity Param'!$A$2,H8) -> 0 | J8: 0.6198268435 | K8: 0.09344955947 | L8: 0.6274916282 | M8: 0.1944828894 | N8: 0.9884301855 | O8: 0.2183435685 | P8: 0.6629533606 | Q8: 0.9837899761 | R8: 0.6933892421 | S8: 0.4399812044 | T8: =IF($I8>=_xlfn.NUMBERVALUE(RIGHT(T$2, 2)), _xlfn.LOGNORM.INV(J8, 'CWP Prob & Severity Param'!$A$6, 'CWP Prob & Severity Param'!$B$6), "") ->  | U8: =IF($I8>=_xlfn.NUMBERVALUE(RIGHT(U$2, 2)), _xlfn.LOGNORM.INV(K8, 'CWP Prob & Severity Param'!$A$6, 'CWP Prob & Severity Param'!$B$6), "") ->  | V8: =IF($I8>=_xlfn.NUMBERVALUE(RIGHT(V$2, 2)), _xlfn.LOGNORM.INV(L8, 'CWP Prob & Severity Param'!$A$6, 'CWP Prob & Severity Param'!$B$6), "") ->  | W8: =IF($I8>=_xlfn.NUMBERVALUE(RIGHT(W$2, 2)), _xlfn.LOGNORM.INV(M8, 'CWP Prob & Severity Param'!$A$6, 'CWP Prob & Severity Param'!$B$6), "") ->  | X8: =IF($I8>=_xlfn.NUMBERVALUE(RIGHT(X$2, 2)), _xlfn.LOGNORM.INV(N8, 'CWP Prob & Severity Param'!$A$6, 'CWP Prob & Severity Param'!$B$6), "") ->  | Y8: =IF($I8>=_xlfn.NUMBERVALUE(RIGHT(Y$2, 2)), _xlfn.LOGNORM.INV(O8, 'CWP Prob & Severity Param'!$A$6, 'CWP Prob & Severity Param'!$B$6), "") ->  | Z8: =IF($I8>=_xlfn.NUMBERVALUE(RIGHT(Z$2, 2)), _xlfn.LOGNORM.INV(P8, 'CWP Prob & Severity Param'!$A$6, 'CWP Prob & Severity Param'!$B$6), "") ->  | AA8: =IF($I8>=_xlfn.NUMBERVALUE(RIGHT(AA$2, 2)), _xlfn.LOGNORM.INV(Q8, 'CWP Prob & Severity Param'!$A$6, 'CWP Prob & Severity Param'!$B$6), "") ->  | AB8: =IF($I8>=_xlfn.NUMBERVALUE(RIGHT(AB$2, 2)), _xlfn.LOGNORM.INV(R8, 'CWP Prob & Severity Param'!$A$6, 'CWP Prob & Severity Param'!$B$6), "") ->  | AC8: =IF($I8>=_xlfn.NUMBERVALUE(RIGHT(AC$2, 2)), _xlfn.LOGNORM.INV(S8, 'CWP Prob & Severity Param'!$A$6, 'CWP Prob & Severity Param'!$B$6), "") ->  | AD8: 0 | AE8: 0.7626153744 | AF8: 0.9692852629 | AG8: 0.9972891848 | AH8: 0.9998188861 | AI8: 0.9999902743 | AJ8: 0.9999995636 | AK8: 0.9999999832 | AL8: 0.9999999994 | AM8: 1 | AN8: 1
D9: 7 | E9: ='Freq Fit (Poisson)'!N9 -> 0.1111785176 | F9: 0.4585155292 | G9: =INDEX('Simulation (Poisson)'!$AD$2:$AN$2, MATCH(F9, 'Simulation (Poisson)'!$AD9:$AN9, 1)) -> 0 | H9: 0.5816016311 | I9: =_xlfn.BINOM.INV(G9,'CWP Prob & Severity Param'!$A$2,H9) -> 0 | J9: 0.872046679 | K9: 0.183469677 | L9: 0.2522939239 | M9: 0.2281758971 | N9: 0.6180216735 | O9: 0.2401568634 | P9: 0.7953256001 | Q9: 0.324603895 | R9: 0.0856427411 | S9: 0.9053850835 | T9: =IF($I9>=_xlfn.NUMBERVALUE(RIGHT(T$2, 2)), _xlfn.LOGNORM.INV(J9, 'CWP Prob & Severity Param'!$A$6, 'CWP Prob & Severity Param'!$B$6), "") ->  | U9: =IF($I9>=_xlfn.NUMBERVALUE(RIGHT(U$2, 2)), _xlfn.LOGNORM.INV(K9, 'CWP Prob & Severity Param'!$A$6, 'CWP Prob & Severity Param'!$B$6), "") ->  | V9: =IF($I9>=_xlfn.NUMBERVALUE(RIGHT(V$2, 2)), _xlfn.LOGNORM.INV(L9, 'CWP Prob & Severity Param'!$A$6, 'CWP Prob & Severity Param'!$B$6), "") ->  | W9: =IF($I9>=_xlfn.NUMBERVALUE(RIGHT(W$2, 2)), _xlfn.LOGNORM.INV(M9, 'CWP Prob & Severity Param'!$A$6, 'CWP Prob & Severity Param'!$B$6), "") ->  | X9: =IF($I9>=_xlfn.NUMBERVALUE(RIGHT(X$2, 2)), _xlfn.LOGNORM.INV(N9, 'CWP Prob & Severity Param'!$A$6, 'CWP Prob & Severity Param'!$B$6), "") ->  | Y9: =IF($I9>=_xlfn.NUMBERVALUE(RIGHT(Y$2, 2)), _xlfn.LOGNORM.INV(O9, 'CWP Prob & Severity Param'!$A$6, 'CWP Prob & Severity Param'!$B$6), "") ->  | Z9: =IF($I9>=_xlfn.NUMBERVALUE(RIGHT(Z$2, 2)), _xlfn.LOGNORM.INV(P9, 'CWP Prob & Severity Param'!$A$6, 'CWP Prob & Severity Param'!$B$6), "") ->  | AA9: =IF($I9>=_xlfn.NUMBERVALUE(RIGHT(AA$2, 2)), _xlfn.LOGNORM.INV(Q9, 'CWP Prob & Severity Param'!$A$6, 'CWP Prob & Severity Param'!$B$6), "") ->  | AB9: =IF($I9>=_xlfn.NUMBERVALUE(RIGHT(AB$2, 2)), _xlfn.LOGNORM.INV(R9, 'CWP Prob & Severity Param'!$A$6, 'CWP Prob & Severity Param'!$B$6), "") ->  | AC9: =IF($I9>=_xlfn.NUMBERVALUE(RIGHT(AC$2, 2)), _xlfn.LOGNORM.INV(S9, 'CWP Prob & Severity Param'!$A$6, 'CWP Prob & Severity Param'!$B$6), "") ->  | AD9: 0 | AE9: 0.8947790008 | AF9: 0.9942592038 | AG9: 0.9997892345 | AH9: 0.9999941747 | AI9: 0.999999871 | AJ9: 0.9999999976 | AK9: 1 | AL9: 1 | AM9: 1 | AN9: 1
D10: 8 | E10: ='Freq Fit (Poisson)'!N10 -> 0.2594434361 | F10: 0.7821577382 | G10: =INDEX('Simulation (Poisson)'!$AD$2:$AN$2, MATCH(F10, 'Simulation (Poisson)'!$AD10:$AN10, 1)) -> 1 | H10: 0.1446765373 | I10: =_xlfn.BINOM.INV(G10,'CWP Prob & Severity Param'!$A$2,H10) -> 1 | J10: 0.7742782967 | K10: 0.2156196698 | L10: 0.4162804335 | M10: 0.3503448819 | N10: 0.6269268574 | O10: 0.09075786114 | P10: 0.5722901729 | Q10: 0.4511236134 | R10: 0.01694925979 | S10: 0.6519362534 | T10: =IF($I10>=_xlfn.NUMBERVALUE(RIGHT(T$2, 2)), _xlfn.LOGNORM.INV(J10, 'CWP Prob & Severity Param'!$A$6, 'CWP Prob & Severity Param'!$B$6), "") -> 99311.99698 | U10: =IF($I10>=_xlfn.NUMBERVALUE(RIGHT(U$2, 2)), _xlfn.LOGNORM.INV(K10, 'CWP Prob & Severity Param'!$A$6, 'CWP Prob & Severity Param'!$B$6), "") ->  | V10: =IF($I10>=_xlfn.NUMBERVALUE(RIGHT(V$2, 2)), _xlfn.LOGNORM.INV(L10, 'CWP Prob & Severity Param'!$A$6, 'CWP Prob & Severity Param'!$B$6), "") ->  | W10: =IF($I10>=_xlfn.NUMBERVALUE(RIGHT(W$2, 2)), _xlfn.LOGNORM.INV(M10, 'CWP Prob & Severity Param'!$A$6, 'CWP Prob & Severity Param'!$B$6), "") ->  | X10: =IF($I10>=_xlfn.NUMBERVALUE(RIGHT(X$2, 2)), _xlfn.LOGNORM.INV(N10, 'CWP Prob & Severity Param'!$A$6, 'CWP Prob & Severity Param'!$B$6), "") ->  | Y10: =IF($I10>=_xlfn.NUMBERVALUE(RIGHT(Y$2, 2)), _xlfn.LOGNORM.INV(O10, 'CWP Prob & Severity Param'!$A$6, 'CWP Prob & Severity Param'!$B$6), "") ->  | Z10: =IF($I10>=_xlfn.NUMBERVALUE(RIGHT(Z$2, 2)), _xlfn.LOGNORM.INV(P10, 'CWP Prob & Severity Param'!$A$6, 'CWP Prob & Severity Param'!$B$6), "") ->  | AA10: =IF($I10>=_xlfn.NUMBERVALUE(RIGHT(AA$2, 2)), _xlfn.LOGNORM.INV(Q10, 'CWP Prob & Severity Param'!$A$6, 'CWP Prob & Severity Param'!$B$6), "") ->  | AB10: =IF($I10>=_xlfn.NUMBERVALUE(RIGHT(AB$2, 2)), _xlfn.LOGNORM.INV(R10, 'CWP Prob & Severity Param'!$A$6, 'CWP Prob & Severity Param'!$B$6), "") ->  | AC10: =IF($I10>=_xlfn.NUMBERVALUE(RIGHT(AC$2, 2)), _xlfn.LOGNORM.INV(S10, 'CWP Prob & Severity Param'!$A$6, 'CWP Prob & Severity Param'!$B$6), "") ->  | AD10: 0 | AE10: 0.7714808447 | AF10: 0.971636486 | AG10: 0.9976010196 | AH10: 0.9998464622 | AI10: 0.9999921036 | AJ10: 0.9999996607 | AK10: 0.9999999875 | AL10: 0.9999999996 | AM10: 1 | AN10: 1
D11: 9 | E11: ='Freq Fit (Poisson)'!N11 -> 0.186152355 | F11: 0.03516642386 | G11: =INDEX('Simulation (Poisson)'!$AD$2:$AN$2, MATCH(F11, 'Simulation (Poisson)'!$AD11:$AN11, 1)) -> 0 | H11: 0.4274656659 | I11: =_xlfn.BINOM.INV(G11,'CWP Prob & Severity Param'!$A$2,H11) -> 0 | J11: 0.9506112373 | K11: 0.9836475297 | L11: 0.3124614607 | M11: 0.3578526169 | N11: 0.7287161609 | O11: 0.6658826444 | P11: 0.7114268934 | Q11: 0.9185338548 | R11: 0.2471715037 | S11: 0.8501161242 | T11: =IF($I11>=_xlfn.NUMBERVALUE(RIGHT(T$2, 2)), _xlfn.LOGNORM.INV(J11, 'CWP Prob & Severity Param'!$A$6, 'CWP Prob & Severity Param'!$B$6), "") ->  | U11: =IF($I11>=_xlfn.NUMBERVALUE(RIGHT(U$2, 2)), _xlfn.LOGNORM.INV(K11, 'CWP Prob & Severity Param'!$A$6, 'CWP Prob & Severity Param'!$B$6), "") ->  | V11: =IF($I11>=_xlfn.NUMBERVALUE(RIGHT(V$2, 2)), _xlfn.LOGNORM.INV(L11, 'CWP Prob & Severity Param'!$A$6, 'CWP Prob & Severity Param'!$B$6), "") ->  | W11: =IF($I11>=_xlfn.NUMBERVALUE(RIGHT(W$2, 2)), _xlfn.LOGNORM.INV(M11, 'CWP Prob & Severity Param'!$A$6, 'CWP Prob & Severity Param'!$B$6), "") ->  | X11: =IF($I11>=_xlfn.NUMBERVALUE(RIGHT(X$2, 2)), _xlfn.LOGNORM.INV(N11, 'CWP Prob & Severity Param'!$A$6, 'CWP Prob & Severity Param'!$B$6), "") ->  | Y11: =IF($I11>=_xlfn.NUMBERVALUE(RIGHT(Y$2, 2)), _xlfn.LOGNORM.INV(O11, 'CWP Prob & Severity Param'!$A$6, 'CWP Prob & Severity Param'!$B$6), "") ->  | Z11: =IF($I11>=_xlfn.NUMBERVALUE(RIGHT(Z$2, 2)), _xlfn.LOGNORM.INV(P11, 'CWP Prob & Severity Param'!$A$6, 'CWP Prob & Severity Param'!$B$6), "") ->  | AA11: =IF($I11>=_xlfn.NUMBERVALUE(RIGHT(AA$2, 2)), _xlfn.LOGNORM.INV(Q11, 'CWP Prob & Severity Param'!$A$6, 'CWP Prob & Severity Param'!$B$6), "") ->  | AB11: =IF($I11>=_xlfn.NUMBERVALUE(RIGHT(AB$2, 2)), _xlfn.LOGNORM.INV(R11, 'CWP Prob & Severity Param'!$A$6, 'CWP Prob & Severity Param'!$B$6), "") ->  | AC11: =IF($I11>=_xlfn.NUMBERVALUE(RIGHT(AC$2, 2)), _xlfn.LOGNORM.INV(S11, 'CWP Prob & Severity Param'!$A$6, 'CWP Prob & Severity Param'!$B$6), "") ->  | AD11: 0 | AE11: 0.8301471083 | AF11: 0.9846809475 | AG11: 0.9990643665 | AH11: 0.999956869 | AI11: 0.9999984043 | AJ11: 0.9999999507 | AK11: 0.9999999987 | AL11: 1 | AM11: 1 | AN11: 1
D12: 10 | E12: ='Freq Fit (Poisson)'!N12 -> 0.04174115542 | F12: 0.7066887489 | G12: =INDEX('Simulation (Poisson)'!$AD$2:$AN$2, MATCH(F12, 'Simulation (Poisson)'!$AD12:$AN12, 1)) -> 0 | H12: 0.7154808754 | I12: =_xlfn.BINOM.INV(G12,'CWP Prob & Severity Param'!$A$2,H12) -> 0 | J12: 0.2408666175 | K12: 0.2811847766 | L12: 0.7541746572 | M12: 0.1882851935 | N12: 0.2974952241 | O12: 0.004760468694 | P12: 0.7513267219 | Q12: 0.7868990242 | R12: 0.00996514376 | S12: 0.3509518596 | T12: =IF($I12>=_xlfn.NUMBERVALUE(RIGHT(T$2, 2)), _xlfn.LOGNORM.INV(J12, 'CWP Prob & Severity Param'!$A$6, 'CWP Prob & Severity Param'!$B$6), "") ->  | U12: =IF($I12>=_xlfn.NUMBERVALUE(RIGHT(U$2, 2)), _xlfn.LOGNORM.INV(K12, 'CWP Prob & Severity Param'!$A$6, 'CWP Prob & Severity Param'!$B$6), "") ->  | V12: =IF($I12>=_xlfn.NUMBERVALUE(RIGHT(V$2, 2)), _xlfn.LOGNORM.INV(L12, 'CWP Prob & Severity Param'!$A$6, 'CWP Prob & Severity Param'!$B$6), "") ->  | W12: =IF($I12>=_xlfn.NUMBERVALUE(RIGHT(W$2, 2)), _xlfn.LOGNORM.INV(M12, 'CWP Prob & Severity Param'!$A$6, 'CWP Prob & Severity Param'!$B$6), "") ->  | X12: =IF($I12>=_xlfn.NUMBERVALUE(RIGHT(X$2, 2)), _xlfn.LOGNORM.INV(N12, 'CWP Prob & Severity Param'!$A$6, 'CWP Prob & Severity Param'!$B$6), "") ->  | Y12: =IF($I12>=_xlfn.NUMBERVALUE(RIGHT(Y$2, 2)), _xlfn.LOGNORM.INV(O12, 'CWP Prob & Severity Param'!$A$6, 'CWP Prob & Severity Param'!$B$6), "") ->  | Z12: =IF($I12>=_xlfn.NUMBERVALUE(RIGHT(Z$2, 2)), _xlfn.LOGNORM.INV(P12, 'CWP Prob & Severity Param'!$A$6, 'CWP Prob & Severity Param'!$B$6), "") ->  | AA12: =IF($I12>=_xlfn.NUMBERVALUE(RIGHT(AA$2, 2)), _xlfn.LOGNORM.INV(Q12, 'CWP Prob & Severity Param'!$A$6, 'CWP Prob & Severity Param'!$B$6), "") ->  | AB12: =IF($I12>=_xlfn.NUMBERVALUE(RIGHT(AB$2, 2)), _xlfn.LOGNORM.INV(R12, 'CWP Prob & Severity Param'!$A$6, 'CWP Prob & Severity Param'!$B$6), "") ->  | AC12: =IF($I12>=_xlfn.NUMBERVALUE(RIGHT(AC$2, 2)), _xlfn.LOGNORM.INV(S12, 'CWP Prob & Severity Param'!$A$6, 'CWP Prob & Severity Param'!$B$6), "") ->  | AD12: 0 | AE12: 0.9591180109 | AF12: 0.9991527049 | AG12: 0.9999882521 | AH12: 0.9999998777 | AI12: 0.999999999 | AJ12: 1 | AK12: 1 | AL12: 1 | AM12: 1 | AN12: 1
D13: 11 | E13: ='Freq Fit (Poisson)'!N13 -> 0.1329594459 | F13: 0.9699351361 | G13: =INDEX('Simulation (Poisson)'!$AD$2:$AN$2, MATCH(F13, 'Simulation (Poisson)'!$AD13:$AN13, 1)) -> 1 | H13: 0.08420022311 | I13: =_xlfn.BINOM.INV(G13,'CWP Prob & Severity Param'!$A$2,H13) -> 0 | J13: 0.6289440338 | K13: 0.6908969231 | L13: 0.459511765 | M13: 0.6885151209 | N13: 0.6938654065 | O13: 0.7879239696 | P13: 0.8575496182 | Q13: 0.1898504438 | R13: 0.9893330539 | S13: 0.3827969539 | T13: =IF($I13>=_xlfn.NUMBERVALUE(RIGHT(T$2, 2)), _xlfn.LOGNORM.INV(J13, 'CWP Prob & Severity Param'!$A$6, 'CWP Prob & Severity Param'!$B$6), "") ->  | U13: =IF($I13>=_xlfn.NUMBERVALUE(RIGHT(U$2, 2)), _xlfn.LOGNORM.INV(K13, 'CWP Prob & Severity Param'!$A$6, 'CWP Prob & Severity Param'!$B$6), "") ->  | V13: =IF($I13>=_xlfn.NUMBERVALUE(RIGHT(V$2, 2)), _xlfn.LOGNORM.INV(L13, 'CWP Prob & Severity Param'!$A$6, 'CWP Prob & Severity Param'!$B$6), "") ->  | W13: =IF($I13>=_xlfn.NUMBERVALUE(RIGHT(W$2, 2)), _xlfn.LOGNORM.INV(M13, 'CWP Prob & Severity Param'!$A$6, 'CWP Prob & Severity Param'!$B$6), "") ->  | X13: =IF($I13>=_xlfn.NUMBERVALUE(RIGHT(X$2, 2)), _xlfn.LOGNORM.INV(N13, 'CWP Prob & Severity Param'!$A$6, 'CWP Prob & Severity Param'!$B$6), "") ->  | Y13: =IF($I13>=_xlfn.NUMBERVALUE(RIGHT(Y$2, 2)), _xlfn.LOGNORM.INV(O13, 'CWP Prob & Severity Param'!$A$6, 'CWP Prob & Severity Param'!$B$6), "") ->  | Z13: =IF($I13>=_xlfn.NUMBERVALUE(RIGHT(Z$2, 2)), _xlfn.LOGNORM.INV(P13, 'CWP Prob & Severity Param'!$A$6, 'CWP Prob & Severity Param'!$B$6), "") ->  | AA13: =IF($I13>=_xlfn.NUMBERVALUE(RIGHT(AA$2, 2)), _xlfn.LOGNORM.INV(Q13, 'CWP Prob & Severity Param'!$A$6, 'CWP Prob & Severity Param'!$B$6), "") ->  | AB13: =IF($I13>=_xlfn.NUMBERVALUE(RIGHT(AB$2, 2)), _xlfn.LOGNORM.INV(R13, 'CWP Prob & Severity Param'!$A$6, 'CWP Prob & Severity Param'!$B$6), "") ->  | AC13: =IF($I13>=_xlfn.NUMBERVALUE(RIGHT(AC$2, 2)), _xlfn.LOGNORM.INV(S13, 'CWP Prob & Severity Param'!$A$6, 'CWP Prob & Severity Param'!$B$6), "") ->  | AD13: 0 | AE13: 0.8755005965 | AF13: 0.9919066707 | AG13: 0.9996453143 | AH13: 0.9999882895 | AI13: 0.99999969 | AJ13: 0.9999999932 | AK13: 0.9999999999 | AL13: 1 | AM13: 1 | AN13: 1
D14: 12 | E14: ='Freq Fit (Poisson)'!N14 -> 0.1260494094 | F14: 0.7484548533 | G14: =INDEX('Simulation (Poisson)'!$AD$2:$AN$2, MATCH(F14, 'Simulation (Poisson)'!$AD14:$AN14, 1)) -> 0 | H14: 0.8397066101 | I14: =_xlfn.BINOM.INV(G14,'CWP Prob & Severity Param'!$A$2,H14) -> 0 | J14: 0.2066384788 | K14: 0.5384197611 | L14: 0.8050465622 | M14: 0.7783095849 | N14: 0.1423574644 | O14: 0.6064062619 | P14: 0.9953155334 | Q14: 0.8925158071 | R14: 0.3437796579 | S14: 0.2659067088 | T14: =IF($I14>=_xlfn.NUMBERVALUE(RIGHT(T$2, 2)), _xlfn.LOGNORM.INV(J14, 'CWP Prob & Severity Param'!$A$6, 'CWP Prob & Severity Param'!$B$6), "") ->  | U14: =IF($I14>=_xlfn.NUMBERVALUE(RIGHT(U$2, 2)), _xlfn.LOGNORM.INV(K14, 'CWP Prob & Severity Param'!$A$6, 'CWP Prob & Severity Param'!$B$6), "") ->  | V14: =IF($I14>=_xlfn.NUMBERVALUE(RIGHT(V$2, 2)), _xlfn.LOGNORM.INV(L14, 'CWP Prob & Severity Param'!$A$6, 'CWP Prob & Severity Param'!$B$6), "") ->  | W14: =IF($I14>=_xlfn.NUMBERVALUE(RIGHT(W$2, 2)), _xlfn.LOGNORM.INV(M14, 'CWP Prob & Severity Param'!$A$6, 'CWP Prob & Severity Param'!$B$6), "") ->  | X14: =IF($I14>=_xlfn.NUMBERVALUE(RIGHT(X$2, 2)), _xlfn.LOGNORM.INV(N14, 'CWP Prob & Severity Param'!$A$6, 'CWP Prob & Severity Param'!$B$6), "") ->  | Y14: =IF($I14>=_xlfn.NUMBERVALUE(RIGHT(Y$2, 2)), _xlfn.LOGNORM.INV(O14, 'CWP Prob & Severity Param'!$A$6, 'CWP Prob & Severity Param'!$B$6), "") ->  | Z14: =IF($I14>=_xlfn.NUMBERVALUE(RIGHT(Z$2, 2)), _xlfn.LOGNORM.INV(P14, 'CWP Prob & Severity Param'!$A$6, 'CWP Prob & Severity Param'!$B$6), "") ->  | AA14: =IF($I14>=_xlfn.NUMBERVALUE(RIGHT(AA$2, 2)), _xlfn.LOGNORM.INV(Q14, 'CWP Prob & Severity Param'!$A$6, 'CWP Prob & Severity Param'!$B$6), "") ->  | AB14: =IF($I14>=_xlfn.NUMBERVALUE(RIGHT(AB$2, 2)), _xlfn.LOGNORM.INV(R14, 'CWP Prob & Severity Param'!$A$6, 'CWP Prob & Severity Param'!$B$6), "") ->  | AC14: =IF($I14>=_xlfn.NUMBERVALUE(RIGHT(AC$2, 2)), _xlfn.LOGNORM.INV(S14, 'CWP Prob & Severity Param'!$A$6, 'CWP Prob & Severity Param'!$B$6), "") ->  | AD14: 0 | AE14: 0.8815712878 | AF14: 0.992692828 | AG14: 0.9996962302 | AH14: 0.9999904885 | AI14: 0.9999997612 | AJ14: 0.999999995 | AK14: 0.9999999999 | AL14: 1 | AM14: 1 | AN14: 1
D15: 13 | E15: ='Freq Fit (Poisson)'!N15 -> 0.2132197432 | F15: 0.002980058149 | G15: =INDEX('Simulation (Poisson)'!$AD$2:$AN$2, MATCH(F15, 'Simulation (Poisson)'!$AD15:$AN15, 1)) -> 0 | H15: 0.1275282676 | I15: =_xlfn.BINOM.INV(G15,'CWP Prob & Severity Param'!$A$2,H15) -> 0 | J15: 0.8382589492 | K15: 0.9420477556 | L15: 0.1665215495 | M15: 0.6685815661 | N15: 0.7761697814 | O15: 0.8108081952 | P15: 0.2602921709 | Q15: 0.1754413786 | R15: 0.3764361192 | S15: 0.7541048401 | T15: =IF($I15>=_xlfn.NUMBERVALUE(RIGHT(T$2, 2)), _xlfn.LOGNORM.INV(J15, 'CWP Prob & Severity Param'!$A$6, 'CWP Prob & Severity Param'!$B$6), "") ->  | U15: =IF($I15>=_xlfn.NUMBERVALUE(RIGHT(U$2, 2)), _xlfn.LOGNORM.INV(K15, 'CWP Prob & Severity Param'!$A$6, 'CWP Prob & Severity Param'!$B$6), "") ->  | V15: =IF($I15>=_xlfn.NUMBERVALUE(RIGHT(V$2, 2)), _xlfn.LOGNORM.INV(L15, 'CWP Prob & Severity Param'!$A$6, 'CWP Prob & Severity Param'!$B$6), "") ->  | W15: =IF($I15>=_xlfn.NUMBERVALUE(RIGHT(W$2, 2)), _xlfn.LOGNORM.INV(M15, 'CWP Prob & Severity Param'!$A$6, 'CWP Prob & Severity Param'!$B$6), "") ->  | X15: =IF($I15>=_xlfn.NUMBERVALUE(RIGHT(X$2, 2)), _xlfn.LOGNORM.INV(N15, 'CWP Prob & Severity Param'!$A$6, 'CWP Prob & Severity Param'!$B$6), "") ->  | Y15: =IF($I15>=_xlfn.NUMBERVALUE(RIGHT(Y$2, 2)), _xlfn.LOGNORM.INV(O15, 'CWP Prob & Severity Param'!$A$6, 'CWP Prob & Severity Param'!$B$6), "") ->  | Z15: =IF($I15>=_xlfn.NUMBERVALUE(RIGHT(Z$2, 2)), _xlfn.LOGNORM.INV(P15, 'CWP Prob & Severity Param'!$A$6, 'CWP Prob & Severity Param'!$B$6), "") ->  | AA15: =IF($I15>=_xlfn.NUMBERVALUE(RIGHT(AA$2, 2)), _xlfn.LOGNORM.INV(Q15, 'CWP Prob & Severity Param'!$A$6, 'CWP Prob & Severity Param'!$B$6), "") ->  | AB15: =IF($I15>=_xlfn.NUMBERVALUE(RIGHT(AB$2, 2)), _xlfn.LOGNORM.INV(R15, 'CWP Prob & Severity Param'!$A$6, 'CWP Prob & Severity Param'!$B$6), "") ->  | AC15: =IF($I15>=_xlfn.NUMBERVALUE(RIGHT(AC$2, 2)), _xlfn.LOGNORM.INV(S15, 'CWP Prob & Severity Param'!$A$6, 'CWP Prob & Severity Param'!$B$6), "") ->  | AD15: 0 | AE15: 0.8079785699 | AF15: 0.9802555531 | AG15: 0.9986219802 | AH15: 0.9999273418 | AI15: 0.999996924 | AJ15: 0.9999998913 | AK15: 0.9999999967 | AL15: 0.9999999999 | AM15: 1 | AN15: 1
D16: 14 | E16: ='Freq Fit (Poisson)'!N16 -> 0.1713487084 | F16: 0.3862444531 | G16: =INDEX('Simulation (Poisson)'!$AD$2:$AN$2, MATCH(F16, 'Simulation (Poisson)'!$AD16:$AN16, 1)) -> 0 | H16: 0.6116587272 | I16: =_xlfn.BINOM.INV(G16,'CWP Prob & Severity Param'!$A$2,H16) -> 0 | J16: 0.6973573666 | K16: 0.344980198 | L16: 0.3469365193 | M16: 0.924722273 | N16: 0.1275929061 | O16: 0.07109828147 | P16: 0.06378064269 | Q16: 0.9996263003 | R16: 0.4924180266 | S16: 0.6926601927 | T16: =IF($I16>=_xlfn.NUMBERVALUE(RIGHT(T$2, 2)), _xlfn.LOGNORM.INV(J16, 'CWP Prob & Severity Param'!$A$6, 'CWP Prob & Severity Param'!$B$6), "") ->  | U16: =IF($I16>=_xlfn.NUMBERVALUE(RIGHT(U$2, 2)), _xlfn.LOGNORM.INV(K16, 'CWP Prob & Severity Param'!$A$6, 'CWP Prob & Severity Param'!$B$6), "") ->  | V16: =IF($I16>=_xlfn.NUMBERVALUE(RIGHT(V$2, 2)), _xlfn.LOGNORM.INV(L16, 'CWP Prob & Severity Param'!$A$6, 'CWP Prob & Severity Param'!$B$6), "") ->  | W16: =IF($I16>=_xlfn.NUMBERVALUE(RIGHT(W$2, 2)), _xlfn.LOGNORM.INV(M16, 'CWP Prob & Severity Param'!$A$6, 'CWP Prob & Severity Param'!$B$6), "") ->  | X16: =IF($I16>=_xlfn.NUMBERVALUE(RIGHT(X$2, 2)), _xlfn.LOGNORM.INV(N16, 'CWP Prob & Severity Param'!$A$6, 'CWP Prob & Severity Param'!$B$6), "") ->  | Y16: =IF($I16>=_xlfn.NUMBERVALUE(RIGHT(Y$2, 2)), _xlfn.LOGNORM.INV(O16, 'CWP Prob & Severity Param'!$A$6, 'CWP Prob & Severity Param'!$B$6), "") ->  | Z16: =IF($I16>=_xlfn.NUMBERVALUE(RIGHT(Z$2, 2)), _xlfn.LOGNORM.INV(P16, 'CWP Prob & Severity Param'!$A$6, 'CWP Prob & Severity Param'!$B$6), "") ->  | AA16: =IF($I16>=_xlfn.NUMBERVALUE(RIGHT(AA$2, 2)), _xlfn.LOGNORM.INV(Q16, 'CWP Prob & Severity Param'!$A$6, 'CWP Prob & Severity Param'!$B$6), "") ->  | AB16: =IF($I16>=_xlfn.NUMBERVALUE(RIGHT(AB$2, 2)), _xlfn.LOGNORM.INV(R16, 'CWP Prob & Severity Param'!$A$6, 'CWP Prob & Severity Param'!$B$6), "") ->  | AC16: =IF($I16>=_xlfn.NUMBERVALUE(RIGHT(AC$2, 2)), _xlfn.LOGNORM.INV(S16, 'CWP Prob & Severity Param'!$A$6, 'CWP Prob & Severity Param'!$B$6), "") ->  | AD16: 0 | AE16: 0.8425277258 | AF16: 0.9868937634 | AG16: 0.9992622304 | AH16: 0.9999686707 | AI16: 0.9999989326 | AJ16: 0.9999999696 | AK16: 0.9999999993 | AL16: 1 | AM16: 1 | AN16: 1
D17: 15 | E17: ='Freq Fit (Poisson)'!N17 -> 0.3421150411 | F17: 0.4354869584 | G17: =INDEX('Simulation (Poisson)'!$AD$2:$AN$2, MATCH(F17, 'Simulation (Poisson)'!$AD17:$AN17, 1)) -> 0 | H17: 0.1444088603 | I17: =_xlfn.BINOM.INV(G17,'CWP Prob & Severity Param'!$A$2,H17) -> 0 | J17: 0.9008865795 | K17: 0.8925386644 | L17: 0.1805253179 | M17: 0.5516447745 | N17: 0.07615143207 | O17: 0.6921245843 | P17: 0.2224961595 | Q17: 0.2927010364 | R17: 0.8923597248 | S17: 0.7169966035 | T17: =IF($I17>=_xlfn.NUMBERVALUE(RIGHT(T$2, 2)), _xlfn.LOGNORM.INV(J17, 'CWP Prob & Severity Param'!$A$6, 'CWP Prob & Severity Param'!$B$6), "") ->  | U17: =IF($I17>=_xlfn.NUMBERVALUE(RIGHT(U$2, 2)), _xlfn.LOGNORM.INV(K17, 'CWP Prob & Severity Param'!$A$6, 'CWP Prob & Severity Param'!$B$6), "") ->  | V17: =IF($I17>=_xlfn.NUMBERVALUE(RIGHT(V$2, 2)), _xlfn.LOGNORM.INV(L17, 'CWP Prob & Severity Param'!$A$6, 'CWP Prob & Severity Param'!$B$6), "") ->  | W17: =IF($I17>=_xlfn.NUMBERVALUE(RIGHT(W$2, 2)), _xlfn.LOGNORM.INV(M17, 'CWP Prob & Severity Param'!$A$6, 'CWP Prob & Severity Param'!$B$6), "") ->  | X17: =IF($I17>=_xlfn.NUMBERVALUE(RIGHT(X$2, 2)), _xlfn.LOGNORM.INV(N17, 'CWP Prob & Severity Param'!$A$6, 'CWP Prob & Severity Param'!$B$6), "") ->  | Y17: =IF($I17>=_xlfn.NUMBERVALUE(RIGHT(Y$2, 2)), _xlfn.LOGNORM.INV(O17, 'CWP Prob & Severity Param'!$A$6, 'CWP Prob & Severity Param'!$B$6), "") ->  | Z17: =IF($I17>=_xlfn.NUMBERVALUE(RIGHT(Z$2, 2)), _xlfn.LOGNORM.INV(P17, 'CWP Prob & Severity Param'!$A$6, 'CWP Prob & Severity Param'!$B$6), "") ->  | AA17: =IF($I17>=_xlfn.NUMBERVALUE(RIGHT(AA$2, 2)), _xlfn.LOGNORM.INV(Q17, 'CWP Prob & Severity Param'!$A$6, 'CWP Prob & Severity Param'!$B$6), "") ->  | AB17: =IF($I17>=_xlfn.NUMBERVALUE(RIGHT(AB$2, 2)), _xlfn.LOGNORM.INV(R17, 'CWP Prob & Severity Param'!$A$6, 'CWP Prob & Severity Param'!$B$6), "") ->  | AC17: =IF($I17>=_xlfn.NUMBERVALUE(RIGHT(AC$2, 2)), _xlfn.LOGNORM.INV(S17, 'CWP Prob & Severity Param'!$A$6, 'CWP Prob & Severity Param'!$B$6), "") ->  | AD17: 0 | AE17: 0.7102664902 | AF17: 0.9532593396 | AG17: 0.994825094 | AH17: 0.9995651839 | AI17: 0.9999705979 | AJ17: 0.9999983376 | AK17: 0.9999999193 | AL17: 0.9999999966 | AM17: 0.9999999999 | AN17: 1
D18: 16 | E18: ='Freq Fit (Poisson)'!N18 -> 0.04190077688 | F18: 0.3451153095 | G18: =INDEX('Simulation (Poisson)'!$AD$2:$AN$2, MATCH(F18, 'Simulation (Poisson)'!$AD18:$AN18, 1)) -> 0 | H18: 0.8778577758 | I18: =_xlfn.BINOM.INV(G18,'CWP Prob & Severity Param'!$A$2,H18) -> 0 | J18: 0.5995420118 | K18: 0.9912788059 | L18: 0.06169130625 | M18: 0.4313289376 | N18: 0.01320333455 | O18: 0.6865666561 | P18: 0.2223371278 | Q18: 0.4502348992 | R18: 0.09642121417 | S18: 0.77728959 | T18: =IF($I18>=_xlfn.NUMBERVALUE(RIGHT(T$2, 2)), _xlfn.LOGNORM.INV(J18, 'CWP Prob & Severity Param'!$A$6, 'CWP Prob & Severity Param'!$B$6), "") ->  | U18: =IF($I18>=_xlfn.NUMBERVALUE(RIGHT(U$2, 2)), _xlfn.LOGNORM.INV(K18, 'CWP Prob & Severity Param'!$A$6, 'CWP Prob & Severity Param'!$B$6), "") ->  | V18: =IF($I18>=_xlfn.NUMBERVALUE(RIGHT(V$2, 2)), _xlfn.LOGNORM.INV(L18, 'CWP Prob & Severity Param'!$A$6, 'CWP Prob & Severity Param'!$B$6), "") ->  | W18: =IF($I18>=_xlfn.NUMBERVALUE(RIGHT(W$2, 2)), _xlfn.LOGNORM.INV(M18, 'CWP Prob & Severity Param'!$A$6, 'CWP Prob & Severity Param'!$B$6), "") ->  | X18: =IF($I18>=_xlfn.NUMBERVALUE(RIGHT(X$2, 2)), _xlfn.LOGNORM.INV(N18, 'CWP Prob & Severity Param'!$A$6, 'CWP Prob & Severity Param'!$B$6), "") ->  | Y18: =IF($I18>=_xlfn.NUMBERVALUE(RIGHT(Y$2, 2)), _xlfn.LOGNORM.INV(O18, 'CWP Prob & Severity Param'!$A$6, 'CWP Prob & Severity Param'!$B$6), "") ->  | Z18: =IF($I18>=_xlfn.NUMBERVALUE(RIGHT(Z$2, 2)), _xlfn.LOGNORM.INV(P18, 'CWP Prob & Severity Param'!$A$6, 'CWP Prob & Severity Param'!$B$6), "") ->  | AA18: =IF($I18>=_xlfn.NUMBERVALUE(RIGHT(AA$2, 2)), _xlfn.LOGNORM.INV(Q18, 'CWP Prob & Severity Param'!$A$6, 'CWP Prob & Severity Param'!$B$6), "") ->  | AB18: =IF($I18>=_xlfn.NUMBERVALUE(RIGHT(AB$2, 2)), _xlfn.LOGNORM.INV(R18, 'CWP Prob & Severity Param'!$A$6, 'CWP Prob & Severity Param'!$B$6), "") ->  | AC18: =IF($I18>=_xlfn.NUMBERVALUE(RIGHT(AC$2, 2)), _xlfn.LOGNORM.INV(S18, 'CWP Prob & Severity Param'!$A$6, 'CWP Prob & Severity Param'!$B$6), "") ->  | AD18: 0 | AE18: 0.9589649273 | AF18: 0.9991463028 | AG18: 0.9999881182 | AH18: 0.9999998758 | AI18: 0.999999999 | AJ18: 1 | AK18: 1 | AL18: 1 | AM18: 1 | AN18: 1
D19: 17 | E19: ='Freq Fit (Poisson)'!N19 -> 0.03344132055 | F19: 0.09412513674 | G19: =INDEX('Simulation (Poisson)'!$AD$2:$AN$2, MATCH(F19, 'Simulation (Poisson)'!$AD19:$AN19, 1)) -> 0 | H19: 0.1640471356 | I19: =_xlfn.BINOM.INV(G19,'CWP Prob & Severity Param'!$A$2,H19) -> 0 | J19: 0.6093065232 | K19: 0.3348168192 | L19: 0.8867215353 | M19: 0.1682014263 | N19: 0.9190238186 | O19: 0.2461233036 | P19: 0.0002871124174 | Q19: 0.4373508134 | R19: 0.7220968359 | S19: 0.4697523659 | T19: =IF($I19>=_xlfn.NUMBERVALUE(RIGHT(T$2, 2)), _xlfn.LOGNORM.INV(J19, 'CWP Prob & Severity Param'!$A$6, 'CWP Prob & Severity Param'!$B$6), "") ->  | U19: =IF($I19>=_xlfn.NUMBERVALUE(RIGHT(U$2, 2)), _xlfn.LOGNORM.INV(K19, 'CWP Prob & Severity Param'!$A$6, 'CWP Prob & Severity Param'!$B$6), "") ->  | V19: =IF($I19>=_xlfn.NUMBERVALUE(RIGHT(V$2, 2)), _xlfn.LOGNORM.INV(L19, 'CWP Prob & Severity Param'!$A$6, 'CWP Prob & Severity Param'!$B$6), "") ->  | W19: =IF($I19>=_xlfn.NUMBERVALUE(RIGHT(W$2, 2)), _xlfn.LOGNORM.INV(M19, 'CWP Prob & Severity Param'!$A$6, 'CWP Prob & Severity Param'!$B$6), "") ->  | X19: =IF($I19>=_xlfn.NUMBERVALUE(RIGHT(X$2, 2)), _xlfn.LOGNORM.INV(N19, 'CWP Prob & Severity Param'!$A$6, 'CWP Prob & Severity Param'!$B$6), "") ->  | Y19: =IF($I19>=_xlfn.NUMBERVALUE(RIGHT(Y$2, 2)), _xlfn.LOGNORM.INV(O19, 'CWP Prob & Severity Param'!$A$6, 'CWP Prob & Severity Param'!$B$6), "") ->  | Z19: =IF($I19>=_xlfn.NUMBERVALUE(RIGHT(Z$2, 2)), _xlfn.LOGNORM.INV(P19, 'CWP Prob & Severity Param'!$A$6, 'CWP Prob & Severity Param'!$B$6), "") ->  | AA19: =IF($I19>=_xlfn.NUMBERVALUE(RIGHT(AA$2, 2)), _xlfn.LOGNORM.INV(Q19, 'CWP Prob & Severity Param'!$A$6, 'CWP Prob & Severity Param'!$B$6), "") ->  | AB19: =IF($I19>=_xlfn.NUMBERVALUE(RIGHT(AB$2, 2)), _xlfn.LOGNORM.INV(R19, 'CWP Prob & Severity Param'!$A$6, 'CWP Prob & Severity Param'!$B$6), "") ->  | AC19: =IF($I19>=_xlfn.NUMBERVALUE(RIGHT(AC$2, 2)), _xlfn.LOGNORM.INV(S19, 'CWP Prob & Severity Param'!$A$6, 'CWP Prob & Severity Param'!$B$6), "") ->  | AD19: 0 | AE19: 0.9671116591 | AF19: 0.9994531501 | AG19: 0.9999939212 | AH19: 0.9999999493 | AI19: 0.9999999997 | AJ19: 1 | AK19: 1 | AL19: 1 | AM19: 1 | AN19: 1
D20: 18 | E20: ='Freq Fit (Poisson)'!N20 -> 0.5153405907 | F20: 0.8317158168 | G20: =INDEX('Simulation (Poisson)'!$AD$2:$AN$2, MATCH(F20, 'Simulation (Poisson)'!$AD20:$AN20, 1)) -> 1 | H20: 0.3710386132 | I20: =_xlfn.BINOM.INV(G20,'CWP Prob & Severity Param'!$A$2,H20) -> 1 | J20: 0.8586329557 | K20: 0.3459367666 | L20: 0.3910988391 | M20: 0.1365388303 | N20: 0.661761971 | O20: 0.4231894009 | P20: 0.06360599679 | Q20: 0.4117930899 | R20: 0.9043632657 | S20: 0.3584124371 | T20: =IF($I20>=_xlfn.NUMBERVALUE(RIGHT(T$2, 2)), _xlfn.LOGNORM.INV(J20, 'CWP Prob & Severity Param'!$A$6, 'CWP Prob & Severity Param'!$B$6), "") -> 188790.908 | U20: =IF($I20>=_xlfn.NUMBERVALUE(RIGHT(U$2, 2)), _xlfn.LOGNORM.INV(K20, 'CWP Prob & Severity Param'!$A$6, 'CWP Prob & Severity Param'!$B$6), "") ->  | V20: =IF($I20>=_xlfn.NUMBERVALUE(RIGHT(V$2, 2)), _xlfn.LOGNORM.INV(L20, 'CWP Prob & Severity Param'!$A$6, 'CWP Prob & Severity Param'!$B$6), "") ->  | W20: =IF($I20>=_xlfn.NUMBERVALUE(RIGHT(W$2, 2)), _xlfn.LOGNORM.INV(M20, 'CWP Prob & Severity Param'!$A$6, 'CWP Prob & Severity Param'!$B$6), "") ->  | X20: =IF($I20>=_xlfn.NUMBERVALUE(RIGHT(X$2, 2)), _xlfn.LOGNORM.INV(N20, 'CWP Prob & Severity Param'!$A$6, 'CWP Prob & Severity Param'!$B$6), "") ->  | Y20: =IF($I20>=_xlfn.NUMBERVALUE(RIGHT(Y$2, 2)), _xlfn.LOGNORM.INV(O20, 'CWP Prob & Severity Param'!$A$6, 'CWP Prob & Severity Param'!$B$6), "") ->  | Z20: =IF($I20>=_xlfn.NUMBERVALUE(RIGHT(Z$2, 2)), _xlfn.LOGNORM.INV(P20, 'CWP Prob & Severity Param'!$A$6, 'CWP Prob & Severity Param'!$B$6), "") ->  | AA20: =IF($I20>=_xlfn.NUMBERVALUE(RIGHT(AA$2, 2)), _xlfn.LOGNORM.INV(Q20, 'CWP Prob & Severity Param'!$A$6, 'CWP Prob & Severity Param'!$B$6), "") ->  | AB20: =IF($I20>=_xlfn.NUMBERVALUE(RIGHT(AB$2, 2)), _xlfn.LOGNORM.INV(R20, 'CWP Prob & Severity Param'!$A$6, 'CWP Prob & Severity Param'!$B$6), "") ->  | AC20: =IF($I20>=_xlfn.NUMBERVALUE(RIGHT(AC$2, 2)), _xlfn.LOGNORM.INV(S20, 'CWP Prob & Severity Param'!$A$6, 'CWP Prob & Severity Param'!$B$6), "") ->  | AD20: 0 | AE20: 0.5972971261 | AF20: 0.9051085799 | AG20: 0.9844224481 | AH20: 0.998047 | AI20: 0.9998023212 | AJ20: 0.9999832388 | AK20: 0.9999987779 | AL20: 0.9999999219 | AM20: 0.9999999956 | AN20: 0.9999999998
D21: 19 | E21: ='Freq Fit (Poisson)'!N21 -> 0.1231770002 | F21: 0.8731375298 | G21: =INDEX('Simulation (Poisson)'!$AD$2:$AN$2, MATCH(F21, 'Simulation (Poisson)'!$AD21:$AN21, 1)) -> 0 | H21: 0.3698273017 | I21: =_xlfn.BINOM.INV(G21,'CWP Prob & Severity Param'!$A$2,H21) -> 0 | J21: 0.3061566342 | K21: 0.2973188448 | L21: 0.2581392159 | M21: 0.5638167296 | N21: 0.9183915051 | O21: 0.8493925793 | P21: 0.1386364777 | Q21: 0.2075000481 | R21: 0.2331679245 | S21: 0.8372714268 | T21: =IF($I21>=_xlfn.NUMBERVALUE(RIGHT(T$2, 2)), _xlfn.LOGNORM.INV(J21, 'CWP Prob & Severity Param'!$A$6, 'CWP Prob & Severity Param'!$B$6), "") ->  | U21: =IF($I21>=_xlfn.NUMBERVALUE(RIGHT(U$2, 2)), _xlfn.LOGNORM.INV(K21, 'CWP Prob & Severity Param'!$A$6, 'CWP Prob & Severity Param'!$B$6), "") ->  | V21: =IF($I21>=_xlfn.NUMBERVALUE(RIGHT(V$2, 2)), _xlfn.LOGNORM.INV(L21, 'CWP Prob & Severity Param'!$A$6, 'CWP Prob & Severity Param'!$B$6), "") ->  | W21: =IF($I21>=_xlfn.NUMBERVALUE(RIGHT(W$2, 2)), _xlfn.LOGNORM.INV(M21, 'CWP Prob & Severity Param'!$A$6, 'CWP Prob & Severity Param'!$B$6), "") ->  | X21: =IF($I21>=_xlfn.NUMBERVALUE(RIGHT(X$2, 2)), _xlfn.LOGNORM.INV(N21, 'CWP Prob & Severity Param'!$A$6, 'CWP Prob & Severity Param'!$B$6), "") ->  | Y21: =IF($I21>=_xlfn.NUMBERVALUE(RIGHT(Y$2, 2)), _xlfn.LOGNORM.INV(O21, 'CWP Prob & Severity Param'!$A$6, 'CWP Prob & Severity Param'!$B$6), "") ->  | Z21: =IF($I21>=_xlfn.NUMBERVALUE(RIGHT(Z$2, 2)), _xlfn.LOGNORM.INV(P21, 'CWP Prob & Severity Param'!$A$6, 'CWP Prob & Severity Param'!$B$6), "") ->  | AA21: =IF($I21>=_xlfn.NUMBERVALUE(RIGHT(AA$2, 2)), _xlfn.LOGNORM.INV(Q21, 'CWP Prob & Severity Param'!$A$6, 'CWP Prob & Severity Param'!$B$6), "") ->  | AB21: =IF($I21>=_xlfn.NUMBERVALUE(RIGHT(AB$2, 2)), _xlfn.LOGNORM.INV(R21, 'CWP Prob & Severity Param'!$A$6, 'CWP Prob & Severity Param'!$B$6), "") ->  | AC21: =IF($I21>=_xlfn.NUMBERVALUE(RIGHT(AC$2, 2)), _xlfn.LOGNORM.INV(S21, 'CWP Prob & Severity Param'!$A$6, 'CWP Prob & Severity Param'!$B$6), "") ->  | AD21: 0 | AE21: 0.8841071616 | AF21: 0.9930088296 | AG21: 0.99971592 | AH21: 0.9999913064 | AI21: 0.9999997867 | AJ21: 0.9999999956 | AK21: 0.9999999999 | AL21: 1 | AM21: 1 | AN21: 1
D22: 20 | E22: ='Freq Fit (Poisson)'!N22 -> 0.08108192381 | F22: 0.5986770559 | G22: =INDEX('Simulation (Poisson)'!$AD$2:$AN$2, MATCH(F22, 'Simulation (Poisson)'!$AD22:$AN22, 1)) -> 0 | H22: 0.926584248 | I22: =_xlfn.BINOM.INV(G22,'CWP Prob & Severity Param'!$A$2,H22) -> 0 | J22: 0.9572742439 | K22: 0.7881156653 | L22: 0.9126868769 | M22: 0.3148914852 | N22: 0.7068630431 | O22: 0.09274779904 | P22: 0.4010506318 | Q22: 0.3737312435 | R22: 0.6247202153 | S22: 0.7769099897 | T22: =IF($I22>=_xlfn.NUMBERVALUE(RIGHT(T$2, 2)), _xlfn.LOGNORM.INV(J22, 'CWP Prob & Severity Param'!$A$6, 'CWP Prob & Severity Param'!$B$6), "") ->  | U22: =IF($I22>=_xlfn.NUMBERVALUE(RIGHT(U$2, 2)), _xlfn.LOGNORM.INV(K22, 'CWP Prob & Severity Param'!$A$6, 'CWP Prob & Severity Param'!$B$6), "") ->  | V22: =IF($I22>=_xlfn.NUMBERVALUE(RIGHT(V$2, 2)), _xlfn.LOGNORM.INV(L22, 'CWP Prob & Severity Param'!$A$6, 'CWP Prob & Severity Param'!$B$6), "") ->  | W22: =IF($I22>=_xlfn.NUMBERVALUE(RIGHT(W$2, 2)), _xlfn.LOGNORM.INV(M22, 'CWP Prob & Severity Param'!$A$6, 'CWP Prob & Severity Param'!$B$6), "") ->  | X22: =IF($I22>=_xlfn.NUMBERVALUE(RIGHT(X$2, 2)), _xlfn.LOGNORM.INV(N22, 'CWP Prob & Severity Param'!$A$6, 'CWP Prob & Severity Param'!$B$6), "") ->  | Y22: =IF($I22>=_xlfn.NUMBERVALUE(RIGHT(Y$2, 2)), _xlfn.LOGNORM.INV(O22, 'CWP Prob & Severity Param'!$A$6, 'CWP Prob & Severity Param'!$B$6), "") ->  | Z22: =IF($I22>=_xlfn.NUMBERVALUE(RIGHT(Z$2, 2)), _xlfn.LOGNORM.INV(P22, 'CWP Prob & Severity Param'!$A$6, 'CWP Prob & Severity Param'!$B$6), "") ->  | AA22: =IF($I22>=_xlfn.NUMBERVALUE(RIGHT(AA$2, 2)), _xlfn.LOGNORM.INV(Q22, 'CWP Prob & Severity Param'!$A$6, 'CWP Prob & Severity Param'!$B$6), "") ->  | AB22: =IF($I22>=_xlfn.NUMBERVALUE(RIGHT(AB$2, 2)), _xlfn.LOGNORM.INV(R22, 'CWP Prob & Severity Param'!$A$6, 'CWP Prob & Severity Param'!$B$6), "") ->  | AC22: =IF($I22>=_xlfn.NUMBERVALUE(RIGHT(AC$2, 2)), _xlfn.LOGNORM.INV(S22, 'CWP Prob & Severity Param'!$A$6, 'CWP Prob & Severity Param'!$B$6), "") ->  | AD22: 0 | AE22: 0.9221181449 | AF22: 0.9968852581 | AG22: 0.9999163888 | AH22: 0.9999983121 | AI22: 0.9999999727 | AJ22: 0.9999999996 | AK22: 1 | AL22: 1 | AM22: 1 | AN22: 1
D23: 21 | E23: ='Freq Fit (Poisson)'!N23 -> 0.1743003037 | F23: 0.7036748614 | G23: =INDEX('Simulation (Poisson)'!$AD$2:$AN$2, MATCH(F23, 'Simulation (Poisson)'!$AD23:$AN23, 1)) -> 0 | H23: 0.1923355288 | I23: =_xlfn.BINOM.INV(G23,'CWP Prob & Severity Param'!$A$2,H23) -> 0 | J23: 0.5715274768 | K23: 0.3414721578 | L23: 0.4237542359 | M23: 0.01069072561 | N23: 0.09760357854 | O23: 0.2485009877 | P23: 0.3244948663 | Q23: 0.8419305786 | R23: 0.03583725084 | S23: 0.6763938105 | T23: =IF($I23>=_xlfn.NUMBERVALUE(RIGHT(T$2, 2)), _xlfn.LOGNORM.INV(J23, 'CWP Prob & Severity Param'!$A$6, 'CWP Prob & Severity Param'!$B$6), "") ->  | U23: =IF($I23>=_xlfn.NUMBERVALUE(RIGHT(U$2, 2)), _xlfn.LOGNORM.INV(K23, 'CWP Prob & Severity Param'!$A$6, 'CWP Prob & Severity Param'!$B$6), "") ->  | V23: =IF($I23>=_xlfn.NUMBERVALUE(RIGHT(V$2, 2)), _xlfn.LOGNORM.INV(L23, 'CWP Prob & Severity Param'!$A$6, 'CWP Prob & Severity Param'!$B$6), "") ->  | W23: =IF($I23>=_xlfn.NUMBERVALUE(RIGHT(W$2, 2)), _xlfn.LOGNORM.INV(M23, 'CWP Prob & Severity Param'!$A$6, 'CWP Prob & Severity Param'!$B$6), "") ->  | X23: =IF($I23>=_xlfn.NUMBERVALUE(RIGHT(X$2, 2)), _xlfn.LOGNORM.INV(N23, 'CWP Prob & Severity Param'!$A$6, 'CWP Prob & Severity Param'!$B$6), "") ->  | Y23: =IF($I23>=_xlfn.NUMBERVALUE(RIGHT(Y$2, 2)), _xlfn.LOGNORM.INV(O23, 'CWP Prob & Severity Param'!$A$6, 'CWP Prob & Severity Param'!$B$6), "") ->  | Z23: =IF($I23>=_xlfn.NUMBERVALUE(RIGHT(Z$2, 2)), _xlfn.LOGNORM.INV(P23, 'CWP Prob & Severity Param'!$A$6, 'CWP Prob & Severity Param'!$B$6), "") ->  | AA23: =IF($I23>=_xlfn.NUMBERVALUE(RIGHT(AA$2, 2)), _xlfn.LOGNORM.INV(Q23, 'CWP Prob & Severity Param'!$A$6, 'CWP Prob & Severity Param'!$B$6), "") ->  | AB23: =IF($I23>=_xlfn.NUMBERVALUE(RIGHT(AB$2, 2)), _xlfn.LOGNORM.INV(R23, 'CWP Prob & Severity Param'!$A$6, 'CWP Prob & Severity Param'!$B$6), "") ->  | AC23: =IF($I23>=_xlfn.NUMBERVALUE(RIGHT(AC$2, 2)), _xlfn.LOGNORM.INV(S23, 'CWP Prob & Severity Param'!$A$6, 'CWP Prob & Severity Param'!$B$6), "") ->  | AD23: 0 | AE23: 0.8400445913 | AF23: 0.9864646187 | AG23: 0.9992251463 | AH23: 0.9999665342 | AI23: 0.9999988403 | AJ23: 0.9999999665 | AK23: 0.9999999992 | AL23: 1 | AM23: 1 | AN23: 1
D24: 22 | E24: ='Freq Fit (Poisson)'!N24 -> 0.04713258733 | F24: 0.8805846615 | G24: =INDEX('Simulation (Poisson)'!$AD$2:$AN$2, MATCH(F24, 'Simulation (Poisson)'!$AD24:$AN24, 1)) -> 0 | H24: 0.7539153049 | I24: =_xlfn.BINOM.INV(G24,'CWP Prob & Severity Param'!$A$2,H24) -> 0 | J24: 0.02702018546 | K24: 0.2598821234 | L24: 0.2221825283 | M24: 0.141428315 | N24: 0.82104025 | O24: 0.6302651426 | P24: 0.3131985324 | Q24: 0.2361316295 | R24: 0.2085371367 | S24: 0.7783307125 | T24: =IF($I24>=_xlfn.NUMBERVALUE(RIGHT(T$2, 2)), _xlfn.LOGNORM.INV(J24, 'CWP Prob & Severity Param'!$A$6, 'CWP Prob & Severity Param'!$B$6), "") ->  | U24: =IF($I24>=_xlfn.NUMBERVALUE(RIGHT(U$2, 2)), _xlfn.LOGNORM.INV(K24, 'CWP Prob & Severity Param'!$A$6, 'CWP Prob & Severity Param'!$B$6), "") ->  | V24: =IF($I24>=_xlfn.NUMBERVALUE(RIGHT(V$2, 2)), _xlfn.LOGNORM.INV(L24, 'CWP Prob & Severity Param'!$A$6, 'CWP Prob & Severity Param'!$B$6), "") ->  | W24: =IF($I24>=_xlfn.NUMBERVALUE(RIGHT(W$2, 2)), _xlfn.LOGNORM.INV(M24, 'CWP Prob & Severity Param'!$A$6, 'CWP Prob & Severity Param'!$B$6), "") ->  | X24: =IF($I24>=_xlfn.NUMBERVALUE(RIGHT(X$2, 2)), _xlfn.LOGNORM.INV(N24, 'CWP Prob & Severity Param'!$A$6, 'CWP Prob & Severity Param'!$B$6), "") ->  | Y24: =IF($I24>=_xlfn.NUMBERVALUE(RIGHT(Y$2, 2)), _xlfn.LOGNORM.INV(O24, 'CWP Prob & Severity Param'!$A$6, 'CWP Prob & Severity Param'!$B$6), "") ->  | Z24: =IF($I24>=_xlfn.NUMBERVALUE(RIGHT(Z$2, 2)), _xlfn.LOGNORM.INV(P24, 'CWP Prob & Severity Param'!$A$6, 'CWP Prob & Severity Param'!$B$6), "") ->  | AA24: =IF($I24>=_xlfn.NUMBERVALUE(RIGHT(AA$2, 2)), _xlfn.LOGNORM.INV(Q24, 'CWP Prob & Severity Param'!$A$6, 'CWP Prob & Severity Param'!$B$6), "") ->  | AB24: =IF($I24>=_xlfn.NUMBERVALUE(RIGHT(AB$2, 2)), _xlfn.LOGNORM.INV(R24, 'CWP Prob & Severity Param'!$A$6, 'CWP Prob & Severity Param'!$B$6), "") ->  | AC24: =IF($I24>=_xlfn.NUMBERVALUE(RIGHT(AC$2, 2)), _xlfn.LOGNORM.INV(S24, 'CWP Prob & Severity Param'!$A$6, 'CWP Prob & Severity Param'!$B$6), "") ->  | AD24: 0 | AE24: 0.9539609061 | AF24: 0.9989235518 | AG24: 0.9999831547 | AH24: 0.999999802 | AI24: 0.9999999981 | AJ24: 1 | AK24: 1 | AL24: 1 | AM24: 1 | AN24: 1
D25: 23 | E25: ='Freq Fit (Poisson)'!N25 -> 0.09318808025 | F25: 0.1991256744 | G25: =INDEX('Simulation (Poisson)'!$AD$2:$AN$2, MATCH(F25, 'Simulation (Poisson)'!$AD25:$AN25, 1)) -> 0 | H25: 0.8029115862 | I25: =_xlfn.BINOM.INV(G25,'CWP Prob & Severity Param'!$A$2,H25) -> 0 | J25: 0.4744758016 | K25: 0.1918585846 | L25: 0.1795705762 | M25: 0.2907483345 | N25: 0.1171677889 | O25: 0.2192759293 | P25: 0.1291051907 | Q25: 0.462357005 | R25: 0.6553822045 | S25: 0.7410520169 | T25: =IF($I25>=_xlfn.NUMBERVALUE(RIGHT(T$2, 2)), _xlfn.LOGNORM.INV(J25, 'CWP Prob & Severity Param'!$A$6, 'CWP Prob & Severity Param'!$B$6), "") ->  | U25: =IF($I25>=_xlfn.NUMBERVALUE(RIGHT(U$2, 2)), _xlfn.LOGNORM.INV(K25, 'CWP Prob & Severity Param'!$A$6, 'CWP Prob & Severity Param'!$B$6), "") ->  | V25: =IF($I25>=_xlfn.NUMBERVALUE(RIGHT(V$2, 2)), _xlfn.LOGNORM.INV(L25, 'CWP Prob & Severity Param'!$A$6, 'CWP Prob & Severity Param'!$B$6), "") ->  | W25: =IF($I25>=_xlfn.NUMBERVALUE(RIGHT(W$2, 2)), _xlfn.LOGNORM.INV(M25, 'CWP Prob & Severity Param'!$A$6, 'CWP Prob & Severity Param'!$B$6), "") ->  | X25: =IF($I25>=_xlfn.NUMBERVALUE(RIGHT(X$2, 2)), _xlfn.LOGNORM.INV(N25, 'CWP Prob & Severity Param'!$A$6, 'CWP Prob & Severity Param'!$B$6), "") ->  | Y25: =IF($I25>=_xlfn.NUMBERVALUE(RIGHT(Y$2, 2)), _xlfn.LOGNORM.INV(O25, 'CWP Prob & Severity Param'!$A$6, 'CWP Prob & Severity Param'!$B$6), "") ->  | Z25: =IF($I25>=_xlfn.NUMBERVALUE(RIGHT(Z$2, 2)), _xlfn.LOGNORM.INV(P25, 'CWP Prob & Severity Param'!$A$6, 'CWP Prob & Severity Param'!$B$6), "") ->  | AA25: =IF($I25>=_xlfn.NUMBERVALUE(RIGHT(AA$2, 2)), _xlfn.LOGNORM.INV(Q25, 'CWP Prob & Severity Param'!$A$6, 'CWP Prob & Severity Param'!$B$6), "") ->  | AB25: =IF($I25>=_xlfn.NUMBERVALUE(RIGHT(AB$2, 2)), _xlfn.LOGNORM.INV(R25, 'CWP Prob & Severity Param'!$A$6, 'CWP Prob & Severity Param'!$B$6), "") ->  | AC25: =IF($I25>=_xlfn.NUMBERVALUE(RIGHT(AC$2, 2)), _xlfn.LOGNORM.INV(S25, 'CWP Prob & Severity Param'!$A$6, 'CWP Prob & Severity Param'!$B$6), "") ->  | AD25: 0 | AE25: 0.9110221389 | AF25: 0.9959185431 | AG25: 0.9998742096 | AH25: =_xlfn.POISSON.DIST(AG$2, $E25, TRUE) -> 0.9999970832 | AI25: 0.9999999458 | AJ25: 0.9999999992 | AK25: 1 | AL25: 1 | AM25: 1 | AN25: 1
D26: 24 | E26: ='Freq Fit (Poisson)'!N26 -> 0.2962647809 | F26: 0.3736486929 | G26: =INDEX('Simulation (Poisson)'!$AD$2:$AN$2, MATCH(F26, 'Simulation (Poisson)'!$AD26:$AN26, 1)) -> 0 | H26: 0.6689329354 | I26: =_xlfn.BINOM.INV(G26,'CWP Prob & Severity Param'!$A$2,H26) -> 0 | J26: 0.02598298485 | K26: 0.2558836143 | L26: 0.4875397367 | M26: 0.4093482161 | N26: 0.8036943068 | O26: 0.7553873989 | P26: 0.325392126 | Q26: 0.07756081154 | R26: 0.7643517879 | S26: 0.02958889093 | T26: =IF($I26>=_xlfn.NUMBERVALUE(RIGHT(T$2, 2)), _xlfn.LOGNORM.INV(J26, 'CWP Prob & Severity Param'!$A$6, 'CWP Prob & Severity Param'!$B$6), "") ->  | U26: =IF($I26>=_xlfn.NUMBERVALUE(RIGHT(U$2, 2)), _xlfn.LOGNORM.INV(K26, 'CWP Prob & Severity Param'!$A$6, 'CWP Prob & Severity Param'!$B$6), "") ->  | V26: =IF($I26>=_xlfn.NUMBERVALUE(RIGHT(V$2, 2)), _xlfn.LOGNORM.INV(L26, 'CWP Prob & Severity Param'!$A$6, 'CWP Prob & Severity Param'!$B$6), "") ->  | W26: =IF($I26>=_xlfn.NUMBERVALUE(RIGHT(W$2, 2)), _xlfn.LOGNORM.INV(M26, 'CWP Prob & Severity Param'!$A$6, 'CWP Prob & Severity Param'!$B$6), "") ->  | X26: =IF($I26>=_xlfn.NUMBERVALUE(RIGHT(X$2, 2)), _xlfn.LOGNORM.INV(N26, 'CWP Prob & Severity Param'!$A$6, 'CWP Prob & Severity Param'!$B$6), "") ->  | Y26: =IF($I26>=_xlfn.NUMBERVALUE(RIGHT(Y$2, 2)), _xlfn.LOGNORM.INV(O26, 'CWP Prob & Severity Param'!$A$6, 'CWP Prob & Severity Param'!$B$6), "") ->  | Z26: =IF($I26>=_xlfn.NUMBERVALUE(RIGHT(Z$2, 2)), _xlfn.LOGNORM.INV(P26, 'CWP Prob & Severity Param'!$A$6, 'CWP Prob & Severity Param'!$B$6), "") ->  | AA26: =IF($I26>=_xlfn.NUMBERVALUE(RIGHT(AA$2, 2)), _xlfn.LOGNORM.INV(Q26, 'CWP Prob & Severity Param'!$A$6, 'CWP Prob & Severity Param'!$B$6), "") ->  | AB26: =IF($I26>=_xlfn.NUMBERVALUE(RIGHT(AB$2, 2)), _xlfn.LOGNORM.INV(R26, 'CWP Prob & Severity Param'!$A$6, 'CWP Prob & Severity Param'!$B$6), "") ->  | AC26: =IF($I26>=_xlfn.NUMBERVALUE(RIGHT(AC$2, 2)), _xlfn.LOGNORM.INV(S26, 'CWP Prob & Severity Param'!$A$6, 'CWP Prob & Severity Param'!$B$6), "") ->  | AD26: 0 | AE26: 0.7435905134 | AF26: 0.9638901939 | AG26: 0.9965237122 | AH26: 0.9997464329 | AI26: 0.9999851276 | AJ26: 0.9999992709 | AK26: 0.9999999693 | AL26: 0.9999999989 | AM26: 1 | AN26: 1
D27: 25 | E27: ='Freq Fit (Poisson)'!N27 -> 0.06011177667 | F27: 0.5266099702 | G27: =INDEX('Simulation (Poisson)'!$AD$2:$AN$2, MATCH(F27, 'Simulation (Poisson)'!$AD27:$AN27, 1)) -> 0 | H27: 0.6912331257 | I27: =_xlfn.BINOM.INV(G27,'CWP Prob & Severity Param'!$A$2,H27) -> 0 | J27: 0.04852617737 | K27: 0.794954241 | L27: 0.6033644239 | M27: 0.5075209521 | N27: 0.202776742 | O27: 0.1427574832 | P27: 0.8114804106 | Q27: 0.7147474759 | R27: 0.9962542784 | S27: 0.1701401483 | T27: =IF($I27>=_xlfn.NUMBERVALUE(RIGHT(T$2, 2)), _xlfn.LOGNORM.INV(J27, 'CWP Prob & Severity Param'!$A$6, 'CWP Prob & Severity Param'!$B$6), "") ->  | U27: =IF($I27>=_xlfn.NUMBERVALUE(RIGHT(U$2, 2)), _xlfn.LOGNORM.INV(K27, 'CWP Prob & Severity Param'!$A$6, 'CWP Prob & Severity Param'!$B$6), "") ->  | V27: =IF($I27>=_xlfn.NUMBERVALUE(RIGHT(V$2, 2)), _xlfn.LOGNORM.INV(L27, 'CWP Prob & Severity Param'!$A$6, 'CWP Prob & Severity Param'!$B$6), "") ->  | W27: =IF($I27>=_xlfn.NUMBERVALUE(RIGHT(W$2, 2)), _xlfn.LOGNORM.INV(M27, 'CWP Prob & Severity Param'!$A$6, 'CWP Prob & Severity Param'!$B$6), "") ->  | X27: =IF($I27>=_xlfn.NUMBERVALUE(RIGHT(X$2, 2)), _xlfn.LOGNORM.INV(N27, 'CWP Prob & Severity Param'!$A$6, 'CWP Prob & Severity Param'!$B$6), "") ->  | Y27: =IF($I27>=_xlfn.NUMBERVALUE(RIGHT(Y$2, 2)), _xlfn.LOGNORM.INV(O27, 'CWP Prob & Severity Param'!$A$6, 'CWP Prob & Severity Param'!$B$6), "") ->  | Z27: =IF($I27>=_xlfn.NUMBERVALUE(RIGHT(Z$2, 2)), _xlfn.LOGNORM.INV(P27, 'CWP Prob & Severity Param'!$A$6, 'CWP Prob & Severity Param'!$B$6), "") ->  | AA27: =IF($I27>=_xlfn.NUMBERVALUE(RIGHT(AA$2, 2)), _xlfn.LOGNORM.INV(Q27, 'CWP Prob & Severity Param'!$A$6, 'CWP Prob & Severity Param'!$B$6), "") ->  | AB27: =IF($I27>=_xlfn.NUMBERVALUE(RIGHT(AB$2, 2)), _xlfn.LOGNORM.INV(R27, 'CWP Prob & Severity Param'!$A$6, 'CWP Prob & Severity Param'!$B$6), "") ->  | AC27: =IF($I27>=_xlfn.NUMBERVALUE(RIGHT(AC$2, 2)), _xlfn.LOGNORM.INV(S27, 'CWP Prob & Severity Param'!$A$6, 'CWP Prob & Severity Param'!$B$6), "") ->  | AD27: 0 | AE27: 0.9416592722 | AF27: 0.998264084 | AG27: 0.9999653919 | AH27: 0.9999994815 | AI27: 0.9999999938 | AJ27: 0.9999999999 | AK27: 1 | AL27: 1 | AM27: 1 | AN27: 1
D28: 26 | E28: ='Freq Fit (Poisson)'!N28 -> 0.1006066832 | F28: 0.4492113739 | G28: =INDEX('Simulation (Poisson)'!$AD$2:$AN$2, MATCH(F28, 'Simulation (Poisson)'!$AD28:$AN28, 1)) -> 0 | H28: 0.02149332635 | I28: =_xlfn.BINOM.INV(G28,'CWP Prob & Severity Param'!$A$2,H28) -> 0 | J28: 0.965926195 | K28: 0.8036686031 | L28: 0.8750699537 | M28: 0.9564848659 | N28: 0.587077235 | O28: 0.2650429511 | P28: 0.1176677946 | Q28: 0.6650550584 | R28: 0.2036143042 | S28: 0.6489121652 | T28: =IF($I28>=_xlfn.NUMBERVALUE(RIGHT(T$2, 2)), _xlfn.LOGNORM.INV(J28, 'CWP Prob & Severity Param'!$A$6, 'CWP Prob & Severity Param'!$B$6), "") ->  | U28: =IF($I28>=_xlfn.NUMBERVALUE(RIGHT(U$2, 2)), _xlfn.LOGNORM.INV(K28, 'CWP Prob & Severity Param'!$A$6, 'CWP Prob & Severity Param'!$B$6), "") ->  | V28: =IF($I28>=_xlfn.NUMBERVALUE(RIGHT(V$2, 2)), _xlfn.LOGNORM.INV(L28, 'CWP Prob & Severity Param'!$A$6, 'CWP Prob & Severity Param'!$B$6), "") ->  | W28: =IF($I28>=_xlfn.NUMBERVALUE(RIGHT(W$2, 2)), _xlfn.LOGNORM.INV(M28, 'CWP Prob & Severity Param'!$A$6, 'CWP Prob & Severity Param'!$B$6), "") ->  | X28: =IF($I28>=_xlfn.NUMBERVALUE(RIGHT(X$2, 2)), _xlfn.LOGNORM.INV(N28, 'CWP Prob & Severity Param'!$A$6, 'CWP Prob & Severity Param'!$B$6), "") ->  | Y28: =IF($I28>=_xlfn.NUMBERVALUE(RIGHT(Y$2, 2)), _xlfn.LOGNORM.INV(O28, 'CWP Prob & Severity Param'!$A$6, 'CWP Prob & Severity Param'!$B$6), "") ->  | Z28: =IF($I28>=_xlfn.NUMBERVALUE(RIGHT(Z$2, 2)), _xlfn.LOGNORM.INV(P28, 'CWP Prob & Severity Param'!$A$6, 'CWP Prob & Severity Param'!$B$6), "") ->  | AA28: =IF($I28>=_xlfn.NUMBERVALUE(RIGHT(AA$2, 2)), _xlfn.LOGNORM.INV(Q28, 'CWP Prob & Severity Param'!$A$6, 'CWP Prob & Severity Param'!$B$6), "") ->  | AB28: =IF($I28>=_xlfn.NUMBERVALUE(RIGHT(AB$2, 2)), _xlfn.LOGNORM.INV(R28, 'CWP Prob & Severity Param'!$A$6, 'CWP Prob & Severity Param'!$B$6), "") ->  | AC28: =IF($I28>=_xlfn.NUMBERVALUE(RIGHT(AC$2, 2)), _xlfn.LOGNORM.INV(S28, 'CWP Prob & Severity Param'!$A$6, 'CWP Prob & Severity Param'!$B$6), "") ->  | AD28: 0 | AE28: 0.9042886349 | AF28: 0.9952661151 | AG28: 0.9998425863 | AH28: 0.9999960609 | AI28: 0.999999921 | AJ28: 0.9999999987 | AK28: 1 | AL28: 1 | AM28: 1 | AN28: 1
D29: 27 | E29: ='Freq Fit (Poisson)'!N29 -> 0.07852527834 | F29: 0.5239819426 | G29: =INDEX('Simulation (Poisson)'!$AD$2:$AN$2, MATCH(F29, 'Simulation (Poisson)'!$AD29:$AN29, 1)) -> 0 | H29: 0.8537200376 | I29: =_xlfn.BINOM.INV(G29,'CWP Prob & Severity Param'!$A$2,H29) -> 0 | J29: 0.1807096628 | K29: 0.01393138978 | L29: 0.106402891 | M29: 0.1320286981 | N29: 0.3959139957 | O29: 0.6639880053 | P29: 0.5405945359 | Q29: 0.5537291496 | R29: 0.6791243419 | S29: 0.3195625341 | T29: =IF($I29>=_xlfn.NUMBERVALUE(RIGHT(T$2, 2)), _xlfn.LOGNORM.INV(J29, 'CWP Prob & Severity Param'!$A$6, 'CWP Prob & Severity Param'!$B$6), "") ->  | U29: =IF($I29>=_xlfn.NUMBERVALUE(RIGHT(U$2, 2)), _xlfn.LOGNORM.INV(K29, 'CWP Prob & Severity Param'!$A$6, 'CWP Prob & Severity Param'!$B$6), "") ->  | V29: =IF($I29>=_xlfn.NUMBERVALUE(RIGHT(V$2, 2)), _xlfn.LOGNORM.INV(L29, 'CWP Prob & Severity Param'!$A$6, 'CWP Prob & Severity Param'!$B$6), "") ->  | W29: =IF($I29>=_xlfn.NUMBERVALUE(RIGHT(W$2, 2)), _xlfn.LOGNORM.INV(M29, 'CWP Prob & Severity Param'!$A$6, 'CWP Prob & Severity Param'!$B$6), "") ->  | X29: =IF($I29>=_xlfn.NUMBERVALUE(RIGHT(X$2, 2)), _xlfn.LOGNORM.INV(N29, 'CWP Prob & Severity Param'!$A$6, 'CWP Prob & Severity Param'!$B$6), "") ->  | Y29: =IF($I29>=_xlfn.NUMBERVALUE(RIGHT(Y$2, 2)), _xlfn.LOGNORM.INV(O29, 'CWP Prob & Severity Param'!$A$6, 'CWP Prob & Severity Param'!$B$6), "") ->  | Z29: =IF($I29>=_xlfn.NUMBERVALUE(RIGHT(Z$2, 2)), _xlfn.LOGNORM.INV(P29, 'CWP Prob & Severity Param'!$A$6, 'CWP Prob & Severity Param'!$B$6), "") ->  | AA29: =IF($I29>=_xlfn.NUMBERVALUE(RIGHT(AA$2, 2)), _xlfn.LOGNORM.INV(Q29, 'CWP Prob & Severity Param'!$A$6, 'CWP Prob & Severity Param'!$B$6), "") ->  | AB29: =IF($I29>=_xlfn.NUMBERVALUE(RIGHT(AB$2, 2)), _xlfn.LOGNORM.INV(R29, 'CWP Prob & Severity Param'!$A$6, 'CWP Prob & Severity Param'!$B$6), "") ->  | AC29: =IF($I29>=_xlfn.NUMBERVALUE(RIGHT(AC$2, 2)), _xlfn.LOGNORM.INV(S29, 'CWP Prob & Severity Param'!$A$6, 'CWP Prob & Severity Param'!$B$6), "") ->  | AD29: 0 | AE29: 0.9244786903 | AF29: 0.9970736368 | AG29: 0.999923906 | AH29: 0.9999985121 | AI29: 0.9999999767 | AJ29: 0.9999999997 | AK29: 1 | AL29: 1 | AM29: 1 | AN29: 1
D30: 28 | E30: ='Freq Fit (Poisson)'!N30 -> 0.1521983997 | F30: 0.5696084068 | G30: =INDEX('Simulation (Poisson)'!$AD$2:$AN$2, MATCH(F30, 'Simulation (Poisson)'!$AD30:$AN30, 1)) -> 0 | H30: 0.04860102774 | I30: =_xlfn.BINOM.INV(G30,'CWP Prob & Severity Param'!$A$2,H30) -> 0 | J30: 0.7013902867 | K30: 0.44918404 | L30: 0.321677015 | M30: 0.9291942405 | N30: 0.4222987143 | O30: 0.5007686875 | P30: 0.3864444012 | Q30: 0.2988640145 | R30: 0.1988109021 | S30: 0.1589435321 | T30: =IF($I30>=_xlfn.NUMBERVALUE(RIGHT(T$2, 2)), _xlfn.LOGNORM.INV(J30, 'CWP Prob & Severity Param'!$A$6, 'CWP Prob & Severity Param'!$B$6), "") ->  | U30: =IF($I30>=_xlfn.NUMBERVALUE(RIGHT(U$2, 2)), _xlfn.LOGNORM.INV(K30, 'CWP Prob & Severity Param'!$A$6, 'CWP Prob & Severity Param'!$B$6), "") ->  | V30: =IF($I30>=_xlfn.NUMBERVALUE(RIGHT(V$2, 2)), _xlfn.LOGNORM.INV(L30, 'CWP Prob & Severity Param'!$A$6, 'CWP Prob & Severity Param'!$B$6), "") ->  | W30: =IF($I30>=_xlfn.NUMBERVALUE(RIGHT(W$2, 2)), _xlfn.LOGNORM.INV(M30, 'CWP Prob & Severity Param'!$A$6, 'CWP Prob & Severity Param'!$B$6), "") ->  | X30: =IF($I30>=_xlfn.NUMBERVALUE(RIGHT(X$2, 2)), _xlfn.LOGNORM.INV(N30, 'CWP Prob & Severity Param'!$A$6, 'CWP Prob & Severity Param'!$B$6), "") ->  | Y30: =IF($I30>=_xlfn.NUMBERVALUE(RIGHT(Y$2, 2)), _xlfn.LOGNORM.INV(O30, 'CWP Prob & Severity Param'!$A$6, 'CWP Prob & Severity Param'!$B$6), "") ->  | Z30: =IF($I30>=_xlfn.NUMBERVALUE(RIGHT(Z$2, 2)), _xlfn.LOGNORM.INV(P30, 'CWP Prob & Severity Param'!$A$6, 'CWP Prob & Severity Param'!$B$6), "") ->  | AA30: =IF($I30>=_xlfn.NUMBERVALUE(RIGHT(AA$2, 2)), _xlfn.LOGNORM.INV(Q30, 'CWP Prob & Severity Param'!$A$6, 'CWP Prob & Severity Param'!$B$6), "") ->  | AB30: =IF($I30>=_xlfn.NUMBERVALUE(RIGHT(AB$2, 2)), _xlfn.LOGNORM.INV(R30, 'CWP Prob & Severity Param'!$A$6, 'CWP Prob & Severity Param'!$B$6), "") ->  | AC30: =IF($I30>=_xlfn.NUMBERVALUE(RIGHT(AC$2, 2)), _xlfn.LOGNORM.INV(S30, 'CWP Prob & Severity Param'!$A$6, 'CWP Prob & Severity Param'!$B$6), "") ->  | AD30: 0 | AE30: 0.8588178747 | AF30: 0.9895285808 | AG30: 0.9994755609 | AH30: 0.9999801991 | AI30: 0.9999994004 | AJ30: 0.9999999848 | AK30: 0.9999999997 | AL30: 1 | AM30: 1 | AN30: 1
D31: 29 | E31: ='Freq Fit (Poisson)'!N31 -> 0.0353799101 | F31: 0.7575271202 | G31: =INDEX('Simulation (Poisson)'!$AD$2:$AN$2, MATCH(F31, 'Simulation (Poisson)'!$AD31:$AN31, 1)) -> 0 | H31: 0.1810325863 | I31: =_xlfn.BINOM.INV(G31,'CWP Prob & Severity Param'!$A$2,H31) -> 0 | J31: 0.9508279707 | K31: 0.7836654307 | L31: 0.1143334386 | M31: 0.871353508 | N31: 0.3425168294 | O31: 0.4570143983 | P31: 0.1484614805 | Q31: 0.02905095101 | R31: 0.9664285141 | S31: 0.7281109634 | T31: =IF($I31>=_xlfn.NUMBERVALUE(RIGHT(T$2, 2)), _xlfn.LOGNORM.INV(J31, 'CWP Prob & Severity Param'!$A$6, 'CWP Prob & Severity Param'!$B$6), "") ->  | U31: =IF($I31>=_xlfn.NUMBERVALUE(RIGHT(U$2, 2)), _xlfn.LOGNORM.INV(K31, 'CWP Prob & Severity Param'!$A$6, 'CWP Prob & Severity Param'!$B$6), "") ->  | V31: =IF($I31>=_xlfn.NUMBERVALUE(RIGHT(V$2, 2)), _xlfn.LOGNORM.INV(L31, 'CWP Prob & Severity Param'!$A$6, 'CWP Prob & Severity Param'!$B$6), "") ->  | W31: =IF($I31>=_xlfn.NUMBERVALUE(RIGHT(W$2, 2)), _xlfn.LOGNORM.INV(M31, 'CWP Prob & Severity Param'!$A$6, 'CWP Prob & Severity Param'!$B$6), "") ->  | X31: =IF($I31>=_xlfn.NUMBERVALUE(RIGHT(X$2, 2)), _xlfn.LOGNORM.INV(N31, 'CWP Prob & Severity Param'!$A$6, 'CWP Prob & Severity Param'!$B$6), "") ->  | Y31: =IF($I31>=_xlfn.NUMBERVALUE(RIGHT(Y$2, 2)), _xlfn.LOGNORM.INV(O31, 'CWP Prob & Severity Param'!$A$6, 'CWP Prob & Severity Param'!$B$6), "") ->  | Z31: =IF($I31>=_xlfn.NUMBERVALUE(RIGHT(Z$2, 2)), _xlfn.LOGNORM.INV(P31, 'CWP Prob & Severity Param'!$A$6, 'CWP Prob & Severity Param'!$B$6), "") ->  | AA31: =IF($I31>=_xlfn.NUMBERVALUE(RIGHT(AA$2, 2)), _xlfn.LOGNORM.INV(Q31, 'CWP Prob & Severity Param'!$A$6, 'CWP Prob & Severity Param'!$B$6), "") ->  | AB31: =IF($I31>=_xlfn.NUMBERVALUE(RIGHT(AB$2, 2)), _xlfn.LOGNORM.INV(R31, 'CWP Prob & Severity Param'!$A$6, 'CWP Prob & Severity Param'!$B$6), "") ->  | AC31: =IF($I31>=_xlfn.NUMBERVALUE(RIGHT(AC$2, 2)), _xlfn.LOGNORM.INV(S31, 'CWP Prob & Severity Param'!$A$6, 'CWP Prob & Severity Param'!$B$6), "") ->  | AD31: 0 | AE31: 0.9652386427 | AF31: 0.9993886991 | AG31: 0.999992812 | AH31: 0.9999999365 | AI31: 0.9999999996 | AJ31: 1 | AK31: 1 | AL31: 1 | AM31: 1 | AN31: 1
D32: 30 | E32: ='Freq Fit (Poisson)'!N32 -> 0.1547696748 | F32: 0.7015302368 | G32: =INDEX('Simulation (Poisson)'!$AD$2:$AN$2, MATCH(F32, 'Simulation (Poisson)'!$AD32:$AN32, 1)) -> 0 | H32: 0.4521968079 | I32: =_xlfn.BINOM.INV(G32,'CWP Prob & Severity Param'!$A$2,H32) -> 0 | J32: 0.7641083116 | K32: 0.03153124156 | L32: 0.01382460633 | M32: 0.8138194376 | N32: 0.3357950289 | O32: 0.5205741789 | P32: 0.5757490543 | Q32: 0.6241548038 | R32: 0.5984930526 | S32: 0.5788402705 | T32: =IF($I32>=_xlfn.NUMBERVALUE(RIGHT(T$2, 2)), _xlfn.LOGNORM.INV(J32, 'CWP Prob & Severity Param'!$A$6, 'CWP Prob & Severity Param'!$B$6), "") ->  | U32: =IF($I32>=_xlfn.NUMBERVALUE(RIGHT(U$2, 2)), _xlfn.LOGNORM.INV(K32, 'CWP Prob & Severity Param'!$A$6, 'CWP Prob & Severity Param'!$B$6), "") ->  | V32: =IF($I32>=_xlfn.NUMBERVALUE(RIGHT(V$2, 2)), _xlfn.LOGNORM.INV(L32, 'CWP Prob & Severity Param'!$A$6, 'CWP Prob & Severity Param'!$B$6), "") ->  | W32: =IF($I32>=_xlfn.NUMBERVALUE(RIGHT(W$2, 2)), _xlfn.LOGNORM.INV(M32, 'CWP Prob & Severity Param'!$A$6, 'CWP Prob & Severity Param'!$B$6), "") ->  | X32: =IF($I32>=_xlfn.NUMBERVALUE(RIGHT(X$2, 2)), _xlfn.LOGNORM.INV(N32, 'CWP Prob & Severity Param'!$A$6, 'CWP Prob & Severity Param'!$B$6), "") ->  | Y32: =IF($I32>=_xlfn.NUMBERVALUE(RIGHT(Y$2, 2)), _xlfn.LOGNORM.INV(O32, 'CWP Prob & Severity Param'!$A$6, 'CWP Prob & Severity Param'!$B$6), "") ->  | Z32: =IF($I32>=_xlfn.NUMBERVALUE(RIGHT(Z$2, 2)), _xlfn.LOGNORM.INV(P32, 'CWP Prob & Severity Param'!$A$6, 'CWP Prob & Severity Param'!$B$6), "") ->  | AA32: =IF($I32>=_xlfn.NUMBERVALUE(RIGHT(AA$2, 2)), _xlfn.LOGNORM.INV(Q32, 'CWP Prob & Severity Param'!$A$6, 'CWP Prob & Severity Param'!$B$6), "") ->  | AB32: =IF($I32>=_xlfn.NUMBERVALUE(RIGHT(AB$2, 2)), _xlfn.LOGNORM.INV(R32, 'CWP Prob & Severity Param'!$A$6, 'CWP Prob & Severity Param'!$B$6), "") ->  | AC32: =IF($I32>=_xlfn.NUMBERVALUE(RIGHT(AC$2, 2)), _xlfn.LOGNORM.INV(S32, 'CWP Prob & Severity Param'!$A$6, 'CWP Prob & Severity Param'!$B$6), "") ->  | AD32: 0 | AE32: 0.8566124542 | AF32: 0.9891900852 | AG32: 0.9994495836 | AH32: 0.99997887 | AI32: 0.9999993494 | AJ32: 0.9999999833 | AK32: 0.9999999996 | AL32: 1 | AM32: 1 | AN32: 1
D33: 31 | E33: ='Freq Fit (Poisson)'!N33 -> 0.1134757164 | F33: 0.1014282405 | G33: =INDEX('Simulation (Poisson)'!$AD$2:$AN$2, MATCH(F33, 'Simulation (Poisson)'!$AD33:$AN33, 1)) -> 0 | H33: 0.2282566924 | I33: =_xlfn.BINOM.INV(G33,'CWP Prob & Severity Param'!$A$2,H33) -> 0 | J33: 0.6817258427 | K33: 0.9637758672 | L33: 0.1936101467 | M33: 0.7807125585 | N33: 0.02468385051 | O33: 0.8699160145 | P33: 0.9179437916 | Q33: 0.07471521325 | R33: 0.2190802277 | S33: 0.6630917594 | T33: =IF($I33>=_xlfn.NUMBERVALUE(RIGHT(T$2, 2)), _xlfn.LOGNORM.INV(J33, 'CWP Prob & Severity Param'!$A$6, 'CWP Prob & Severity Param'!$B$6), "") ->  | U33: =IF($I33>=_xlfn.NUMBERVALUE(RIGHT(U$2, 2)), _xlfn.LOGNORM.INV(K33, 'CWP Prob & Severity Param'!$A$6, 'CWP Prob & Severity Param'!$B$6), "") ->  | V33: =IF($I33>=_xlfn.NUMBERVALUE(RIGHT(V$2, 2)), _xlfn.LOGNORM.INV(L33, 'CWP Prob & Severity Param'!$A$6, 'CWP Prob & Severity Param'!$B$6), "") ->  | W33: =IF($I33>=_xlfn.NUMBERVALUE(RIGHT(W$2, 2)), _xlfn.LOGNORM.INV(M33, 'CWP Prob & Severity Param'!$A$6, 'CWP Prob & Severity Param'!$B$6), "") ->  | X33: =IF($I33>=_xlfn.NUMBERVALUE(RIGHT(X$2, 2)), _xlfn.LOGNORM.INV(N33, 'CWP Prob & Severity Param'!$A$6, 'CWP Prob & Severity Param'!$B$6), "") ->  | Y33: =IF($I33>=_xlfn.NUMBERVALUE(RIGHT(Y$2, 2)), _xlfn.LOGNORM.INV(O33, 'CWP Prob & Severity Param'!$A$6, 'CWP Prob & Severity Param'!$B$6), "") ->  | Z33: =IF($I33>=_xlfn.NUMBERVALUE(RIGHT(Z$2, 2)), _xlfn.LOGNORM.INV(P33, 'CWP Prob & Severity Param'!$A$6, 'CWP Prob & Severity Param'!$B$6), "") ->  | AA33: =IF($I33>=_xlfn.NUMBERVALUE(RIGHT(AA$2, 2)), _xlfn.LOGNORM.INV(Q33, 'CWP Prob & Severity Param'!$A$6, 'CWP Prob & Severity Param'!$B$6), "") ->  | AB33: =IF($I33>=_xlfn.NUMBERVALUE(RIGHT(AB$2, 2)), _xlfn.LOGNORM.INV(R33, 'CWP Prob & Severity Param'!$A$6, 'CWP Prob & Severity Param'!$B$6), "") ->  | AC33: =IF($I33>=_xlfn.NUMBERVALUE(RIGHT(AC$2, 2)), _xlfn.LOGNORM.INV(S33, 'CWP Prob & Severity Param'!$A$6, 'CWP Prob & Severity Param'!$B$6), "") ->  | AD33: 0 | AE33: 0.8927258747 | AF33: 0.9940285829 | AG33: 0.9997762816 | AH33: 0.9999936897 | AI33: 0.9999998573 | AJ33: 0.9999999973 | AK33: 1 | AL33: 1 | AM33: 1 | AN33: 1
D34: 32 | E34: ='Freq Fit (Poisson)'!N34 -> 0.146074574 | F34: 0.3054818125 | G34: =INDEX('Simulation (Poisson)'!$AD$2:$AN$2, MATCH(F34, 'Simulation (Poisson)'!$AD34:$AN34, 1)) -> 0 | H34: 0.4658709884 | I34: =_xlfn.BINOM.INV(G34,'CWP Prob & Severity Param'!$A$2,H34) -> 0 | J34: 0.07638289699 | K34: 0.1104683433 | L34: 0.8045536566 | M34: 0.4206859531 | N34: 0.3969615841 | O34: 0.5857655092 | P34: 0.04155435858 | Q34: 0.1686011443 | R34: 0.4665287929 | S34: 0.7719327525 | T34: =IF($I34>=_xlfn.NUMBERVALUE(RIGHT(T$2, 2)), _xlfn.LOGNORM.INV(J34, 'CWP Prob & Severity Param'!$A$6, 'CWP Prob & Severity Param'!$B$6), "") ->  | U34: =IF($I34>=_xlfn.NUMBERVALUE(RIGHT(U$2, 2)), _xlfn.LOGNORM.INV(K34, 'CWP Prob & Severity Param'!$A$6, 'CWP Prob & Severity Param'!$B$6), "") ->  | V34: =IF($I34>=_xlfn.NUMBERVALUE(RIGHT(V$2, 2)), _xlfn.LOGNORM.INV(L34, 'CWP Prob & Severity Param'!$A$6, 'CWP Prob & Severity Param'!$B$6), "") ->  | W34: =IF($I34>=_xlfn.NUMBERVALUE(RIGHT(W$2, 2)), _xlfn.LOGNORM.INV(M34, 'CWP Prob & Severity Param'!$A$6, 'CWP Prob & Severity Param'!$B$6), "") ->  | X34: =IF($I34>=_xlfn.NUMBERVALUE(RIGHT(X$2, 2)), _xlfn.LOGNORM.INV(N34, 'CWP Prob & Severity Param'!$A$6, 'CWP Prob & Severity Param'!$B$6), "") ->  | Y34: =IF($I34>=_xlfn.NUMBERVALUE(RIGHT(Y$2, 2)), _xlfn.LOGNORM.INV(O34, 'CWP Prob & Severity Param'!$A$6, 'CWP Prob & Severity Param'!$B$6), "") ->  | Z34: =IF($I34>=_xlfn.NUMBERVALUE(RIGHT(Z$2, 2)), _xlfn.LOGNORM.INV(P34, 'CWP Prob & Severity Param'!$A$6, 'CWP Prob & Severity Param'!$B$6), "") ->  | AA34: =IF($I34>=_xlfn.NUMBERVALUE(RIGHT(AA$2, 2)), _xlfn.LOGNORM.INV(Q34, 'CWP Prob & Severity Param'!$A$6, 'CWP Prob & Severity Param'!$B$6), "") ->  | AB34: =IF($I34>=_xlfn.NUMBERVALUE(RIGHT(AB$2, 2)), _xlfn.LOGNORM.INV(R34, 'CWP Prob & Severity Param'!$A$6, 'CWP Prob & Severity Param'!$B$6), "") ->  | AC34: =IF($I34>=_xlfn.NUMBERVALUE(RIGHT(AC$2, 2)), _xlfn.LOGNORM.INV(S34, 'CWP Prob & Severity Param'!$A$6, 'CWP Prob & Severity Param'!$B$6), "") ->  | AD34: 0 | AE34: 0.8640932619 | AF34: 0.990315317 | AG34: 0.9995342335 | AH34: 0.9999831166 | AI34: 0.9999995092 | AJ34: 0.9999999881 | AK34: 0.9999999998 | AL34: 1 | AM34: 1 | AN34: 1
D35: 33 | E35: ='Freq Fit (Poisson)'!N35 -> 0.307004084 | F35: 0.2307370695 | G35: =INDEX('Simulation (Poisson)'!$AD$2:$AN$2, MATCH(F35, 'Simulation (Poisson)'!$AD35:$AN35, 1)) -> 0 | H35: 0.1398206847 | I35: =_xlfn.BINOM.INV(G35,'CWP Prob & Severity Param'!$A$2,H35) -> 0 | J35: 0.02584317492 | K35: 0.2508531147 | L35: 0.6482395069 | M35: 0.1981089265 | N35: 0.8410629525 | O35: 0.6242815311 | P35: 0.1200059839 | Q35: 0.7728691652 | R35: 0.04260506221 | S35: 0.7167955023 | T35: =IF($I35>=_xlfn.NUMBERVALUE(RIGHT(T$2, 2)), _xlfn.LOGNORM.INV(J35, 'CWP Prob & Severity Param'!$A$6, 'CWP Prob & Severity Param'!$B$6), "") ->  | U35: =IF($I35>=_xlfn.NUMBERVALUE(RIGHT(U$2, 2)), _xlfn.LOGNORM.INV(K35, 'CWP Prob & Severity Param'!$A$6, 'CWP Prob & Severity Param'!$B$6), "") ->  | V35: =IF($I35>=_xlfn.NUMBERVALUE(RIGHT(V$2, 2)), _xlfn.LOGNORM.INV(L35, 'CWP Prob & Severity Param'!$A$6, 'CWP Prob & Severity Param'!$B$6), "") ->  | W35: =IF($I35>=_xlfn.NUMBERVALUE(RIGHT(W$2, 2)), _xlfn.LOGNORM.INV(M35, 'CWP Prob & Severity Param'!$A$6, 'CWP Prob & Severity Param'!$B$6), "") ->  | X35: =IF($I35>=_xlfn.NUMBERVALUE(RIGHT(X$2, 2)), _xlfn.LOGNORM.INV(N35, 'CWP Prob & Severity Param'!$A$6, 'CWP Prob & Severity Param'!$B$6), "") ->  | Y35: =IF($I35>=_xlfn.NUMBERVALUE(RIGHT(Y$2, 2)), _xlfn.LOGNORM.INV(O35, 'CWP Prob & Severity Param'!$A$6, 'CWP Prob & Severity Param'!$B$6), "") ->  | Z35: =IF($I35>=_xlfn.NUMBERVALUE(RIGHT(Z$2, 2)), _xlfn.LOGNORM.INV(P35, 'CWP Prob & Severity Param'!$A$6, 'CWP Prob & Severity Param'!$B$6), "") ->  | AA35: =IF($I35>=_xlfn.NUMBERVALUE(RIGHT(AA$2, 2)), _xlfn.LOGNORM.INV(Q35, 'CWP Prob & Severity Param'!$A$6, 'CWP Prob & Severity Param'!$B$6), "") ->  | AB35: =IF($I35>=_xlfn.NUMBERVALUE(RIGHT(AB$2, 2)), _xlfn.LOGNORM.INV(R35, 'CWP Prob & Severity Param'!$A$6, 'CWP Prob & Severity Param'!$B$6), "") ->  | AC35: =IF($I35>=_xlfn.NUMBERVALUE(RIGHT(AC$2, 2)), _xlfn.LOGNORM.INV(S35, 'CWP Prob & Severity Param'!$A$6, 'CWP Prob & Severity Param'!$B$6), "") ->  | AD35: 0 | AE35: 0.7356475965 | AF35: 0.961494413 | AG35: 0.9961623605 | AH35: 0.9997100944 | AI35: 0.9999823866 | AJ35: 0.9999991055 | AK35: 0.999999961 | AL35: 0.9999999985 | AM35: 0.9999999999 | AN35: 1
D36: 34 | E36: ='Freq Fit (Poisson)'!N36 -> 0.2068686795 | F36: 0.6133632901 | G36: =INDEX('Simulation (Poisson)'!$AD$2:$AN$2, MATCH(F36, 'Simulation (Poisson)'!$AD36:$AN36, 1)) -> 0 | H36: 0.9847818397 | I36: =_xlfn.BINOM.INV(G36,'CWP Prob & Severity Param'!$A$2,H36) -> 0 | J36: 0.2783223638 | K36: 0.2854124692 | L36: 0.3771473543 | M36: 0.1084770535 | N36: 0.8635249529 | O36: 0.6146192435 | P36: 0.7730504927 | Q36: 0.6830400678 | R36: 0.1441314217 | S36: 0.4980864032 | T36: =IF($I36>=_xlfn.NUMBERVALUE(RIGHT(T$2, 2)), _xlfn.LOGNORM.INV(J36, 'CWP Prob & Severity Param'!$A$6, 'CWP Prob & Severity Param'!$B$6), "") ->  | U36: =IF($I36>=_xlfn.NUMBERVALUE(RIGHT(U$2, 2)), _xlfn.LOGNORM.INV(K36, 'CWP Prob & Severity Param'!$A$6, 'CWP Prob & Severity Param'!$B$6), "") ->  | V36: =IF($I36>=_xlfn.NUMBERVALUE(RIGHT(V$2, 2)), _xlfn.LOGNORM.INV(L36, 'CWP Prob & Severity Param'!$A$6, 'CWP Prob & Severity Param'!$B$6), "") ->  | W36: =IF($I36>=_xlfn.NUMBERVALUE(RIGHT(W$2, 2)), _xlfn.LOGNORM.INV(M36, 'CWP Prob & Severity Param'!$A$6, 'CWP Prob & Severity Param'!$B$6), "") ->  | X36: =IF($I36>=_xlfn.NUMBERVALUE(RIGHT(X$2, 2)), _xlfn.LOGNORM.INV(N36, 'CWP Prob & Severity Param'!$A$6, 'CWP Prob & Severity Param'!$B$6), "") ->  | Y36: =IF($I36>=_xlfn.NUMBERVALUE(RIGHT(Y$2, 2)), _xlfn.LOGNORM.INV(O36, 'CWP Prob & Severity Param'!$A$6, 'CWP Prob & Severity Param'!$B$6), "") ->  | Z36: =IF($I36>=_xlfn.NUMBERVALUE(RIGHT(Z$2, 2)), _xlfn.LOGNORM.INV(P36, 'CWP Prob & Severity Param'!$A$6, 'CWP Prob & Severity Param'!$B$6), "") ->  | AA36: =IF($I36>=_xlfn.NUMBERVALUE(RIGHT(AA$2, 2)), _xlfn.LOGNORM.INV(Q36, 'CWP Prob & Severity Param'!$A$6, 'CWP Prob & Severity Param'!$B$6), "") ->  | AB36: =IF($I36>=_xlfn.NUMBERVALUE(RIGHT(AB$2, 2)), _xlfn.LOGNORM.INV(R36, 'CWP Prob & Severity Param'!$A$6, 'CWP Prob & Severity Param'!$B$6), "") ->  | AC36: =IF($I36>=_xlfn.NUMBERVALUE(RIGHT(AC$2, 2)), _xlfn.LOGNORM.INV(S36, 'CWP Prob & Severity Param'!$A$6, 'CWP Prob & Severity Param'!$B$6), "") ->  | AD36: 0 | AE36: 0.8131264231 | AF36: 0.9813368126 | AG36: 0.9987355431 | AH36: 0.9999352939 | AI36: 0.9999973417 | AJ36: 0.9999999088 | AK36: 0.9999999973 | AL36: 0.9999999999 | AM36: 1 | AN36: 1
D37: 35 | E37: ='Freq Fit (Poisson)'!N37 -> 0.09121568859 | F37: 0.3393140444 | G37: =INDEX('Simulation (Poisson)'!$AD$2:$AN$2, MATCH(F37, 'Simulation (Poisson)'!$AD37:$AN37, 1)) -> 0 | H37: 0.6389987314 | I37: =_xlfn.BINOM.INV(G37,'CWP Prob & Severity Param'!$A$2,H37) -> 0 | J37: 0.9541885706 | K37: 0.3373804583 | L37: 0.5954587745 | M37: 0.4787917554 | N37: 0.09019607085 | O37: 0.5952973801 | P37: 0.2338781617 | Q37: 0.7540758164 | R37: 0.5316551939 | S37: 0.3978580328 | T37: =IF($I37>=_xlfn.NUMBERVALUE(RIGHT(T$2, 2)), _xlfn.LOGNORM.INV(J37, 'CWP Prob & Severity Param'!$A$6, 'CWP Prob & Severity Param'!$B$6), "") ->  | U37: =IF($I37>=_xlfn.NUMBERVALUE(RIGHT(U$2, 2)), _xlfn.LOGNORM.INV(K37, 'CWP Prob & Severity Param'!$A$6, 'CWP Prob & Severity Param'!$B$6), "") ->  | V37: =IF($I37>=_xlfn.NUMBERVALUE(RIGHT(V$2, 2)), _xlfn.LOGNORM.INV(L37, 'CWP Prob & Severity Param'!$A$6, 'CWP Prob & Severity Param'!$B$6), "") ->  | W37: =IF($I37>=_xlfn.NUMBERVALUE(RIGHT(W$2, 2)), _xlfn.LOGNORM.INV(M37, 'CWP Prob & Severity Param'!$A$6, 'CWP Prob & Severity Param'!$B$6), "") ->  | X37: =IF($I37>=_xlfn.NUMBERVALUE(RIGHT(X$2, 2)), _xlfn.LOGNORM.INV(N37, 'CWP Prob & Severity Param'!$A$6, 'CWP Prob & Severity Param'!$B$6), "") ->  | Y37: =IF($I37>=_xlfn.NUMBERVALUE(RIGHT(Y$2, 2)), _xlfn.LOGNORM.INV(O37, 'CWP Prob & Severity Param'!$A$6, 'CWP Prob & Severity Param'!$B$6), "") ->  | Z37: =IF($I37>=_xlfn.NUMBERVALUE(RIGHT(Z$2, 2)), _xlfn.LOGNORM.INV(P37, 'CWP Prob & Severity Param'!$A$6, 'CWP Prob & Severity Param'!$B$6), "") ->  | AA37: =IF($I37>=_xlfn.NUMBERVALUE(RIGHT(AA$2, 2)), _xlfn.LOGNORM.INV(Q37, 'CWP Prob & Severity Param'!$A$6, 'CWP Prob & Severity Param'!$B$6), "") ->  | AB37: =IF($I37>=_xlfn.NUMBERVALUE(RIGHT(AB$2, 2)), _xlfn.LOGNORM.INV(R37, 'CWP Prob & Severity Param'!$A$6, 'CWP Prob & Severity Param'!$B$6), "") ->  | AC37: =IF($I37>=_xlfn.NUMBERVALUE(RIGHT(AC$2, 2)), _xlfn.LOGNORM.INV(S37, 'CWP Prob & Severity Param'!$A$6, 'CWP Prob & Severity Param'!$B$6), "") ->  | AD37: 0 | AE37: 0.9128208046 | AF37: 0.9960843829 | AG37: 0.9998818552 | AH37: 0.9999973182 | AI37: 0.9999999512 | AJ37: 0.9999999993 | AK37: 1 | AL37: 1 | AM37: 1 | AN37: 1
D38: 36 | E38: ='Freq Fit (Poisson)'!N38 -> 0.343046734 | F38: 0.5781582285 | G38: =INDEX('Simulation (Poisson)'!$AD$2:$AN$2, MATCH(F38, 'Simulation (Poisson)'!$AD38:$AN38, 1)) -> 0 | H38: 0.9280934443 | I38: =_xlfn.BINOM.INV(G38,'CWP Prob & Severity Param'!$A$2,H38) -> 0 | J38: 0.3757826824 | K38: 0.9802339661 | L38: 0.1597456985 | M38: 0.962916258 | N38: 0.1268640666 | O38: 0.7668649465 | P38: 0.3714651258 | Q38: 0.8305455971 | R38: 0.2171454236 | S38: 0.2621721757 | T38: =IF($I38>=_xlfn.NUMBERVALUE(RIGHT(T$2, 2)), _xlfn.LOGNORM.INV(J38, 'CWP Prob & Severity Param'!$A$6, 'CWP Prob & Severity Param'!$B$6), "") ->  | U38: =IF($I38>=_xlfn.NUMBERVALUE(RIGHT(U$2, 2)), _xlfn.LOGNORM.INV(K38, 'CWP Prob & Severity Param'!$A$6, 'CWP Prob & Severity Param'!$B$6), "") ->  | V38: =IF($I38>=_xlfn.NUMBERVALUE(RIGHT(V$2, 2)), _xlfn.LOGNORM.INV(L38, 'CWP Prob & Severity Param'!$A$6, 'CWP Prob & Severity Param'!$B$6), "") ->  | W38: =IF($I38>=_xlfn.NUMBERVALUE(RIGHT(W$2, 2)), _xlfn.LOGNORM.INV(M38, 'CWP Prob & Severity Param'!$A$6, 'CWP Prob & Severity Param'!$B$6), "") ->  | X38: =IF($I38>=_xlfn.NUMBERVALUE(RIGHT(X$2, 2)), _xlfn.LOGNORM.INV(N38, 'CWP Prob & Severity Param'!$A$6, 'CWP Prob & Severity Param'!$B$6), "") ->  | Y38: =IF($I38>=_xlfn.NUMBERVALUE(RIGHT(Y$2, 2)), _xlfn.LOGNORM.INV(O38, 'CWP Prob & Severity Param'!$A$6, 'CWP Prob & Severity Param'!$B$6), "") ->  | Z38: =IF($I38>=_xlfn.NUMBERVALUE(RIGHT(Z$2, 2)), _xlfn.LOGNORM.INV(P38, 'CWP Prob & Severity Param'!$A$6, 'CWP Prob & Severity Param'!$B$6), "") ->  | AA38: =IF($I38>=_xlfn.NUMBERVALUE(RIGHT(AA$2, 2)), _xlfn.LOGNORM.INV(Q38, 'CWP Prob & Severity Param'!$A$6, 'CWP Prob & Severity Param'!$B$6), "") ->  | AB38: =IF($I38>=_xlfn.NUMBERVALUE(RIGHT(AB$2, 2)), _xlfn.LOGNORM.INV(R38, 'CWP Prob & Severity Param'!$A$6, 'CWP Prob & Severity Param'!$B$6), "") ->  | AC38: =IF($I38>=_xlfn.NUMBERVALUE(RIGHT(AC$2, 2)), _xlfn.LOGNORM.INV(S38, 'CWP Prob & Severity Param'!$A$6, 'CWP Prob & Severity Param'!$B$6), "") ->  | AD38: 0 | AE38: 0.7096050481 | AF38: 0.9530327423 | AG38: 0.99478628 | AH38: 0.9995607516 | AI38: 0.9999702183 | AJ38: 0.9999983116 | AK38: 0.9999999178 | AL38: 0.9999999965 | AM38: 0.9999999999 | AN38: 1
D39: 37 | E39: ='Freq Fit (Poisson)'!N39 -> 0.1398613496 | F39: 0.6519136805 | G39: =INDEX('Simulation (Poisson)'!$AD$2:$AN$2, MATCH(F39, 'Simulation (Poisson)'!$AD39:$AN39, 1)) -> 0 | H39: 0.7486512803 | I39: =_xlfn.BINOM.INV(G39,'CWP Prob & Severity Param'!$A$2,H39) -> 0 | J39: 0.6959795847 | K39: 0.2000272919 | L39: 0.7898577825 | M39: 0.134698699 | N39: 0.1152189474 | O39: 0.2491984886 | P39: 0.9860673139 | Q39: 0.3681916669 | R39: 0.4582496659 | S39: 0.7161489185 | T39: =IF($I39>=_xlfn.NUMBERVALUE(RIGHT(T$2, 2)), _xlfn.LOGNORM.INV(J39, 'CWP Prob & Severity Param'!$A$6, 'CWP Prob & Severity Param'!$B$6), "") ->  | U39: =IF($I39>=_xlfn.NUMBERVALUE(RIGHT(U$2, 2)), _xlfn.LOGNORM.INV(K39, 'CWP Prob & Severity Param'!$A$6, 'CWP Prob & Severity Param'!$B$6), "") ->  | V39: =IF($I39>=_xlfn.NUMBERVALUE(RIGHT(V$2, 2)), _xlfn.LOGNORM.INV(L39, 'CWP Prob & Severity Param'!$A$6, 'CWP Prob & Severity Param'!$B$6), "") ->  | W39: =IF($I39>=_xlfn.NUMBERVALUE(RIGHT(W$2, 2)), _xlfn.LOGNORM.INV(M39, 'CWP Prob & Severity Param'!$A$6, 'CWP Prob & Severity Param'!$B$6), "") ->  | X39: =IF($I39>=_xlfn.NUMBERVALUE(RIGHT(X$2, 2)), _xlfn.LOGNORM.INV(N39, 'CWP Prob & Severity Param'!$A$6, 'CWP Prob & Severity Param'!$B$6), "") ->  | Y39: =IF($I39>=_xlfn.NUMBERVALUE(RIGHT(Y$2, 2)), _xlfn.LOGNORM.INV(O39, 'CWP Prob & Severity Param'!$A$6, 'CWP Prob & Severity Param'!$B$6), "") ->  | Z39: =IF($I39>=_xlfn.NUMBERVALUE(RIGHT(Z$2, 2)), _xlfn.LOGNORM.INV(P39, 'CWP Prob & Severity Param'!$A$6, 'CWP Prob & Severity Param'!$B$6), "") ->  | AA39: =IF($I39>=_xlfn.NUMBERVALUE(RIGHT(AA$2, 2)), _xlfn.LOGNORM.INV(Q39, 'CWP Prob & Severity Param'!$A$6, 'CWP Prob & Severity Param'!$B$6), "") ->  | AB39: =IF($I39>=_xlfn.NUMBERVALUE(RIGHT(AB$2, 2)), _xlfn.LOGNORM.INV(R39, 'CWP Prob & Severity Param'!$A$6, 'CWP Prob & Severity Param'!$B$6), "") ->  | AC39: =IF($I39>=_xlfn.NUMBERVALUE(RIGHT(AC$2, 2)), _xlfn.LOGNORM.INV(S39, 'CWP Prob & Severity Param'!$A$6, 'CWP Prob & Severity Param'!$B$6), "") ->  | AD39: 0 | AE39: 0.8694787806 | AF39: 0.9910852563 | AG39: 0.9995892792 | AH39: 0.9999857406 | AI39: 0.999999603 | AJ39: 0.9999999908 | AK39: 0.9999999998 | AL39: 1 | AM39: 1 | AN39: 1
D40: 38 | E40: ='Freq Fit (Poisson)'!N40 -> 0.08682521515 | F40: 0.3806758456 | G40: =INDEX('Simulation (Poisson)'!$AD$2:$AN$2, MATCH(F40, 'Simulation (Poisson)'!$AD40:$AN40, 1)) -> 0 | H40: 0.3269334392 | I40: =_xlfn.BINOM.INV(G40,'CWP Prob & Severity Param'!$A$2,H40) -> 0 | J40: 0.3585097493 | K40: 0.4194905834 | L40: 0.14371889 | M40: 0.9885837215 | N40: 0.2277332335 | O40: 0.8383266053 | P40: 0.5390218433 | Q40: 0.2503692548 | R40: 0.7286855673 | S40: 0.6884434884 | T40: =IF($I40>=_xlfn.NUMBERVALUE(RIGHT(T$2, 2)), _xlfn.LOGNORM.INV(J40, 'CWP Prob & Severity Param'!$A$6, 'CWP Prob & Severity Param'!$B$6), "") ->  | U40: =IF($I40>=_xlfn.NUMBERVALUE(RIGHT(U$2, 2)), _xlfn.LOGNORM.INV(K40, 'CWP Prob & Severity Param'!$A$6, 'CWP Prob & Severity Param'!$B$6), "") ->  | V40: =IF($I40>=_xlfn.NUMBERVALUE(RIGHT(V$2, 2)), _xlfn.LOGNORM.INV(L40, 'CWP Prob & Severity Param'!$A$6, 'CWP Prob & Severity Param'!$B$6), "") ->  | W40: =IF($I40>=_xlfn.NUMBERVALUE(RIGHT(W$2, 2)), _xlfn.LOGNORM.INV(M40, 'CWP Prob & Severity Param'!$A$6, 'CWP Prob & Severity Param'!$B$6), "") ->  | X40: =IF($I40>=_xlfn.NUMBERVALUE(RIGHT(X$2, 2)), _xlfn.LOGNORM.INV(N40, 'CWP Prob & Severity Param'!$A$6, 'CWP Prob & Severity Param'!$B$6), "") ->  | Y40: =IF($I40>=_xlfn.NUMBERVALUE(RIGHT(Y$2, 2)), _xlfn.LOGNORM.INV(O40, 'CWP Prob & Severity Param'!$A$6, 'CWP Prob & Severity Param'!$B$6), "") ->  | Z40: =IF($I40>=_xlfn.NUMBERVALUE(RIGHT(Z$2, 2)), _xlfn.LOGNORM.INV(P40, 'CWP Prob & Severity Param'!$A$6, 'CWP Prob & Severity Param'!$B$6), "") ->  | AA40: =IF($I40>=_xlfn.NUMBERVALUE(RIGHT(AA$2, 2)), _xlfn.LOGNORM.INV(Q40, 'CWP Prob & Severity Param'!$A$6, 'CWP Prob & Severity Param'!$B$6), "") ->  | AB40: =IF($I40>=_xlfn.NUMBERVALUE(RIGHT(AB$2, 2)), _xlfn.LOGNORM.INV(R40, 'CWP Prob & Severity Param'!$A$6, 'CWP Prob & Severity Param'!$B$6), "") ->  | AC40: =IF($I40>=_xlfn.NUMBERVALUE(RIGHT(AC$2, 2)), _xlfn.LOGNORM.INV(S40, 'CWP Prob & Severity Param'!$A$6, 'CWP Prob & Severity Param'!$B$6), "") ->  | AD40: 0 | AE40: 0.9168373309 | AF40: 0.9964419294 | AG40: 0.9998977726 | AH40: 0.9999977907 | AI40: 0.9999999617 | AJ40: 0.9999999994 | AK40: 1 | AL40: 1 | AM40: 1 | AN40: 1
D41: 39 | E41: ='Freq Fit (Poisson)'!N41 -> 0.2895576277 | F41: 0.9515241678 | G41: =INDEX('Simulation (Poisson)'!$AD$2:$AN$2, MATCH(F41, 'Simulation (Poisson)'!$AD41:$AN41, 1)) -> 1 | H41: 0.3195632927 | I41: =_xlfn.BINOM.INV(G41,'CWP Prob & Severity Param'!$A$2,H41) -> 1 | J41: 0.1058079255 | K41: 0.736640758 | L41: 0.3584334356 | M41: 0.1188014006 | N41: 0.3107248478 | O41: 0.9296419147 | P41: 0.8997605722 | Q41: 0.14495474 | R41: 0.4618697636 | S41: 0.9535092904 | T41: =IF($I41>=_xlfn.NUMBERVALUE(RIGHT(T$2, 2)), _xlfn.LOGNORM.INV(J41, 'CWP Prob & Severity Param'!$A$6, 'CWP Prob & Severity Param'!$B$6), "") -> 1811.17452 | U41: =IF($I41>=_xlfn.NUMBERVALUE(RIGHT(U$2, 2)), _xlfn.LOGNORM.INV(K41, 'CWP Prob & Severity Param'!$A$6, 'CWP Prob & Severity Param'!$B$6), "") ->  | V41: =IF($I41>=_xlfn.NUMBERVALUE(RIGHT(V$2, 2)), _xlfn.LOGNORM.INV(L41, 'CWP Prob & Severity Param'!$A$6, 'CWP Prob & Severity Param'!$B$6), "") ->  | W41: =IF($I41>=_xlfn.NUMBERVALUE(RIGHT(W$2, 2)), _xlfn.LOGNORM.INV(M41, 'CWP Prob & Severity Param'!$A$6, 'CWP Prob & Severity Param'!$B$6), "") ->  | X41: =IF($I41>=_xlfn.NUMBERVALUE(RIGHT(X$2, 2)), _xlfn.LOGNORM.INV(N41, 'CWP Prob & Severity Param'!$A$6, 'CWP Prob & Severity Param'!$B$6), "") ->  | Y41: =IF($I41>=_xlfn.NUMBERVALUE(RIGHT(Y$2, 2)), _xlfn.LOGNORM.INV(O41, 'CWP Prob & Severity Param'!$A$6, 'CWP Prob & Severity Param'!$B$6), "") ->  | Z41: =IF($I41>=_xlfn.NUMBERVALUE(RIGHT(Z$2, 2)), _xlfn.LOGNORM.INV(P41, 'CWP Prob & Severity Param'!$A$6, 'CWP Prob & Severity Param'!$B$6), "") ->  | AA41: =IF($I41>=_xlfn.NUMBERVALUE(RIGHT(AA$2, 2)), _xlfn.LOGNORM.INV(Q41, 'CWP Prob & Severity Param'!$A$6, 'CWP Prob & Severity Param'!$B$6), "") ->  | AB41: =IF($I41>=_xlfn.NUMBERVALUE(RIGHT(AB$2, 2)), _xlfn.LOGNORM.INV(R41, 'CWP Prob & Severity Param'!$A$6, 'CWP Prob & Severity Param'!$B$6), "") ->  | AC41: =IF($I41>=_xlfn.NUMBERVALUE(RIGHT(AC$2, 2)), _xlfn.LOGNORM.INV(S41, 'CWP Prob & Severity Param'!$A$6, 'CWP Prob & Severity Param'!$B$6), "") ->  | AD41: 0 | AE41: 0.7485946519 | AF41: =_xlfn.POISSON.DIST(AE$2, $E41, TRUE) -> 0.9653559434 | AG41: 0.9967383861 | AH41: 0.9997673946 | AI41: 0.9999866627 | AJ41: 0.9999993609 | AK41: 0.9999999737 | AL41: 0.9999999991 | AM41: 1 | AN41: 1
D42: 40 | E42: ='Freq Fit (Poisson)'!N42 -> 0.05788977667 | F42: 0.377425698 | G42: =INDEX('Simulation (Poisson)'!$AD$2:$AN$2, MATCH(F42, 'Simulation (Poisson)'!$AD42:$AN42, 1)) -> 0 | H42: 0.5504556385 | I42: =_xlfn.BINOM.INV(G42,'CWP Prob & Severity Param'!$A$2,H42) -> 0 | J42: 0.8630111124 | K42: 0.3123043267 | L42: 0.9557888652 | M42: 0.8412097967 | N42: 0.686964277 | O42: 0.5431458511 | P42: 0.07476563525 | Q42: 0.03620741467 | R42: 0.1835592202 | S42: 0.4285319226 | T42: =IF($I42>=_xlfn.NUMBERVALUE(RIGHT(T$2, 2)), _xlfn.LOGNORM.INV(J42, 'CWP Prob & Severity Param'!$A$6, 'CWP Prob & Severity Param'!$B$6), "") ->  | U42: =IF($I42>=_xlfn.NUMBERVALUE(RIGHT(U$2, 2)), _xlfn.LOGNORM.INV(K42, 'CWP Prob & Severity Param'!$A$6, 'CWP Prob & Severity Param'!$B$6), "") ->  | V42: =IF($I42>=_xlfn.NUMBERVALUE(RIGHT(V$2, 2)), _xlfn.LOGNORM.INV(L42, 'CWP Prob & Severity Param'!$A$6, 'CWP Prob & Severity Param'!$B$6), "") ->  | W42: =IF($I42>=_xlfn.NUMBERVALUE(RIGHT(W$2, 2)), _xlfn.LOGNORM.INV(M42, 'CWP Prob & Severity Param'!$A$6, 'CWP Prob & Severity Param'!$B$6), "") ->  | X42: =IF($I42>=_xlfn.NUMBERVALUE(RIGHT(X$2, 2)), _xlfn.LOGNORM.INV(N42, 'CWP Prob & Severity Param'!$A$6, 'CWP Prob & Severity Param'!$B$6), "") ->  | Y42: =IF($I42>=_xlfn.NUMBERVALUE(RIGHT(Y$2, 2)), _xlfn.LOGNORM.INV(O42, 'CWP Prob & Severity Param'!$A$6, 'CWP Prob & Severity Param'!$B$6), "") ->  | Z42: =IF($I42>=_xlfn.NUMBERVALUE(RIGHT(Z$2, 2)), _xlfn.LOGNORM.INV(P42, 'CWP Prob & Severity Param'!$A$6, 'CWP Prob & Severity Param'!$B$6), "") ->  | AA42: =IF($I42>=_xlfn.NUMBERVALUE(RIGHT(AA$2, 2)), _xlfn.LOGNORM.INV(Q42, 'CWP Prob & Severity Param'!$A$6, 'CWP Prob & Severity Param'!$B$6), "") ->  | AB42: =IF($I42>=_xlfn.NUMBERVALUE(RIGHT(AB$2, 2)), _xlfn.LOGNORM.INV(R42, 'CWP Prob & Severity Param'!$A$6, 'CWP Prob & Severity Param'!$B$6), "") ->  | AC42: =IF($I42>=_xlfn.NUMBERVALUE(RIGHT(AC$2, 2)), _xlfn.LOGNORM.INV(S42, 'CWP Prob & Severity Param'!$A$6, 'CWP Prob & Severity Param'!$B$6), "") ->  | AD42: 0 | AE42: 0.9437539654 | AF42: 0.9983876717 | AG42: 0.9999690382 | AH42: 0.9999995532 | AI42: 0.9999999948 | AJ42: 1 | AK42: 1 | AL42: 1 | AM42: 1 | AN42: 1
D43: 41 | E43: ='Freq Fit (Poisson)'!N43 -> 0.06568051933 | F43: 0.7691539474 | G43: =INDEX('Simulation (Poisson)'!$AD$2:$AN$2, MATCH(F43, 'Simulation (Poisson)'!$AD43:$AN43, 1)) -> 0 | H43: 0.7833528735 | I43: =_xlfn.BINOM.INV(G43,'CWP Prob & Severity Param'!$A$2,H43) -> 0 | J43: =RAND() -> 0.4684916595 | K43: 0.5529295256 | L43: 0.4667874765 | M43: 0.5016906075 | N43: 0.867594363 | O43: 0.6096238637 | P43: 0.9939123236 | Q43: 0.799639903 | R43: 0.7777332206 | S43: 0.5525826831 | T43: =IF($I43>=_xlfn.NUMBERVALUE(RIGHT(T$2, 2)), _xlfn.LOGNORM.INV(J43, 'CWP Prob & Severity Param'!$A$6, 'CWP Prob & Severity Param'!$B$6), "") ->  | U43: =IF($I43>=_xlfn.NUMBERVALUE(RIGHT(U$2, 2)), _xlfn.LOGNORM.INV(K43, 'CWP Prob & Severity Param'!$A$6, 'CWP Prob & Severity Param'!$B$6), "") ->  | V43: =IF($I43>=_xlfn.NUMBERVALUE(RIGHT(V$2, 2)), _xlfn.LOGNORM.INV(L43, 'CWP Prob & Severity Param'!$A$6, 'CWP Prob & Severity Param'!$B$6), "") ->  | W43: =IF($I43>=_xlfn.NUMBERVALUE(RIGHT(W$2, 2)), _xlfn.LOGNORM.INV(M43, 'CWP Prob & Severity Param'!$A$6, 'CWP Prob & Severity Param'!$B$6), "") ->  | X43: =IF($I43>=_xlfn.NUMBERVALUE(RIGHT(X$2, 2)), _xlfn.LOGNORM.INV(N43, 'CWP Prob & Severity Param'!$A$6, 'CWP Prob & Severity Param'!$B$6), "") ->  | Y43: =IF($I43>=_xlfn.NUMBERVALUE(RIGHT(Y$2, 2)), _xlfn.LOGNORM.INV(O43, 'CWP Prob & Severity Param'!$A$6, 'CWP Prob & Severity Param'!$B$6), "") ->  | Z43: =IF($I43>=_xlfn.NUMBERVALUE(RIGHT(Z$2, 2)), _xlfn.LOGNORM.INV(P43, 'CWP Prob & Severity Param'!$A$6, 'CWP Prob & Severity Param'!$B$6), "") ->  | AA43: =IF($I43>=_xlfn.NUMBERVALUE(RIGHT(AA$2, 2)), _xlfn.LOGNORM.INV(Q43, 'CWP Prob & Severity Param'!$A$6, 'CWP Prob & Severity Param'!$B$6), "") ->  | AB43: =IF($I43>=_xlfn.NUMBERVALUE(RIGHT(AB$2, 2)), _xlfn.LOGNORM.INV(R43, 'CWP Prob & Severity Param'!$A$6, 'CWP Prob & Severity Param'!$B$6), "") ->  | AC43: =IF($I43>=_xlfn.NUMBERVALUE(RIGHT(AC$2, 2)), _xlfn.LOGNORM.INV(S43, 'CWP Prob & Severity Param'!$A$6, 'CWP Prob & Severity Param'!$B$6), "") ->  | AD43: 0 | AE43: 0.9364299878 | AF43: 0.9979351957 | AG43: 0.9999550427 | AH43: 0.9999992642 | AI43: 0.9999999904 | AJ43: 0.9999999999 | AK43: 1 | AL43: 1 | AM43: 1 | AN43: 1
D44: 42 | E44: ='Freq Fit (Poisson)'!N44 -> 0.09524174441 | F44: 0.5253875407 | G44: =INDEX('Simulation (Poisson)'!$AD$2:$AN$2, MATCH(F44, 'Simulation (Poisson)'!$AD44:$AN44, 1)) -> 0 | H44: 0.9087573802 | I44: =_xlfn.BINOM.INV(G44,'CWP Prob & Severity Param'!$A$2,H44) -> 0 | J44: 0.7677234256 | K44: 0.2659170839 | L44: 0.5415721709 | M44: 0.04410863922 | N44: 0.103313326 | O44: 0.3189089147 | P44: 0.4255971852 | Q44: 0.793766098 | R44: 0.302157035 | S44: 0.6980814758 | T44: =IF($I44>=_xlfn.NUMBERVALUE(RIGHT(T$2, 2)), _xlfn.LOGNORM.INV(J44, 'CWP Prob & Severity Param'!$A$6, 'CWP Prob & Severity Param'!$B$6), "") ->  | U44: =IF($I44>=_xlfn.NUMBERVALUE(RIGHT(U$2, 2)), _xlfn.LOGNORM.INV(K44, 'CWP Prob & Severity Param'!$A$6, 'CWP Prob & Severity Param'!$B$6), "") ->  | V44: =IF($I44>=_xlfn.NUMBERVALUE(RIGHT(V$2, 2)), _xlfn.LOGNORM.INV(L44, 'CWP Prob & Severity Param'!$A$6, 'CWP Prob & Severity Param'!$B$6), "") ->  | W44: =IF($I44>=_xlfn.NUMBERVALUE(RIGHT(W$2, 2)), _xlfn.LOGNORM.INV(M44, 'CWP Prob & Severity Param'!$A$6, 'CWP Prob & Severity Param'!$B$6), "") ->  | X44: =IF($I44>=_xlfn.NUMBERVALUE(RIGHT(X$2, 2)), _xlfn.LOGNORM.INV(N44, 'CWP Prob & Severity Param'!$A$6, 'CWP Prob & Severity Param'!$B$6), "") ->  | Y44: =IF($I44>=_xlfn.NUMBERVALUE(RIGHT(Y$2, 2)), _xlfn.LOGNORM.INV(O44, 'CWP Prob & Severity Param'!$A$6, 'CWP Prob & Severity Param'!$B$6), "") ->  | Z44: =IF($I44>=_xlfn.NUMBERVALUE(RIGHT(Z$2, 2)), _xlfn.LOGNORM.INV(P44, 'CWP Prob & Severity Param'!$A$6, 'CWP Prob & Severity Param'!$B$6), "") ->  | AA44: =IF($I44>=_xlfn.NUMBERVALUE(RIGHT(AA$2, 2)), _xlfn.LOGNORM.INV(Q44, 'CWP Prob & Severity Param'!$A$6, 'CWP Prob & Severity Param'!$B$6), "") ->  | AB44: =IF($I44>=_xlfn.NUMBERVALUE(RIGHT(AB$2, 2)), _xlfn.LOGNORM.INV(R44, 'CWP Prob & Severity Param'!$A$6, 'CWP Prob & Severity Param'!$B$6), "") ->  | AC44: =IF($I44>=_xlfn.NUMBERVALUE(RIGHT(AC$2, 2)), _xlfn.LOGNORM.INV(S44, 'CWP Prob & Severity Param'!$A$6, 'CWP Prob & Severity Param'!$B$6), "") ->  | AD44: 0 | AE44: 0.9091531252 | AF44: 0.9957424548 | AG44: 0.9998659142 | AH44: 0.9999968227 | AI44: 0.9999999397 | AJ44: 0.999999999 | AK44: 1 | AL44: 1 | AM44: 1 | AN44: 1
D45: 43 | E45: ='Freq Fit (Poisson)'!N45 -> 0.2448891451 | F45: 0.3741785133 | G45: =INDEX('Simulation (Poisson)'!$AD$2:$AN$2, MATCH(F45, 'Simulation (Poisson)'!$AD45:$AN45, 1)) -> 0 | H45: 0.3446779656 | I45: =_xlfn.BINOM.INV(G45,'CWP Prob & Severity Param'!$A$2,H45) -> 0 | J45: 0.8625966246 | K45: 0.7939394202 | L45: 0.4602216617 | M45: 0.2208999406 | N45: 0.6645770353 | O45: 0.2586691186 | P45: 0.8784874907 | Q45: 0.5542576993 | R45: 0.6339546372 | S45: 0.8524149687 | T45: =IF($I45>=_xlfn.NUMBERVALUE(RIGHT(T$2, 2)), _xlfn.LOGNORM.INV(J45, 'CWP Prob & Severity Param'!$A$6, 'CWP Prob & Severity Param'!$B$6), "") ->  | U45: =IF($I45>=_xlfn.NUMBERVALUE(RIGHT(U$2, 2)), _xlfn.LOGNORM.INV(K45, 'CWP Prob & Severity Param'!$A$6, 'CWP Prob & Severity Param'!$B$6), "") ->  | V45: =IF($I45>=_xlfn.NUMBERVALUE(RIGHT(V$2, 2)), _xlfn.LOGNORM.INV(L45, 'CWP Prob & Severity Param'!$A$6, 'CWP Prob & Severity Param'!$B$6), "") ->  | W45: =IF($I45>=_xlfn.NUMBERVALUE(RIGHT(W$2, 2)), _xlfn.LOGNORM.INV(M45, 'CWP Prob & Severity Param'!$A$6, 'CWP Prob & Severity Param'!$B$6), "") ->  | X45: =IF($I45>=_xlfn.NUMBERVALUE(RIGHT(X$2, 2)), _xlfn.LOGNORM.INV(N45, 'CWP Prob & Severity Param'!$A$6, 'CWP Prob & Severity Param'!$B$6), "") ->  | Y45: =IF($I45>=_xlfn.NUMBERVALUE(RIGHT(Y$2, 2)), _xlfn.LOGNORM.INV(O45, 'CWP Prob & Severity Param'!$A$6, 'CWP Prob & Severity Param'!$B$6), "") ->  | Z45: =IF($I45>=_xlfn.NUMBERVALUE(RIGHT(Z$2, 2)), _xlfn.LOGNORM.INV(P45, 'CWP Prob & Severity Param'!$A$6, 'CWP Prob & Severity Param'!$B$6), "") ->  | AA45: =IF($I45>=_xlfn.NUMBERVALUE(RIGHT(AA$2, 2)), _xlfn.LOGNORM.INV(Q45, 'CWP Prob & Severity Param'!$A$6, 'CWP Prob & Severity Param'!$B$6), "") ->  | AB45: =IF($I45>=_xlfn.NUMBERVALUE(RIGHT(AB$2, 2)), _xlfn.LOGNORM.INV(R45, 'CWP Prob & Severity Param'!$A$6, 'CWP Prob & Severity Param'!$B$6), "") ->  | AC45: =IF($I45>=_xlfn.NUMBERVALUE(RIGHT(AC$2, 2)), _xlfn.LOGNORM.INV(S45, 'CWP Prob & Severity Param'!$A$6, 'CWP Prob & Severity Param'!$B$6), "") ->  | AD45: 0 | AE45: 0.7827913097 | AF45: 0.9744884043 | AG45: 0.9979606731 | AH45: 0.9998767077 | AI45: 0.9999940117 | AJ45: 0.999999757 | AK45: 0.9999999915 | AL45: 0.9999999997 | AM45: 1 | AN45: 1
D46: 44 | E46: ='Freq Fit (Poisson)'!N46 -> 0.2765076602 | F46: 0.3657284827 | G46: =INDEX('Simulation (Poisson)'!$AD$2:$AN$2, MATCH(F46, 'Simulation (Poisson)'!$AD46:$AN46, 1)) -> 0 | H46: 0.9774414947 | I46: =_xlfn.BINOM.INV(G46,'CWP Prob & Severity Param'!$A$2,H46) -> 0 | J46: 0.7085650676 | K46: 0.9664676293 | L46: 0.6639205927 | M46: 0.8185546161 | N46: 0.2300945685 | O46: 0.03632629609 | P46: 0.5698153633 | Q46: 0.4259347527 | R46: 0.09734918575 | S46: 0.394696784 | T46: =IF($I46>=_xlfn.NUMBERVALUE(RIGHT(T$2, 2)), _xlfn.LOGNORM.INV(J46, 'CWP Prob & Severity Param'!$A$6, 'CWP Prob & Severity Param'!$B$6), "") ->  | U46: =IF($I46>=_xlfn.NUMBERVALUE(RIGHT(U$2, 2)), _xlfn.LOGNORM.INV(K46, 'CWP Prob & Severity Param'!$A$6, 'CWP Prob & Severity Param'!$B$6), "") ->  | V46: =IF($I46>=_xlfn.NUMBERVALUE(RIGHT(V$2, 2)), _xlfn.LOGNORM.INV(L46, 'CWP Prob & Severity Param'!$A$6, 'CWP Prob & Severity Param'!$B$6), "") ->  | W46: =IF($I46>=_xlfn.NUMBERVALUE(RIGHT(W$2, 2)), _xlfn.LOGNORM.INV(M46, 'CWP Prob & Severity Param'!$A$6, 'CWP Prob & Severity Param'!$B$6), "") ->  | X46: =IF($I46>=_xlfn.NUMBERVALUE(RIGHT(X$2, 2)), _xlfn.LOGNORM.INV(N46, 'CWP Prob & Severity Param'!$A$6, 'CWP Prob & Severity Param'!$B$6), "") ->  | Y46: =IF($I46>=_xlfn.NUMBERVALUE(RIGHT(Y$2, 2)), _xlfn.LOGNORM.INV(O46, 'CWP Prob & Severity Param'!$A$6, 'CWP Prob & Severity Param'!$B$6), "") ->  | Z46: =IF($I46>=_xlfn.NUMBERVALUE(RIGHT(Z$2, 2)), _xlfn.LOGNORM.INV(P46, 'CWP Prob & Severity Param'!$A$6, 'CWP Prob & Severity Param'!$B$6), "") ->  | AA46: =IF($I46>=_xlfn.NUMBERVALUE(RIGHT(AA$2, 2)), _xlfn.LOGNORM.INV(Q46, 'CWP Prob & Severity Param'!$A$6, 'CWP Prob & Severity Param'!$B$6), "") ->  | AB46: =IF($I46>=_xlfn.NUMBERVALUE(RIGHT(AB$2, 2)), _xlfn.LOGNORM.INV(R46, 'CWP Prob & Severity Param'!$A$6, 'CWP Prob & Severity Param'!$B$6), "") ->  | AC46: =IF($I46>=_xlfn.NUMBERVALUE(RIGHT(AC$2, 2)), _xlfn.LOGNORM.INV(S46, 'CWP Prob & Severity Param'!$A$6, 'CWP Prob & Severity Param'!$B$6), "") ->  | AD46: 0 | AE46: 0.7584278094 | AF46: 0.9681389084 | AG46: 0.9971322711 | AH46: 0.9998045667 | AI46: 0.9999892942 | AJ46: 0.99999951 | AK46: 0.9999999807 | AL46: 0.9999999993 | AM46: 1 | AN46: 1
D47: 45 | E47: ='Freq Fit (Poisson)'!N47 -> 0.1266581661 | F47: 0.03967967803 | G47: =INDEX('Simulation (Poisson)'!$AD$2:$AN$2, MATCH(F47, 'Simulation (Poisson)'!$AD47:$AN47, 1)) -> 0 | H47: 0.6024091579 | I47: =_xlfn.BINOM.INV(G47,'CWP Prob & Severity Param'!$A$2,H47) -> 0 | J47: 0.3154988572 | K47: 0.2460589464 | L47: 0.9185434231 | M47: 0.8601513161 | N47: 0.556434851 | O47: 0.8753658161 | P47: 0.4377023283 | Q47: 0.2778024522 | R47: 0.8067505638 | S47: 0.5978330901 | T47: =IF($I47>=_xlfn.NUMBERVALUE(RIGHT(T$2, 2)), _xlfn.LOGNORM.INV(J47, 'CWP Prob & Severity Param'!$A$6, 'CWP Prob & Severity Param'!$B$6), "") ->  | U47: =IF($I47>=_xlfn.NUMBERVALUE(RIGHT(U$2, 2)), _xlfn.LOGNORM.INV(K47, 'CWP Prob & Severity Param'!$A$6, 'CWP Prob & Severity Param'!$B$6), "") ->  | V47: =IF($I47>=_xlfn.NUMBERVALUE(RIGHT(V$2, 2)), _xlfn.LOGNORM.INV(L47, 'CWP Prob & Severity Param'!$A$6, 'CWP Prob & Severity Param'!$B$6), "") ->  | W47: =IF($I47>=_xlfn.NUMBERVALUE(RIGHT(W$2, 2)), _xlfn.LOGNORM.INV(M47, 'CWP Prob & Severity Param'!$A$6, 'CWP Prob & Severity Param'!$B$6), "") ->  | X47: =IF($I47>=_xlfn.NUMBERVALUE(RIGHT(X$2, 2)), _xlfn.LOGNORM.INV(N47, 'CWP Prob & Severity Param'!$A$6, 'CWP Prob & Severity Param'!$B$6), "") ->  | Y47: =IF($I47>=_xlfn.NUMBERVALUE(RIGHT(Y$2, 2)), _xlfn.LOGNORM.INV(O47, 'CWP Prob & Severity Param'!$A$6, 'CWP Prob & Severity Param'!$B$6), "") ->  | Z47: =IF($I47>=_xlfn.NUMBERVALUE(RIGHT(Z$2, 2)), _xlfn.LOGNORM.INV(P47, 'CWP Prob & Severity Param'!$A$6, 'CWP Prob & Severity Param'!$B$6), "") ->  | AA47: =IF($I47>=_xlfn.NUMBERVALUE(RIGHT(AA$2, 2)), _xlfn.LOGNORM.INV(Q47, 'CWP Prob & Severity Param'!$A$6, 'CWP Prob & Severity Param'!$B$6), "") ->  | AB47: =IF($I47>=_xlfn.NUMBERVALUE(RIGHT(AB$2, 2)), _xlfn.LOGNORM.INV(R47, 'CWP Prob & Severity Param'!$A$6, 'CWP Prob & Severity Param'!$B$6), "") ->  | AC47: =IF($I47>=_xlfn.NUMBERVALUE(RIGHT(AC$2, 2)), _xlfn.LOGNORM.INV(S47, 'CWP Prob & Severity Param'!$A$6, 'CWP Prob & Severity Param'!$B$6), "") ->  | AD47: 0 | AE47: 0.8810347887 | AF47: 0.9926250393 | AG47: 0.9996919475 | AH47: 0.9999903081 | AI47: 0.9999997555 | AJ47: 0.9999999949 | AK47: 0.9999999999 | AL47: 1 | AM47: 1 | AN47: 1
D48: 46 | E48: ='Freq Fit (Poisson)'!N48 -> 0.0747341533 | F48: 0.334872036 | G48: =INDEX('Simulation (Poisson)'!$AD$2:$AN$2, MATCH(F48, 'Simulation (Poisson)'!$AD48:$AN48, 1)) -> 0 | H48: 0.2628015705 | I48: =_xlfn.BINOM.INV(G48,'CWP Prob & Severity Param'!$A$2,H48) -> 0 | J48: 0.6747917248 | K48: 0.06116670622 | L48: 0.5441943733 | M48: 0.4816445733 | N48: 0.9585621709 | O48: 0.1947347107 | P48: 0.1678947321 | Q48: 0.2404425271 | R48: 0.6165306074 | S48: 0.07844183555 | T48: =IF($I48>=_xlfn.NUMBERVALUE(RIGHT(T$2, 2)), _xlfn.LOGNORM.INV(J48, 'CWP Prob & Severity Param'!$A$6, 'CWP Prob & Severity Param'!$B$6), "") ->  | U48: =IF($I48>=_xlfn.NUMBERVALUE(RIGHT(U$2, 2)), _xlfn.LOGNORM.INV(K48, 'CWP Prob & Severity Param'!$A$6, 'CWP Prob & Severity Param'!$B$6), "") ->  | V48: =IF($I48>=_xlfn.NUMBERVALUE(RIGHT(V$2, 2)), _xlfn.LOGNORM.INV(L48, 'CWP Prob & Severity Param'!$A$6, 'CWP Prob & Severity Param'!$B$6), "") ->  | W48: =IF($I48>=_xlfn.NUMBERVALUE(RIGHT(W$2, 2)), _xlfn.LOGNORM.INV(M48, 'CWP Prob & Severity Param'!$A$6, 'CWP Prob & Severity Param'!$B$6), "") ->  | X48: =IF($I48>=_xlfn.NUMBERVALUE(RIGHT(X$2, 2)), _xlfn.LOGNORM.INV(N48, 'CWP Prob & Severity Param'!$A$6, 'CWP Prob & Severity Param'!$B$6), "") ->  | Y48: =IF($I48>=_xlfn.NUMBERVALUE(RIGHT(Y$2, 2)), _xlfn.LOGNORM.INV(O48, 'CWP Prob & Severity Param'!$A$6, 'CWP Prob & Severity Param'!$B$6), "") ->  | Z48: =IF($I48>=_xlfn.NUMBERVALUE(RIGHT(Z$2, 2)), _xlfn.LOGNORM.INV(P48, 'CWP Prob & Severity Param'!$A$6, 'CWP Prob & Severity Param'!$B$6), "") ->  | AA48: =IF($I48>=_xlfn.NUMBERVALUE(RIGHT(AA$2, 2)), _xlfn.LOGNORM.INV(Q48, 'CWP Prob & Severity Param'!$A$6, 'CWP Prob & Severity Param'!$B$6), "") ->  | AB48: =IF($I48>=_xlfn.NUMBERVALUE(RIGHT(AB$2, 2)), _xlfn.LOGNORM.INV(R48, 'CWP Prob & Severity Param'!$A$6, 'CWP Prob & Severity Param'!$B$6), "") ->  | AC48: =IF($I48>=_xlfn.NUMBERVALUE(RIGHT(AC$2, 2)), _xlfn.LOGNORM.INV(S48, 'CWP Prob & Severity Param'!$A$6, 'CWP Prob & Severity Param'!$B$6), "") ->  | AD48: 0 | AE48: 0.9279901567 | AF48: 0.9973427153 | AG48: 0.9999342177 | AH48: 0.9999987756 | AI48: 0.9999999817 | AJ48: 0.9999999998 | AK48: 1 | AL48: 1 | AM48: 1 | AN48: 1
D49: 47 | E49: ='Freq Fit (Poisson)'!N49 -> 0.1510321827 | F49: 0.9176010829 | G49: =INDEX('Simulation (Poisson)'!$AD$2:$AN$2, MATCH(F49, 'Simulation (Poisson)'!$AD49:$AN49, 1)) -> 1 | H49: 0.580435384 | I49: =_xlfn.BINOM.INV(G49,'CWP Prob & Severity Param'!$A$2,H49) -> 1 | J49: 0.5916387728 | K49: 0.1958786233 | L49: 0.2629048431 | M49: 0.01329710176 | N49: 0.1185857345 | O49: 0.2493104275 | P49: 0.319340735 | Q49: 0.6922351713 | R49: 0.1522062278 | S49: 0.8638459236 | T49: =IF($I49>=_xlfn.NUMBERVALUE(RIGHT(T$2, 2)), _xlfn.LOGNORM.INV(J49, 'CWP Prob & Severity Param'!$A$6, 'CWP Prob & Severity Param'!$B$6), "") -> 35014.76392 | U49: =IF($I49>=_xlfn.NUMBERVALUE(RIGHT(U$2, 2)), _xlfn.LOGNORM.INV(K49, 'CWP Prob & Severity Param'!$A$6, 'CWP Prob & Severity Param'!$B$6), "") ->  | V49: =IF($I49>=_xlfn.NUMBERVALUE(RIGHT(V$2, 2)), _xlfn.LOGNORM.INV(L49, 'CWP Prob & Severity Param'!$A$6, 'CWP Prob & Severity Param'!$B$6), "") ->  | W49: =IF($I49>=_xlfn.NUMBERVALUE(RIGHT(W$2, 2)), _xlfn.LOGNORM.INV(M49, 'CWP Prob & Severity Param'!$A$6, 'CWP Prob & Severity Param'!$B$6), "") ->  | X49: =IF($I49>=_xlfn.NUMBERVALUE(RIGHT(X$2, 2)), _xlfn.LOGNORM.INV(N49, 'CWP Prob & Severity Param'!$A$6, 'CWP Prob & Severity Param'!$B$6), "") ->  | Y49: =IF($I49>=_xlfn.NUMBERVALUE(RIGHT(Y$2, 2)), _xlfn.LOGNORM.INV(O49, 'CWP Prob & Severity Param'!$A$6, 'CWP Prob & Severity Param'!$B$6), "") ->  | Z49: =IF($I49>=_xlfn.NUMBERVALUE(RIGHT(Z$2, 2)), _xlfn.LOGNORM.INV(P49, 'CWP Prob & Severity Param'!$A$6, 'CWP Prob & Severity Param'!$B$6), "") ->  | AA49: =IF($I49>=_xlfn.NUMBERVALUE(RIGHT(AA$2, 2)), _xlfn.LOGNORM.INV(Q49, 'CWP Prob & Severity Param'!$A$6, 'CWP Prob & Severity Param'!$B$6), "") ->  | AB49: =IF($I49>=_xlfn.NUMBERVALUE(RIGHT(AB$2, 2)), _xlfn.LOGNORM.INV(R49, 'CWP Prob & Severity Param'!$A$6, 'CWP Prob & Severity Param'!$B$6), "") ->  | AC49: =IF($I49>=_xlfn.NUMBERVALUE(RIGHT(AC$2, 2)), _xlfn.LOGNORM.INV(S49, 'CWP Prob & Severity Param'!$A$6, 'CWP Prob & Severity Param'!$B$6), "") ->  | AD49: 0 | AE49: 0.8598200269 | AF49: 0.9896805223 | AG49: 0.9994870793 | AH49: 0.9999807812 | AI49: 0.9999994224 | AJ49: 0.9999999855 | AK49: 0.9999999997 | AL49: 1 | AM49: 1 | AN49: 1
D50: 48 | E50: ='Freq Fit (Poisson)'!N50 -> 0.04863634413 | F50: 0.3170989052 | G50: =INDEX('Simulation (Poisson)'!$AD$2:$AN$2, MATCH(F50, 'Simulation (Poisson)'!$AD50:$AN50, 1)) -> 0 | H50: 0.2085186602 | I50: =_xlfn.BINOM.INV(G50,'CWP Prob & Severity Param'!$A$2,H50) -> 0 | J50: 0.4205647636 | K50: 0.3205248517 | L50: 0.437852016 | M50: 0.5931973792 | N50: 0.361582873 | O50: 0.7530939172 | P50: 0.1662223889 | Q50: 0.13071723 | R50: 0.3517248576 | S50: 0.005124220293 | T50: =IF($I50>=_xlfn.NUMBERVALUE(RIGHT(T$2, 2)), _xlfn.LOGNORM.INV(J50, 'CWP Prob & Severity Param'!$A$6, 'CWP Prob & Severity Param'!$B$6), "") ->  | U50: =IF($I50>=_xlfn.NUMBERVALUE(RIGHT(U$2, 2)), _xlfn.LOGNORM.INV(K50, 'CWP Prob & Severity Param'!$A$6, 'CWP Prob & Severity Param'!$B$6), "") ->  | V50: =IF($I50>=_xlfn.NUMBERVALUE(RIGHT(V$2, 2)), _xlfn.LOGNORM.INV(L50, 'CWP Prob & Severity Param'!$A$6, 'CWP Prob & Severity Param'!$B$6), "") ->  | W50: =IF($I50>=_xlfn.NUMBERVALUE(RIGHT(W$2, 2)), _xlfn.LOGNORM.INV(M50, 'CWP Prob & Severity Param'!$A$6, 'CWP Prob & Severity Param'!$B$6), "") ->  | X50: =IF($I50>=_xlfn.NUMBERVALUE(RIGHT(X$2, 2)), _xlfn.LOGNORM.INV(N50, 'CWP Prob & Severity Param'!$A$6, 'CWP Prob & Severity Param'!$B$6), "") ->  | Y50: =IF($I50>=_xlfn.NUMBERVALUE(RIGHT(Y$2, 2)), _xlfn.LOGNORM.INV(O50, 'CWP Prob & Severity Param'!$A$6, 'CWP Prob & Severity Param'!$B$6), "") ->  | Z50: =IF($I50>=_xlfn.NUMBERVALUE(RIGHT(Z$2, 2)), _xlfn.LOGNORM.INV(P50, 'CWP Prob & Severity Param'!$A$6, 'CWP Prob & Severity Param'!$B$6), "") ->  | AA50: =IF($I50>=_xlfn.NUMBERVALUE(RIGHT(AA$2, 2)), _xlfn.LOGNORM.INV(Q50, 'CWP Prob & Severity Param'!$A$6, 'CWP Prob & Severity Param'!$B$6), "") ->  | AB50: =IF($I50>=_xlfn.NUMBERVALUE(RIGHT(AB$2, 2)), _xlfn.LOGNORM.INV(R50, 'CWP Prob & Severity Param'!$A$6, 'CWP Prob & Severity Param'!$B$6), "") ->  | AC50: =IF($I50>=_xlfn.NUMBERVALUE(RIGHT(AC$2, 2)), _xlfn.LOGNORM.INV(S50, 'CWP Prob & Severity Param'!$A$6, 'CWP Prob & Severity Param'!$B$6), "") ->  | AD50: 0 | AE50: 0.9525274589 | AF50: 0.9988549122 | AG50: 0.9999815112 | AH50: 0.9999997757 | AI50: 0.9999999978 | AJ50: 1 | AK50: 1 | AL50: 1 | AM50: 1 | AN50: 1
D51: 49 | E51: ='Freq Fit (Poisson)'!N51 -> 0.1894440897 | F51: 0.2752433633 | G51: =INDEX('Simulation (Poisson)'!$AD$2:$AN$2, MATCH(F51, 'Simulation (Poisson)'!$AD51:$AN51, 1)) -> 0 | H51: 0.4857992319 | I51: =_xlfn.BINOM.INV(G51,'CWP Prob & Severity Param'!$A$2,H51) -> 0 | J51: 0.955822424 | K51: 0.9650721338 | L51: 0.4912212517 | M51: 0.951871833 | N51: 0.9630734762 | O51: 0.3486998635 | P51: 0.9505260822 | Q51: 0.3659472032 | R51: 0.9633379749 | S51: 0.7980796339 | T51: =IF($I51>=_xlfn.NUMBERVALUE(RIGHT(T$2, 2)), _xlfn.LOGNORM.INV(J51, 'CWP Prob & Severity Param'!$A$6, 'CWP Prob & Severity Param'!$B$6), "") ->  | U51: =IF($I51>=_xlfn.NUMBERVALUE(RIGHT(U$2, 2)), _xlfn.LOGNORM.INV(K51, 'CWP Prob & Severity Param'!$A$6, 'CWP Prob & Severity Param'!$B$6), "") ->  | V51: =IF($I51>=_xlfn.NUMBERVALUE(RIGHT(V$2, 2)), _xlfn.LOGNORM.INV(L51, 'CWP Prob & Severity Param'!$A$6, 'CWP Prob & Severity Param'!$B$6), "") ->  | W51: =IF($I51>=_xlfn.NUMBERVALUE(RIGHT(W$2, 2)), _xlfn.LOGNORM.INV(M51, 'CWP Prob & Severity Param'!$A$6, 'CWP Prob & Severity Param'!$B$6), "") ->  | X51: =IF($I51>=_xlfn.NUMBERVALUE(RIGHT(X$2, 2)), _xlfn.LOGNORM.INV(N51, 'CWP Prob & Severity Param'!$A$6, 'CWP Prob & Severity Param'!$B$6), "") ->  | Y51: =IF($I51>=_xlfn.NUMBERVALUE(RIGHT(Y$2, 2)), _xlfn.LOGNORM.INV(O51, 'CWP Prob & Severity Param'!$A$6, 'CWP Prob & Severity Param'!$B$6), "") ->  | Z51: =IF($I51>=_xlfn.NUMBERVALUE(RIGHT(Z$2, 2)), _xlfn.LOGNORM.INV(P51, 'CWP Prob & Severity Param'!$A$6, 'CWP Prob & Severity Param'!$B$6), "") ->  | AA51: =IF($I51>=_xlfn.NUMBERVALUE(RIGHT(AA$2, 2)), _xlfn.LOGNORM.INV(Q51, 'CWP Prob & Severity Param'!$A$6, 'CWP Prob & Severity Param'!$B$6), "") ->  | AB51: =IF($I51>=_xlfn.NUMBERVALUE(RIGHT(AB$2, 2)), _xlfn.LOGNORM.INV(R51, 'CWP Prob & Severity Param'!$A$6, 'CWP Prob & Severity Param'!$B$6), "") ->  | AC51: =IF($I51>=_xlfn.NUMBERVALUE(RIGHT(AC$2, 2)), _xlfn.LOGNORM.INV(S51, 'CWP Prob & Severity Param'!$A$6, 'CWP Prob & Severity Param'!$B$6), "") ->  | AD51: 0 | AE51: 0.8274189768 | AF51: 0.9841686117 | AG51: 0.9990162577 | AH51: 0.9999538573 | AI51: 0.9999982629 | AJ51: 0.9999999454 | AK51: 0.9999999985 | AL51: 1 | AM51: 1 | AN51: 1
D52: 50 | E52: ='Freq Fit (Poisson)'!N52 -> 0.08909183315 | F52: 0.2566651683 | G52: =INDEX('Simulation (Poisson)'!$AD$2:$AN$2, MATCH(F52, 'Simulation (Poisson)'!$AD52:$AN52, 1)) -> 0 | H52: 0.4237655658 | I52: =_xlfn.BINOM.INV(G52,'CWP Prob & Severity Param'!$A$2,H52) -> 0 | J52: 0.3046245636 | K52: 0.1250268721 | L52: 0.4670649444 | M52: 0.4858679775 | N52: 0.395445593 | O52: 0.7059293694 | P52: 0.9320302957 | Q52: 0.6125716139 | R52: 0.0331226494 | S52: 0.459396536 | T52: =IF($I52>=_xlfn.NUMBERVALUE(RIGHT(T$2, 2)), _xlfn.LOGNORM.INV(J52, 'CWP Prob & Severity Param'!$A$6, 'CWP Prob & Severity Param'!$B$6), "") ->  | U52: =IF($I52>=_xlfn.NUMBERVALUE(RIGHT(U$2, 2)), _xlfn.LOGNORM.INV(K52, 'CWP Prob & Severity Param'!$A$6, 'CWP Prob & Severity Param'!$B$6), "") ->  | V52: =IF($I52>=_xlfn.NUMBERVALUE(RIGHT(V$2, 2)), _xlfn.LOGNORM.INV(L52, 'CWP Prob & Severity Param'!$A$6, 'CWP Prob & Severity Param'!$B$6), "") ->  | W52: =IF($I52>=_xlfn.NUMBERVALUE(RIGHT(W$2, 2)), _xlfn.LOGNORM.INV(M52, 'CWP Prob & Severity Param'!$A$6, 'CWP Prob & Severity Param'!$B$6), "") ->  | X52: =IF($I52>=_xlfn.NUMBERVALUE(RIGHT(X$2, 2)), _xlfn.LOGNORM.INV(N52, 'CWP Prob & Severity Param'!$A$6, 'CWP Prob & Severity Param'!$B$6), "") ->  | Y52: =IF($I52>=_xlfn.NUMBERVALUE(RIGHT(Y$2, 2)), _xlfn.LOGNORM.INV(O52, 'CWP Prob & Severity Param'!$A$6, 'CWP Prob & Severity Param'!$B$6), "") ->  | Z52: =IF($I52>=_xlfn.NUMBERVALUE(RIGHT(Z$2, 2)), _xlfn.LOGNORM.INV(P52, 'CWP Prob & Severity Param'!$A$6, 'CWP Prob & Severity Param'!$B$6), "") ->  | AA52: =IF($I52>=_xlfn.NUMBERVALUE(RIGHT(AA$2, 2)), _xlfn.LOGNORM.INV(Q52, 'CWP Prob & Severity Param'!$A$6, 'CWP Prob & Severity Param'!$B$6), "") ->  | AB52: =IF($I52>=_xlfn.NUMBERVALUE(RIGHT(AB$2, 2)), _xlfn.LOGNORM.INV(R52, 'CWP Prob & Severity Param'!$A$6, 'CWP Prob & Severity Param'!$B$6), "") ->  | AC52: =IF($I52>=_xlfn.NUMBERVALUE(RIGHT(AC$2, 2)), _xlfn.LOGNORM.INV(S52, 'CWP Prob & Severity Param'!$A$6, 'CWP Prob & Severity Param'!$B$6), "") ->  | AD52: 0 | AE52: 0.9147615643 | AF52: 0.9962593489 | AG52: 0.9998897425 | AH52: 0.9999975553 | AI52: 0.9999999566 | AJ52: 0.9999999994 | AK52: 1 | AL52: 1 | AM52: 1 | AN52: 1
D53: 51 | E53: ='Freq Fit (Poisson)'!N53 -> 0.04797847446 | F53: 0.2482219306 | G53: =INDEX('Simulation (Poisson)'!$AD$2:$AN$2, MATCH(F53, 'Simulation (Poisson)'!$AD53:$AN53, 1)) -> 0 | H53: 0.5382302404 | I53: =_xlfn.BINOM.INV(G53,'CWP Prob & Severity Param'!$A$2,H53) -> 0 | J53: 0.3740592847 | K53: 0.6431265502 | L53: 0.4244087528 | M53: 0.1594301389 | N53: 0.893143979 | O53: 0.2668668781 | P53: 0.8453386026 | Q53: 0.7928829474 | R53: 0.2545060306 | S53: 0.6173275856 | T53: =IF($I53>=_xlfn.NUMBERVALUE(RIGHT(T$2, 2)), _xlfn.LOGNORM.INV(J53, 'CWP Prob & Severity Param'!$A$6, 'CWP Prob & Severity Param'!$B$6), "") ->  | U53: =IF($I53>=_xlfn.NUMBERVALUE(RIGHT(U$2, 2)), _xlfn.LOGNORM.INV(K53, 'CWP Prob & Severity Param'!$A$6, 'CWP Prob & Severity Param'!$B$6), "") ->  | V53: =IF($I53>=_xlfn.NUMBERVALUE(RIGHT(V$2, 2)), _xlfn.LOGNORM.INV(L53, 'CWP Prob & Severity Param'!$A$6, 'CWP Prob & Severity Param'!$B$6), "") ->  | W53: =IF($I53>=_xlfn.NUMBERVALUE(RIGHT(W$2, 2)), _xlfn.LOGNORM.INV(M53, 'CWP Prob & Severity Param'!$A$6, 'CWP Prob & Severity Param'!$B$6), "") ->  | X53: =IF($I53>=_xlfn.NUMBERVALUE(RIGHT(X$2, 2)), _xlfn.LOGNORM.INV(N53, 'CWP Prob & Severity Param'!$A$6, 'CWP Prob & Severity Param'!$B$6), "") ->  | Y53: =IF($I53>=_xlfn.NUMBERVALUE(RIGHT(Y$2, 2)), _xlfn.LOGNORM.INV(O53, 'CWP Prob & Severity Param'!$A$6, 'CWP Prob & Severity Param'!$B$6), "") ->  | Z53: =IF($I53>=_xlfn.NUMBERVALUE(RIGHT(Z$2, 2)), _xlfn.LOGNORM.INV(P53, 'CWP Prob & Severity Param'!$A$6, 'CWP Prob & Severity Param'!$B$6), "") ->  | AA53: =IF($I53>=_xlfn.NUMBERVALUE(RIGHT(AA$2, 2)), _xlfn.LOGNORM.INV(Q53, 'CWP Prob & Severity Param'!$A$6, 'CWP Prob & Severity Param'!$B$6), "") ->  | AB53: =IF($I53>=_xlfn.NUMBERVALUE(RIGHT(AB$2, 2)), _xlfn.LOGNORM.INV(R53, 'CWP Prob & Severity Param'!$A$6, 'CWP Prob & Severity Param'!$B$6), "") ->  | AC53: =IF($I53>=_xlfn.NUMBERVALUE(RIGHT(AC$2, 2)), _xlfn.LOGNORM.INV(S53, 'CWP Prob & Severity Param'!$A$6, 'CWP Prob & Severity Param'!$B$6), "") ->  | AD53: 0 | AE53: 0.953154304 | AF53: 0.9988851934 | AG53: 0.9999822426 | AH53: 0.9999997875 | AI53: 0.999999998 | AJ53: 1 | AK53: 1 | AL53: 1 | AM53: 1 | AN53: 1
D54: 52 | E54: ='Freq Fit (Poisson)'!N54 -> 0.1193086322 | F54: 0.6413526341 | G54: =INDEX('Simulation (Poisson)'!$AD$2:$AN$2, MATCH(F54, 'Simulation (Poisson)'!$AD54:$AN54, 1)) -> 0 | H54: 0.9074719176 | I54: =_xlfn.BINOM.INV(G54,'CWP Prob & Severity Param'!$A$2,H54) -> 0 | J54: 0.5516523233 | K54: 0.4306135066 | L54: 0.2738670315 | M54: 0.1668085967 | N54: 0.4269413452 | O54: 0.498628357 | P54: 0.5308234259 | Q54: 0.4849785818 | R54: 0.2289168619 | S54: 0.3083144429 | T54: =IF($I54>=_xlfn.NUMBERVALUE(RIGHT(T$2, 2)), _xlfn.LOGNORM.INV(J54, 'CWP Prob & Severity Param'!$A$6, 'CWP Prob & Severity Param'!$B$6), "") ->  | U54: =IF($I54>=_xlfn.NUMBERVALUE(RIGHT(U$2, 2)), _xlfn.LOGNORM.INV(K54, 'CWP Prob & Severity Param'!$A$6, 'CWP Prob & Severity Param'!$B$6), "") ->  | V54: =IF($I54>=_xlfn.NUMBERVALUE(RIGHT(V$2, 2)), _xlfn.LOGNORM.INV(L54, 'CWP Prob & Severity Param'!$A$6, 'CWP Prob & Severity Param'!$B$6), "") ->  | W54: =IF($I54>=_xlfn.NUMBERVALUE(RIGHT(W$2, 2)), _xlfn.LOGNORM.INV(M54, 'CWP Prob & Severity Param'!$A$6, 'CWP Prob & Severity Param'!$B$6), "") ->  | X54: =IF($I54>=_xlfn.NUMBERVALUE(RIGHT(X$2, 2)), _xlfn.LOGNORM.INV(N54, 'CWP Prob & Severity Param'!$A$6, 'CWP Prob & Severity Param'!$B$6), "") ->  | Y54: =IF($I54>=_xlfn.NUMBERVALUE(RIGHT(Y$2, 2)), _xlfn.LOGNORM.INV(O54, 'CWP Prob & Severity Param'!$A$6, 'CWP Prob & Severity Param'!$B$6), "") ->  | Z54: =IF($I54>=_xlfn.NUMBERVALUE(RIGHT(Z$2, 2)), _xlfn.LOGNORM.INV(P54, 'CWP Prob & Severity Param'!$A$6, 'CWP Prob & Severity Param'!$B$6), "") ->  | AA54: =IF($I54>=_xlfn.NUMBERVALUE(RIGHT(AA$2, 2)), _xlfn.LOGNORM.INV(Q54, 'CWP Prob & Severity Param'!$A$6, 'CWP Prob & Severity Param'!$B$6), "") ->  | AB54: =IF($I54>=_xlfn.NUMBERVALUE(RIGHT(AB$2, 2)), _xlfn.LOGNORM.INV(R54, 'CWP Prob & Severity Param'!$A$6, 'CWP Prob & Severity Param'!$B$6), "") ->  | AC54: =IF($I54>=_xlfn.NUMBERVALUE(RIGHT(AC$2, 2)), _xlfn.LOGNORM.INV(S54, 'CWP Prob & Severity Param'!$A$6, 'CWP Prob & Severity Param'!$B$6), "") ->  | AD54: 0 | AE54: 0.887533837 | AF54: 0.9934242851 | AG54: 0.9997411074 | AH54: 0.9999923245 | AI54: 0.9999998176 | AJ54: 0.9999999964 | AK54: 0.9999999999 | AL54: 1 | AM54: 1 | AN54: 1
D55: 53 | E55: ='Freq Fit (Poisson)'!N55 -> 0.03638045762 | F55: 0.6130044922 | G55: =INDEX('Simulation (Poisson)'!$AD$2:$AN$2, MATCH(F55, 'Simulation (Poisson)'!$AD55:$AN55, 1)) -> 0 | H55: 0.6903771508 | I55: =_xlfn.BINOM.INV(G55,'CWP Prob & Severity Param'!$A$2,H55) -> 0 | J55: 0.1149129857 | K55: 0.9869966896 | L55: 0.4337231759 | M55: 0.2765555336 | N55: 0.2622305068 | O55: 0.2687344447 | P55: 0.06635456054 | Q55: 0.3581593896 | R55: 0.5038880709 | S55: 0.7693316158 | T55: =IF($I55>=_xlfn.NUMBERVALUE(RIGHT(T$2, 2)), _xlfn.LOGNORM.INV(J55, 'CWP Prob & Severity Param'!$A$6, 'CWP Prob & Severity Param'!$B$6), "") ->  | U55: =IF($I55>=_xlfn.NUMBERVALUE(RIGHT(U$2, 2)), _xlfn.LOGNORM.INV(K55, 'CWP Prob & Severity Param'!$A$6, 'CWP Prob & Severity Param'!$B$6), "") ->  | V55: =IF($I55>=_xlfn.NUMBERVALUE(RIGHT(V$2, 2)), _xlfn.LOGNORM.INV(L55, 'CWP Prob & Severity Param'!$A$6, 'CWP Prob & Severity Param'!$B$6), "") ->  | W55: =IF($I55>=_xlfn.NUMBERVALUE(RIGHT(W$2, 2)), _xlfn.LOGNORM.INV(M55, 'CWP Prob & Severity Param'!$A$6, 'CWP Prob & Severity Param'!$B$6), "") ->  | X55: =IF($I55>=_xlfn.NUMBERVALUE(RIGHT(X$2, 2)), _xlfn.LOGNORM.INV(N55, 'CWP Prob & Severity Param'!$A$6, 'CWP Prob & Severity Param'!$B$6), "") ->  | Y55: =IF($I55>=_xlfn.NUMBERVALUE(RIGHT(Y$2, 2)), _xlfn.LOGNORM.INV(O55, 'CWP Prob & Severity Param'!$A$6, 'CWP Prob & Severity Param'!$B$6), "") ->  | Z55: =IF($I55>=_xlfn.NUMBERVALUE(RIGHT(Z$2, 2)), _xlfn.LOGNORM.INV(P55, 'CWP Prob & Severity Param'!$A$6, 'CWP Prob & Severity Param'!$B$6), "") ->  | AA55: =IF($I55>=_xlfn.NUMBERVALUE(RIGHT(AA$2, 2)), _xlfn.LOGNORM.INV(Q55, 'CWP Prob & Severity Param'!$A$6, 'CWP Prob & Severity Param'!$B$6), "") ->  | AB55: =IF($I55>=_xlfn.NUMBERVALUE(RIGHT(AB$2, 2)), _xlfn.LOGNORM.INV(R55, 'CWP Prob & Severity Param'!$A$6, 'CWP Prob & Severity Param'!$B$6), "") ->  | AC55: =IF($I55>=_xlfn.NUMBERVALUE(RIGHT(AC$2, 2)), _xlfn.LOGNORM.INV(S55, 'CWP Prob & Severity Param'!$A$6, 'CWP Prob & Severity Param'!$B$6), "") ->  | AD55: 0 | AE55: 0.9642733585 | AF55: 0.9993540646 | AG55: 0.9999921907 | AH55: 0.9999999291 | AI55: 0.9999999995 | AJ55: 1 | AK55: 1 | AL55: 1 | AM55: 1 | AN55: 1
D56: 54 | E56: ='Freq Fit (Poisson)'!N56 -> 0.04040589629 | F56: 0.5639587831 | G56: =INDEX('Simulation (Poisson)'!$AD$2:$AN$2, MATCH(F56, 'Simulation (Poisson)'!$AD56:$AN56, 1)) -> 0 | H56: 0.9629608744 | I56: =_xlfn.BINOM.INV(G56,'CWP Prob & Severity Param'!$A$2,H56) -> 0 | J56: 0.387194236 | K56: 0.2340643672 | L56: 0.5720087271 | M56: 0.9962356735 | N56: 0.8513866484 | O56: 0.1208775589 | P56: 0.3557455119 | Q56: 0.2700977478 | R56: 0.8031551884 | S56: 0.2089876954 | T56: =IF($I56>=_xlfn.NUMBERVALUE(RIGHT(T$2, 2)), _xlfn.LOGNORM.INV(J56, 'CWP Prob & Severity Param'!$A$6, 'CWP Prob & Severity Param'!$B$6), "") ->  | U56: =IF($I56>=_xlfn.NUMBERVALUE(RIGHT(U$2, 2)), _xlfn.LOGNORM.INV(K56, 'CWP Prob & Severity Param'!$A$6, 'CWP Prob & Severity Param'!$B$6), "") ->  | V56: =IF($I56>=_xlfn.NUMBERVALUE(RIGHT(V$2, 2)), _xlfn.LOGNORM.INV(L56, 'CWP Prob & Severity Param'!$A$6, 'CWP Prob & Severity Param'!$B$6), "") ->  | W56: =IF($I56>=_xlfn.NUMBERVALUE(RIGHT(W$2, 2)), _xlfn.LOGNORM.INV(M56, 'CWP Prob & Severity Param'!$A$6, 'CWP Prob & Severity Param'!$B$6), "") ->  | X56: =IF($I56>=_xlfn.NUMBERVALUE(RIGHT(X$2, 2)), _xlfn.LOGNORM.INV(N56, 'CWP Prob & Severity Param'!$A$6, 'CWP Prob & Severity Param'!$B$6), "") ->  | Y56: =IF($I56>=_xlfn.NUMBERVALUE(RIGHT(Y$2, 2)), _xlfn.LOGNORM.INV(O56, 'CWP Prob & Severity Param'!$A$6, 'CWP Prob & Severity Param'!$B$6), "") ->  | Z56: =IF($I56>=_xlfn.NUMBERVALUE(RIGHT(Z$2, 2)), _xlfn.LOGNORM.INV(P56, 'CWP Prob & Severity Param'!$A$6, 'CWP Prob & Severity Param'!$B$6), "") ->  | AA56: =IF($I56>=_xlfn.NUMBERVALUE(RIGHT(AA$2, 2)), _xlfn.LOGNORM.INV(Q56, 'CWP Prob & Severity Param'!$A$6, 'CWP Prob & Severity Param'!$B$6), "") ->  | AB56: =IF($I56>=_xlfn.NUMBERVALUE(RIGHT(AB$2, 2)), _xlfn.LOGNORM.INV(R56, 'CWP Prob & Severity Param'!$A$6, 'CWP Prob & Severity Param'!$B$6), "") ->  | AC56: =IF($I56>=_xlfn.NUMBERVALUE(RIGHT(AC$2, 2)), _xlfn.LOGNORM.INV(S56, 'CWP Prob & Severity Param'!$A$6, 'CWP Prob & Severity Param'!$B$6), "") ->  | AD56: 0 | AE56: 0.9603995374 | AF56: 0.9992053415 | AG56: 0.9999893332 | AH56: 0.9999998925 | AI56: 0.9999999991 | AJ56: 1 | AK56: 1 | AL56: 1 | AM56: 1 | AN56: 1
D57: 55 | E57: ='Freq Fit (Poisson)'!N57 -> 0.5595520586 | F57: 0.8567303783 | G57: =INDEX('Simulation (Poisson)'!$AD$2:$AN$2, MATCH(F57, 'Simulation (Poisson)'!$AD57:$AN57, 1)) -> 1 | H57: 0.7694337931 | I57: =_xlfn.BINOM.INV(G57,'CWP Prob & Severity Param'!$A$2,H57) -> 1 | J57: 0.7250672088 | K57: 0.6040658928 | L57: 0.4166046029 | M57: 0.4456558456 | N57: 0.5829895564 | O57: 0.2637437374 | P57: 0.06031722127 | Q57: 0.3124642246 | R57: 0.4663573647 | S57: 0.5039185768 | T57: =IF($I57>=_xlfn.NUMBERVALUE(RIGHT(T$2, 2)), _xlfn.LOGNORM.INV(J57, 'CWP Prob & Severity Param'!$A$6, 'CWP Prob & Severity Param'!$B$6), "") -> 72832.90474 | U57: =IF($I57>=_xlfn.NUMBERVALUE(RIGHT(U$2, 2)), _xlfn.LOGNORM.INV(K57, 'CWP Prob & Severity Param'!$A$6, 'CWP Prob & Severity Param'!$B$6), "") ->  | V57: =IF($I57>=_xlfn.NUMBERVALUE(RIGHT(V$2, 2)), _xlfn.LOGNORM.INV(L57, 'CWP Prob & Severity Param'!$A$6, 'CWP Prob & Severity Param'!$B$6), "") ->  | W57: =IF($I57>=_xlfn.NUMBERVALUE(RIGHT(W$2, 2)), _xlfn.LOGNORM.INV(M57, 'CWP Prob & Severity Param'!$A$6, 'CWP Prob & Severity Param'!$B$6), "") ->  | X57: =IF($I57>=_xlfn.NUMBERVALUE(RIGHT(X$2, 2)), _xlfn.LOGNORM.INV(N57, 'CWP Prob & Severity Param'!$A$6, 'CWP Prob & Severity Param'!$B$6), "") ->  | Y57: =IF($I57>=_xlfn.NUMBERVALUE(RIGHT(Y$2, 2)), _xlfn.LOGNORM.INV(O57, 'CWP Prob & Severity Param'!$A$6, 'CWP Prob & Severity Param'!$B$6), "") ->  | Z57: =IF($I57>=_xlfn.NUMBERVALUE(RIGHT(Z$2, 2)), _xlfn.LOGNORM.INV(P57, 'CWP Prob & Severity Param'!$A$6, 'CWP Prob & Severity Param'!$B$6), "") ->  | AA57: =IF($I57>=_xlfn.NUMBERVALUE(RIGHT(AA$2, 2)), _xlfn.LOGNORM.INV(Q57, 'CWP Prob & Severity Param'!$A$6, 'CWP Prob & Severity Param'!$B$6), "") ->  | AB57: =IF($I57>=_xlfn.NUMBERVALUE(RIGHT(AB$2, 2)), _xlfn.LOGNORM.INV(R57, 'CWP Prob & Severity Param'!$A$6, 'CWP Prob & Severity Param'!$B$6), "") ->  | AC57: =IF($I57>=_xlfn.NUMBERVALUE(RIGHT(AC$2, 2)), _xlfn.LOGNORM.INV(S57, 'CWP Prob & Severity Param'!$A$6, 'CWP Prob & Severity Param'!$B$6), "") ->  | AD57: 0 | AE57: 0.5714649893 | AF57: =_xlfn.POISSON.DIST(AE$2, $E57, TRUE) -> 0.8912294006 | AG57: 0.9806918178 | AH57: 0.9973781111 | AI57: 0.9997123235 | AJ57: 0.9999735462 | AK57: 0.9999979075 | AL57: 0.9999998548 | AM57: 0.999999991 | AN57: 0.9999999995
D58: 56 | E58: ='Freq Fit (Poisson)'!N58 -> 0.2358789611 | F58: 0.4964588184 | G58: =INDEX('Simulation (Poisson)'!$AD$2:$AN$2, MATCH(F58, 'Simulation (Poisson)'!$AD58:$AN58, 1)) -> 0 | H58: 0.6318272228 | I58: =_xlfn.BINOM.INV(G58,'CWP Prob & Severity Param'!$A$2,H58) -> 0 | J58: 0.4554558968 | K58: 0.9495777776 | L58: 0.08302486322 | M58: 0.1850457133 | N58: 0.4342513408 | O58: 0.647130401 | P58: 0.2034688148 | Q58: 0.8457165587 | R58: 0.4594177261 | S58: 0.5611031793 | T58: =IF($I58>=_xlfn.NUMBERVALUE(RIGHT(T$2, 2)), _xlfn.LOGNORM.INV(J58, 'CWP Prob & Severity Param'!$A$6, 'CWP Prob & Severity Param'!$B$6), "") ->  | U58: =IF($I58>=_xlfn.NUMBERVALUE(RIGHT(U$2, 2)), _xlfn.LOGNORM.INV(K58, 'CWP Prob & Severity Param'!$A$6, 'CWP Prob & Severity Param'!$B$6), "") ->  | V58: =IF($I58>=_xlfn.NUMBERVALUE(RIGHT(V$2, 2)), _xlfn.LOGNORM.INV(L58, 'CWP Prob & Severity Param'!$A$6, 'CWP Prob & Severity Param'!$B$6), "") ->  | W58: =IF($I58>=_xlfn.NUMBERVALUE(RIGHT(W$2, 2)), _xlfn.LOGNORM.INV(M58, 'CWP Prob & Severity Param'!$A$6, 'CWP Prob & Severity Param'!$B$6), "") ->  | X58: =IF($I58>=_xlfn.NUMBERVALUE(RIGHT(X$2, 2)), _xlfn.LOGNORM.INV(N58, 'CWP Prob & Severity Param'!$A$6, 'CWP Prob & Severity Param'!$B$6), "") ->  | Y58: =IF($I58>=_xlfn.NUMBERVALUE(RIGHT(Y$2, 2)), _xlfn.LOGNORM.INV(O58, 'CWP Prob & Severity Param'!$A$6, 'CWP Prob & Severity Param'!$B$6), "") ->  | Z58: =IF($I58>=_xlfn.NUMBERVALUE(RIGHT(Z$2, 2)), _xlfn.LOGNORM.INV(P58, 'CWP Prob & Severity Param'!$A$6, 'CWP Prob & Severity Param'!$B$6), "") ->  | AA58: =IF($I58>=_xlfn.NUMBERVALUE(RIGHT(AA$2, 2)), _xlfn.LOGNORM.INV(Q58, 'CWP Prob & Severity Param'!$A$6, 'CWP Prob & Severity Param'!$B$6), "") ->  | AB58: =IF($I58>=_xlfn.NUMBERVALUE(RIGHT(AB$2, 2)), _xlfn.LOGNORM.INV(R58, 'CWP Prob & Severity Param'!$A$6, 'CWP Prob & Severity Param'!$B$6), "") ->  | AC58: =IF($I58>=_xlfn.NUMBERVALUE(RIGHT(AC$2, 2)), _xlfn.LOGNORM.INV(S58, 'CWP Prob & Severity Param'!$A$6, 'CWP Prob & Severity Param'!$B$6), "") ->  | AD58: 0 | AE58: 0.7898762739 | AF58: 0.9761914688 | AG58: 0.9981653861 | AH58: 0.9998931144 | AI58: 0.999994998 | AJ58: 0.9999998045 | AK58: 0.9999999934 | AL58: 0.9999999998 | AM58: 1 | AN58: 1
D59: 57 | E59: ='Freq Fit (Poisson)'!N59 -> 0.1837659333 | F59: 0.8020841934 | G59: =INDEX('Simulation (Poisson)'!$AD$2:$AN$2, MATCH(F59, 'Simulation (Poisson)'!$AD59:$AN59, 1)) -> 0 | H59: 0.6550589326 | I59: =_xlfn.BINOM.INV(G59,'CWP Prob & Severity Param'!$A$2,H59) -> 0 | J59: 0.5106310989 | K59: 0.7589305783 | L59: 0.1304213975 | M59: 0.8596973301 | N59: 0.6550989759 | O59: 0.4517253402 | P59: 0.5960048378 | Q59: 0.2845676534 | R59: 0.5357557679 | S59: 0.008996847272 | T59: =IF($I59>=_xlfn.NUMBERVALUE(RIGHT(T$2, 2)), _xlfn.LOGNORM.INV(J59, 'CWP Prob & Severity Param'!$A$6, 'CWP Prob & Severity Param'!$B$6), "") ->  | U59: =IF($I59>=_xlfn.NUMBERVALUE(RIGHT(U$2, 2)), _xlfn.LOGNORM.INV(K59, 'CWP Prob & Severity Param'!$A$6, 'CWP Prob & Severity Param'!$B$6), "") ->  | V59: =IF($I59>=_xlfn.NUMBERVALUE(RIGHT(V$2, 2)), _xlfn.LOGNORM.INV(L59, 'CWP Prob & Severity Param'!$A$6, 'CWP Prob & Severity Param'!$B$6), "") ->  | W59: =IF($I59>=_xlfn.NUMBERVALUE(RIGHT(W$2, 2)), _xlfn.LOGNORM.INV(M59, 'CWP Prob & Severity Param'!$A$6, 'CWP Prob & Severity Param'!$B$6), "") ->  | X59: =IF($I59>=_xlfn.NUMBERVALUE(RIGHT(X$2, 2)), _xlfn.LOGNORM.INV(N59, 'CWP Prob & Severity Param'!$A$6, 'CWP Prob & Severity Param'!$B$6), "") ->  | Y59: =IF($I59>=_xlfn.NUMBERVALUE(RIGHT(Y$2, 2)), _xlfn.LOGNORM.INV(O59, 'CWP Prob & Severity Param'!$A$6, 'CWP Prob & Severity Param'!$B$6), "") ->  | Z59: =IF($I59>=_xlfn.NUMBERVALUE(RIGHT(Z$2, 2)), _xlfn.LOGNORM.INV(P59, 'CWP Prob & Severity Param'!$A$6, 'CWP Prob & Severity Param'!$B$6), "") ->  | AA59: =IF($I59>=_xlfn.NUMBERVALUE(RIGHT(AA$2, 2)), _xlfn.LOGNORM.INV(Q59, 'CWP Prob & Severity Param'!$A$6, 'CWP Prob & Severity Param'!$B$6), "") ->  | AB59: =IF($I59>=_xlfn.NUMBERVALUE(RIGHT(AB$2, 2)), _xlfn.LOGNORM.INV(R59, 'CWP Prob & Severity Param'!$A$6, 'CWP Prob & Severity Param'!$B$6), "") ->  | AC59: =IF($I59>=_xlfn.NUMBERVALUE(RIGHT(AC$2, 2)), _xlfn.LOGNORM.INV(S59, 'CWP Prob & Severity Param'!$A$6, 'CWP Prob & Severity Param'!$B$6), "") ->  | AD59: 0 | AE59: 0.8321305551 | AF59: 0.9850478032 | AG59: 0.9990982936 | AH59: 0.9999589607 | AI59: 0.9999985011 | AJ59: 0.9999999543 | AK59: 0.9999999988 | AL59: 1 | AM59: 1 | AN59: 1
D60: 58 | E60: ='Freq Fit (Poisson)'!N60 -> 0.2532483379 | F60: 0.3844586335 | G60: =INDEX('Simulation (Poisson)'!$AD$2:$AN$2, MATCH(F60, 'Simulation (Poisson)'!$AD60:$AN60, 1)) -> 0 | H60: 0.243327172 | I60: =_xlfn.BINOM.INV(G60,'CWP Prob & Severity Param'!$A$2,H60) -> 0 | J60: 0.3748669115 | K60: 0.09644399914 | L60: 0.7394585661 | M60: 0.1404957246 | N60: 0.474700122 | O60: 0.4548237719 | P60: 0.5889561996 | Q60: 0.434461694 | R60: 0.2576169752 | S60: 0.01029368481 | T60: =IF($I60>=_xlfn.NUMBERVALUE(RIGHT(T$2, 2)), _xlfn.LOGNORM.INV(J60, 'CWP Prob & Severity Param'!$A$6, 'CWP Prob & Severity Param'!$B$6), "") ->  | U60: =IF($I60>=_xlfn.NUMBERVALUE(RIGHT(U$2, 2)), _xlfn.LOGNORM.INV(K60, 'CWP Prob & Severity Param'!$A$6, 'CWP Prob & Severity Param'!$B$6), "") ->  | V60: =IF($I60>=_xlfn.NUMBERVALUE(RIGHT(V$2, 2)), _xlfn.LOGNORM.INV(L60, 'CWP Prob & Severity Param'!$A$6, 'CWP Prob & Severity Param'!$B$6), "") ->  | W60: =IF($I60>=_xlfn.NUMBERVALUE(RIGHT(W$2, 2)), _xlfn.LOGNORM.INV(M60, 'CWP Prob & Severity Param'!$A$6, 'CWP Prob & Severity Param'!$B$6), "") ->  | X60: =IF($I60>=_xlfn.NUMBERVALUE(RIGHT(X$2, 2)), _xlfn.LOGNORM.INV(N60, 'CWP Prob & Severity Param'!$A$6, 'CWP Prob & Severity Param'!$B$6), "") ->  | Y60: =IF($I60>=_xlfn.NUMBERVALUE(RIGHT(Y$2, 2)), _xlfn.LOGNORM.INV(O60, 'CWP Prob & Severity Param'!$A$6, 'CWP Prob & Severity Param'!$B$6), "") ->  | Z60: =IF($I60>=_xlfn.NUMBERVALUE(RIGHT(Z$2, 2)), _xlfn.LOGNORM.INV(P60, 'CWP Prob & Severity Param'!$A$6, 'CWP Prob & Severity Param'!$B$6), "") ->  | AA60: =IF($I60>=_xlfn.NUMBERVALUE(RIGHT(AA$2, 2)), _xlfn.LOGNORM.INV(Q60, 'CWP Prob & Severity Param'!$A$6, 'CWP Prob & Severity Param'!$B$6), "") ->  | AB60: =IF($I60>=_xlfn.NUMBERVALUE(RIGHT(AB$2, 2)), _xlfn.LOGNORM.INV(R60, 'CWP Prob & Severity Param'!$A$6, 'CWP Prob & Severity Param'!$B$6), "") ->  | AC60: =IF($I60>=_xlfn.NUMBERVALUE(RIGHT(AC$2, 2)), _xlfn.LOGNORM.INV(S60, 'CWP Prob & Severity Param'!$A$6, 'CWP Prob & Severity Param'!$B$6), "") ->  | AD60: 0 | AE60: 0.7762750793 | AF60: 0.972865453 | AG60: 0.9977585456 | AH60: 0.9998599238 | AI60: 0.9999929664 | AJ60: 0.999999705 | AK60: 0.9999999894 | AL60: 0.9999999997 | AM60: 1 | AN60: 1
D61: 59 | E61: ='Freq Fit (Poisson)'!N61 -> 0.2425651775 | F61: 0.9490071583 | G61: =INDEX('Simulation (Poisson)'!$AD$2:$AN$2, MATCH(F61, 'Simulation (Poisson)'!$AD61:$AN61, 1)) -> 1 | H61: 0.7037456013 | I61: =_xlfn.BINOM.INV(G61,'CWP Prob & Severity Param'!$A$2,H61) -> 1 | J61: 0.08620609058 | K61: 0.8873378849 | L61: 0.0007421721327 | M61: 0.8253559506 | N61: 0.3494541772 | O61: 0.9005276656 | P61: 0.8353806525 | Q61: 0.08182536733 | R61: 0.196690652 | S61: 0.3545294461 | T61: =IF($I61>=_xlfn.NUMBERVALUE(RIGHT(T$2, 2)), _xlfn.LOGNORM.INV(J61, 'CWP Prob & Severity Param'!$A$6, 'CWP Prob & Severity Param'!$B$6), "") -> 1438.005342 | U61: =IF($I61>=_xlfn.NUMBERVALUE(RIGHT(U$2, 2)), _xlfn.LOGNORM.INV(K61, 'CWP Prob & Severity Param'!$A$6, 'CWP Prob & Severity Param'!$B$6), "") ->  | V61: =IF($I61>=_xlfn.NUMBERVALUE(RIGHT(V$2, 2)), _xlfn.LOGNORM.INV(L61, 'CWP Prob & Severity Param'!$A$6, 'CWP Prob & Severity Param'!$B$6), "") ->  | W61: =IF($I61>=_xlfn.NUMBERVALUE(RIGHT(W$2, 2)), _xlfn.LOGNORM.INV(M61, 'CWP Prob & Severity Param'!$A$6, 'CWP Prob & Severity Param'!$B$6), "") ->  | X61: =IF($I61>=_xlfn.NUMBERVALUE(RIGHT(X$2, 2)), _xlfn.LOGNORM.INV(N61, 'CWP Prob & Severity Param'!$A$6, 'CWP Prob & Severity Param'!$B$6), "") ->  | Y61: =IF($I61>=_xlfn.NUMBERVALUE(RIGHT(Y$2, 2)), _xlfn.LOGNORM.INV(O61, 'CWP Prob & Severity Param'!$A$6, 'CWP Prob & Severity Param'!$B$6), "") ->  | Z61: =IF($I61>=_xlfn.NUMBERVALUE(RIGHT(Z$2, 2)), _xlfn.LOGNORM.INV(P61, 'CWP Prob & Severity Param'!$A$6, 'CWP Prob & Severity Param'!$B$6), "") ->  | AA61: =IF($I61>=_xlfn.NUMBERVALUE(RIGHT(AA$2, 2)), _xlfn.LOGNORM.INV(Q61, 'CWP Prob & Severity Param'!$A$6, 'CWP Prob & Severity Param'!$B$6), "") ->  | AB61: =IF($I61>=_xlfn.NUMBERVALUE(RIGHT(AB$2, 2)), _xlfn.LOGNORM.INV(R61, 'CWP Prob & Severity Param'!$A$6, 'CWP Prob & Severity Param'!$B$6), "") ->  | AC61: =IF($I61>=_xlfn.NUMBERVALUE(RIGHT(AC$2, 2)), _xlfn.LOGNORM.INV(S61, 'CWP Prob & Severity Param'!$A$6, 'CWP Prob & Severity Param'!$B$6), "") ->  | AD61: 0 | AE61: 0.7846126068 | AF61: 0.9749323031 | AG61: 0.9980147685 | AH61: 0.9998811026 | AI61: 0.9999942795 | AJ61: 0.9999997701 | AK61: 0.9999999921 | AL61: 0.9999999998 | AM61: 1 | AN61: 1
D62: 60 | E62: ='Freq Fit (Poisson)'!N62 -> 0.1410800197 | F62: 0.4747529283 | G62: =INDEX('Simulation (Poisson)'!$AD$2:$AN$2, MATCH(F62, 'Simulation (Poisson)'!$AD62:$AN62, 1)) -> 0 | H62: 0.9592768342 | I62: =_xlfn.BINOM.INV(G62,'CWP Prob & Severity Param'!$A$2,H62) -> 0 | J62: 0.1476796895 | K62: 0.8126151463 | L62: 0.3040083598 | M62: 0.4500055795 | N62: 0.1085756367 | O62: 0.7156522485 | P62: 0.05657468788 | Q62: 0.09745018062 | R62: 0.2569148112 | S62: 0.07857849559 | T62: =IF($I62>=_xlfn.NUMBERVALUE(RIGHT(T$2, 2)), _xlfn.LOGNORM.INV(J62, 'CWP Prob & Severity Param'!$A$6, 'CWP Prob & Severity Param'!$B$6), "") ->  | U62: =IF($I62>=_xlfn.NUMBERVALUE(RIGHT(U$2, 2)), _xlfn.LOGNORM.INV(K62, 'CWP Prob & Severity Param'!$A$6, 'CWP Prob & Severity Param'!$B$6), "") ->  | V62: =IF($I62>=_xlfn.NUMBERVALUE(RIGHT(V$2, 2)), _xlfn.LOGNORM.INV(L62, 'CWP Prob & Severity Param'!$A$6, 'CWP Prob & Severity Param'!$B$6), "") ->  | W62: =IF($I62>=_xlfn.NUMBERVALUE(RIGHT(W$2, 2)), _xlfn.LOGNORM.INV(M62, 'CWP Prob & Severity Param'!$A$6, 'CWP Prob & Severity Param'!$B$6), "") ->  | X62: =IF($I62>=_xlfn.NUMBERVALUE(RIGHT(X$2, 2)), _xlfn.LOGNORM.INV(N62, 'CWP Prob & Severity Param'!$A$6, 'CWP Prob & Severity Param'!$B$6), "") ->  | Y62: =IF($I62>=_xlfn.NUMBERVALUE(RIGHT(Y$2, 2)), _xlfn.LOGNORM.INV(O62, 'CWP Prob & Severity Param'!$A$6, 'CWP Prob & Severity Param'!$B$6), "") ->  | Z62: =IF($I62>=_xlfn.NUMBERVALUE(RIGHT(Z$2, 2)), _xlfn.LOGNORM.INV(P62, 'CWP Prob & Severity Param'!$A$6, 'CWP Prob & Severity Param'!$B$6), "") ->  | AA62: =IF($I62>=_xlfn.NUMBERVALUE(RIGHT(AA$2, 2)), _xlfn.LOGNORM.INV(Q62, 'CWP Prob & Severity Param'!$A$6, 'CWP Prob & Severity Param'!$B$6), "") ->  | AB62: =IF($I62>=_xlfn.NUMBERVALUE(RIGHT(AB$2, 2)), _xlfn.LOGNORM.INV(R62, 'CWP Prob & Severity Param'!$A$6, 'CWP Prob & Severity Param'!$B$6), "") ->  | AC62: =IF($I62>=_xlfn.NUMBERVALUE(RIGHT(AC$2, 2)), _xlfn.LOGNORM.INV(S62, 'CWP Prob & Severity Param'!$A$6, 'CWP Prob & Severity Param'!$B$6), "") ->  | AD62: 0 | AE62: 0.8684198182 | AF62: 0.9909365033 | AG62: 0.9995788315 | AH62: 0.9999852514 | AI62: 0.9999995858 | AJ62: 0.9999999903 | AK62: 0.9999999998 | AL62: 1 | AM62: 1 | AN62: 1
D63: 61 | E63: ='Freq Fit (Poisson)'!N63 -> 0.124102992 | F63: 0.1725216167 | G63: =INDEX('Simulation (Poisson)'!$AD$2:$AN$2, MATCH(F63, 'Simulation (Poisson)'!$AD63:$AN63, 1)) -> 0 | H63: 0.7245253277 | I63: =_xlfn.BINOM.INV(G63,'CWP Prob & Severity Param'!$A$2,H63) -> 0 | J63: 0.1150680719 | K63: 0.5763931709 | L63: 0.05675347265 | M63: 0.3209577347 | N63: 0.1206024617 | O63: 0.9636280095 | P63: 0.2340014723 | Q63: 0.744247403 | R63: 0.8698139593 | S63: 0.6357631834 | T63: =IF($I63>=_xlfn.NUMBERVALUE(RIGHT(T$2, 2)), _xlfn.LOGNORM.INV(J63, 'CWP Prob & Severity Param'!$A$6, 'CWP Prob & Severity Param'!$B$6), "") ->  | U63: =IF($I63>=_xlfn.NUMBERVALUE(RIGHT(U$2, 2)), _xlfn.LOGNORM.INV(K63, 'CWP Prob & Severity Param'!$A$6, 'CWP Prob & Severity Param'!$B$6), "") ->  | V63: =IF($I63>=_xlfn.NUMBERVALUE(RIGHT(V$2, 2)), _xlfn.LOGNORM.INV(L63, 'CWP Prob & Severity Param'!$A$6, 'CWP Prob & Severity Param'!$B$6), "") ->  | W63: =IF($I63>=_xlfn.NUMBERVALUE(RIGHT(W$2, 2)), _xlfn.LOGNORM.INV(M63, 'CWP Prob & Severity Param'!$A$6, 'CWP Prob & Severity Param'!$B$6), "") ->  | X63: =IF($I63>=_xlfn.NUMBERVALUE(RIGHT(X$2, 2)), _xlfn.LOGNORM.INV(N63, 'CWP Prob & Severity Param'!$A$6, 'CWP Prob & Severity Param'!$B$6), "") ->  | Y63: =IF($I63>=_xlfn.NUMBERVALUE(RIGHT(Y$2, 2)), _xlfn.LOGNORM.INV(O63, 'CWP Prob & Severity Param'!$A$6, 'CWP Prob & Severity Param'!$B$6), "") ->  | Z63: =IF($I63>=_xlfn.NUMBERVALUE(RIGHT(Z$2, 2)), _xlfn.LOGNORM.INV(P63, 'CWP Prob & Severity Param'!$A$6, 'CWP Prob & Severity Param'!$B$6), "") ->  | AA63: =IF($I63>=_xlfn.NUMBERVALUE(RIGHT(AA$2, 2)), _xlfn.LOGNORM.INV(Q63, 'CWP Prob & Severity Param'!$A$6, 'CWP Prob & Severity Param'!$B$6), "") ->  | AB63: =IF($I63>=_xlfn.NUMBERVALUE(RIGHT(AB$2, 2)), _xlfn.LOGNORM.INV(R63, 'CWP Prob & Severity Param'!$A$6, 'CWP Prob & Severity Param'!$B$6), "") ->  | AC63: =IF($I63>=_xlfn.NUMBERVALUE(RIGHT(AC$2, 2)), _xlfn.LOGNORM.INV(S63, 'CWP Prob & Severity Param'!$A$6, 'CWP Prob & Severity Param'!$B$6), "") ->  | AD63: 0 | AE63: 0.8832888645 | AF63: 0.9929076554 | AG63: 0.9997096654 | AH63: 0.9999910486 | AI63: 0.9999997788 | AJ63: 0.9999999954 | AK63: 0.9999999999 | AL63: 1 | AM63: 1 | AN63: 1
D64: 62 | E64: ='Freq Fit (Poisson)'!N64 -> 0.1389550379 | F64: 0.2223154799 | G64: =INDEX('Simulation (Poisson)'!$AD$2:$AN$2, MATCH(F64, 'Simulation (Poisson)'!$AD64:$AN64, 1)) -> 0 | H64: 0.6596487548 | I64: =_xlfn.BINOM.INV(G64,'CWP Prob & Severity Param'!$A$2,H64) -> 0 | J64: 0.3563434904 | K64: 0.8708485908 | L64: 0.2453898256 | M64: 0.905209789 | N64: 0.04411620122 | O64: 0.2903299083 | P64: 0.7973085778 | Q64: 0.8292902697 | R64: 0.3527174241 | S64: 0.3147922942 | T64: =IF($I64>=_xlfn.NUMBERVALUE(RIGHT(T$2, 2)), _xlfn.LOGNORM.INV(J64, 'CWP Prob & Severity Param'!$A$6, 'CWP Prob & Severity Param'!$B$6), "") ->  | U64: =IF($I64>=_xlfn.NUMBERVALUE(RIGHT(U$2, 2)), _xlfn.LOGNORM.INV(K64, 'CWP Prob & Severity Param'!$A$6, 'CWP Prob & Severity Param'!$B$6), "") ->  | V64: =IF($I64>=_xlfn.NUMBERVALUE(RIGHT(V$2, 2)), _xlfn.LOGNORM.INV(L64, 'CWP Prob & Severity Param'!$A$6, 'CWP Prob & Severity Param'!$B$6), "") ->  | W64: =IF($I64>=_xlfn.NUMBERVALUE(RIGHT(W$2, 2)), _xlfn.LOGNORM.INV(M64, 'CWP Prob & Severity Param'!$A$6, 'CWP Prob & Severity Param'!$B$6), "") ->  | X64: =IF($I64>=_xlfn.NUMBERVALUE(RIGHT(X$2, 2)), _xlfn.LOGNORM.INV(N64, 'CWP Prob & Severity Param'!$A$6, 'CWP Prob & Severity Param'!$B$6), "") ->  | Y64: =IF($I64>=_xlfn.NUMBERVALUE(RIGHT(Y$2, 2)), _xlfn.LOGNORM.INV(O64, 'CWP Prob & Severity Param'!$A$6, 'CWP Prob & Severity Param'!$B$6), "") ->  | Z64: =IF($I64>=_xlfn.NUMBERVALUE(RIGHT(Z$2, 2)), _xlfn.LOGNORM.INV(P64, 'CWP Prob & Severity Param'!$A$6, 'CWP Prob & Severity Param'!$B$6), "") ->  | AA64: =IF($I64>=_xlfn.NUMBERVALUE(RIGHT(AA$2, 2)), _xlfn.LOGNORM.INV(Q64, 'CWP Prob & Severity Param'!$A$6, 'CWP Prob & Severity Param'!$B$6), "") ->  | AB64: =IF($I64>=_xlfn.NUMBERVALUE(RIGHT(AB$2, 2)), _xlfn.LOGNORM.INV(R64, 'CWP Prob & Severity Param'!$A$6, 'CWP Prob & Severity Param'!$B$6), "") ->  | AC64: =IF($I64>=_xlfn.NUMBERVALUE(RIGHT(AC$2, 2)), _xlfn.LOGNORM.INV(S64, 'CWP Prob & Severity Param'!$A$6, 'CWP Prob & Severity Param'!$B$6), "") ->  | AD64: 0 | AE64: 0.8702671566 | AF64: 0.9911951623 | AG64: 0.9995969402 | AH64: 0.9999860966 | AI64: 0.9999996154 | AJ64: 0.9999999911 | AK64: 0.9999999998 | AL64: 1 | AM64: 1 | AN64: 1
D65: 63 | E65: ='Freq Fit (Poisson)'!N65 -> 0.2291854626 | F65: 0.8842436728 | G65: =INDEX('Simulation (Poisson)'!$AD$2:$AN$2, MATCH(F65, 'Simulation (Poisson)'!$AD65:$AN65, 1)) -> 1 | H65: 0.7502405697 | I65: =_xlfn.BINOM.INV(G65,'CWP Prob & Severity Param'!$A$2,H65) -> 1 | J65: 0.6547819377 | K65: 0.1289068644 | L65: 0.42150639 | M65: 0.467750673 | N65: 0.6135440022 | O65: 0.2807388117 | P65: 0.9261341159 | Q65: 0.69473163 | R65: 0.771464289 | S65: 0.9475926122 | T65: =IF($I65>=_xlfn.NUMBERVALUE(RIGHT(T$2, 2)), _xlfn.LOGNORM.INV(J65, 'CWP Prob & Severity Param'!$A$6, 'CWP Prob & Severity Param'!$B$6), "") -> 48850.82572 | U65: =IF($I65>=_xlfn.NUMBERVALUE(RIGHT(U$2, 2)), _xlfn.LOGNORM.INV(K65, 'CWP Prob & Severity Param'!$A$6, 'CWP Prob & Severity Param'!$B$6), "") ->  | V65: =IF($I65>=_xlfn.NUMBERVALUE(RIGHT(V$2, 2)), _xlfn.LOGNORM.INV(L65, 'CWP Prob & Severity Param'!$A$6, 'CWP Prob & Severity Param'!$B$6), "") ->  | W65: =IF($I65>=_xlfn.NUMBERVALUE(RIGHT(W$2, 2)), _xlfn.LOGNORM.INV(M65, 'CWP Prob & Severity Param'!$A$6, 'CWP Prob & Severity Param'!$B$6), "") ->  | X65: =IF($I65>=_xlfn.NUMBERVALUE(RIGHT(X$2, 2)), _xlfn.LOGNORM.INV(N65, 'CWP Prob & Severity Param'!$A$6, 'CWP Prob & Severity Param'!$B$6), "") ->  | Y65: =IF($I65>=_xlfn.NUMBERVALUE(RIGHT(Y$2, 2)), _xlfn.LOGNORM.INV(O65, 'CWP Prob & Severity Param'!$A$6, 'CWP Prob & Severity Param'!$B$6), "") ->  | Z65: =IF($I65>=_xlfn.NUMBERVALUE(RIGHT(Z$2, 2)), _xlfn.LOGNORM.INV(P65, 'CWP Prob & Severity Param'!$A$6, 'CWP Prob & Severity Param'!$B$6), "") ->  | AA65: =IF($I65>=_xlfn.NUMBERVALUE(RIGHT(AA$2, 2)), _xlfn.LOGNORM.INV(Q65, 'CWP Prob & Severity Param'!$A$6, 'CWP Prob & Severity Param'!$B$6), "") ->  | AB65: =IF($I65>=_xlfn.NUMBERVALUE(RIGHT(AB$2, 2)), _xlfn.LOGNORM.INV(R65, 'CWP Prob & Severity Param'!$A$6, 'CWP Prob & Severity Param'!$B$6), "") ->  | AC65: =IF($I65>=_xlfn.NUMBERVALUE(RIGHT(AC$2, 2)), _xlfn.LOGNORM.INV(S65, 'CWP Prob & Severity Param'!$A$6, 'CWP Prob & Severity Param'!$B$6), "") ->  | AD65: 0 | AE65: 0.7951810435 | AF65: 0.9774249788 | AG65: 0.9983088091 | AH65: 0.9999042325 | AI65: 0.9999956445 | AJ65: 0.9999998346 | AK65: 0.9999999946 | AL65: 0.9999999998 | AM65: 1 | AN65: 1
D66: 64 | E66: ='Freq Fit (Poisson)'!N66 -> 0.1404692126 | F66: 0.3827906896 | G66: =INDEX('Simulation (Poisson)'!$AD$2:$AN$2, MATCH(F66, 'Simulation (Poisson)'!$AD66:$AN66, 1)) -> 0 | H66: 0.4684356078 | I66: =_xlfn.BINOM.INV(G66,'CWP Prob & Severity Param'!$A$2,H66) -> 0 | J66: 0.4672042737 | K66: 0.1960245472 | L66: 0.5218617582 | M66: 0.5276968499 | N66: 0.9085643092 | O66: 0.7322033597 | P66: 0.2508912368 | Q66: 0.1958106852 | R66: 0.8943156223 | S66: 0.6322989671 | T66: =IF($I66>=_xlfn.NUMBERVALUE(RIGHT(T$2, 2)), _xlfn.LOGNORM.INV(J66, 'CWP Prob & Severity Param'!$A$6, 'CWP Prob & Severity Param'!$B$6), "") ->  | U66: =IF($I66>=_xlfn.NUMBERVALUE(RIGHT(U$2, 2)), _xlfn.LOGNORM.INV(K66, 'CWP Prob & Severity Param'!$A$6, 'CWP Prob & Severity Param'!$B$6), "") ->  | V66: =IF($I66>=_xlfn.NUMBERVALUE(RIGHT(V$2, 2)), _xlfn.LOGNORM.INV(L66, 'CWP Prob & Severity Param'!$A$6, 'CWP Prob & Severity Param'!$B$6), "") ->  | W66: =IF($I66>=_xlfn.NUMBERVALUE(RIGHT(W$2, 2)), _xlfn.LOGNORM.INV(M66, 'CWP Prob & Severity Param'!$A$6, 'CWP Prob & Severity Param'!$B$6), "") ->  | X66: =IF($I66>=_xlfn.NUMBERVALUE(RIGHT(X$2, 2)), _xlfn.LOGNORM.INV(N66, 'CWP Prob & Severity Param'!$A$6, 'CWP Prob & Severity Param'!$B$6), "") ->  | Y66: =IF($I66>=_xlfn.NUMBERVALUE(RIGHT(Y$2, 2)), _xlfn.LOGNORM.INV(O66, 'CWP Prob & Severity Param'!$A$6, 'CWP Prob & Severity Param'!$B$6), "") ->  | Z66: =IF($I66>=_xlfn.NUMBERVALUE(RIGHT(Z$2, 2)), _xlfn.LOGNORM.INV(P66, 'CWP Prob & Severity Param'!$A$6, 'CWP Prob & Severity Param'!$B$6), "") ->  | AA66: =IF($I66>=_xlfn.NUMBERVALUE(RIGHT(AA$2, 2)), _xlfn.LOGNORM.INV(Q66, 'CWP Prob & Severity Param'!$A$6, 'CWP Prob & Severity Param'!$B$6), "") ->  | AB66: =IF($I66>=_xlfn.NUMBERVALUE(RIGHT(AB$2, 2)), _xlfn.LOGNORM.INV(R66, 'CWP Prob & Severity Param'!$A$6, 'CWP Prob & Severity Param'!$B$6), "") ->  | AC66: =IF($I66>=_xlfn.NUMBERVALUE(RIGHT(AC$2, 2)), _xlfn.LOGNORM.INV(S66, 'CWP Prob & Severity Param'!$A$6, 'CWP Prob & Severity Param'!$B$6), "") ->  | AD66: 0 | AE66: 0.8689504172 | AF66: 0.9910111981 | AG66: 0.999584089 | AH66: 0.9999854981 | AI66: 0.9999995945 | AJ66: 0.9999999905 | AK66: 0.9999999998 | AL66: 1 | AM66: 1 | AN66: 1
D67: 65 | E67: ='Freq Fit (Poisson)'!N67 -> 0.07185282135 | F67: 0.6128130754 | G67: =INDEX('Simulation (Poisson)'!$AD$2:$AN$2, MATCH(F67, 'Simulation (Poisson)'!$AD67:$AN67, 1)) -> 0 | H67: 0.08848265971 | I67: =_xlfn.BINOM.INV(G67,'CWP Prob & Severity Param'!$A$2,H67) -> 0 | J67: 0.9153603123 | K67: 0.0670880573 | L67: 0.2158199069 | M67: 0.2418235552 | N67: 0.4552706637 | O67: 0.8580081012 | P67: 0.8695481923 | Q67: 0.3331214824 | R67: 0.186908679 | S67: 0.8139003928 | T67: =IF($I67>=_xlfn.NUMBERVALUE(RIGHT(T$2, 2)), _xlfn.LOGNORM.INV(J67, 'CWP Prob & Severity Param'!$A$6, 'CWP Prob & Severity Param'!$B$6), "") ->  | U67: =IF($I67>=_xlfn.NUMBERVALUE(RIGHT(U$2, 2)), _xlfn.LOGNORM.INV(K67, 'CWP Prob & Severity Param'!$A$6, 'CWP Prob & Severity Param'!$B$6), "") ->  | V67: =IF($I67>=_xlfn.NUMBERVALUE(RIGHT(V$2, 2)), _xlfn.LOGNORM.INV(L67, 'CWP Prob & Severity Param'!$A$6, 'CWP Prob & Severity Param'!$B$6), "") ->  | W67: =IF($I67>=_xlfn.NUMBERVALUE(RIGHT(W$2, 2)), _xlfn.LOGNORM.INV(M67, 'CWP Prob & Severity Param'!$A$6, 'CWP Prob & Severity Param'!$B$6), "") ->  | X67: =IF($I67>=_xlfn.NUMBERVALUE(RIGHT(X$2, 2)), _xlfn.LOGNORM.INV(N67, 'CWP Prob & Severity Param'!$A$6, 'CWP Prob & Severity Param'!$B$6), "") ->  | Y67: =IF($I67>=_xlfn.NUMBERVALUE(RIGHT(Y$2, 2)), _xlfn.LOGNORM.INV(O67, 'CWP Prob & Severity Param'!$A$6, 'CWP Prob & Severity Param'!$B$6), "") ->  | Z67: =IF($I67>=_xlfn.NUMBERVALUE(RIGHT(Z$2, 2)), _xlfn.LOGNORM.INV(P67, 'CWP Prob & Severity Param'!$A$6, 'CWP Prob & Severity Param'!$B$6), "") ->  | AA67: =IF($I67>=_xlfn.NUMBERVALUE(RIGHT(AA$2, 2)), _xlfn.LOGNORM.INV(Q67, 'CWP Prob & Severity Param'!$A$6, 'CWP Prob & Severity Param'!$B$6), "") ->  | AB67: =IF($I67>=_xlfn.NUMBERVALUE(RIGHT(AB$2, 2)), _xlfn.LOGNORM.INV(R67, 'CWP Prob & Severity Param'!$A$6, 'CWP Prob & Severity Param'!$B$6), "") ->  | AC67: =IF($I67>=_xlfn.NUMBERVALUE(RIGHT(AC$2, 2)), _xlfn.LOGNORM.INV(S67, 'CWP Prob & Severity Param'!$A$6, 'CWP Prob & Severity Param'!$B$6), "") ->  | AD67: 0 | AE67: 0.9306678602 | AF67: 0.9975389717 | AG67: 0.9999414107 | AH67: 0.9999989514 | AI67: 0.999999985 | AJ67: 0.9999999998 | AK67: 1 | AL67: 1 | AM67: 1 | AN67: 1
D68: 66 | E68: ='Freq Fit (Poisson)'!N68 -> 0.1811945047 | F68: =RAND() -> 0.4515040925 | G68: =INDEX('Simulation (Poisson)'!$AD$2:$AN$2, MATCH(F68, 'Simulation (Poisson)'!$AD68:$AN68, 1)) -> 0 | H68: =RAND() -> 0.8099601321 | I68: =_xlfn.BINOM.INV(G68,'CWP Prob & Severity Param'!$A$2,H68) -> 0 | J68: 0.5658105899 | K68: 0.261681247 | L68: 0.01054416912 | M68: 0.8798926387 | N68: 0.7202269256 | O68: =RAND() -> 0.5161822096 | P68: 0.3282248688 | Q68: 0.7283938827 | R68: 0.2374209953 | S68: 0.587269294 | T68: =IF($I68>=_xlfn.NUMBERVALUE(RIGHT(T$2, 2)), _xlfn.LOGNORM.INV(J68, 'CWP Prob & Severity Param'!$A$6, 'CWP Prob & Severity Param'!$B$6), "") ->  | U68: =IF($I68>=_xlfn.NUMBERVALUE(RIGHT(U$2, 2)), _xlfn.LOGNORM.INV(K68, 'CWP Prob & Severity Param'!$A$6, 'CWP Prob & Severity Param'!$B$6), "") ->  | V68: =IF($I68>=_xlfn.NUMBERVALUE(RIGHT(V$2, 2)), _xlfn.LOGNORM.INV(L68, 'CWP Prob & Severity Param'!$A$6, 'CWP Prob & Severity Param'!$B$6), "") ->  | W68: =IF($I68>=_xlfn.NUMBERVALUE(RIGHT(W$2, 2)), _xlfn.LOGNORM.INV(M68, 'CWP Prob & Severity Param'!$A$6, 'CWP Prob & Severity Param'!$B$6), "") ->  | X68: =IF($I68>=_xlfn.NUMBERVALUE(RIGHT(X$2, 2)), _xlfn.LOGNORM.INV(N68, 'CWP Prob & Severity Param'!$A$6, 'CWP Prob & Severity Param'!$B$6), "") ->  | Y68: =IF($I68>=_xlfn.NUMBERVALUE(RIGHT(Y$2, 2)), _xlfn.LOGNORM.INV(O68, 'CWP Prob & Severity Param'!$A$6, 'CWP Prob & Severity Param'!$B$6), "") ->  | Z68: =IF($I68>=_xlfn.NUMBERVALUE(RIGHT(Z$2, 2)), _xlfn.LOGNORM.INV(P68, 'CWP Prob & Severity Param'!$A$6, 'CWP Prob & Severity Param'!$B$6), "") ->  | AA68: =IF($I68>=_xlfn.NUMBERVALUE(RIGHT(AA$2, 2)), _xlfn.LOGNORM.INV(Q68, 'CWP Prob & Severity Param'!$A$6, 'CWP Prob & Severity Param'!$B$6), "") ->  | AB68: =IF($I68>=_xlfn.NUMBERVALUE(RIGHT(AB$2, 2)), _xlfn.LOGNORM.INV(R68, 'CWP Prob & Severity Param'!$A$6, 'CWP Prob & Severity Param'!$B$6), "") ->  | AC68: =IF($I68>=_xlfn.NUMBERVALUE(RIGHT(AC$2, 2)), _xlfn.LOGNORM.INV(S68, 'CWP Prob & Severity Param'!$A$6, 'CWP Prob & Severity Param'!$B$6), "") ->  | AD68: 0 | AE68: =_xlfn.POISSON.DIST(AD$2, $E68, TRUE) -> 0.8342730729 | AF68: 0.9854387691 | AG68: 0.9991339658 | AH68: 0.9999611306 | AI68: 0.9999986001 | AJ68: 0.9999999579 | AK68: 0.9999999989 | AL68: 1 | AM68: 1 | AN68: 1
D69: 67 | E69: ='Freq Fit (Poisson)'!N69 -> 0.08548283957 | F69: 0.9900735694 | G69: =INDEX('Simulation (Poisson)'!$AD$2:$AN$2, MATCH(F69, 'Simulation (Poisson)'!$AD69:$AN69, 1)) -> 1 | H69: 0.2415355677 | I69: =_xlfn.BINOM.INV(G69,'CWP Prob & Severity Param'!$A$2,H69) -> 1 | J69: =RAND() -> 0.4130813438 | K69: 0.9605497065 | L69: 0.8198786901 | M69: 0.2281005145 | N69: 0.121119603 | O69: 0.2049611274 | P69: 0.555060834 | Q69: 0.7800873938 | R69: 0.3473916116 | S69: 0.9091651714 | T69: =IF($I69>=_xlfn.NUMBERVALUE(RIGHT(T$2, 2)), _xlfn.LOGNORM.INV(J69, 'CWP Prob & Severity Param'!$A$6, 'CWP Prob & Severity Param'!$B$6), "") -> 14196.47018 | U69: =IF($I69>=_xlfn.NUMBERVALUE(RIGHT(U$2, 2)), _xlfn.LOGNORM.INV(K69, 'CWP Prob & Severity Param'!$A$6, 'CWP Prob & Severity Param'!$B$6), "") ->  | V69: =IF($I69>=_xlfn.NUMBERVALUE(RIGHT(V$2, 2)), _xlfn.LOGNORM.INV(L69, 'CWP Prob & Severity Param'!$A$6, 'CWP Prob & Severity Param'!$B$6), "") ->  | W69: =IF($I69>=_xlfn.NUMBERVALUE(RIGHT(W$2, 2)), _xlfn.LOGNORM.INV(M69, 'CWP Prob & Severity Param'!$A$6, 'CWP Prob & Severity Param'!$B$6), "") ->  | X69: =IF($I69>=_xlfn.NUMBERVALUE(RIGHT(X$2, 2)), _xlfn.LOGNORM.INV(N69, 'CWP Prob & Severity Param'!$A$6, 'CWP Prob & Severity Param'!$B$6), "") ->  | Y69: =IF($I69>=_xlfn.NUMBERVALUE(RIGHT(Y$2, 2)), _xlfn.LOGNORM.INV(O69, 'CWP Prob & Severity Param'!$A$6, 'CWP Prob & Severity Param'!$B$6), "") ->  | Z69: =IF($I69>=_xlfn.NUMBERVALUE(RIGHT(Z$2, 2)), _xlfn.LOGNORM.INV(P69, 'CWP Prob & Severity Param'!$A$6, 'CWP Prob & Severity Param'!$B$6), "") ->  | AA69: =IF($I69>=_xlfn.NUMBERVALUE(RIGHT(AA$2, 2)), _xlfn.LOGNORM.INV(Q69, 'CWP Prob & Severity Param'!$A$6, 'CWP Prob & Severity Param'!$B$6), "") ->  | AB69: =IF($I69>=_xlfn.NUMBERVALUE(RIGHT(AB$2, 2)), _xlfn.LOGNORM.INV(R69, 'CWP Prob & Severity Param'!$A$6, 'CWP Prob & Severity Param'!$B$6), "") ->  | AC69: =IF($I69>=_xlfn.NUMBERVALUE(RIGHT(AC$2, 2)), _xlfn.LOGNORM.INV(S69, 'CWP Prob & Severity Param'!$A$6, 'CWP Prob & Severity Param'!$B$6), "") ->  | AD69: 0 | AE69: 0.9180688974 | AF69: 0.9965480336 | AG69: 0.9999023434 | AH69: 0.999997922 | AI69: 0.9999999646 | AJ69: 0.9999999995 | AK69: 1 | AL69: 1 | AM69: 1 | AN69: 1
D70: 68 | E70: ='Freq Fit (Poisson)'!N70 -> 0.3019271866 | F70: 0.2096612473 | G70: =INDEX('Simulation (Poisson)'!$AD$2:$AN$2, MATCH(F70, 'Simulation (Poisson)'!$AD70:$AN70, 1)) -> 0 | H70: 0.3502568966 | I70: =_xlfn.BINOM.INV(G70,'CWP Prob & Severity Param'!$A$2,H70) -> 0 | J70: 0.2173838399 | K70: 0.2743383411 | L70: 0.1059410791 | M70: 0.5853814547 | N70: 0.2009479675 | O70: 0.09062500976 | P70: 0.006281500078 | Q70: 0.01988380129 | R70: 0.5947241272 | S70: 0.5569218108 | T70: =IF($I70>=_xlfn.NUMBERVALUE(RIGHT(T$2, 2)), _xlfn.LOGNORM.INV(J70, 'CWP Prob & Severity Param'!$A$6, 'CWP Prob & Severity Param'!$B$6), "") ->  | U70: =IF($I70>=_xlfn.NUMBERVALUE(RIGHT(U$2, 2)), _xlfn.LOGNORM.INV(K70, 'CWP Prob & Severity Param'!$A$6, 'CWP Prob & Severity Param'!$B$6), "") ->  | V70: =IF($I70>=_xlfn.NUMBERVALUE(RIGHT(V$2, 2)), _xlfn.LOGNORM.INV(L70, 'CWP Prob & Severity Param'!$A$6, 'CWP Prob & Severity Param'!$B$6), "") ->  | W70: =IF($I70>=_xlfn.NUMBERVALUE(RIGHT(W$2, 2)), _xlfn.LOGNORM.INV(M70, 'CWP Prob & Severity Param'!$A$6, 'CWP Prob & Severity Param'!$B$6), "") ->  | X70: =IF($I70>=_xlfn.NUMBERVALUE(RIGHT(X$2, 2)), _xlfn.LOGNORM.INV(N70, 'CWP Prob & Severity Param'!$A$6, 'CWP Prob & Severity Param'!$B$6), "") ->  | Y70: =IF($I70>=_xlfn.NUMBERVALUE(RIGHT(Y$2, 2)), _xlfn.LOGNORM.INV(O70, 'CWP Prob & Severity Param'!$A$6, 'CWP Prob & Severity Param'!$B$6), "") ->  | Z70: =IF($I70>=_xlfn.NUMBERVALUE(RIGHT(Z$2, 2)), _xlfn.LOGNORM.INV(P70, 'CWP Prob & Severity Param'!$A$6, 'CWP Prob & Severity Param'!$B$6), "") ->  | AA70: =IF($I70>=_xlfn.NUMBERVALUE(RIGHT(AA$2, 2)), _xlfn.LOGNORM.INV(Q70, 'CWP Prob & Severity Param'!$A$6, 'CWP Prob & Severity Param'!$B$6), "") ->  | AB70: =IF($I70>=_xlfn.NUMBERVALUE(RIGHT(AB$2, 2)), _xlfn.LOGNORM.INV(R70, 'CWP Prob & Severity Param'!$A$6, 'CWP Prob & Severity Param'!$B$6), "") ->  | AC70: =IF($I70>=_xlfn.NUMBERVALUE(RIGHT(AC$2, 2)), _xlfn.LOGNORM.INV(S70, 'CWP Prob & Severity Param'!$A$6, 'CWP Prob & Severity Param'!$B$6), "") ->  | AD70: 0 | AE70: 0.7393919006 | AF70: 0.9626344169 | AG70: 0.9963359093 | AH70: 0.9997277083 | AI70: 0.9999837274 | AJ70: 0.9999991872 | AK70: 0.9999999651 | AL70: 0.9999999987 | AM70: 1 | AN70: 1
D71: 69 | E71: ='Freq Fit (Poisson)'!N71 -> 0.0699283491 | F71: 0.416611587 | G71: =INDEX('Simulation (Poisson)'!$AD$2:$AN$2, MATCH(F71, 'Simulation (Poisson)'!$AD71:$AN71, 1)) -> 0 | H71: 0.6338778549 | I71: =_xlfn.BINOM.INV(G71,'CWP Prob & Severity Param'!$A$2,H71) -> 0 | J71: 0.1868273309 | K71: 0.4366794735 | L71: 0.6003954638 | M71: 0.03065978713 | N71: 0.9635508098 | O71: 0.1038998183 | P71: 0.8710867962 | Q71: 0.4408339145 | R71: 0.884160855 | S71: 0.6824884397 | T71: =IF($I71>=_xlfn.NUMBERVALUE(RIGHT(T$2, 2)), _xlfn.LOGNORM.INV(J71, 'CWP Prob & Severity Param'!$A$6, 'CWP Prob & Severity Param'!$B$6), "") ->  | U71: =IF($I71>=_xlfn.NUMBERVALUE(RIGHT(U$2, 2)), _xlfn.LOGNORM.INV(K71, 'CWP Prob & Severity Param'!$A$6, 'CWP Prob & Severity Param'!$B$6), "") ->  | V71: =IF($I71>=_xlfn.NUMBERVALUE(RIGHT(V$2, 2)), _xlfn.LOGNORM.INV(L71, 'CWP Prob & Severity Param'!$A$6, 'CWP Prob & Severity Param'!$B$6), "") ->  | W71: =IF($I71>=_xlfn.NUMBERVALUE(RIGHT(W$2, 2)), _xlfn.LOGNORM.INV(M71, 'CWP Prob & Severity Param'!$A$6, 'CWP Prob & Severity Param'!$B$6), "") ->  | X71: =IF($I71>=_xlfn.NUMBERVALUE(RIGHT(X$2, 2)), _xlfn.LOGNORM.INV(N71, 'CWP Prob & Severity Param'!$A$6, 'CWP Prob & Severity Param'!$B$6), "") ->  | Y71: =IF($I71>=_xlfn.NUMBERVALUE(RIGHT(Y$2, 2)), _xlfn.LOGNORM.INV(O71, 'CWP Prob & Severity Param'!$A$6, 'CWP Prob & Severity Param'!$B$6), "") ->  | Z71: =IF($I71>=_xlfn.NUMBERVALUE(RIGHT(Z$2, 2)), _xlfn.LOGNORM.INV(P71, 'CWP Prob & Severity Param'!$A$6, 'CWP Prob & Severity Param'!$B$6), "") ->  | AA71: =IF($I71>=_xlfn.NUMBERVALUE(RIGHT(AA$2, 2)), _xlfn.LOGNORM.INV(Q71, 'CWP Prob & Severity Param'!$A$6, 'CWP Prob & Severity Param'!$B$6), "") ->  | AB71: =IF($I71>=_xlfn.NUMBERVALUE(RIGHT(AB$2, 2)), _xlfn.LOGNORM.INV(R71, 'CWP Prob & Severity Param'!$A$6, 'CWP Prob & Severity Param'!$B$6), "") ->  | AC71: =IF($I71>=_xlfn.NUMBERVALUE(RIGHT(AC$2, 2)), _xlfn.LOGNORM.INV(S71, 'CWP Prob & Severity Param'!$A$6, 'CWP Prob & Severity Param'!$B$6), "") ->  | AD71: 0 | AE71: 0.9324606292 | AF71: 0.9976660616 | AG71: 0.9999459157 | AH71: 0.9999990578 | AI71: 0.9999999869 | AJ71: 0.9999999998 | AK71: 1 | AL71: 1 | AM71: 1 | AN71: 1
D72: 70 | E72: ='Freq Fit (Poisson)'!N72 -> 0.3357030689 | F72: 0.01426903186 | G72: =INDEX('Simulation (Poisson)'!$AD$2:$AN$2, MATCH(F72, 'Simulation (Poisson)'!$AD72:$AN72, 1)) -> 0 | H72: 0.4078787486 | I72: =_xlfn.BINOM.INV(G72,'CWP Prob & Severity Param'!$A$2,H72) -> 0 | J72: 0.18967301 | K72: 0.8931785887 | L72: 0.005997300001 | M72: 0.5190611746 | N72: 0.9439205082 | O72: 0.8361139158 | P72: 0.1823434695 | Q72: 0.6615403464 | R72: 0.3789565289 | S72: 0.4488050089 | T72: =IF($I72>=_xlfn.NUMBERVALUE(RIGHT(T$2, 2)), _xlfn.LOGNORM.INV(J72, 'CWP Prob & Severity Param'!$A$6, 'CWP Prob & Severity Param'!$B$6), "") ->  | U72: =IF($I72>=_xlfn.NUMBERVALUE(RIGHT(U$2, 2)), _xlfn.LOGNORM.INV(K72, 'CWP Prob & Severity Param'!$A$6, 'CWP Prob & Severity Param'!$B$6), "") ->  | V72: =IF($I72>=_xlfn.NUMBERVALUE(RIGHT(V$2, 2)), _xlfn.LOGNORM.INV(L72, 'CWP Prob & Severity Param'!$A$6, 'CWP Prob & Severity Param'!$B$6), "") ->  | W72: =IF($I72>=_xlfn.NUMBERVALUE(RIGHT(W$2, 2)), _xlfn.LOGNORM.INV(M72, 'CWP Prob & Severity Param'!$A$6, 'CWP Prob & Severity Param'!$B$6), "") ->  | X72: =IF($I72>=_xlfn.NUMBERVALUE(RIGHT(X$2, 2)), _xlfn.LOGNORM.INV(N72, 'CWP Prob & Severity Param'!$A$6, 'CWP Prob & Severity Param'!$B$6), "") ->  | Y72: =IF($I72>=_xlfn.NUMBERVALUE(RIGHT(Y$2, 2)), _xlfn.LOGNORM.INV(O72, 'CWP Prob & Severity Param'!$A$6, 'CWP Prob & Severity Param'!$B$6), "") ->  | Z72: =IF($I72>=_xlfn.NUMBERVALUE(RIGHT(Z$2, 2)), _xlfn.LOGNORM.INV(P72, 'CWP Prob & Severity Param'!$A$6, 'CWP Prob & Severity Param'!$B$6), "") ->  | AA72: =IF($I72>=_xlfn.NUMBERVALUE(RIGHT(AA$2, 2)), _xlfn.LOGNORM.INV(Q72, 'CWP Prob & Severity Param'!$A$6, 'CWP Prob & Severity Param'!$B$6), "") ->  | AB72: =IF($I72>=_xlfn.NUMBERVALUE(RIGHT(AB$2, 2)), _xlfn.LOGNORM.INV(R72, 'CWP Prob & Severity Param'!$A$6, 'CWP Prob & Severity Param'!$B$6), "") ->  | AC72: =IF($I72>=_xlfn.NUMBERVALUE(RIGHT(AC$2, 2)), _xlfn.LOGNORM.INV(S72, 'CWP Prob & Severity Param'!$A$6, 'CWP Prob & Severity Param'!$B$6), "") ->  | AD72: 0 | AE72: 0.7148353312 | AF72: 0.9548077456 | AG72: 0.9950874836 | AH72: 0.9995948274 | AI72: 0.9999731097 | AJ72: 0.9999985078 | AK72: 0.9999999289 | AL72: 0.999999997 | AM72: 0.9999999999 | AN72: 1
D73: 71 | E73: ='Freq Fit (Poisson)'!N73 -> 0.08712210125 | F73: 0.9677940009 | G73: =INDEX('Simulation (Poisson)'!$AD$2:$AN$2, MATCH(F73, 'Simulation (Poisson)'!$AD73:$AN73, 1)) -> 1 | H73: 0.7861393633 | I73: =_xlfn.BINOM.INV(G73,'CWP Prob & Severity Param'!$A$2,H73) -> 1 | J73: 0.5306785037 | K73: 0.4860998494 | L73: 0.2519191634 | M73: 0.2913097028 | N73: 0.8007419249 | O73: 0.4872194637 | P73: 0.6327368978 | Q73: 0.6793886509 | R73: 0.5548497016 | S73: 0.1480171972 | T73: =IF($I73>=_xlfn.NUMBERVALUE(RIGHT(T$2, 2)), _xlfn.LOGNORM.INV(J73, 'CWP Prob & Severity Param'!$A$6, 'CWP Prob & Severity Param'!$B$6), "") -> 25692.41541 | U73: =IF($I73>=_xlfn.NUMBERVALUE(RIGHT(U$2, 2)), _xlfn.LOGNORM.INV(K73, 'CWP Prob & Severity Param'!$A$6, 'CWP Prob & Severity Param'!$B$6), "") ->  | V73: =IF($I73>=_xlfn.NUMBERVALUE(RIGHT(V$2, 2)), _xlfn.LOGNORM.INV(L73, 'CWP Prob & Severity Param'!$A$6, 'CWP Prob & Severity Param'!$B$6), "") ->  | W73: =IF($I73>=_xlfn.NUMBERVALUE(RIGHT(W$2, 2)), _xlfn.LOGNORM.INV(M73, 'CWP Prob & Severity Param'!$A$6, 'CWP Prob & Severity Param'!$B$6), "") ->  | X73: =IF($I73>=_xlfn.NUMBERVALUE(RIGHT(X$2, 2)), _xlfn.LOGNORM.INV(N73, 'CWP Prob & Severity Param'!$A$6, 'CWP Prob & Severity Param'!$B$6), "") ->  | Y73: =IF($I73>=_xlfn.NUMBERVALUE(RIGHT(Y$2, 2)), _xlfn.LOGNORM.INV(O73, 'CWP Prob & Severity Param'!$A$6, 'CWP Prob & Severity Param'!$B$6), "") ->  | Z73: =IF($I73>=_xlfn.NUMBERVALUE(RIGHT(Z$2, 2)), _xlfn.LOGNORM.INV(P73, 'CWP Prob & Severity Param'!$A$6, 'CWP Prob & Severity Param'!$B$6), "") ->  | AA73: =IF($I73>=_xlfn.NUMBERVALUE(RIGHT(AA$2, 2)), _xlfn.LOGNORM.INV(Q73, 'CWP Prob & Severity Param'!$A$6, 'CWP Prob & Severity Param'!$B$6), "") ->  | AB73: =IF($I73>=_xlfn.NUMBERVALUE(RIGHT(AB$2, 2)), _xlfn.LOGNORM.INV(R73, 'CWP Prob & Severity Param'!$A$6, 'CWP Prob & Severity Param'!$B$6), "") ->  | AC73: =IF($I73>=_xlfn.NUMBERVALUE(RIGHT(AC$2, 2)), _xlfn.LOGNORM.INV(S73, 'CWP Prob & Severity Param'!$A$6, 'CWP Prob & Severity Param'!$B$6), "") ->  | AD73: 0 | AE73: 0.916565175 | AF73: 0.996418259 | AG73: 0.9998967433 | AH73: 0.9999977609 | AI73: 0.9999999611 | AJ73: 0.9999999994 | AK73: 1 | AL73: 1 | AM73: 1 | AN73: 1
D74: 72 | E74: ='Freq Fit (Poisson)'!N74 -> 0.05115091066 | F74: 0.05218319081 | G74: =INDEX('Simulation (Poisson)'!$AD$2:$AN$2, MATCH(F74, 'Simulation (Poisson)'!$AD74:$AN74, 1)) -> 0 | H74: 0.6676447323 | I74: =_xlfn.BINOM.INV(G74,'CWP Prob & Severity Param'!$A$2,H74) -> 0 | J74: 0.7425592588 | K74: 0.5427446617 | L74: 0.01223813497 | M74: 0.3904549837 | N74: 0.9963899965 | O74: 0.3526141504 | P74: 0.5654774611 | Q74: 0.2002663839 | R74: 0.8832802458 | S74: 0.01198980733 | T74: =IF($I74>=_xlfn.NUMBERVALUE(RIGHT(T$2, 2)), _xlfn.LOGNORM.INV(J74, 'CWP Prob & Severity Param'!$A$6, 'CWP Prob & Severity Param'!$B$6), "") ->  | U74: =IF($I74>=_xlfn.NUMBERVALUE(RIGHT(U$2, 2)), _xlfn.LOGNORM.INV(K74, 'CWP Prob & Severity Param'!$A$6, 'CWP Prob & Severity Param'!$B$6), "") ->  | V74: =IF($I74>=_xlfn.NUMBERVALUE(RIGHT(V$2, 2)), _xlfn.LOGNORM.INV(L74, 'CWP Prob & Severity Param'!$A$6, 'CWP Prob & Severity Param'!$B$6), "") ->  | W74: =IF($I74>=_xlfn.NUMBERVALUE(RIGHT(W$2, 2)), _xlfn.LOGNORM.INV(M74, 'CWP Prob & Severity Param'!$A$6, 'CWP Prob & Severity Param'!$B$6), "") ->  | X74: =IF($I74>=_xlfn.NUMBERVALUE(RIGHT(X$2, 2)), _xlfn.LOGNORM.INV(N74, 'CWP Prob & Severity Param'!$A$6, 'CWP Prob & Severity Param'!$B$6), "") ->  | Y74: =IF($I74>=_xlfn.NUMBERVALUE(RIGHT(Y$2, 2)), _xlfn.LOGNORM.INV(O74, 'CWP Prob & Severity Param'!$A$6, 'CWP Prob & Severity Param'!$B$6), "") ->  | Z74: =IF($I74>=_xlfn.NUMBERVALUE(RIGHT(Z$2, 2)), _xlfn.LOGNORM.INV(P74, 'CWP Prob & Severity Param'!$A$6, 'CWP Prob & Severity Param'!$B$6), "") ->  | AA74: =IF($I74>=_xlfn.NUMBERVALUE(RIGHT(AA$2, 2)), _xlfn.LOGNORM.INV(Q74, 'CWP Prob & Severity Param'!$A$6, 'CWP Prob & Severity Param'!$B$6), "") ->  | AB74: =IF($I74>=_xlfn.NUMBERVALUE(RIGHT(AB$2, 2)), _xlfn.LOGNORM.INV(R74, 'CWP Prob & Severity Param'!$A$6, 'CWP Prob & Severity Param'!$B$6), "") ->  | AC74: =IF($I74>=_xlfn.NUMBERVALUE(RIGHT(AC$2, 2)), _xlfn.LOGNORM.INV(S74, 'CWP Prob & Severity Param'!$A$6, 'CWP Prob & Severity Param'!$B$6), "") ->  | AD74: 0 | AE74: 0.9501352742 | AF74: 0.9987355587 | AG74: 0.9999785331 | AH74: 0.9999997262 | AI74: 0.9999999972 | AJ74: 1 | AK74: 1 | AL74: 1 | AM74: 1 | AN74: 1
D75: 73 | E75: ='Freq Fit (Poisson)'!N75 -> 0.142850168 | F75: 0.412527996 | G75: =INDEX('Simulation (Poisson)'!$AD$2:$AN$2, MATCH(F75, 'Simulation (Poisson)'!$AD75:$AN75, 1)) -> 0 | H75: 0.1291539216 | I75: =_xlfn.BINOM.INV(G75,'CWP Prob & Severity Param'!$A$2,H75) -> 0 | J75: 0.4797727838 | K75: 0.4198052601 | L75: 0.7705444409 | M75: 0.723413417 | N75: 0.1265888918 | O75: 0.04430403305 | P75: 0.267304007 | Q75: 0.5172183107 | R75: 0.521761582 | S75: 0.8507880127 | T75: =IF($I75>=_xlfn.NUMBERVALUE(RIGHT(T$2, 2)), _xlfn.LOGNORM.INV(J75, 'CWP Prob & Severity Param'!$A$6, 'CWP Prob & Severity Param'!$B$6), "") ->  | U75: =IF($I75>=_xlfn.NUMBERVALUE(RIGHT(U$2, 2)), _xlfn.LOGNORM.INV(K75, 'CWP Prob & Severity Param'!$A$6, 'CWP Prob & Severity Param'!$B$6), "") ->  | V75: =IF($I75>=_xlfn.NUMBERVALUE(RIGHT(V$2, 2)), _xlfn.LOGNORM.INV(L75, 'CWP Prob & Severity Param'!$A$6, 'CWP Prob & Severity Param'!$B$6), "") ->  | W75: =IF($I75>=_xlfn.NUMBERVALUE(RIGHT(W$2, 2)), _xlfn.LOGNORM.INV(M75, 'CWP Prob & Severity Param'!$A$6, 'CWP Prob & Severity Param'!$B$6), "") ->  | X75: =IF($I75>=_xlfn.NUMBERVALUE(RIGHT(X$2, 2)), _xlfn.LOGNORM.INV(N75, 'CWP Prob & Severity Param'!$A$6, 'CWP Prob & Severity Param'!$B$6), "") ->  | Y75: =IF($I75>=_xlfn.NUMBERVALUE(RIGHT(Y$2, 2)), _xlfn.LOGNORM.INV(O75, 'CWP Prob & Severity Param'!$A$6, 'CWP Prob & Severity Param'!$B$6), "") ->  | Z75: =IF($I75>=_xlfn.NUMBERVALUE(RIGHT(Z$2, 2)), _xlfn.LOGNORM.INV(P75, 'CWP Prob & Severity Param'!$A$6, 'CWP Prob & Severity Param'!$B$6), "") ->  | AA75: =IF($I75>=_xlfn.NUMBERVALUE(RIGHT(AA$2, 2)), _xlfn.LOGNORM.INV(Q75, 'CWP Prob & Severity Param'!$A$6, 'CWP Prob & Severity Param'!$B$6), "") ->  | AB75: =IF($I75>=_xlfn.NUMBERVALUE(RIGHT(AB$2, 2)), _xlfn.LOGNORM.INV(R75, 'CWP Prob & Severity Param'!$A$6, 'CWP Prob & Severity Param'!$B$6), "") ->  | AC75: =IF($I75>=_xlfn.NUMBERVALUE(RIGHT(AC$2, 2)), _xlfn.LOGNORM.INV(S75, 'CWP Prob & Severity Param'!$A$6, 'CWP Prob & Severity Param'!$B$6), "") ->  | AD75: 0 | AE75: 0.8668839461 | AF75: 0.9907184635 | AG75: 0.9995633543 | AH75: 0.999984519 | AI75: 0.9999995598 | AJ75: 0.9999999896 | AK75: 0.9999999998 | AL75: 1 | AM75: 1 | AN75: 1
D76: 74 | E76: ='Freq Fit (Poisson)'!N76 -> 0.1757990934 | F76: 0.3109773587 | G76: =INDEX('Simulation (Poisson)'!$AD$2:$AN$2, MATCH(F76, 'Simulation (Poisson)'!$AD76:$AN76, 1)) -> 0 | H76: 0.1876020556 | I76: =_xlfn.BINOM.INV(G76,'CWP Prob & Severity Param'!$A$2,H76) -> 0 | J76: 0.1755513389 | K76: 0.6609140772 | L76: 0.7122403011 | M76: 0.6553761128 | N76: 0.777513977 | O76: 0.03305078109 | P76: 0.5887107466 | Q76: 0.2270895392 | R76: 0.6289688603 | S76: 0.9919602509 | T76: =IF($I76>=_xlfn.NUMBERVALUE(RIGHT(T$2, 2)), _xlfn.LOGNORM.INV(J76, 'CWP Prob & Severity Param'!$A$6, 'CWP Prob & Severity Param'!$B$6), "") ->  | U76: =IF($I76>=_xlfn.NUMBERVALUE(RIGHT(U$2, 2)), _xlfn.LOGNORM.INV(K76, 'CWP Prob & Severity Param'!$A$6, 'CWP Prob & Severity Param'!$B$6), "") ->  | V76: =IF($I76>=_xlfn.NUMBERVALUE(RIGHT(V$2, 2)), _xlfn.LOGNORM.INV(L76, 'CWP Prob & Severity Param'!$A$6, 'CWP Prob & Severity Param'!$B$6), "") ->  | W76: =IF($I76>=_xlfn.NUMBERVALUE(RIGHT(W$2, 2)), _xlfn.LOGNORM.INV(M76, 'CWP Prob & Severity Param'!$A$6, 'CWP Prob & Severity Param'!$B$6), "") ->  | X76: =IF($I76>=_xlfn.NUMBERVALUE(RIGHT(X$2, 2)), _xlfn.LOGNORM.INV(N76, 'CWP Prob & Severity Param'!$A$6, 'CWP Prob & Severity Param'!$B$6), "") ->  | Y76: =IF($I76>=_xlfn.NUMBERVALUE(RIGHT(Y$2, 2)), _xlfn.LOGNORM.INV(O76, 'CWP Prob & Severity Param'!$A$6, 'CWP Prob & Severity Param'!$B$6), "") ->  | Z76: =IF($I76>=_xlfn.NUMBERVALUE(RIGHT(Z$2, 2)), _xlfn.LOGNORM.INV(P76, 'CWP Prob & Severity Param'!$A$6, 'CWP Prob & Severity Param'!$B$6), "") ->  | AA76: =IF($I76>=_xlfn.NUMBERVALUE(RIGHT(AA$2, 2)), _xlfn.LOGNORM.INV(Q76, 'CWP Prob & Severity Param'!$A$6, 'CWP Prob & Severity Param'!$B$6), "") ->  | AB76: =IF($I76>=_xlfn.NUMBERVALUE(RIGHT(AB$2, 2)), _xlfn.LOGNORM.INV(R76, 'CWP Prob & Severity Param'!$A$6, 'CWP Prob & Severity Param'!$B$6), "") ->  | AC76: =IF($I76>=_xlfn.NUMBERVALUE(RIGHT(AC$2, 2)), _xlfn.LOGNORM.INV(S76, 'CWP Prob & Severity Param'!$A$6, 'CWP Prob & Severity Param'!$B$6), "") ->  | AD76: 0 | AE76: 0.8387864842 | AF76: 0.9862443876 | AG76: 0.9992058705 | AH76: 0.9999654095 | AI76: 0.999998791 | AJ76: 0.9999999647 | AK76: 0.9999999991 | AL76: 1 | AM76: 1 | AN76: 1
D77: 75 | E77: ='Freq Fit (Poisson)'!N77 -> 0.372054372 | F77: 0.5229881886 | G77: =INDEX('Simulation (Poisson)'!$AD$2:$AN$2, MATCH(F77, 'Simulation (Poisson)'!$AD77:$AN77, 1)) -> 0 | H77: 0.9510054989 | I77: =_xlfn.BINOM.INV(G77,'CWP Prob & Severity Param'!$A$2,H77) -> 0 | J77: 0.6302948612 | K77: 0.8468018457 | L77: 0.7289067923 | M77: 0.2172050944 | N77: 0.7315006379 | O77: 0.4429265804 | P77: 0.4334177833 | Q77: 0.7680368886 | R77: 0.7516435216 | S77: 0.7097777878 | T77: =IF($I77>=_xlfn.NUMBERVALUE(RIGHT(T$2, 2)), _xlfn.LOGNORM.INV(J77, 'CWP Prob & Severity Param'!$A$6, 'CWP Prob & Severity Param'!$B$6), "") ->  | U77: =IF($I77>=_xlfn.NUMBERVALUE(RIGHT(U$2, 2)), _xlfn.LOGNORM.INV(K77, 'CWP Prob & Severity Param'!$A$6, 'CWP Prob & Severity Param'!$B$6), "") ->  | V77: =IF($I77>=_xlfn.NUMBERVALUE(RIGHT(V$2, 2)), _xlfn.LOGNORM.INV(L77, 'CWP Prob & Severity Param'!$A$6, 'CWP Prob & Severity Param'!$B$6), "") ->  | W77: =IF($I77>=_xlfn.NUMBERVALUE(RIGHT(W$2, 2)), _xlfn.LOGNORM.INV(M77, 'CWP Prob & Severity Param'!$A$6, 'CWP Prob & Severity Param'!$B$6), "") ->  | X77: =IF($I77>=_xlfn.NUMBERVALUE(RIGHT(X$2, 2)), _xlfn.LOGNORM.INV(N77, 'CWP Prob & Severity Param'!$A$6, 'CWP Prob & Severity Param'!$B$6), "") ->  | Y77: =IF($I77>=_xlfn.NUMBERVALUE(RIGHT(Y$2, 2)), _xlfn.LOGNORM.INV(O77, 'CWP Prob & Severity Param'!$A$6, 'CWP Prob & Severity Param'!$B$6), "") ->  | Z77: =IF($I77>=_xlfn.NUMBERVALUE(RIGHT(Z$2, 2)), _xlfn.LOGNORM.INV(P77, 'CWP Prob & Severity Param'!$A$6, 'CWP Prob & Severity Param'!$B$6), "") ->  | AA77: =IF($I77>=_xlfn.NUMBERVALUE(RIGHT(AA$2, 2)), _xlfn.LOGNORM.INV(Q77, 'CWP Prob & Severity Param'!$A$6, 'CWP Prob & Severity Param'!$B$6), "") ->  | AB77: =IF($I77>=_xlfn.NUMBERVALUE(RIGHT(AB$2, 2)), _xlfn.LOGNORM.INV(R77, 'CWP Prob & Severity Param'!$A$6, 'CWP Prob & Severity Param'!$B$6), "") ->  | AC77: =IF($I77>=_xlfn.NUMBERVALUE(RIGHT(AC$2, 2)), _xlfn.LOGNORM.INV(S77, 'CWP Prob & Severity Param'!$A$6, 'CWP Prob & Severity Param'!$B$6), "") ->  | AD77: 0 | AE77: 0.689316762 | AF77: 0.945780077 | AG77: 0.9934892258 | AH77: 0.9994060249 | AI77: 0.9999563676 | AJ77: 0.9999973191 | AK77: 0.9999998585 | AL77: 0.9999999935 | AM77: 0.9999999997 | AN77: 1
D78: 76 | E78: ='Freq Fit (Poisson)'!N78 -> 0.0483699322 | F78: 0.6537533853 | G78: =INDEX('Simulation (Poisson)'!$AD$2:$AN$2, MATCH(F78, 'Simulation (Poisson)'!$AD78:$AN78, 1)) -> 0 | H78: 0.9590516319 | I78: =_xlfn.BINOM.INV(G78,'CWP Prob & Severity Param'!$A$2,H78) -> 0 | J78: 0.8647804896 | K78: 0.4931788666 | L78: 0.418688355 | M78: 0.9292098103 | N78: 0.9766653249 | O78: 0.1467905181 | P78: 0.387238726 | Q78: 0.1122592012 | R78: 0.3298811771 | S78: 0.7430375446 | T78: =IF($I78>=_xlfn.NUMBERVALUE(RIGHT(T$2, 2)), _xlfn.LOGNORM.INV(J78, 'CWP Prob & Severity Param'!$A$6, 'CWP Prob & Severity Param'!$B$6), "") ->  | U78: =IF($I78>=_xlfn.NUMBERVALUE(RIGHT(U$2, 2)), _xlfn.LOGNORM.INV(K78, 'CWP Prob & Severity Param'!$A$6, 'CWP Prob & Severity Param'!$B$6), "") ->  | V78: =IF($I78>=_xlfn.NUMBERVALUE(RIGHT(V$2, 2)), _xlfn.LOGNORM.INV(L78, 'CWP Prob & Severity Param'!$A$6, 'CWP Prob & Severity Param'!$B$6), "") ->  | W78: =IF($I78>=_xlfn.NUMBERVALUE(RIGHT(W$2, 2)), _xlfn.LOGNORM.INV(M78, 'CWP Prob & Severity Param'!$A$6, 'CWP Prob & Severity Param'!$B$6), "") ->  | X78: =IF($I78>=_xlfn.NUMBERVALUE(RIGHT(X$2, 2)), _xlfn.LOGNORM.INV(N78, 'CWP Prob & Severity Param'!$A$6, 'CWP Prob & Severity Param'!$B$6), "") ->  | Y78: =IF($I78>=_xlfn.NUMBERVALUE(RIGHT(Y$2, 2)), _xlfn.LOGNORM.INV(O78, 'CWP Prob & Severity Param'!$A$6, 'CWP Prob & Severity Param'!$B$6), "") ->  | Z78: =IF($I78>=_xlfn.NUMBERVALUE(RIGHT(Z$2, 2)), _xlfn.LOGNORM.INV(P78, 'CWP Prob & Severity Param'!$A$6, 'CWP Prob & Severity Param'!$B$6), "") ->  | AA78: =IF($I78>=_xlfn.NUMBERVALUE(RIGHT(AA$2, 2)), _xlfn.LOGNORM.INV(Q78, 'CWP Prob & Severity Param'!$A$6, 'CWP Prob & Severity Param'!$B$6), "") ->  | AB78: =IF($I78>=_xlfn.NUMBERVALUE(RIGHT(AB$2, 2)), _xlfn.LOGNORM.INV(R78, 'CWP Prob & Severity Param'!$A$6, 'CWP Prob & Severity Param'!$B$6), "") ->  | AC78: =IF($I78>=_xlfn.NUMBERVALUE(RIGHT(AC$2, 2)), _xlfn.LOGNORM.INV(S78, 'CWP Prob & Severity Param'!$A$6, 'CWP Prob & Severity Param'!$B$6), "") ->  | AD78: 0 | AE78: 0.9527812574 | AF78: 0.9988672222 | AG78: 0.9999818097 | AH78: 0.9999997806 | AI78: 0.9999999979 | AJ78: 1 | AK78: 1 | AL78: 1 | AM78: 1 | AN78: 1
D79: 77 | E79: ='Freq Fit (Poisson)'!N79 -> 0.09242454216 | F79: 0.1305935325 | G79: =INDEX('Simulation (Poisson)'!$AD$2:$AN$2, MATCH(F79, 'Simulation (Poisson)'!$AD79:$AN79, 1)) -> 0 | H79: 0.2053891509 | I79: =_xlfn.BINOM.INV(G79,'CWP Prob & Severity Param'!$A$2,H79) -> 0 | J79: 0.7210086085 | K79: 0.5875804793 | L79: 0.7162230601 | M79: 0.8879449295 | N79: 0.9468100609 | O79: 0.2783306303 | P79: 0.988491021 | Q79: 0.8042003375 | R79: 0.7288700981 | S79: 0.1285481454 | T79: =IF($I79>=_xlfn.NUMBERVALUE(RIGHT(T$2, 2)), _xlfn.LOGNORM.INV(J79, 'CWP Prob & Severity Param'!$A$6, 'CWP Prob & Severity Param'!$B$6), "") ->  | U79: =IF($I79>=_xlfn.NUMBERVALUE(RIGHT(U$2, 2)), _xlfn.LOGNORM.INV(K79, 'CWP Prob & Severity Param'!$A$6, 'CWP Prob & Severity Param'!$B$6), "") ->  | V79: =IF($I79>=_xlfn.NUMBERVALUE(RIGHT(V$2, 2)), _xlfn.LOGNORM.INV(L79, 'CWP Prob & Severity Param'!$A$6, 'CWP Prob & Severity Param'!$B$6), "") ->  | W79: =IF($I79>=_xlfn.NUMBERVALUE(RIGHT(W$2, 2)), _xlfn.LOGNORM.INV(M79, 'CWP Prob & Severity Param'!$A$6, 'CWP Prob & Severity Param'!$B$6), "") ->  | X79: =IF($I79>=_xlfn.NUMBERVALUE(RIGHT(X$2, 2)), _xlfn.LOGNORM.INV(N79, 'CWP Prob & Severity Param'!$A$6, 'CWP Prob & Severity Param'!$B$6), "") ->  | Y79: =IF($I79>=_xlfn.NUMBERVALUE(RIGHT(Y$2, 2)), _xlfn.LOGNORM.INV(O79, 'CWP Prob & Severity Param'!$A$6, 'CWP Prob & Severity Param'!$B$6), "") ->  | Z79: =IF($I79>=_xlfn.NUMBERVALUE(RIGHT(Z$2, 2)), _xlfn.LOGNORM.INV(P79, 'CWP Prob & Severity Param'!$A$6, 'CWP Prob & Severity Param'!$B$6), "") ->  | AA79: =IF($I79>=_xlfn.NUMBERVALUE(RIGHT(AA$2, 2)), _xlfn.LOGNORM.INV(Q79, 'CWP Prob & Severity Param'!$A$6, 'CWP Prob & Severity Param'!$B$6), "") ->  | AB79: =IF($I79>=_xlfn.NUMBERVALUE(RIGHT(AB$2, 2)), _xlfn.LOGNORM.INV(R79, 'CWP Prob & Severity Param'!$A$6, 'CWP Prob & Severity Param'!$B$6), "") ->  | AC79: =IF($I79>=_xlfn.NUMBERVALUE(RIGHT(AC$2, 2)), _xlfn.LOGNORM.INV(S79, 'CWP Prob & Severity Param'!$A$6, 'CWP Prob & Severity Param'!$B$6), "") ->  | AD79: 0 | AE79: 0.9117180046 | AF79: 0.9959831238 | AG79: 0.9998772063 | AH79: 0.9999971759 | AI79: 0.999999948 | AJ79: 0.9999999992 | AK79: 1 | AL79: 1 | AM79: 1 | AN79: 1
D80: 78 | E80: ='Freq Fit (Poisson)'!N80 -> 0.03618829205 | F80: 0.9784786133 | G80: =INDEX('Simulation (Poisson)'!$AD$2:$AN$2, MATCH(F80, 'Simulation (Poisson)'!$AD80:$AN80, 1)) -> 1 | H80: 0.922914328 | I80: =_xlfn.BINOM.INV(G80,'CWP Prob & Severity Param'!$A$2,H80) -> 1 | J80: 0.1622926796 | K80: 0.5699359498 | L80: 0.4499471876 | M80: 0.6778275283 | N80: 0.7919794082 | O80: 0.7344208667 | P80: 0.4471587746 | Q80: 0.6361032745 | R80: 0.08244653276 | S80: 0.06537109048 | T80: =IF($I80>=_xlfn.NUMBERVALUE(RIGHT(T$2, 2)), _xlfn.LOGNORM.INV(J80, 'CWP Prob & Severity Param'!$A$6, 'CWP Prob & Severity Param'!$B$6), "") -> 3071.257522 | U80: =IF($I80>=_xlfn.NUMBERVALUE(RIGHT(U$2, 2)), _xlfn.LOGNORM.INV(K80, 'CWP Prob & Severity Param'!$A$6, 'CWP Prob & Severity Param'!$B$6), "") ->  | V80: =IF($I80>=_xlfn.NUMBERVALUE(RIGHT(V$2, 2)), _xlfn.LOGNORM.INV(L80, 'CWP Prob & Severity Param'!$A$6, 'CWP Prob & Severity Param'!$B$6), "") ->  | W80: =IF($I80>=_xlfn.NUMBERVALUE(RIGHT(W$2, 2)), _xlfn.LOGNORM.INV(M80, 'CWP Prob & Severity Param'!$A$6, 'CWP Prob & Severity Param'!$B$6), "") ->  | X80: =IF($I80>=_xlfn.NUMBERVALUE(RIGHT(X$2, 2)), _xlfn.LOGNORM.INV(N80, 'CWP Prob & Severity Param'!$A$6, 'CWP Prob & Severity Param'!$B$6), "") ->  | Y80: =IF($I80>=_xlfn.NUMBERVALUE(RIGHT(Y$2, 2)), _xlfn.LOGNORM.INV(O80, 'CWP Prob & Severity Param'!$A$6, 'CWP Prob & Severity Param'!$B$6), "") ->  | Z80: =IF($I80>=_xlfn.NUMBERVALUE(RIGHT(Z$2, 2)), _xlfn.LOGNORM.INV(P80, 'CWP Prob & Severity Param'!$A$6, 'CWP Prob & Severity Param'!$B$6), "") ->  | AA80: =IF($I80>=_xlfn.NUMBERVALUE(RIGHT(AA$2, 2)), _xlfn.LOGNORM.INV(Q80, 'CWP Prob & Severity Param'!$A$6, 'CWP Prob & Severity Param'!$B$6), "") ->  | AB80: =IF($I80>=_xlfn.NUMBERVALUE(RIGHT(AB$2, 2)), _xlfn.LOGNORM.INV(R80, 'CWP Prob & Severity Param'!$A$6, 'CWP Prob & Severity Param'!$B$6), "") ->  | AC80: =IF($I80>=_xlfn.NUMBERVALUE(RIGHT(AC$2, 2)), _xlfn.LOGNORM.INV(S80, 'CWP Prob & Severity Param'!$A$6, 'CWP Prob & Severity Param'!$B$6), "") ->  | AD80: 0 | AE80: 0.9644586765 | AF80: 0.9993607887 | AG80: 0.9999923127 | AH80: 0.9999999306 | AI80: 0.9999999995 | AJ80: 1 | AK80: 1 | AL80: 1 | AM80: 1 | AN80: 1
D81: 79 | E81: ='Freq Fit (Poisson)'!N81 -> 0.09349243104 | F81: 0.3372655383 | G81: =INDEX('Simulation (Poisson)'!$AD$2:$AN$2, MATCH(F81, 'Simulation (Poisson)'!$AD81:$AN81, 1)) -> 0 | H81: 0.4176436377 | I81: =_xlfn.BINOM.INV(G81,'CWP Prob & Severity Param'!$A$2,H81) -> 0 | J81: 0.6423995046 | K81: 0.468081415 | L81: 0.1836868381 | M81: 0.9249081473 | N81: 0.4021598725 | O81: 0.6707984867 | P81: 0.3585318968 | Q81: 0.1303015459 | R81: 0.6732195003 | S81: 0.1873317541 | T81: =IF($I81>=_xlfn.NUMBERVALUE(RIGHT(T$2, 2)), _xlfn.LOGNORM.INV(J81, 'CWP Prob & Severity Param'!$A$6, 'CWP Prob & Severity Param'!$B$6), "") ->  | U81: =IF($I81>=_xlfn.NUMBERVALUE(RIGHT(U$2, 2)), _xlfn.LOGNORM.INV(K81, 'CWP Prob & Severity Param'!$A$6, 'CWP Prob & Severity Param'!$B$6), "") ->  | V81: =IF($I81>=_xlfn.NUMBERVALUE(RIGHT(V$2, 2)), _xlfn.LOGNORM.INV(L81, 'CWP Prob & Severity Param'!$A$6, 'CWP Prob & Severity Param'!$B$6), "") ->  | W81: =IF($I81>=_xlfn.NUMBERVALUE(RIGHT(W$2, 2)), _xlfn.LOGNORM.INV(M81, 'CWP Prob & Severity Param'!$A$6, 'CWP Prob & Severity Param'!$B$6), "") ->  | X81: =IF($I81>=_xlfn.NUMBERVALUE(RIGHT(X$2, 2)), _xlfn.LOGNORM.INV(N81, 'CWP Prob & Severity Param'!$A$6, 'CWP Prob & Severity Param'!$B$6), "") ->  | Y81: =IF($I81>=_xlfn.NUMBERVALUE(RIGHT(Y$2, 2)), _xlfn.LOGNORM.INV(O81, 'CWP Prob & Severity Param'!$A$6, 'CWP Prob & Severity Param'!$B$6), "") ->  | Z81: =IF($I81>=_xlfn.NUMBERVALUE(RIGHT(Z$2, 2)), _xlfn.LOGNORM.INV(P81, 'CWP Prob & Severity Param'!$A$6, 'CWP Prob & Severity Param'!$B$6), "") ->  | AA81: =IF($I81>=_xlfn.NUMBERVALUE(RIGHT(AA$2, 2)), _xlfn.LOGNORM.INV(Q81, 'CWP Prob & Severity Param'!$A$6, 'CWP Prob & Severity Param'!$B$6), "") ->  | AB81: =IF($I81>=_xlfn.NUMBERVALUE(RIGHT(AB$2, 2)), _xlfn.LOGNORM.INV(R81, 'CWP Prob & Severity Param'!$A$6, 'CWP Prob & Severity Param'!$B$6), "") ->  | AC81: =IF($I81>=_xlfn.NUMBERVALUE(RIGHT(AC$2, 2)), _xlfn.LOGNORM.INV(S81, 'CWP Prob & Severity Param'!$A$6, 'CWP Prob & Severity Param'!$B$6), "") ->  | AD81: 0 | AE81: 0.9107449108 | AF81: 0.9958926666 | AG81: 0.9998730019 | AH81: 0.9999970456 | AI81: 0.9999999449 | AJ81: 0.9999999991 | AK81: 1 | AL81: 1 | AM81: 1 | AN81: 1
D82: 80 | E82: ='Freq Fit (Poisson)'!N82 -> 0.08911325333 | F82: 0.5217252656 | G82: =INDEX('Simulation (Poisson)'!$AD$2:$AN$2, MATCH(F82, 'Simulation (Poisson)'!$AD82:$AN82, 1)) -> 0 | H82: 0.7193014694 | I82: =_xlfn.BINOM.INV(G82,'CWP Prob & Severity Param'!$A$2,H82) -> 0 | J82: 0.06289860374 | K82: 0.1731996631 | L82: 0.6507830236 | M82: 0.2289403475 | N82: 0.53574773 | O82: 0.4214732469 | P82: 0.2686599915 | Q82: 0.8216263869 | R82: 0.9362790512 | S82: 0.9687487393 | T82: =IF($I82>=_xlfn.NUMBERVALUE(RIGHT(T$2, 2)), _xlfn.LOGNORM.INV(J82, 'CWP Prob & Severity Param'!$A$6, 'CWP Prob & Severity Param'!$B$6), "") ->  | U82: =IF($I82>=_xlfn.NUMBERVALUE(RIGHT(U$2, 2)), _xlfn.LOGNORM.INV(K82, 'CWP Prob & Severity Param'!$A$6, 'CWP Prob & Severity Param'!$B$6), "") ->  | V82: =IF($I82>=_xlfn.NUMBERVALUE(RIGHT(V$2, 2)), _xlfn.LOGNORM.INV(L82, 'CWP Prob & Severity Param'!$A$6, 'CWP Prob & Severity Param'!$B$6), "") ->  | W82: =IF($I82>=_xlfn.NUMBERVALUE(RIGHT(W$2, 2)), _xlfn.LOGNORM.INV(M82, 'CWP Prob & Severity Param'!$A$6, 'CWP Prob & Severity Param'!$B$6), "") ->  | X82: =IF($I82>=_xlfn.NUMBERVALUE(RIGHT(X$2, 2)), _xlfn.LOGNORM.INV(N82, 'CWP Prob & Severity Param'!$A$6, 'CWP Prob & Severity Param'!$B$6), "") ->  | Y82: =IF($I82>=_xlfn.NUMBERVALUE(RIGHT(Y$2, 2)), _xlfn.LOGNORM.INV(O82, 'CWP Prob & Severity Param'!$A$6, 'CWP Prob & Severity Param'!$B$6), "") ->  | Z82: =IF($I82>=_xlfn.NUMBERVALUE(RIGHT(Z$2, 2)), _xlfn.LOGNORM.INV(P82, 'CWP Prob & Severity Param'!$A$6, 'CWP Prob & Severity Param'!$B$6), "") ->  | AA82: =IF($I82>=_xlfn.NUMBERVALUE(RIGHT(AA$2, 2)), _xlfn.LOGNORM.INV(Q82, 'CWP Prob & Severity Param'!$A$6, 'CWP Prob & Severity Param'!$B$6), "") ->  | AB82: =IF($I82>=_xlfn.NUMBERVALUE(RIGHT(AB$2, 2)), _xlfn.LOGNORM.INV(R82, 'CWP Prob & Severity Param'!$A$6, 'CWP Prob & Severity Param'!$B$6), "") ->  | AC82: =IF($I82>=_xlfn.NUMBERVALUE(RIGHT(AC$2, 2)), _xlfn.LOGNORM.INV(S82, 'CWP Prob & Severity Param'!$A$6, 'CWP Prob & Severity Param'!$B$6), "") ->  | AD82: 0 | AE82: 0.9147419701 | AF82: 0.996257603 | AG82: 0.9998896647 | AH82: 0.9999975529 | AI82: 0.9999999565 | AJ82: 0.9999999994 | AK82: 1 | AL82: 1 | AM82: 1 | AN82: 1
D83: 81 | E83: ='Freq Fit (Poisson)'!N83 -> 0.2700589666 | F83: 0.4797281684 | G83: =INDEX('Simulation (Poisson)'!$AD$2:$AN$2, MATCH(F83, 'Simulation (Poisson)'!$AD83:$AN83, 1)) -> 0 | H83: 0.7423735722 | I83: =_xlfn.BINOM.INV(G83,'CWP Prob & Severity Param'!$A$2,H83) -> 0 | J83: 0.7159486737 | K83: 0.174049399 | L83: 0.2163431435 | M83: 0.2365896281 | N83: 0.514992424 | O83: 0.2851707454 | P83: 0.3637726591 | Q83: 0.2588208559 | R83: 0.1634240933 | S83: 0.8735803697 | T83: =IF($I83>=_xlfn.NUMBERVALUE(RIGHT(T$2, 2)), _xlfn.LOGNORM.INV(J83, 'CWP Prob & Severity Param'!$A$6, 'CWP Prob & Severity Param'!$B$6), "") ->  | U83: =IF($I83>=_xlfn.NUMBERVALUE(RIGHT(U$2, 2)), _xlfn.LOGNORM.INV(K83, 'CWP Prob & Severity Param'!$A$6, 'CWP Prob & Severity Param'!$B$6), "") ->  | V83: =IF($I83>=_xlfn.NUMBERVALUE(RIGHT(V$2, 2)), _xlfn.LOGNORM.INV(L83, 'CWP Prob & Severity Param'!$A$6, 'CWP Prob & Severity Param'!$B$6), "") ->  | W83: =IF($I83>=_xlfn.NUMBERVALUE(RIGHT(W$2, 2)), _xlfn.LOGNORM.INV(M83, 'CWP Prob & Severity Param'!$A$6, 'CWP Prob & Severity Param'!$B$6), "") ->  | X83: =IF($I83>=_xlfn.NUMBERVALUE(RIGHT(X$2, 2)), _xlfn.LOGNORM.INV(N83, 'CWP Prob & Severity Param'!$A$6, 'CWP Prob & Severity Param'!$B$6), "") ->  | Y83: =IF($I83>=_xlfn.NUMBERVALUE(RIGHT(Y$2, 2)), _xlfn.LOGNORM.INV(O83, 'CWP Prob & Severity Param'!$A$6, 'CWP Prob & Severity Param'!$B$6), "") ->  | Z83: =IF($I83>=_xlfn.NUMBERVALUE(RIGHT(Z$2, 2)), _xlfn.LOGNORM.INV(P83, 'CWP Prob & Severity Param'!$A$6, 'CWP Prob & Severity Param'!$B$6), "") ->  | AA83: =IF($I83>=_xlfn.NUMBERVALUE(RIGHT(AA$2, 2)), _xlfn.LOGNORM.INV(Q83, 'CWP Prob & Severity Param'!$A$6, 'CWP Prob & Severity Param'!$B$6), "") ->  | AB83: =IF($I83>=_xlfn.NUMBERVALUE(RIGHT(AB$2, 2)), _xlfn.LOGNORM.INV(R83, 'CWP Prob & Severity Param'!$A$6, 'CWP Prob & Severity Param'!$B$6), "") ->  | AC83: =IF($I83>=_xlfn.NUMBERVALUE(RIGHT(AC$2, 2)), _xlfn.LOGNORM.INV(S83, 'CWP Prob & Severity Param'!$A$6, 'CWP Prob & Severity Param'!$B$6), "") ->  | AD83: 0 | AE83: 0.7633344818 | AF83: 0.9694798031 | AG83: 0.9973154993 | AH83: 0.9998212591 | AI83: 0.9999904348 | AJ83: 0.9999995723 | AK83: 0.9999999836 | AL83: 0.9999999994 | AM83: 1 | AN83: 1
D84: 82 | E84: ='Freq Fit (Poisson)'!N84 -> 0.378020203 | F84: 0.3240764211 | G84: =INDEX('Simulation (Poisson)'!$AD$2:$AN$2, MATCH(F84, 'Simulation (Poisson)'!$AD84:$AN84, 1)) -> 0 | H84: 0.2942408209 | I84: =_xlfn.BINOM.INV(G84,'CWP Prob & Severity Param'!$A$2,H84) -> 0 | J84: 0.6918853459 | K84: 0.6152065888 | L84: 0.02908040663 | M84: 0.5046195705 | N84: 0.3062027618 | O84: 0.9103074005 | P84: 0.9873061538 | Q84: 0.7487698845 | R84: 0.9759496089 | S84: 0.938410792 | T84: =IF($I84>=_xlfn.NUMBERVALUE(RIGHT(T$2, 2)), _xlfn.LOGNORM.INV(J84, 'CWP Prob & Severity Param'!$A$6, 'CWP Prob & Severity Param'!$B$6), "") ->  | U84: =IF($I84>=_xlfn.NUMBERVALUE(RIGHT(U$2, 2)), _xlfn.LOGNORM.INV(K84, 'CWP Prob & Severity Param'!$A$6, 'CWP Prob & Severity Param'!$B$6), "") ->  | V84: =IF($I84>=_xlfn.NUMBERVALUE(RIGHT(V$2, 2)), _xlfn.LOGNORM.INV(L84, 'CWP Prob & Severity Param'!$A$6, 'CWP Prob & Severity Param'!$B$6), "") ->  | W84: =IF($I84>=_xlfn.NUMBERVALUE(RIGHT(W$2, 2)), _xlfn.LOGNORM.INV(M84, 'CWP Prob & Severity Param'!$A$6, 'CWP Prob & Severity Param'!$B$6), "") ->  | X84: =IF($I84>=_xlfn.NUMBERVALUE(RIGHT(X$2, 2)), _xlfn.LOGNORM.INV(N84, 'CWP Prob & Severity Param'!$A$6, 'CWP Prob & Severity Param'!$B$6), "") ->  | Y84: =IF($I84>=_xlfn.NUMBERVALUE(RIGHT(Y$2, 2)), _xlfn.LOGNORM.INV(O84, 'CWP Prob & Severity Param'!$A$6, 'CWP Prob & Severity Param'!$B$6), "") ->  | Z84: =IF($I84>=_xlfn.NUMBERVALUE(RIGHT(Z$2, 2)), _xlfn.LOGNORM.INV(P84, 'CWP Prob & Severity Param'!$A$6, 'CWP Prob & Severity Param'!$B$6), "") ->  | AA84: =IF($I84>=_xlfn.NUMBERVALUE(RIGHT(AA$2, 2)), _xlfn.LOGNORM.INV(Q84, 'CWP Prob & Severity Param'!$A$6, 'CWP Prob & Severity Param'!$B$6), "") ->  | AB84: =IF($I84>=_xlfn.NUMBERVALUE(RIGHT(AB$2, 2)), _xlfn.LOGNORM.INV(R84, 'CWP Prob & Severity Param'!$A$6, 'CWP Prob & Severity Param'!$B$6), "") ->  | AC84: =IF($I84>=_xlfn.NUMBERVALUE(RIGHT(AC$2, 2)), _xlfn.LOGNORM.INV(S84, 'CWP Prob & Severity Param'!$A$6, 'CWP Prob & Severity Param'!$B$6), "") ->  | AD84: 0 | AE84: 0.6852166571 | AF84: 0.9442423969 | AG84: 0.9932008783 | AH84: 0.9993699766 | AI84: 0.9999529876 | AJ84: 0.9999970656 | AK84: 0.9999998426 | AL84: 0.9999999926 | AM84: 0.9999999997 | AN84: 1
D85: 83 | E85: ='Freq Fit (Poisson)'!N85 -> 0.04548847823 | F85: 0.06656172762 | G85: =INDEX('Simulation (Poisson)'!$AD$2:$AN$2, MATCH(F85, 'Simulation (Poisson)'!$AD85:$AN85, 1)) -> 0 | H85: 0.8862788031 | I85: =_xlfn.BINOM.INV(G85,'CWP Prob & Severity Param'!$A$2,H85) -> 0 | J85: 0.8493538599 | K85: 0.9990599993 | L85: 0.4535654908 | M85: 0.6317567441 | N85: 0.7442277228 | O85: 0.1359090402 | P85: 0.7681082143 | Q85: 0.2499419075 | R85: 0.4044976908 | S85: 0.007019899545 | T85: =IF($I85>=_xlfn.NUMBERVALUE(RIGHT(T$2, 2)), _xlfn.LOGNORM.INV(J85, 'CWP Prob & Severity Param'!$A$6, 'CWP Prob & Severity Param'!$B$6), "") ->  | U85: =IF($I85>=_xlfn.NUMBERVALUE(RIGHT(U$2, 2)), _xlfn.LOGNORM.INV(K85, 'CWP Prob & Severity Param'!$A$6, 'CWP Prob & Severity Param'!$B$6), "") ->  | V85: =IF($I85>=_xlfn.NUMBERVALUE(RIGHT(V$2, 2)), _xlfn.LOGNORM.INV(L85, 'CWP Prob & Severity Param'!$A$6, 'CWP Prob & Severity Param'!$B$6), "") ->  | W85: =IF($I85>=_xlfn.NUMBERVALUE(RIGHT(W$2, 2)), _xlfn.LOGNORM.INV(M85, 'CWP Prob & Severity Param'!$A$6, 'CWP Prob & Severity Param'!$B$6), "") ->  | X85: =IF($I85>=_xlfn.NUMBERVALUE(RIGHT(X$2, 2)), _xlfn.LOGNORM.INV(N85, 'CWP Prob & Severity Param'!$A$6, 'CWP Prob & Severity Param'!$B$6), "") ->  | Y85: =IF($I85>=_xlfn.NUMBERVALUE(RIGHT(Y$2, 2)), _xlfn.LOGNORM.INV(O85, 'CWP Prob & Severity Param'!$A$6, 'CWP Prob & Severity Param'!$B$6), "") ->  | Z85: =IF($I85>=_xlfn.NUMBERVALUE(RIGHT(Z$2, 2)), _xlfn.LOGNORM.INV(P85, 'CWP Prob & Severity Param'!$A$6, 'CWP Prob & Severity Param'!$B$6), "") ->  | AA85: =IF($I85>=_xlfn.NUMBERVALUE(RIGHT(AA$2, 2)), _xlfn.LOGNORM.INV(Q85, 'CWP Prob & Severity Param'!$A$6, 'CWP Prob & Severity Param'!$B$6), "") ->  | AB85: =IF($I85>=_xlfn.NUMBERVALUE(RIGHT(AB$2, 2)), _xlfn.LOGNORM.INV(R85, 'CWP Prob & Severity Param'!$A$6, 'CWP Prob & Severity Param'!$B$6), "") ->  | AC85: =IF($I85>=_xlfn.NUMBERVALUE(RIGHT(AC$2, 2)), _xlfn.LOGNORM.INV(S85, 'CWP Prob & Severity Param'!$A$6, 'CWP Prob & Severity Param'!$B$6), "") ->  | AD85: 0 | AE85: 0.9555306119 | AF85: 0.9989962454 | AG85: 0.9999848381 | AH85: 0.999999828 | AI85: 0.9999999984 | AJ85: 1 | AK85: 1 | AL85: 1 | AM85: 1 | AN85: 1
D86: 84 | E86: ='Freq Fit (Poisson)'!N86 -> 0.1965445769 | F86: 0.7620060049 | G86: =INDEX('Simulation (Poisson)'!$AD$2:$AN$2, MATCH(F86, 'Simulation (Poisson)'!$AD86:$AN86, 1)) -> 0 | H86: 0.6403691185 | I86: =_xlfn.BINOM.INV(G86,'CWP Prob & Severity Param'!$A$2,H86) -> 0 | J86: 0.1542202486 | K86: 0.1939604024 | L86: 0.2149494053 | M86: 0.8268814049 | N86: 0.5082894388 | O86: 0.2530675992 | P86: 0.7378108042 | Q86: 0.2417639341 | R86: 0.7687421437 | S86: 0.5312280307 | T86: =IF($I86>=_xlfn.NUMBERVALUE(RIGHT(T$2, 2)), _xlfn.LOGNORM.INV(J86, 'CWP Prob & Severity Param'!$A$6, 'CWP Prob & Severity Param'!$B$6), "") ->  | U86: =IF($I86>=_xlfn.NUMBERVALUE(RIGHT(U$2, 2)), _xlfn.LOGNORM.INV(K86, 'CWP Prob & Severity Param'!$A$6, 'CWP Prob & Severity Param'!$B$6), "") ->  | V86: =IF($I86>=_xlfn.NUMBERVALUE(RIGHT(V$2, 2)), _xlfn.LOGNORM.INV(L86, 'CWP Prob & Severity Param'!$A$6, 'CWP Prob & Severity Param'!$B$6), "") ->  | W86: =IF($I86>=_xlfn.NUMBERVALUE(RIGHT(W$2, 2)), _xlfn.LOGNORM.INV(M86, 'CWP Prob & Severity Param'!$A$6, 'CWP Prob & Severity Param'!$B$6), "") ->  | X86: =IF($I86>=_xlfn.NUMBERVALUE(RIGHT(X$2, 2)), _xlfn.LOGNORM.INV(N86, 'CWP Prob & Severity Param'!$A$6, 'CWP Prob & Severity Param'!$B$6), "") ->  | Y86: =IF($I86>=_xlfn.NUMBERVALUE(RIGHT(Y$2, 2)), _xlfn.LOGNORM.INV(O86, 'CWP Prob & Severity Param'!$A$6, 'CWP Prob & Severity Param'!$B$6), "") ->  | Z86: =IF($I86>=_xlfn.NUMBERVALUE(RIGHT(Z$2, 2)), _xlfn.LOGNORM.INV(P86, 'CWP Prob & Severity Param'!$A$6, 'CWP Prob & Severity Param'!$B$6), "") ->  | AA86: =IF($I86>=_xlfn.NUMBERVALUE(RIGHT(AA$2, 2)), _xlfn.LOGNORM.INV(Q86, 'CWP Prob & Severity Param'!$A$6, 'CWP Prob & Severity Param'!$B$6), "") ->  | AB86: =IF($I86>=_xlfn.NUMBERVALUE(RIGHT(AB$2, 2)), _xlfn.LOGNORM.INV(R86, 'CWP Prob & Severity Param'!$A$6, 'CWP Prob & Severity Param'!$B$6), "") ->  | AC86: =IF($I86>=_xlfn.NUMBERVALUE(RIGHT(AC$2, 2)), _xlfn.LOGNORM.INV(S86, 'CWP Prob & Severity Param'!$A$6, 'CWP Prob & Severity Param'!$B$6), "") ->  | AD86: 0 | AE86: 0.8215647077 | AF86: 0.9830387955 | AG86: 0.9989072237 | AH86: 0.9999468415 | AI86: 0.9999979243 | AJ86: 0.9999999323 | AK86: 0.9999999981 | AL86: 1 | AM86: 1 | AN86: 1
D87: 85 | E87: ='Freq Fit (Poisson)'!N87 -> 0.1934488327 | F87: 0.2933329042 | G87: =INDEX('Simulation (Poisson)'!$AD$2:$AN$2, MATCH(F87, 'Simulation (Poisson)'!$AD87:$AN87, 1)) -> 0 | H87: 0.6613324437 | I87: =_xlfn.BINOM.INV(G87,'CWP Prob & Severity Param'!$A$2,H87) -> 0 | J87: 0.4854855789 | K87: 0.1072070868 | L87: 0.7460876709 | M87: 0.5700436073 | N87: 0.6292520949 | O87: 0.3471039287 | P87: 0.3872797488 | Q87: 0.6897003936 | R87: 0.962703618 | S87: 0.2911543553 | T87: =IF($I87>=_xlfn.NUMBERVALUE(RIGHT(T$2, 2)), _xlfn.LOGNORM.INV(J87, 'CWP Prob & Severity Param'!$A$6, 'CWP Prob & Severity Param'!$B$6), "") ->  | U87: =IF($I87>=_xlfn.NUMBERVALUE(RIGHT(U$2, 2)), _xlfn.LOGNORM.INV(K87, 'CWP Prob & Severity Param'!$A$6, 'CWP Prob & Severity Param'!$B$6), "") ->  | V87: =IF($I87>=_xlfn.NUMBERVALUE(RIGHT(V$2, 2)), _xlfn.LOGNORM.INV(L87, 'CWP Prob & Severity Param'!$A$6, 'CWP Prob & Severity Param'!$B$6), "") ->  | W87: =IF($I87>=_xlfn.NUMBERVALUE(RIGHT(W$2, 2)), _xlfn.LOGNORM.INV(M87, 'CWP Prob & Severity Param'!$A$6, 'CWP Prob & Severity Param'!$B$6), "") ->  | X87: =IF($I87>=_xlfn.NUMBERVALUE(RIGHT(X$2, 2)), _xlfn.LOGNORM.INV(N87, 'CWP Prob & Severity Param'!$A$6, 'CWP Prob & Severity Param'!$B$6), "") ->  | Y87: =IF($I87>=_xlfn.NUMBERVALUE(RIGHT(Y$2, 2)), _xlfn.LOGNORM.INV(O87, 'CWP Prob & Severity Param'!$A$6, 'CWP Prob & Severity Param'!$B$6), "") ->  | Z87: =IF($I87>=_xlfn.NUMBERVALUE(RIGHT(Z$2, 2)), _xlfn.LOGNORM.INV(P87, 'CWP Prob & Severity Param'!$A$6, 'CWP Prob & Severity Param'!$B$6), "") ->  | AA87: =IF($I87>=_xlfn.NUMBERVALUE(RIGHT(AA$2, 2)), _xlfn.LOGNORM.INV(Q87, 'CWP Prob & Severity Param'!$A$6, 'CWP Prob & Severity Param'!$B$6), "") ->  | AB87: =IF($I87>=_xlfn.NUMBERVALUE(RIGHT(AB$2, 2)), _xlfn.LOGNORM.INV(R87, 'CWP Prob & Severity Param'!$A$6, 'CWP Prob & Severity Param'!$B$6), "") ->  | AC87: =IF($I87>=_xlfn.NUMBERVALUE(RIGHT(AC$2, 2)), _xlfn.LOGNORM.INV(S87, 'CWP Prob & Severity Param'!$A$6, 'CWP Prob & Severity Param'!$B$6), "") ->  | AD87: 0 | AE87: 0.8241120027 | AF87: 0.9835355076 | AG87: 0.9989556531 | AH87: 0.9999499895 | AI87: 0.9999980778 | AJ87: 0.9999999383 | AK87: 0.9999999983 | AL87: 1 | AM87: 1 | AN87: 1
D88: 86 | E88: ='Freq Fit (Poisson)'!N88 -> 0.1493064219 | F88: 0.3856235781 | G88: =INDEX('Simulation (Poisson)'!$AD$2:$AN$2, MATCH(F88, 'Simulation (Poisson)'!$AD88:$AN88, 1)) -> 0 | H88: 0.5016832458 | I88: =_xlfn.BINOM.INV(G88,'CWP Prob & Severity Param'!$A$2,H88) -> 0 | J88: 0.610505395 | K88: 0.8072708985 | L88: 0.5021563312 | M88: 0.610175896 | N88: 0.6056870277 | O88: 0.8672171021 | P88: 0.1701778328 | Q88: 0.489230273 | R88: 0.982050435 | S88: 0.6993454862 | T88: =IF($I88>=_xlfn.NUMBERVALUE(RIGHT(T$2, 2)), _xlfn.LOGNORM.INV(J88, 'CWP Prob & Severity Param'!$A$6, 'CWP Prob & Severity Param'!$B$6), "") ->  | U88: =IF($I88>=_xlfn.NUMBERVALUE(RIGHT(U$2, 2)), _xlfn.LOGNORM.INV(K88, 'CWP Prob & Severity Param'!$A$6, 'CWP Prob & Severity Param'!$B$6), "") ->  | V88: =IF($I88>=_xlfn.NUMBERVALUE(RIGHT(V$2, 2)), _xlfn.LOGNORM.INV(L88, 'CWP Prob & Severity Param'!$A$6, 'CWP Prob & Severity Param'!$B$6), "") ->  | W88: =IF($I88>=_xlfn.NUMBERVALUE(RIGHT(W$2, 2)), _xlfn.LOGNORM.INV(M88, 'CWP Prob & Severity Param'!$A$6, 'CWP Prob & Severity Param'!$B$6), "") ->  | X88: =IF($I88>=_xlfn.NUMBERVALUE(RIGHT(X$2, 2)), _xlfn.LOGNORM.INV(N88, 'CWP Prob & Severity Param'!$A$6, 'CWP Prob & Severity Param'!$B$6), "") ->  | Y88: =IF($I88>=_xlfn.NUMBERVALUE(RIGHT(Y$2, 2)), _xlfn.LOGNORM.INV(O88, 'CWP Prob & Severity Param'!$A$6, 'CWP Prob & Severity Param'!$B$6), "") ->  | Z88: =IF($I88>=_xlfn.NUMBERVALUE(RIGHT(Z$2, 2)), _xlfn.LOGNORM.INV(P88, 'CWP Prob & Severity Param'!$A$6, 'CWP Prob & Severity Param'!$B$6), "") ->  | AA88: =IF($I88>=_xlfn.NUMBERVALUE(RIGHT(AA$2, 2)), _xlfn.LOGNORM.INV(Q88, 'CWP Prob & Severity Param'!$A$6, 'CWP Prob & Severity Param'!$B$6), "") ->  | AB88: =IF($I88>=_xlfn.NUMBERVALUE(RIGHT(AB$2, 2)), _xlfn.LOGNORM.INV(R88, 'CWP Prob & Severity Param'!$A$6, 'CWP Prob & Severity Param'!$B$6), "") ->  | AC88: =IF($I88>=_xlfn.NUMBERVALUE(RIGHT(AC$2, 2)), _xlfn.LOGNORM.INV(S88, 'CWP Prob & Severity Param'!$A$6, 'CWP Prob & Severity Param'!$B$6), "") ->  | AD88: 0 | AE88: 0.8613051517 | AF88: 0.9899035421 | AG88: 0.9995038248 | AH88: 0.9999816194 | AI88: 0.9999994539 | AJ88: 0.9999999865 | AK88: 0.9999999997 | AL88: 1 | AM88: 1 | AN88: 1
D89: 87 | E89: ='Freq Fit (Poisson)'!N89 -> 0.1348109914 | F89: 0.5946520078 | G89: =INDEX('Simulation (Poisson)'!$AD$2:$AN$2, MATCH(F89, 'Simulation (Poisson)'!$AD89:$AN89, 1)) -> 0 | H89: 0.630395642 | I89: =_xlfn.BINOM.INV(G89,'CWP Prob & Severity Param'!$A$2,H89) -> 0 | J89: 0.9953758776 | K89: 0.8146256649 | L89: 0.9927155186 | M89: 0.5285695072 | N89: 0.9662071831 | O89: 0.9220840914 | P89: 0.3769480485 | Q89: 0.05771839843 | R89: 0.1335920184 | S89: 0.801291882 | T89: =IF($I89>=_xlfn.NUMBERVALUE(RIGHT(T$2, 2)), _xlfn.LOGNORM.INV(J89, 'CWP Prob & Severity Param'!$A$6, 'CWP Prob & Severity Param'!$B$6), "") ->  | U89: =IF($I89>=_xlfn.NUMBERVALUE(RIGHT(U$2, 2)), _xlfn.LOGNORM.INV(K89, 'CWP Prob & Severity Param'!$A$6, 'CWP Prob & Severity Param'!$B$6), "") ->  | V89: =IF($I89>=_xlfn.NUMBERVALUE(RIGHT(V$2, 2)), _xlfn.LOGNORM.INV(L89, 'CWP Prob & Severity Param'!$A$6, 'CWP Prob & Severity Param'!$B$6), "") ->  | W89: =IF($I89>=_xlfn.NUMBERVALUE(RIGHT(W$2, 2)), _xlfn.LOGNORM.INV(M89, 'CWP Prob & Severity Param'!$A$6, 'CWP Prob & Severity Param'!$B$6), "") ->  | X89: =IF($I89>=_xlfn.NUMBERVALUE(RIGHT(X$2, 2)), _xlfn.LOGNORM.INV(N89, 'CWP Prob & Severity Param'!$A$6, 'CWP Prob & Severity Param'!$B$6), "") ->  | Y89: =IF($I89>=_xlfn.NUMBERVALUE(RIGHT(Y$2, 2)), _xlfn.LOGNORM.INV(O89, 'CWP Prob & Severity Param'!$A$6, 'CWP Prob & Severity Param'!$B$6), "") ->  | Z89: =IF($I89>=_xlfn.NUMBERVALUE(RIGHT(Z$2, 2)), _xlfn.LOGNORM.INV(P89, 'CWP Prob & Severity Param'!$A$6, 'CWP Prob & Severity Param'!$B$6), "") ->  | AA89: =IF($I89>=_xlfn.NUMBERVALUE(RIGHT(AA$2, 2)), _xlfn.LOGNORM.INV(Q89, 'CWP Prob & Severity Param'!$A$6, 'CWP Prob & Severity Param'!$B$6), "") ->  | AB89: =IF($I89>=_xlfn.NUMBERVALUE(RIGHT(AB$2, 2)), _xlfn.LOGNORM.INV(R89, 'CWP Prob & Severity Param'!$A$6, 'CWP Prob & Severity Param'!$B$6), "") ->  | AC89: =IF($I89>=_xlfn.NUMBERVALUE(RIGHT(AC$2, 2)), _xlfn.LOGNORM.INV(S89, 'CWP Prob & Severity Param'!$A$6, 'CWP Prob & Severity Param'!$B$6), "") ->  | AD89: 0 | AE89: 0.8738810671 | AF89: 0.9916898401 | AG89: 0.9996307989 | AH89: =_xlfn.POISSON.DIST(AG$2, $E89, TRUE) -> 0.9999876417 | AI89: 0.9999996683 | AJ89: 0.9999999926 | AK89: 0.9999999999 | AL89: 1 | AM89: 1 | AN89: 1
D90: 88 | E90: ='Freq Fit (Poisson)'!N90 -> 0.1107421073 | F90: 0.3397647005 | G90: =INDEX('Simulation (Poisson)'!$AD$2:$AN$2, MATCH(F90, 'Simulation (Poisson)'!$AD90:$AN90, 1)) -> 0 | H90: 0.03574146973 | I90: =_xlfn.BINOM.INV(G90,'CWP Prob & Severity Param'!$A$2,H90) -> 0 | J90: 0.8505209732 | K90: 0.2431583501 | L90: 0.9300643334 | M90: 0.1622277611 | N90: 0.8579262105 | O90: 0.9629476173 | P90: 0.6530137096 | Q90: 0.7494390462 | R90: 0.05421940849 | S90: 0.4760889931 | T90: =IF($I90>=_xlfn.NUMBERVALUE(RIGHT(T$2, 2)), _xlfn.LOGNORM.INV(J90, 'CWP Prob & Severity Param'!$A$6, 'CWP Prob & Severity Param'!$B$6), "") ->  | U90: =IF($I90>=_xlfn.NUMBERVALUE(RIGHT(U$2, 2)), _xlfn.LOGNORM.INV(K90, 'CWP Prob & Severity Param'!$A$6, 'CWP Prob & Severity Param'!$B$6), "") ->  | V90: =IF($I90>=_xlfn.NUMBERVALUE(RIGHT(V$2, 2)), _xlfn.LOGNORM.INV(L90, 'CWP Prob & Severity Param'!$A$6, 'CWP Prob & Severity Param'!$B$6), "") ->  | W90: =IF($I90>=_xlfn.NUMBERVALUE(RIGHT(W$2, 2)), _xlfn.LOGNORM.INV(M90, 'CWP Prob & Severity Param'!$A$6, 'CWP Prob & Severity Param'!$B$6), "") ->  | X90: =IF($I90>=_xlfn.NUMBERVALUE(RIGHT(X$2, 2)), _xlfn.LOGNORM.INV(N90, 'CWP Prob & Severity Param'!$A$6, 'CWP Prob & Severity Param'!$B$6), "") ->  | Y90: =IF($I90>=_xlfn.NUMBERVALUE(RIGHT(Y$2, 2)), _xlfn.LOGNORM.INV(O90, 'CWP Prob & Severity Param'!$A$6, 'CWP Prob & Severity Param'!$B$6), "") ->  | Z90: =IF($I90>=_xlfn.NUMBERVALUE(RIGHT(Z$2, 2)), _xlfn.LOGNORM.INV(P90, 'CWP Prob & Severity Param'!$A$6, 'CWP Prob & Severity Param'!$B$6), "") ->  | AA90: =IF($I90>=_xlfn.NUMBERVALUE(RIGHT(AA$2, 2)), _xlfn.LOGNORM.INV(Q90, 'CWP Prob & Severity Param'!$A$6, 'CWP Prob & Severity Param'!$B$6), "") ->  | AB90: =IF($I90>=_xlfn.NUMBERVALUE(RIGHT(AB$2, 2)), _xlfn.LOGNORM.INV(R90, 'CWP Prob & Severity Param'!$A$6, 'CWP Prob & Severity Param'!$B$6), "") ->  | AC90: =IF($I90>=_xlfn.NUMBERVALUE(RIGHT(AC$2, 2)), _xlfn.LOGNORM.INV(S90, 'CWP Prob & Severity Param'!$A$6, 'CWP Prob & Severity Param'!$B$6), "") ->  | AD90: 0 | AE90: 0.8951695769 | AF90: 0.9943025422 | AG90: 0.9997916389 | AH90: 0.9999942637 | AI90: 0.9999998734 | AJ90: 0.9999999977 | AK90: 1 | AL90: 1 | AM90: 1 | AN90: 1
D91: 89 | E91: ='Freq Fit (Poisson)'!N91 -> 0.0853921105 | F91: 0.5383766012 | G91: =INDEX('Simulation (Poisson)'!$AD$2:$AN$2, MATCH(F91, 'Simulation (Poisson)'!$AD91:$AN91, 1)) -> 0 | H91: 0.4442965483 | I91: =_xlfn.BINOM.INV(G91,'CWP Prob & Severity Param'!$A$2,H91) -> 0 | J91: 0.9624562246 | K91: 0.5101370165 | L91: 0.9788991183 | M91: 0.6167731173 | N91: 0.2233894241 | O91: 0.1370929235 | P91: 0.718127535 | Q91: 0.7822008739 | R91: 0.3274558045 | S91: 0.8209121719 | T91: =IF($I91>=_xlfn.NUMBERVALUE(RIGHT(T$2, 2)), _xlfn.LOGNORM.INV(J91, 'CWP Prob & Severity Param'!$A$6, 'CWP Prob & Severity Param'!$B$6), "") ->  | U91: =IF($I91>=_xlfn.NUMBERVALUE(RIGHT(U$2, 2)), _xlfn.LOGNORM.INV(K91, 'CWP Prob & Severity Param'!$A$6, 'CWP Prob & Severity Param'!$B$6), "") ->  | V91: =IF($I91>=_xlfn.NUMBERVALUE(RIGHT(V$2, 2)), _xlfn.LOGNORM.INV(L91, 'CWP Prob & Severity Param'!$A$6, 'CWP Prob & Severity Param'!$B$6), "") ->  | W91: =IF($I91>=_xlfn.NUMBERVALUE(RIGHT(W$2, 2)), _xlfn.LOGNORM.INV(M91, 'CWP Prob & Severity Param'!$A$6, 'CWP Prob & Severity Param'!$B$6), "") ->  | X91: =IF($I91>=_xlfn.NUMBERVALUE(RIGHT(X$2, 2)), _xlfn.LOGNORM.INV(N91, 'CWP Prob & Severity Param'!$A$6, 'CWP Prob & Severity Param'!$B$6), "") ->  | Y91: =IF($I91>=_xlfn.NUMBERVALUE(RIGHT(Y$2, 2)), _xlfn.LOGNORM.INV(O91, 'CWP Prob & Severity Param'!$A$6, 'CWP Prob & Severity Param'!$B$6), "") ->  | Z91: =IF($I91>=_xlfn.NUMBERVALUE(RIGHT(Z$2, 2)), _xlfn.LOGNORM.INV(P91, 'CWP Prob & Severity Param'!$A$6, 'CWP Prob & Severity Param'!$B$6), "") ->  | AA91: =IF($I91>=_xlfn.NUMBERVALUE(RIGHT(AA$2, 2)), _xlfn.LOGNORM.INV(Q91, 'CWP Prob & Severity Param'!$A$6, 'CWP Prob & Severity Param'!$B$6), "") ->  | AB91: =IF($I91>=_xlfn.NUMBERVALUE(RIGHT(AB$2, 2)), _xlfn.LOGNORM.INV(R91, 'CWP Prob & Severity Param'!$A$6, 'CWP Prob & Severity Param'!$B$6), "") ->  | AC91: =IF($I91>=_xlfn.NUMBERVALUE(RIGHT(AC$2, 2)), _xlfn.LOGNORM.INV(S91, 'CWP Prob & Severity Param'!$A$6, 'CWP Prob & Severity Param'!$B$6), "") ->  | AD91: 0 | AE91: 0.9181521967 | AF91: 0.9965551505 | AG91: 0.9999026474 | AH91: 0.9999979307 | AI91: 0.9999999648 | AJ91: 0.9999999995 | AK91: 1 | AL91: 1 | AM91: 1 | AN91: 1
D92: 90 | E92: ='Freq Fit (Poisson)'!N92 -> 0.104674446 | F92: 0.5553378178 | G92: =INDEX('Simulation (Poisson)'!$AD$2:$AN$2, MATCH(F92, 'Simulation (Poisson)'!$AD92:$AN92, 1)) -> 0 | H92: 0.4527627227 | I92: =_xlfn.BINOM.INV(G92,'CWP Prob & Severity Param'!$A$2,H92) -> 0 | J92: 0.5147871253 | K92: 0.631232429 | L92: 0.5331572871 | M92: 0.6372299102 | N92: 0.751163804 | O92: 0.6824743337 | P92: 0.6243767735 | Q92: 0.7060008566 | R92: 0.8903362591 | S92: 0.3225958921 | T92: =IF($I92>=_xlfn.NUMBERVALUE(RIGHT(T$2, 2)), _xlfn.LOGNORM.INV(J92, 'CWP Prob & Severity Param'!$A$6, 'CWP Prob & Severity Param'!$B$6), "") ->  | U92: =IF($I92>=_xlfn.NUMBERVALUE(RIGHT(U$2, 2)), _xlfn.LOGNORM.INV(K92, 'CWP Prob & Severity Param'!$A$6, 'CWP Prob & Severity Param'!$B$6), "") ->  | V92: =IF($I92>=_xlfn.NUMBERVALUE(RIGHT(V$2, 2)), _xlfn.LOGNORM.INV(L92, 'CWP Prob & Severity Param'!$A$6, 'CWP Prob & Severity Param'!$B$6), "") ->  | W92: =IF($I92>=_xlfn.NUMBERVALUE(RIGHT(W$2, 2)), _xlfn.LOGNORM.INV(M92, 'CWP Prob & Severity Param'!$A$6, 'CWP Prob & Severity Param'!$B$6), "") ->  | X92: =IF($I92>=_xlfn.NUMBERVALUE(RIGHT(X$2, 2)), _xlfn.LOGNORM.INV(N92, 'CWP Prob & Severity Param'!$A$6, 'CWP Prob & Severity Param'!$B$6), "") ->  | Y92: =IF($I92>=_xlfn.NUMBERVALUE(RIGHT(Y$2, 2)), _xlfn.LOGNORM.INV(O92, 'CWP Prob & Severity Param'!$A$6, 'CWP Prob & Severity Param'!$B$6), "") ->  | Z92: =IF($I92>=_xlfn.NUMBERVALUE(RIGHT(Z$2, 2)), _xlfn.LOGNORM.INV(P92, 'CWP Prob & Severity Param'!$A$6, 'CWP Prob & Severity Param'!$B$6), "") ->  | AA92: =IF($I92>=_xlfn.NUMBERVALUE(RIGHT(AA$2, 2)), _xlfn.LOGNORM.INV(Q92, 'CWP Prob & Severity Param'!$A$6, 'CWP Prob & Severity Param'!$B$6), "") ->  | AB92: =IF($I92>=_xlfn.NUMBERVALUE(RIGHT(AB$2, 2)), _xlfn.LOGNORM.INV(R92, 'CWP Prob & Severity Param'!$A$6, 'CWP Prob & Severity Param'!$B$6), "") ->  | AC92: =IF($I92>=_xlfn.NUMBERVALUE(RIGHT(AC$2, 2)), _xlfn.LOGNORM.INV(S92, 'CWP Prob & Severity Param'!$A$6, 'CWP Prob & Severity Param'!$B$6), "") ->  | AD92: 0 | AE92: 0.9006176746 | AF92: 0.9948893307 | AG92: 0.9998232474 | AH92: 0.999995399 | AI92: 0.999999904 | AJ92: 0.9999999983 | AK92: 1 | AL92: 1 | AM92: 1 | AN92: 1
D93: 91 | E93: ='Freq Fit (Poisson)'!N93 -> 0.03728388555 | F93: 0.0764268963 | G93: =INDEX('Simulation (Poisson)'!$AD$2:$AN$2, MATCH(F93, 'Simulation (Poisson)'!$AD93:$AN93, 1)) -> 0 | H93: 0.4864235231 | I93: =_xlfn.BINOM.INV(G93,'CWP Prob & Severity Param'!$A$2,H93) -> 0 | J93: 0.3802862217 | K93: 0.7310889025 | L93: 0.8236782786 | M93: 0.7302627112 | N93: 0.5751376013 | O93: 0.9335938744 | P93: 0.6119630266 | Q93: 0.27456264 | R93: 0.7877023951 | S93: 0.007342535471 | T93: =IF($I93>=_xlfn.NUMBERVALUE(RIGHT(T$2, 2)), _xlfn.LOGNORM.INV(J93, 'CWP Prob & Severity Param'!$A$6, 'CWP Prob & Severity Param'!$B$6), "") ->  | U93: =IF($I93>=_xlfn.NUMBERVALUE(RIGHT(U$2, 2)), _xlfn.LOGNORM.INV(K93, 'CWP Prob & Severity Param'!$A$6, 'CWP Prob & Severity Param'!$B$6), "") ->  | V93: =IF($I93>=_xlfn.NUMBERVALUE(RIGHT(V$2, 2)), _xlfn.LOGNORM.INV(L93, 'CWP Prob & Severity Param'!$A$6, 'CWP Prob & Severity Param'!$B$6), "") ->  | W93: =IF($I93>=_xlfn.NUMBERVALUE(RIGHT(W$2, 2)), _xlfn.LOGNORM.INV(M93, 'CWP Prob & Severity Param'!$A$6, 'CWP Prob & Severity Param'!$B$6), "") ->  | X93: =IF($I93>=_xlfn.NUMBERVALUE(RIGHT(X$2, 2)), _xlfn.LOGNORM.INV(N93, 'CWP Prob & Severity Param'!$A$6, 'CWP Prob & Severity Param'!$B$6), "") ->  | Y93: =IF($I93>=_xlfn.NUMBERVALUE(RIGHT(Y$2, 2)), _xlfn.LOGNORM.INV(O93, 'CWP Prob & Severity Param'!$A$6, 'CWP Prob & Severity Param'!$B$6), "") ->  | Z93: =IF($I93>=_xlfn.NUMBERVALUE(RIGHT(Z$2, 2)), _xlfn.LOGNORM.INV(P93, 'CWP Prob & Severity Param'!$A$6, 'CWP Prob & Severity Param'!$B$6), "") ->  | AA93: =IF($I93>=_xlfn.NUMBERVALUE(RIGHT(AA$2, 2)), _xlfn.LOGNORM.INV(Q93, 'CWP Prob & Severity Param'!$A$6, 'CWP Prob & Severity Param'!$B$6), "") ->  | AB93: =IF($I93>=_xlfn.NUMBERVALUE(RIGHT(AB$2, 2)), _xlfn.LOGNORM.INV(R93, 'CWP Prob & Severity Param'!$A$6, 'CWP Prob & Severity Param'!$B$6), "") ->  | AC93: =IF($I93>=_xlfn.NUMBERVALUE(RIGHT(AC$2, 2)), _xlfn.LOGNORM.INV(S93, 'CWP Prob & Severity Param'!$A$6, 'CWP Prob & Severity Param'!$B$6), "") ->  | AD93: 0 | AE93: 0.9634026004 | AF93: 0.9993219927 | AG93: 0.9999916 | AH93: 0.9999999219 | AI93: 0.9999999994 | AJ93: 1 | AK93: 1 | AL93: 1 | AM93: 1 | AN93: 1
D94: 92 | E94: ='Freq Fit (Poisson)'!N94 -> 0.07628963095 | F94: 0.02953256301 | G94: =INDEX('Simulation (Poisson)'!$AD$2:$AN$2, MATCH(F94, 'Simulation (Poisson)'!$AD94:$AN94, 1)) -> 0 | H94: 0.2011635553 | I94: =_xlfn.BINOM.INV(G94,'CWP Prob & Severity Param'!$A$2,H94) -> 0 | J94: 0.7796448365 | K94: 0.6648203752 | L94: 0.7598621003 | M94: 0.8228874661 | N94: 0.6893160926 | O94: 0.1620443912 | P94: 0.1295515305 | Q94: 0.1263277959 | R94: 0.1224418676 | S94: 0.6202554347 | T94: =IF($I94>=_xlfn.NUMBERVALUE(RIGHT(T$2, 2)), _xlfn.LOGNORM.INV(J94, 'CWP Prob & Severity Param'!$A$6, 'CWP Prob & Severity Param'!$B$6), "") ->  | U94: =IF($I94>=_xlfn.NUMBERVALUE(RIGHT(U$2, 2)), _xlfn.LOGNORM.INV(K94, 'CWP Prob & Severity Param'!$A$6, 'CWP Prob & Severity Param'!$B$6), "") ->  | V94: =IF($I94>=_xlfn.NUMBERVALUE(RIGHT(V$2, 2)), _xlfn.LOGNORM.INV(L94, 'CWP Prob & Severity Param'!$A$6, 'CWP Prob & Severity Param'!$B$6), "") ->  | W94: =IF($I94>=_xlfn.NUMBERVALUE(RIGHT(W$2, 2)), _xlfn.LOGNORM.INV(M94, 'CWP Prob & Severity Param'!$A$6, 'CWP Prob & Severity Param'!$B$6), "") ->  | X94: =IF($I94>=_xlfn.NUMBERVALUE(RIGHT(X$2, 2)), _xlfn.LOGNORM.INV(N94, 'CWP Prob & Severity Param'!$A$6, 'CWP Prob & Severity Param'!$B$6), "") ->  | Y94: =IF($I94>=_xlfn.NUMBERVALUE(RIGHT(Y$2, 2)), _xlfn.LOGNORM.INV(O94, 'CWP Prob & Severity Param'!$A$6, 'CWP Prob & Severity Param'!$B$6), "") ->  | Z94: =IF($I94>=_xlfn.NUMBERVALUE(RIGHT(Z$2, 2)), _xlfn.LOGNORM.INV(P94, 'CWP Prob & Severity Param'!$A$6, 'CWP Prob & Severity Param'!$B$6), "") ->  | AA94: =IF($I94>=_xlfn.NUMBERVALUE(RIGHT(AA$2, 2)), _xlfn.LOGNORM.INV(Q94, 'CWP Prob & Severity Param'!$A$6, 'CWP Prob & Severity Param'!$B$6), "") ->  | AB94: =IF($I94>=_xlfn.NUMBERVALUE(RIGHT(AB$2, 2)), _xlfn.LOGNORM.INV(R94, 'CWP Prob & Severity Param'!$A$6, 'CWP Prob & Severity Param'!$B$6), "") ->  | AC94: =IF($I94>=_xlfn.NUMBERVALUE(RIGHT(AC$2, 2)), _xlfn.LOGNORM.INV(S94, 'CWP Prob & Severity Param'!$A$6, 'CWP Prob & Severity Param'!$B$6), "") ->  | AD94: 0 | AE94: 0.9265478108 | AF94: 0.9972338013 | AG94: 0.9999301054 | AH94: 0.9999986721 | AI94: 0.9999999798 | AJ94: 0.9999999997 | AK94: 1 | AL94: 1 | AM94: 1 | AN94: 1
D95: 93 | E95: ='Freq Fit (Poisson)'!N95 -> 0.06696737325 | F95: 0.8244041375 | G95: =INDEX('Simulation (Poisson)'!$AD$2:$AN$2, MATCH(F95, 'Simulation (Poisson)'!$AD95:$AN95, 1)) -> 0 | H95: 0.7418850596 | I95: =_xlfn.BINOM.INV(G95,'CWP Prob & Severity Param'!$A$2,H95) -> 0 | J95: 0.3684003287 | K95: 0.7907411336 | L95: 0.9396251351 | M95: 0.4916294027 | N95: 0.8933057484 | O95: 0.6760908054 | P95: 0.3944039275 | Q95: 0.2981910302 | R95: 0.5802257217 | S95: 0.2396918132 | T95: =IF($I95>=_xlfn.NUMBERVALUE(RIGHT(T$2, 2)), _xlfn.LOGNORM.INV(J95, 'CWP Prob & Severity Param'!$A$6, 'CWP Prob & Severity Param'!$B$6), "") ->  | U95: =IF($I95>=_xlfn.NUMBERVALUE(RIGHT(U$2, 2)), _xlfn.LOGNORM.INV(K95, 'CWP Prob & Severity Param'!$A$6, 'CWP Prob & Severity Param'!$B$6), "") ->  | V95: =IF($I95>=_xlfn.NUMBERVALUE(RIGHT(V$2, 2)), _xlfn.LOGNORM.INV(L95, 'CWP Prob & Severity Param'!$A$6, 'CWP Prob & Severity Param'!$B$6), "") ->  | W95: =IF($I95>=_xlfn.NUMBERVALUE(RIGHT(W$2, 2)), _xlfn.LOGNORM.INV(M95, 'CWP Prob & Severity Param'!$A$6, 'CWP Prob & Severity Param'!$B$6), "") ->  | X95: =IF($I95>=_xlfn.NUMBERVALUE(RIGHT(X$2, 2)), _xlfn.LOGNORM.INV(N95, 'CWP Prob & Severity Param'!$A$6, 'CWP Prob & Severity Param'!$B$6), "") ->  | Y95: =IF($I95>=_xlfn.NUMBERVALUE(RIGHT(Y$2, 2)), _xlfn.LOGNORM.INV(O95, 'CWP Prob & Severity Param'!$A$6, 'CWP Prob & Severity Param'!$B$6), "") ->  | Z95: =IF($I95>=_xlfn.NUMBERVALUE(RIGHT(Z$2, 2)), _xlfn.LOGNORM.INV(P95, 'CWP Prob & Severity Param'!$A$6, 'CWP Prob & Severity Param'!$B$6), "") ->  | AA95: =IF($I95>=_xlfn.NUMBERVALUE(RIGHT(AA$2, 2)), _xlfn.LOGNORM.INV(Q95, 'CWP Prob & Severity Param'!$A$6, 'CWP Prob & Severity Param'!$B$6), "") ->  | AB95: =IF($I95>=_xlfn.NUMBERVALUE(RIGHT(AB$2, 2)), _xlfn.LOGNORM.INV(R95, 'CWP Prob & Severity Param'!$A$6, 'CWP Prob & Severity Param'!$B$6), "") ->  | AC95: =IF($I95>=_xlfn.NUMBERVALUE(RIGHT(AC$2, 2)), _xlfn.LOGNORM.INV(S95, 'CWP Prob & Severity Param'!$A$6, 'CWP Prob & Severity Param'!$B$6), "") ->  | AD95: 0 | AE95: 0.9352257142 | AF95: 0.9978553237 | AG95: 0.9999523939 | AH95: 0.9999992057 | AI95: 0.9999999894 | AJ95: 0.9999999999 | AK95: 1 | AL95: 1 | AM95: 1 | AN95: 1
D96: 94 | E96: ='Freq Fit (Poisson)'!N96 -> 0.1176251818 | F96: 0.2675293297 | G96: =INDEX('Simulation (Poisson)'!$AD$2:$AN$2, MATCH(F96, 'Simulation (Poisson)'!$AD96:$AN96, 1)) -> 0 | H96: 0.7172393962 | I96: =_xlfn.BINOM.INV(G96,'CWP Prob & Severity Param'!$A$2,H96) -> 0 | J96: 0.06547627496 | K96: 0.1698061838 | L96: 0.9363153668 | M96: 0.7371150561 | N96: 0.6555510397 | O96: 0.4209018417 | P96: 0.3358521105 | Q96: 0.06533230617 | R96: =RAND() -> 0.06728352631 | S96: 0.06170285146 | T96: =IF($I96>=_xlfn.NUMBERVALUE(RIGHT(T$2, 2)), _xlfn.LOGNORM.INV(J96, 'CWP Prob & Severity Param'!$A$6, 'CWP Prob & Severity Param'!$B$6), "") ->  | U96: =IF($I96>=_xlfn.NUMBERVALUE(RIGHT(U$2, 2)), _xlfn.LOGNORM.INV(K96, 'CWP Prob & Severity Param'!$A$6, 'CWP Prob & Severity Param'!$B$6), "") ->  | V96: =IF($I96>=_xlfn.NUMBERVALUE(RIGHT(V$2, 2)), _xlfn.LOGNORM.INV(L96, 'CWP Prob & Severity Param'!$A$6, 'CWP Prob & Severity Param'!$B$6), "") ->  | W96: =IF($I96>=_xlfn.NUMBERVALUE(RIGHT(W$2, 2)), _xlfn.LOGNORM.INV(M96, 'CWP Prob & Severity Param'!$A$6, 'CWP Prob & Severity Param'!$B$6), "") ->  | X96: =IF($I96>=_xlfn.NUMBERVALUE(RIGHT(X$2, 2)), _xlfn.LOGNORM.INV(N96, 'CWP Prob & Severity Param'!$A$6, 'CWP Prob & Severity Param'!$B$6), "") ->  | Y96: =IF($I96>=_xlfn.NUMBERVALUE(RIGHT(Y$2, 2)), _xlfn.LOGNORM.INV(O96, 'CWP Prob & Severity Param'!$A$6, 'CWP Prob & Severity Param'!$B$6), "") ->  | Z96: =IF($I96>=_xlfn.NUMBERVALUE(RIGHT(Z$2, 2)), _xlfn.LOGNORM.INV(P96, 'CWP Prob & Severity Param'!$A$6, 'CWP Prob & Severity Param'!$B$6), "") ->  | AA96: =IF($I96>=_xlfn.NUMBERVALUE(RIGHT(AA$2, 2)), _xlfn.LOGNORM.INV(Q96, 'CWP Prob & Severity Param'!$A$6, 'CWP Prob & Severity Param'!$B$6), "") ->  | AB96: =IF($I96>=_xlfn.NUMBERVALUE(RIGHT(AB$2, 2)), _xlfn.LOGNORM.INV(R96, 'CWP Prob & Severity Param'!$A$6, 'CWP Prob & Severity Param'!$B$6), "") ->  | AC96: =IF($I96>=_xlfn.NUMBERVALUE(RIGHT(AC$2, 2)), _xlfn.LOGNORM.INV(S96, 'CWP Prob & Severity Param'!$A$6, 'CWP Prob & Severity Param'!$B$6), "") ->  | AD96: 0 | AE96: 0.8890292145 | AF96: 0.9936014375 | AG96: 0.9997516009 | AH96: 0.9999927389 | AI96: 0.9999998299 | AJ96: 0.9999999967 | AK96: 0.9999999999 | AL96: 1 | AM96: 1 | AN96: 1
D97: 95 | E97: ='Freq Fit (Poisson)'!N97 -> 0.128021618 | F97: 0.4843233461 | G97: =INDEX('Simulation (Poisson)'!$AD$2:$AN$2, MATCH(F97, 'Simulation (Poisson)'!$AD97:$AN97, 1)) -> 0 | H97: 0.2801385027 | I97: =_xlfn.BINOM.INV(G97,'CWP Prob & Severity Param'!$A$2,H97) -> 0 | J97: 0.982990248 | K97: 0.463100334 | L97: 0.3913995997 | M97: 0.8480366975 | N97: 0.6074874991 | O97: 0.6937509954 | P97: 0.4820692885 | Q97: 0.6739963637 | R97: 0.5011667706 | S97: 0.6253700194 | T97: =IF($I97>=_xlfn.NUMBERVALUE(RIGHT(T$2, 2)), _xlfn.LOGNORM.INV(J97, 'CWP Prob & Severity Param'!$A$6, 'CWP Prob & Severity Param'!$B$6), "") ->  | U97: =IF($I97>=_xlfn.NUMBERVALUE(RIGHT(U$2, 2)), _xlfn.LOGNORM.INV(K97, 'CWP Prob & Severity Param'!$A$6, 'CWP Prob & Severity Param'!$B$6), "") ->  | V97: =IF($I97>=_xlfn.NUMBERVALUE(RIGHT(V$2, 2)), _xlfn.LOGNORM.INV(L97, 'CWP Prob & Severity Param'!$A$6, 'CWP Prob & Severity Param'!$B$6), "") ->  | W97: =IF($I97>=_xlfn.NUMBERVALUE(RIGHT(W$2, 2)), _xlfn.LOGNORM.INV(M97, 'CWP Prob & Severity Param'!$A$6, 'CWP Prob & Severity Param'!$B$6), "") ->  | X97: =IF($I97>=_xlfn.NUMBERVALUE(RIGHT(X$2, 2)), _xlfn.LOGNORM.INV(N97, 'CWP Prob & Severity Param'!$A$6, 'CWP Prob & Severity Param'!$B$6), "") ->  | Y97: =IF($I97>=_xlfn.NUMBERVALUE(RIGHT(Y$2, 2)), _xlfn.LOGNORM.INV(O97, 'CWP Prob & Severity Param'!$A$6, 'CWP Prob & Severity Param'!$B$6), "") ->  | Z97: =IF($I97>=_xlfn.NUMBERVALUE(RIGHT(Z$2, 2)), _xlfn.LOGNORM.INV(P97, 'CWP Prob & Severity Param'!$A$6, 'CWP Prob & Severity Param'!$B$6), "") ->  | AA97: =IF($I97>=_xlfn.NUMBERVALUE(RIGHT(AA$2, 2)), _xlfn.LOGNORM.INV(Q97, 'CWP Prob & Severity Param'!$A$6, 'CWP Prob & Severity Param'!$B$6), "") ->  | AB97: =IF($I97>=_xlfn.NUMBERVALUE(RIGHT(AB$2, 2)), _xlfn.LOGNORM.INV(R97, 'CWP Prob & Severity Param'!$A$6, 'CWP Prob & Severity Param'!$B$6), "") ->  | AC97: =IF($I97>=_xlfn.NUMBERVALUE(RIGHT(AC$2, 2)), _xlfn.LOGNORM.INV(S97, 'CWP Prob & Severity Param'!$A$6, 'CWP Prob & Severity Param'!$B$6), "") ->  | AD97: 0 | AE97: 0.8798343587 | AF97: 0.9924721768 | AG97: 0.9996822147 | AH97: 0.999989895 | AI97: 0.9999997424 | AJ97: 0.9999999945 | AK97: 0.9999999999 | AL97: 1 | AM97: 1 | AN97: 1
D98: 96 | E98: ='Freq Fit (Poisson)'!N98 -> 0.07597581005 | F98: 0.5423585991 | G98: =INDEX('Simulation (Poisson)'!$AD$2:$AN$2, MATCH(F98, 'Simulation (Poisson)'!$AD98:$AN98, 1)) -> 0 | H98: 0.98025053 | I98: =_xlfn.BINOM.INV(G98,'CWP Prob & Severity Param'!$A$2,H98) -> 0 | J98: 0.0005639783627 | K98: 0.879200443 | L98: 0.7504673447 | M98: 0.1670944433 | N98: 0.8803543762 | O98: 0.4852269787 | P98: 0.249660421 | Q98: 0.6359093329 | R98: 0.1500819697 | S98: 0.8745571795 | T98: =IF($I98>=_xlfn.NUMBERVALUE(RIGHT(T$2, 2)), _xlfn.LOGNORM.INV(J98, 'CWP Prob & Severity Param'!$A$6, 'CWP Prob & Severity Param'!$B$6), "") ->  | U98: =IF($I98>=_xlfn.NUMBERVALUE(RIGHT(U$2, 2)), _xlfn.LOGNORM.INV(K98, 'CWP Prob & Severity Param'!$A$6, 'CWP Prob & Severity Param'!$B$6), "") ->  | V98: =IF($I98>=_xlfn.NUMBERVALUE(RIGHT(V$2, 2)), _xlfn.LOGNORM.INV(L98, 'CWP Prob & Severity Param'!$A$6, 'CWP Prob & Severity Param'!$B$6), "") ->  | W98: =IF($I98>=_xlfn.NUMBERVALUE(RIGHT(W$2, 2)), _xlfn.LOGNORM.INV(M98, 'CWP Prob & Severity Param'!$A$6, 'CWP Prob & Severity Param'!$B$6), "") ->  | X98: =IF($I98>=_xlfn.NUMBERVALUE(RIGHT(X$2, 2)), _xlfn.LOGNORM.INV(N98, 'CWP Prob & Severity Param'!$A$6, 'CWP Prob & Severity Param'!$B$6), "") ->  | Y98: =IF($I98>=_xlfn.NUMBERVALUE(RIGHT(Y$2, 2)), _xlfn.LOGNORM.INV(O98, 'CWP Prob & Severity Param'!$A$6, 'CWP Prob & Severity Param'!$B$6), "") ->  | Z98: =IF($I98>=_xlfn.NUMBERVALUE(RIGHT(Z$2, 2)), _xlfn.LOGNORM.INV(P98, 'CWP Prob & Severity Param'!$A$6, 'CWP Prob & Severity Param'!$B$6), "") ->  | AA98: =IF($I98>=_xlfn.NUMBERVALUE(RIGHT(AA$2, 2)), _xlfn.LOGNORM.INV(Q98, 'CWP Prob & Severity Param'!$A$6, 'CWP Prob & Severity Param'!$B$6), "") ->  | AB98: =IF($I98>=_xlfn.NUMBERVALUE(RIGHT(AB$2, 2)), _xlfn.LOGNORM.INV(R98, 'CWP Prob & Severity Param'!$A$6, 'CWP Prob & Severity Param'!$B$6), "") ->  | AC98: =IF($I98>=_xlfn.NUMBERVALUE(RIGHT(AC$2, 2)), _xlfn.LOGNORM.INV(S98, 'CWP Prob & Severity Param'!$A$6, 'CWP Prob & Severity Param'!$B$6), "") ->  | AD98: 0 | AE98: 0.9268386265 | AF98: 0.9972559419 | AG98: 0.9999309482 | AH98: 0.9999986934 | AI98: 0.9999999802 | AJ98: 0.9999999997 | AK98: 1 | AL98: 1 | AM98: 1 | AN98: 1
D99: 97 | E99: ='Freq Fit (Poisson)'!N99 -> 0.3247046217 | F99: 0.9300972507 | G99: =INDEX('Simulation (Poisson)'!$AD$2:$AN$2, MATCH(F99, 'Simulation (Poisson)'!$AD99:$AN99, 1)) -> 1 | H99: 0.3185576166 | I99: =_xlfn.BINOM.INV(G99,'CWP Prob & Severity Param'!$A$2,H99) -> 1 | J99: 0.8562972046 | K99: 0.2726494686 | L99: 0.6614144697 | M99: 0.7159593872 | N99: 0.5234098504 | O99: 0.8351723463 | P99: 0.9499915604 | Q99: 0.7641277744 | R99: 0.002051115309 | S99: 0.4977771762 | T99: =IF($I99>=_xlfn.NUMBERVALUE(RIGHT(T$2, 2)), _xlfn.LOGNORM.INV(J99, 'CWP Prob & Severity Param'!$A$6, 'CWP Prob & Severity Param'!$B$6), "") -> 184916.6687 | U99: =IF($I99>=_xlfn.NUMBERVALUE(RIGHT(U$2, 2)), _xlfn.LOGNORM.INV(K99, 'CWP Prob & Severity Param'!$A$6, 'CWP Prob & Severity Param'!$B$6), "") ->  | V99: =IF($I99>=_xlfn.NUMBERVALUE(RIGHT(V$2, 2)), _xlfn.LOGNORM.INV(L99, 'CWP Prob & Severity Param'!$A$6, 'CWP Prob & Severity Param'!$B$6), "") ->  | W99: =IF($I99>=_xlfn.NUMBERVALUE(RIGHT(W$2, 2)), _xlfn.LOGNORM.INV(M99, 'CWP Prob & Severity Param'!$A$6, 'CWP Prob & Severity Param'!$B$6), "") ->  | X99: =IF($I99>=_xlfn.NUMBERVALUE(RIGHT(X$2, 2)), _xlfn.LOGNORM.INV(N99, 'CWP Prob & Severity Param'!$A$6, 'CWP Prob & Severity Param'!$B$6), "") ->  | Y99: =IF($I99>=_xlfn.NUMBERVALUE(RIGHT(Y$2, 2)), _xlfn.LOGNORM.INV(O99, 'CWP Prob & Severity Param'!$A$6, 'CWP Prob & Severity Param'!$B$6), "") ->  | Z99: =IF($I99>=_xlfn.NUMBERVALUE(RIGHT(Z$2, 2)), _xlfn.LOGNORM.INV(P99, 'CWP Prob & Severity Param'!$A$6, 'CWP Prob & Severity Param'!$B$6), "") ->  | AA99: =IF($I99>=_xlfn.NUMBERVALUE(RIGHT(AA$2, 2)), _xlfn.LOGNORM.INV(Q99, 'CWP Prob & Severity Param'!$A$6, 'CWP Prob & Severity Param'!$B$6), "") ->  | AB99: =IF($I99>=_xlfn.NUMBERVALUE(RIGHT(AB$2, 2)), _xlfn.LOGNORM.INV(R99, 'CWP Prob & Severity Param'!$A$6, 'CWP Prob & Severity Param'!$B$6), "") ->  | AC99: =IF($I99>=_xlfn.NUMBERVALUE(RIGHT(AC$2, 2)), _xlfn.LOGNORM.INV(S99, 'CWP Prob & Severity Param'!$A$6, 'CWP Prob & Severity Param'!$B$6), "") ->  | AD99: 0 | AE99: 0.722740804 | AF99: 0.9574180834 | AG99: 0.995518482 | AH99: 0.9996422739 | AI99: 0.9999770275 | AJ99: 0.9999987667 | AK99: 0.9999999431 | AL99: 0.9999999977 | AM99: 0.9999999999 | AN99: 1
D100: 98 | E100: ='Freq Fit (Poisson)'!N100 -> 0.2873842278 | F100: 0.5922254101 | G100: =INDEX('Simulation (Poisson)'!$AD$2:$AN$2, MATCH(F100, 'Simulation (Poisson)'!$AD100:$AN100, 1)) -> 0 | H100: 0.0780589109 | I100: =_xlfn.BINOM.INV(G100,'CWP Prob & Severity Param'!$A$2,H100) -> 0 | J100: 0.6156191651 | K100: 0.8493940077 | L100: 0.880207399 | M100: 0.4723800904 | N100: 0.9796908601 | O100: 0.9039506967 | P100: 0.4330692497 | Q100: 0.7538191997 | R100: 0.4664972362 | S100: 0.4789387359 | T100: =IF($I100>=_xlfn.NUMBERVALUE(RIGHT(T$2, 2)), _xlfn.LOGNORM.INV(J100, 'CWP Prob & Severity Param'!$A$6, 'CWP Prob & Severity Param'!$B$6), "") ->  | U100: =IF($I100>=_xlfn.NUMBERVALUE(RIGHT(U$2, 2)), _xlfn.LOGNORM.INV(K100, 'CWP Prob & Severity Param'!$A$6, 'CWP Prob & Severity Param'!$B$6), "") ->  | V100: =IF($I100>=_xlfn.NUMBERVALUE(RIGHT(V$2, 2)), _xlfn.LOGNORM.INV(L100, 'CWP Prob & Severity Param'!$A$6, 'CWP Prob & Severity Param'!$B$6), "") ->  | W100: =IF($I100>=_xlfn.NUMBERVALUE(RIGHT(W$2, 2)), _xlfn.LOGNORM.INV(M100, 'CWP Prob & Severity Param'!$A$6, 'CWP Prob & Severity Param'!$B$6), "") ->  | X100: =IF($I100>=_xlfn.NUMBERVALUE(RIGHT(X$2, 2)), _xlfn.LOGNORM.INV(N100, 'CWP Prob & Severity Param'!$A$6, 'CWP Prob & Severity Param'!$B$6), "") ->  | Y100: =IF($I100>=_xlfn.NUMBERVALUE(RIGHT(Y$2, 2)), _xlfn.LOGNORM.INV(O100, 'CWP Prob & Severity Param'!$A$6, 'CWP Prob & Severity Param'!$B$6), "") ->  | Z100: =IF($I100>=_xlfn.NUMBERVALUE(RIGHT(Z$2, 2)), _xlfn.LOGNORM.INV(P100, 'CWP Prob & Severity Param'!$A$6, 'CWP Prob & Severity Param'!$B$6), "") ->  | AA100: =IF($I100>=_xlfn.NUMBERVALUE(RIGHT(AA$2, 2)), _xlfn.LOGNORM.INV(Q100, 'CWP Prob & Severity Param'!$A$6, 'CWP Prob & Severity Param'!$B$6), "") ->  | AB100: =IF($I100>=_xlfn.NUMBERVALUE(RIGHT(AB$2, 2)), _xlfn.LOGNORM.INV(R100, 'CWP Prob & Severity Param'!$A$6, 'CWP Prob & Severity Param'!$B$6), "") ->  | AC100: =IF($I100>=_xlfn.NUMBERVALUE(RIGHT(AC$2, 2)), _xlfn.LOGNORM.INV(S100, 'CWP Prob & Severity Param'!$A$6, 'CWP Prob & Severity Param'!$B$6), "") ->  | AD100: 0 | AE100: 0.7502234168 | AF100: 0.9658257941 | AG100: 0.9968061554 | AH100: 0.9997739112 | AI100: 0.9999871327 | AJ100: 0.999999388 | AK100: 0.999999975 | AL100: 0.9999999991 | AM100: 1 | AN100: 1
D101: 99 | E101: ='Freq Fit (Poisson)'!N101 -> 0.3492026182 | F101: 0.9191332154 | G101: =INDEX('Simulation (Poisson)'!$AD$2:$AN$2, MATCH(F101, 'Simulation (Poisson)'!$AD101:$AN101, 1)) -> 1 | H101: 0.6183543112 | I101: =_xlfn.BINOM.INV(G101,'CWP Prob & Severity Param'!$A$2,H101) -> 1 | J101: 0.7177218091 | K101: 0.4124740266 | L101: 0.336414018 | M101: 0.149757062 | N101: 0.9100879583 | O101: 0.3536195221 | P101: 0.2889934486 | Q101: 0.2895022243 | R101: 0.1795220923 | S101: 0.5781779771 | T101: =IF($I101>=_xlfn.NUMBERVALUE(RIGHT(T$2, 2)), _xlfn.LOGNORM.INV(J101, 'CWP Prob & Severity Param'!$A$6, 'CWP Prob & Severity Param'!$B$6), "") -> 69715.22358 | U101: =IF($I101>=_xlfn.NUMBERVALUE(RIGHT(U$2, 2)), _xlfn.LOGNORM.INV(K101, 'CWP Prob & Severity Param'!$A$6, 'CWP Prob & Severity Param'!$B$6), "") ->  | V101: =IF($I101>=_xlfn.NUMBERVALUE(RIGHT(V$2, 2)), _xlfn.LOGNORM.INV(L101, 'CWP Prob & Severity Param'!$A$6, 'CWP Prob & Severity Param'!$B$6), "") ->  | W101: =IF($I101>=_xlfn.NUMBERVALUE(RIGHT(W$2, 2)), _xlfn.LOGNORM.INV(M101, 'CWP Prob & Severity Param'!$A$6, 'CWP Prob & Severity Param'!$B$6), "") ->  | X101: =IF($I101>=_xlfn.NUMBERVALUE(RIGHT(X$2, 2)), _xlfn.LOGNORM.INV(N101, 'CWP Prob & Severity Param'!$A$6, 'CWP Prob & Severity Param'!$B$6), "") ->  | Y101: =IF($I101>=_xlfn.NUMBERVALUE(RIGHT(Y$2, 2)), _xlfn.LOGNORM.INV(O101, 'CWP Prob & Severity Param'!$A$6, 'CWP Prob & Severity Param'!$B$6), "") ->  | Z101: =IF($I101>=_xlfn.NUMBERVALUE(RIGHT(Z$2, 2)), _xlfn.LOGNORM.INV(P101, 'CWP Prob & Severity Param'!$A$6, 'CWP Prob & Severity Param'!$B$6), "") ->  | AA101: =IF($I101>=_xlfn.NUMBERVALUE(RIGHT(AA$2, 2)), _xlfn.LOGNORM.INV(Q101, 'CWP Prob & Severity Param'!$A$6, 'CWP Prob & Severity Param'!$B$6), "") ->  | AB101: =IF($I101>=_xlfn.NUMBERVALUE(RIGHT(AB$2, 2)), _xlfn.LOGNORM.INV(R101, 'CWP Prob & Severity Param'!$A$6, 'CWP Prob & Severity Param'!$B$6), "") ->  | AC101: =IF($I101>=_xlfn.NUMBERVALUE(RIGHT(AC$2, 2)), _xlfn.LOGNORM.INV(S101, 'CWP Prob & Severity Param'!$A$6, 'CWP Prob & Severity Param'!$B$6), "") ->  | AD101: 0 | AE101: 0.7052502192 | AF101: 0.9515254423 | AG101: 0.9945254187 | AH101: 0.9995306534 | AI101: 0.9999676137 | AJ101: 0.9999981312 | AK101: 0.9999999074 | AL101: 0.999999996 | AM101: 0.9999999998 | AN101: 1
D102: 100 | E102: ='Freq Fit (Poisson)'!N102 -> 0.1549587122 | F102: 0.9724418473 | G102: =INDEX('Simulation (Poisson)'!$AD$2:$AN$2, MATCH(F102, 'Simulation (Poisson)'!$AD102:$AN102, 1)) -> 1 | H102: 0.555748007 | I102: =_xlfn.BINOM.INV(G102,'CWP Prob & Severity Param'!$A$2,H102) -> 1 | J102: 0.490087971 | K102: 0.9394291104 | L102: 0.3086299465 | M102: 0.1125097986 | N102: 0.5856965344 | O102: 0.4290177755 | P102: 0.1172446725 | Q102: 0.6330925198 | R102: 0.888483994 | S102: 0.8843982624 | T102: =IF($I102>=_xlfn.NUMBERVALUE(RIGHT(T$2, 2)), _xlfn.LOGNORM.INV(J102, 'CWP Prob & Severity Param'!$A$6, 'CWP Prob & Severity Param'!$B$6), "") -> 20958.57903 | U102: =IF($I102>=_xlfn.NUMBERVALUE(RIGHT(U$2, 2)), _xlfn.LOGNORM.INV(K102, 'CWP Prob & Severity Param'!$A$6, 'CWP Prob & Severity Param'!$B$6), "") ->  | V102: =IF($I102>=_xlfn.NUMBERVALUE(RIGHT(V$2, 2)), _xlfn.LOGNORM.INV(L102, 'CWP Prob & Severity Param'!$A$6, 'CWP Prob & Severity Param'!$B$6), "") ->  | W102: =IF($I102>=_xlfn.NUMBERVALUE(RIGHT(W$2, 2)), _xlfn.LOGNORM.INV(M102, 'CWP Prob & Severity Param'!$A$6, 'CWP Prob & Severity Param'!$B$6), "") ->  | X102: =IF($I102>=_xlfn.NUMBERVALUE(RIGHT(X$2, 2)), _xlfn.LOGNORM.INV(N102, 'CWP Prob & Severity Param'!$A$6, 'CWP Prob & Severity Param'!$B$6), "") ->  | Y102: =IF($I102>=_xlfn.NUMBERVALUE(RIGHT(Y$2, 2)), _xlfn.LOGNORM.INV(O102, 'CWP Prob & Severity Param'!$A$6, 'CWP Prob & Severity Param'!$B$6), "") ->  | Z102: =IF($I102>=_xlfn.NUMBERVALUE(RIGHT(Z$2, 2)), _xlfn.LOGNORM.INV(P102, 'CWP Prob & Severity Param'!$A$6, 'CWP Prob & Severity Param'!$B$6), "") ->  | AA102: =IF($I102>=_xlfn.NUMBERVALUE(RIGHT(AA$2, 2)), _xlfn.LOGNORM.INV(Q102, 'CWP Prob & Severity Param'!$A$6, 'CWP Prob & Severity Param'!$B$6), "") ->  | AB102: =IF($I102>=_xlfn.NUMBERVALUE(RIGHT(AB$2, 2)), _xlfn.LOGNORM.INV(R102, 'CWP Prob & Severity Param'!$A$6, 'CWP Prob & Severity Param'!$B$6), "") ->  | AC102: =IF($I102>=_xlfn.NUMBERVALUE(RIGHT(AC$2, 2)), _xlfn.LOGNORM.INV(S102, 'CWP Prob & Severity Param'!$A$6, 'CWP Prob & Severity Param'!$B$6), "") ->  | AD102: 0 | AE102: 0.8564505377 | AF102: 0.9891650101 | AG102: 0.999447642 | AH102: 0.9999787698 | AI102: 0.9999993455 | AJ102: 0.9999999832 | AK102: 0.9999999996 | AL102: 1 | AM102: 1 | AN102: 1
D103: 101 | E103: ='Freq Fit (Poisson)'!N103 -> 0.09032780936 | F103: 0.7187775493 | G103: =INDEX('Simulation (Poisson)'!$AD$2:$AN$2, MATCH(F103, 'Simulation (Poisson)'!$AD103:$AN103, 1)) -> 0 | H103: 0.7815395455 | I103: =_xlfn.BINOM.INV(G103,'CWP Prob & Severity Param'!$A$2,H103) -> 0 | J103: 0.8609197503 | K103: 0.9843932598 | L103: 0.5247428877 | M103: 0.108922976 | N103: 0.5989034862 | O103: 0.5096019476 | P103: 0.8214597362 | Q103: 0.899703292 | R103: 0.4476439112 | S103: 0.5890092741 | T103: =IF($I103>=_xlfn.NUMBERVALUE(RIGHT(T$2, 2)), _xlfn.LOGNORM.INV(J103, 'CWP Prob & Severity Param'!$A$6, 'CWP Prob & Severity Param'!$B$6), "") ->  | U103: =IF($I103>=_xlfn.NUMBERVALUE(RIGHT(U$2, 2)), _xlfn.LOGNORM.INV(K103, 'CWP Prob & Severity Param'!$A$6, 'CWP Prob & Severity Param'!$B$6), "") ->  | V103: =IF($I103>=_xlfn.NUMBERVALUE(RIGHT(V$2, 2)), _xlfn.LOGNORM.INV(L103, 'CWP Prob & Severity Param'!$A$6, 'CWP Prob & Severity Param'!$B$6), "") ->  | W103: =IF($I103>=_xlfn.NUMBERVALUE(RIGHT(W$2, 2)), _xlfn.LOGNORM.INV(M103, 'CWP Prob & Severity Param'!$A$6, 'CWP Prob & Severity Param'!$B$6), "") ->  | X103: =IF($I103>=_xlfn.NUMBERVALUE(RIGHT(X$2, 2)), _xlfn.LOGNORM.INV(N103, 'CWP Prob & Severity Param'!$A$6, 'CWP Prob & Severity Param'!$B$6), "") ->  | Y103: =IF($I103>=_xlfn.NUMBERVALUE(RIGHT(Y$2, 2)), _xlfn.LOGNORM.INV(O103, 'CWP Prob & Severity Param'!$A$6, 'CWP Prob & Severity Param'!$B$6), "") ->  | Z103: =IF($I103>=_xlfn.NUMBERVALUE(RIGHT(Z$2, 2)), _xlfn.LOGNORM.INV(P103, 'CWP Prob & Severity Param'!$A$6, 'CWP Prob & Severity Param'!$B$6), "") ->  | AA103: =IF($I103>=_xlfn.NUMBERVALUE(RIGHT(AA$2, 2)), _xlfn.LOGNORM.INV(Q103, 'CWP Prob & Severity Param'!$A$6, 'CWP Prob & Severity Param'!$B$6), "") ->  | AB103: =IF($I103>=_xlfn.NUMBERVALUE(RIGHT(AB$2, 2)), _xlfn.LOGNORM.INV(R103, 'CWP Prob & Severity Param'!$A$6, 'CWP Prob & Severity Param'!$B$6), "") ->  | AC103: =IF($I103>=_xlfn.NUMBERVALUE(RIGHT(AC$2, 2)), _xlfn.LOGNORM.INV(S103, 'CWP Prob & Severity Param'!$A$6, 'CWP Prob & Severity Param'!$B$6), "") ->  | AD103: 0 | AE103: 0.9136316392 | AF103: 0.9961579837 | AG103: 0.9998851957 | AH103: 0.9999974193 | AI103: 0.9999999535 | AJ103: 0.9999999993 | AK103: 1 | AL103: 1 | AM103: 1 | AN103: 1
